{"text_format":"1","workbook":"xlsx","n_sheets":7,"sheets":["Application","Summary Report","Equipment","ARC - Retrofit","ARC - New RTU","ARC - DCV Only","Lookups"],"not_rendered":{"charts":3,"images":8,"macros":1,"external_links":0,"defined_names":23,"comments":0,"pivot_tables":0},"unopened":[],"bounds":{"document_bytes":16777216,"sheet_cells":100000,"rows_first":2000,"rows_last":500,"rows_between":2000,"halvings":0,"cell_chars":16384,"cell_head_chars":4096},"cells_cut":0,"cells_raw":0,"read":"whole","date_system":"1900"}

{"sheet":"Application","index":0,"n_rows":99,"n_cols":22,"rows_kept":99,"cut":false,"hidden":false,"merged":[[49,20,52,28],[5,2,5,17],[6,2,6,17],[7,2,7,5],[7,6,7,8],[7,9,7,11],[7,12,7,15],[11,2,11,10],[11,11,11,13],[11,14,11,15],[11,16,11,17],[12,2,12,10],[12,11,12,17],[8,2,8,17],[9,2,9,17],[10,2,10,10],[10,11,10,13],[10,14,10,15],[10,16,10,17],[17,2,17,17],[18,2,18,17],[13,2,13,10],[13,11,13,17],[14,2,14,5],[14,6,14,10],[14,11,14,17],[15,2,15,5],[15,6,15,10],[15,11,15,17],[22,14,22,15],[22,16,22,17],[23,2,24,7],[23,8,24,10],[23,11,23,17],[24,11,24,17],[19,2,19,17],[20,2,20,10],[20,11,20,13],[20,14,20,15],[20,16,20,17],[21,2,21,10],[21,11,21,13],[21,14,21,15],[21,16,21,17],[32,2,32,17],[25,2,25,17],[26,2,26,3],[26,4,26,7],[26,8,26,17],[27,2,27,7],[27,8,30,17],[28,2,28,7],[29,2,29,7],[30,2,30,7],[22,2,22,7],[22,8,22,13],[33,2,33,17],[34,2,34,17],[35,2,35,10],[35,11,35,13],[35,14,35,15],[35,16,35,17],[38,2,38,10],[38,11,38,17],[40,2,40,17],[41,2,47,17],[49,2,49,7],[49,9,49,14],[49,16,49,17],[36,2,36,10],[36,11,36,13],[36,14,36,15],[36,16,36,17],[37,2,37,10],[37,11,37,17],[50,2,50,7],[50,9,50,14],[50,16,50,17],[51,2,51,17],[52,10,63,17],[53,2,53,9],[54,2,58,2],[54,3,58,9],[60,2,68,2],[60,3,68,9],[97,2,102,9],[103,2,104,9],[64,10,71,17],[69,2,69,9],[70,2,80,2],[70,3,80,9],[81,2,84,9],[85,2,91,9],[92,2,96,9],[72,10,81,17],[82,10,93,17],[94,10,97,17],[98,10,103,17]]}
[]
[null,null,null,null,null,null,null,null,null,null,null,null,null,null,null,null,null,null,null,null,{"$f":"LOOKUP(2,1/(Lookups!E9:E200<>\"\"),Lookups!E9:E200)","v":"v 04012025"}]
[null,null,"wattsmart Business",null,null,null,null,null,null,null,null,null,null,null,null,null,null,null,null,null,"Locked"]
[null,null,"General Application"]
[null,null,null,null,null,null,null,null,null,null,null,null,null,null,null,null,null,null,null,null,null,"Yellow cells indicate information needed"]
[null,null,"PARTICIPANT INFORMATION"]
[null,null," (Check will be issued to the participant business name and address listed below unless the payment release section below has been filled out)"]
[null,null," Participant is (check all that apply)",null,null,null,false,null,null,false,null,null,false]
[null,null,"Participant business name (As shown on income tax return):"]
[]
[null,null,"Mailing address:",null,null,null,null,null,null,null,null,"City:",null,null,"State:",null,"Zip:"]
[]
[null,null,"Contact name:",null,null,null,null,null,null,null,null,"Contact title:"]
[]
[null,null,"Contact telephone number:",null,null,null,"Cell number:",null,null,null,null,"Contact email address:"]
[]
[]
[null,null,"PROJECT SITE INFORMATION  "]
[null,null,"Facility/Project name: "]
[]
[null,null,"Facility address:",null,null,null,null,null,null,null,null,"City:",null,null,"State:",null,"Zip:"]
[null,null,null,null,null,null,null,null,null,null,null,null,null,null,"UT"]
[null,null,"Commercial/industrial electric account #:",null,null,null,null,null,null,null,null,null,null,null,"Rate Schedule:"]
[null,null,"Electric meter number – seven or eight digits: \n(If multiple meters at site only enter one)",null,null,null,null,null,null,null,null,"Customer name: (As shown on bill)"]
[]
[null,null,"Please provide a description of your project so we may better help you: "]
[null,null,"Lighting",null,null,null,null,null,"Additional project information: (scope and schedule)"]
[null,null,"Listed Equipment Incentives"]
[null,null,"New Construction"]
[null,null,"Custom or Energy Management Incentives"]
[null,null,"Other:                                                                ."]
[]
[null,null,"INCENTIVE ASSIGNMENT (Complete only if incentive is to be assigned to someone other than participant above)"]
[null,null,"Check should be made out to:"]
[]
[null,null,"Mailing address:",null,null,null,null,null,null,null,null,"City:",null,null,"State:",null,"Zip:"]
[]
[null,null,"Contact name:",null,null,null,null,null,null,null,null,"Contact telephone:"]
[]
[]
[null,null,"APPLICATION ACKNOWLEDGEMENT"]
[null,null,"By my signature below, I certify that all information provided for participation will be accurate including but not limited to supplemental\nmaterial and claims of participant and equipment information. I confirm I have read, understand and agree with the terms and conditions\nand agree to be bound by them. I authorize Rocky Mountain Power to provide my electric account information to consultants\nassociated with the wattsmart Business program. "]
[]
[]
[]
[]
[]
[]
[]
[null,null,null,null,null,null,null,null,null,null,null,null,null,null,null,null,null,null,null,null,"<---Signature fields cannot be completed digitally here. "]
[null,null,"Signatory name & title (please print)",null,null,null,null,null,null,"Participant signature",null,null,null,null,null,null,"Date"]
[null,null,"Terms and Conditions"]
[null,null,"How to participate:",null,null,null,null,null,null,null,"any specified amount of energy or cost savings. Participant shall independently evaluate any advice or direction given by Rocky Mountain Power or its consultants related to the estimates of electricity savings or the cost, selection or installation of qualifying equipment/energy management measures. In no event will Rocky Mountain Power or its consultants be liable for the failure of the participant to achieve its expected amount of energy savings, for any personal injury or harm to participant’s facilities of any kind, or for any incidental or consequential damages of any kind including hazardous material identification in connection with installation or inspection of qualifying equipment and energy management measures. Rocky Mountain Power is not responsible if a third party provides inaccurate information about the amount and/or conditions of the actual incentive and Rocky Mountain Power will not pay incentives for equipment that is mislabeled or misrepresented by third parties regarding incentive qualifications."]
[null,null,"Typical incentives:"]
[null,null,"1.\n2.\n3.\n\n4.\n","Pre-qualification is recommended but not required.\nPurchase and install qualifying equipment.\nComplete general application, technology specific supplemental equipment form(s), and IRS Form W-9.\nSubmit application and all required supplemental forms as directed on supplemental form(s)."]
[]
[]
[]
[]
[null,null,"Lighting retrofit incentives: "]
[null,null,"1.\n\n\n2.\n\n3.\n\n4.\n\n5.\n","Pre-qualification is required prior to equipment purchase.\nSubmit general application and IRS Form W-9 to your assigned Project Manager or a wattsmart Business Vendor.\nParticipate in inspections prior to the installation or removal of any equipment.\nIncentive offer will be provided to eligible participants. Return signed incentive offer letter within the required time\nComplete project and notify your assigned Project Manager or wattsmart Business vendor.\nProvide all required documentation and participate in any required inspections."]
[]
[]
[]
[null,null,null,null,null,null,null,null,null,null,"Incentive offer: The incentive offer is an estimate. The final incentive will be based on actual electric savings and approved actual project costs incurred by the participant for implemented approved energy efficiency measures. Participant agrees to provide any reasonable documentation to allow Rocky Mountain Power to determine electric savings and actual costs incurred. To the extent that Rocky Mountain Power determines (at its sole discretion) that any of the recommended measures have not been installed and commissioned in a satisfactory manner, participant shall receive a reduced incentive, if any, based on the inspection and verification of installed and commissioned measures."]
[]
[]
[]
[]
[null,null,"Custom and energy management incentives: "]
[null,null,"1.\n\n\n2.\n\n\n\n3.\n\n4.\n\n5.","Pre-qualification is required prior to equipment purchase/project implementation. Submit general application\nand IRS Form W-9.\nParticipate in project scoping meeting(s), inspections and engineering analysis(s) prior to installation or removal of equipment. Provide additional supplemental applications or information as needed.\nIncentive offer(s) will be provided to eligible participants. Return signed incentive offer within required time.\nComplete project and provide completion notification to your assigned Project Manager.\nProvide all required documentation and participate in any required inspections."]
[]
[null,null,null,null,null,null,null,null,null,null,"Incentive repayment obligation: If Participant terminates a material\nportion of its electric service requirements from Rocky Mountain\nPower for Participant’s Facility within 60 months of the date of the\nfinal incentive payment, and the Facility remains in operation,\nParticipant is obligated to repay the final incentive to Rocky\nMountain Power within 30 days of written request. The repayment\n(\"Repayment\") will be determined as follows: Repayment = final\nincentive x (60-Savings Delivery Term)/60, where Savings Delivery\nTerm = number of months between the month the Final Incentive\npayment was made and the month the Facility terminated a material\nportion of its electric service. For determining the repayment, the\ndates will be the first day of the month in which they occur."]
[]
[]
[]
[]
[]
[]
[]
[]
[null,null,"Incentive assignment to third party: In the event that Rocky Mountain Power does not pay the incentive as a result of the participant’s failure to comply with the terms and conditions, the assignee’s sole recourse shall be against participant."]
[null,null,null,null,null,null,null,null,null,null,"Transfer of environmental attributes: Participant hereby transfers to Rocky Mountain Power all \"Environmental Attributes\" attributable to the installation of the qualifying equipment or its operation. Environmental Attributes include any and all credits, benefits, emissions reductions, offsets and allowances, howsoever entitled, resulting from the avoidance of the emission of any substance to the air, soil or water at or by the company’s generating facilities, through reduced generation of energy or other savings or offsets on account of the qualifying equipment. Participant will not claim ownership of any Environmental Attributes. As long as participant at the same time states the installation of the qualifying equipment was made possible with funding from Rocky Mountain Power, participant may claim that it is facilitating the production of the Environmental Attributes attributable to the qualifying equipment. "]
[]
[]
[null,null,"Inspections and analysis: Participant agrees to cooperate with Rocky Mountain Power and its consultants to conduct energy analysis and inspections at the participant’s site. Rocky Mountain Power reserves the right to inspect qualifying equipment/energy management measures, which may include a telephone survey, site visit, and/or the installation of temporary monitoring equipment at any time up to 36 months after installation for quality control or program performance evaluations. "]
[]
[]
[]
[]
[]
[]
[null,null,"Tax liability: Neither Rocky Mountain Power nor its Program Administrator is providing tax advice or responsible for any tax liability which may be imposed on the participant as a result of any incentive payment. Participant may be responsible for the tax reporting to the IRS of any incentive payments directed to third parties."]
[]
[null,null,null,null,null,null,null,null,null,null,"Additional details: Incentive qualifications and amounts are subject to change and termination at any time. Visit the program’s website or contact a wattsmart Business vendor or Rocky Mountain Power for current program information. "]
[]
[]
[null,null,"Incentive limitations & limitation of damages: Participants may not receive custom incentives in lieu of typical (listed) incentives. Participants are responsible for ensuring that equipment installed for this program meets all applicable codes, standards, environmental regulations and regulatory requirements. Rocky Mountain Power does not warrant the performance of qualifying installed equipment/energy "]
[null,null,null,null,null,null,null,null,null,null,"Confidential information: Confidential information provided to Rocky Mountain Power or consultants shall not be disclosed to any third party. Confidential information shall mean data disclosed during the course of the energy analysis, and identified by the participant in writing as confidential. The obligation to protect confidential information will remain in force for two (2) years from the date the energy analysis is performed."]

{"sheet":"Summary Report","index":1,"n_rows":33,"n_cols":21,"rows_kept":33,"cut":false,"hidden":false,"merged":[[6,2,6,4],[6,5,6,9],[6,10,6,12],[1,2,1,4],[1,5,1,12],[2,5,5,8],[2,9,5,12],[5,2,5,4],[7,2,7,4],[7,5,7,9],[7,10,7,12],[8,2,8,4],[8,5,8,7],[8,8,8,9],[8,10,8,12],[9,2,9,4],[9,5,9,9],[9,10,9,12],[10,2,10,4],[10,5,10,9],[10,10,10,12],[15,2,15,12],[11,2,11,4],[11,5,11,9],[11,10,11,12],[12,2,12,4],[12,5,12,9],[12,10,12,12],[13,2,13,4],[13,5,13,9],[13,10,13,12],[14,2,14,4],[14,5,14,12],[16,3,16,6],[16,8,20,12],[17,3,17,6],[18,4,18,5],[19,3,19,6],[20,4,20,5],[21,3,21,6],[21,8,21,11],[22,2,23,2],[22,3,23,3],[22,4,23,5],[22,6,23,7],[29,2,29,12],[30,3,30,12],[31,3,31,12],[32,3,32,12],[24,2,25,2],[24,3,24,11],[25,3,25,11],[26,2,26,12],[27,2,27,12],[28,2,28,12]]}
[]
[null,null,null,null,null,null,null,null,null,null,null,null,null,null,null,{"$f":"LOOKUP(2,1/(Lookups!E9:E200<>\"\"),Lookups!E9:E200)","v":"v 04012025"}]
[null,null,"\n\nwattsmart® Business\n2223 S. Highland Drive #E6-333\nSalt Lake City, UT  84106\nwattsmart.com "]
[]
[null,null,null,null,null,null,null,null,null,null,null,null,null,null,null,null,"Yellow cells indicate information needed"]
[null,null,"wattsmart® Business\n2223 S. Highland Drive #E6-333\nSalt Lake City, UT  84106\nwattsmart.com "]
[null,null,"Customer/Site Information",null,null,"Vendor Information",null,null,null,null,"Project Information",null,null,null,null,null,"Incentives","kWh Savings","kW Savings","Customer Costs","Cost Savings"]
[null,null,{"$f":"IF(Application!C20=\"\",\"_____________\",Application!C20)","v":"_____________"},null,null,"Enter Vendor Company Name",null,null,null,null,"Enter Auditor Name",null,null,null,null,"Totals",{"$f":"SUM(Q9:Q16)","v":0},{"$f":"SUM(R9:R16)","v":0},{"$f":"SUM(S9:S14)","v":0},{"$f":"SUM(T9:T16)","v":0},{"$f":"SUM(U9:U16)","v":0}]
[null,null,{"$f":"IF(Application!$C$14=\"\",\"_____________\",Application!$C$14)&IF(Application!$L$14=\"\",\"\",\", \"&Application!$L$14)","v":"_____________"},null,null,"Enter Vendor Contact Name",null,null,"Enter Phone"]
[null,null,{"$f":"IF(Application!$L$16=\"\",\"_____________\",Application!$L$16)","v":"_____________"},null,null,"Enter Email Address"]
[null,null,{"$f":"IF(Application!$C$22=\"\",\"_____________\",Application!$C$22)","v":"_____________"},null,null,"Enter Company Street Address"]
[null,null,{"$f":"IF(Application!$L$22=\"\",\"_____________\",Application!$L$22)&IF(Application!$O$22=\"\",\"\",\", \"&Application!$O$22)&IF(Application!$Q$22=\"\",\"\",\"  \"&Application!$Q$22)","v":"_____________, UT"},null,null,"Enter City, State, Zip"]
[]
[null,null,{"$f":"\"Meter #: \"&IF(Application!$I$24=\"\",\"_____________   \",Application!$I$24&\"      \")&IF(Application!$Q$23=\"\",\"\",\"Rate: \"&Application!$Q$23)","v":"Meter #: _____________   "},null,null,null,null,null,null,null,"Project Type: Retrofit",null,null,null,null,"ARC",{"$f":"'ARC - Retrofit'!Q2","v":0},{"$f":"'ARC - Retrofit'!N2","v":0},null,{"$f":"'ARC - Retrofit'!K3","v":0},{"$f":"'ARC - Retrofit'!Q3","v":0}]
[null,null,null,null,null,null,null,null,null,null,null,null,null,null,null,"ARC New",{"$f":"'ARC - New RTU'!Q2","v":0},{"$f":"'ARC - New RTU'!N2","v":0},null,{"$f":"'ARC - New RTU'!K3","v":0},{"$f":"'ARC - New RTU'!Q3","v":0}]
[null,null,"HVAC Check-up Assessment Summary",null,null,null,null,null,null,null,null,null,null,null,null,"ARC DCV",{"$f":"'ARC - DCV Only'!Q2","v":0},{"$f":"'ARC - DCV Only'!N2","v":0},null,{"$f":"'ARC - DCV Only'!K3","v":0},{"$f":"'ARC - DCV Only'!Q3","v":0}]
[]
[null,null,null,"Electric Cost Savings a"]
[null,null,null,null,{"$f":"IFERROR(U8,0)","v":0},null,"Per Year"]
[null,null,null,"Total Project Incentives a"]
[null,null,null,null,{"$f":"IFERROR(Q8,0)","v":0}]
[null,null,null,"Energy Savings a b",null,null,null,null,"Simple Payback a"]
[null,null,null,null,{"$f":"IFERROR(R8,0)","v":0},null,"kWh/year\nEnergy Savings",null,null,{"$f":"IFERROR(IF(RateSchedule<=\"\",\"Missing Rate Schedule\",(T8-Q8)/U8),0)","v":"Missing Rate Schedule"},"Years (with incentive)"]
[null,null,null,null,null,null,null,null,null,{"$f":"IFERROR(IF(RateSchedule=\"\",\"Missing Rate Schedule\",T8/U8),0)","v":"Missing Rate Schedule"},"Years (no incentive)"]
[null,null,null,"a Energy savings, electric cost savings, and total project incentives are estimates only and intended solely for wattsmart Business lighting projects. Incentives are subject to change at any time."]
[null,null,null,"b Energy savings shown above are estimated actual savings at the customer meter."]
[]
[null,null,"HVAC Check-up Next Steps"]
[null,null,"ü  Review this assessment report with your auditor."]
[null,null,"ü  Steps for HVAC Check-up incentives"]
[null,null,"1.","Upgrade your equipment. "]
[null,null,"2.","Submit project details and cost documentation including invoices. A post-installation inspection may be required."]
[null,null,"3.","Receive incentive check within 45 days of completion of step 2."]

{"sheet":"Equipment","index":2,"n_rows":212,"n_cols":22,"rows_kept":212,"cut":false,"hidden":false,"merged":[[8,14,8,16],[9,14,11,14],[9,15,11,15],[9,16,11,16],[16,21,17,24],[18,21,19,24],[5,3,5,4],[10,12,11,13],[151,4,151,5],[151,6,151,7],[151,8,151,9],[141,4,141,5],[141,6,141,7],[141,8,141,9],[142,4,142,5],[142,6,142,7],[142,8,142,9],[137,4,137,5],[137,6,137,7],[137,8,137,9],[138,4,138,5],[138,6,138,7],[138,8,138,9],[139,4,139,5],[146,4,146,5],[146,6,146,7],[146,8,146,9],[147,4,147,5],[147,6,147,7],[147,8,147,9],[140,4,140,5],[140,6,140,7],[140,8,140,9],[158,4,158,5],[158,6,158,7],[158,8,158,9],[154,4,154,5],[154,6,154,7],[154,8,154,9],[155,4,155,5],[155,6,155,7],[155,8,155,9],[156,4,156,5],[156,6,156,7],[156,8,156,9],[157,4,157,5],[157,6,157,7],[157,8,157,9],[153,4,153,5],[153,6,153,7],[153,8,153,9],[143,4,143,5],[143,6,143,7],[143,8,143,9],[144,4,144,5],[144,6,144,7],[144,8,144,9],[145,4,145,5],[145,6,145,7],[145,8,145,9],[152,4,152,5],[152,6,152,7],[152,8,152,9],[148,4,148,5],[148,6,148,7],[148,8,148,9],[149,4,149,5],[149,6,149,7],[149,8,149,9],[150,4,150,5],[150,6,150,7],[150,8,150,9],[139,6,139,7],[139,8,139,9],[134,4,134,5],[134,6,134,7],[134,8,134,9],[135,4,135,5],[135,6,135,7],[135,8,135,9],[136,4,136,5],[136,6,136,7],[136,8,136,9],[131,4,131,5],[131,6,131,7],[131,8,131,9],[132,4,132,5],[132,6,132,7],[132,8,132,9],[133,4,133,5],[133,6,133,7],[133,8,133,9],[128,4,128,5],[128,6,128,7],[128,8,128,9],[129,4,129,5],[129,6,129,7],[129,8,129,9],[130,4,130,5],[130,6,130,7],[130,8,130,9],[125,4,125,5],[125,6,125,7],[125,8,125,9],[126,4,126,5],[126,6,126,7],[126,8,126,9],[127,4,127,5],[127,6,127,7],[127,8,127,9],[122,4,122,5],[122,6,122,7],[122,8,122,9],[123,4,123,5],[123,6,123,7],[123,8,123,9],[124,4,124,5],[124,6,124,7],[124,8,124,9],[119,4,119,5],[119,6,119,7],[119,8,119,9],[120,4,120,5],[120,6,120,7],[120,8,120,9],[121,4,121,5],[121,6,121,7],[121,8,121,9],[116,4,116,5],[116,6,116,7],[116,8,116,9],[117,4,117,5],[117,6,117,7],[117,8,117,9],[118,4,118,5],[118,6,118,7],[118,8,118,9],[113,4,113,5],[113,6,113,7],[113,8,113,9],[114,4,114,5],[114,6,114,7],[114,8,114,9],[115,4,115,5],[115,6,115,7],[115,8,115,9],[110,4,110,5],[110,6,110,7],[110,8,110,9],[111,4,111,5],[111,6,111,7],[111,8,111,9],[112,4,112,5],[112,6,112,7],[112,8,112,9],[107,4,107,5],[107,6,107,7],[107,8,107,9],[108,4,108,5],[108,6,108,7],[108,8,108,9],[109,4,109,5],[109,6,109,7],[109,8,109,9],[104,4,104,5],[104,6,104,7],[104,8,104,9],[105,4,105,5],[105,6,105,7],[105,8,105,9],[106,4,106,5],[106,6,106,7],[106,8,106,9],[101,4,101,5],[101,6,101,7],[101,8,101,9],[102,4,102,5],[102,6,102,7],[102,8,102,9],[103,4,103,5],[103,6,103,7],[103,8,103,9],[98,4,98,5],[98,6,98,7],[98,8,98,9],[99,4,99,5],[99,6,99,7],[99,8,99,9],[100,4,100,5],[100,6,100,7],[100,8,100,9],[95,4,95,5],[95,6,95,7],[95,8,95,9],[96,4,96,5],[96,6,96,7],[96,8,96,9],[97,4,97,5],[97,6,97,7],[97,8,97,9],[92,4,92,5],[92,6,92,7],[92,8,92,9],[93,4,93,5],[93,6,93,7],[93,8,93,9],[94,4,94,5],[94,6,94,7],[94,8,94,9],[89,4,89,5],[89,6,89,7],[89,8,89,9],[90,4,90,5],[90,6,90,7],[90,8,90,9],[91,4,91,5],[91,6,91,7],[91,8,91,9],[86,4,86,5],[86,6,86,7],[86,8,86,9],[87,4,87,5],[87,6,87,7],[87,8,87,9],[88,4,88,5],[88,6,88,7],[88,8,88,9],[83,4,83,5],[83,6,83,7],[83,8,83,9],[84,4,84,5],[84,6,84,7],[84,8,84,9],[85,4,85,5],[85,6,85,7],[85,8,85,9],[80,4,80,5],[80,6,80,7],[80,8,80,9],[81,4,81,5],[81,6,81,7],[81,8,81,9],[82,4,82,5],[82,6,82,7],[82,8,82,9],[77,4,77,5],[77,6,77,7],[77,8,77,9],[78,4,78,5],[78,6,78,7],[78,8,78,9],[79,4,79,5],[79,6,79,7],[79,8,79,9],[74,4,74,5],[74,6,74,7],[74,8,74,9],[75,4,75,5],[75,6,75,7],[75,8,75,9],[76,4,76,5],[76,6,76,7],[76,8,76,9],[71,4,71,5],[71,6,71,7],[71,8,71,9],[72,4,72,5],[72,6,72,7],[72,8,72,9],[73,4,73,5],[73,6,73,7],[73,8,73,9],[68,4,68,5],[68,6,68,7],[68,8,68,9],[69,4,69,5],[69,6,69,7],[69,8,69,9],[70,4,70,5],[70,6,70,7],[70,8,70,9],[65,4,65,5],[65,6,65,7],[65,8,65,9],[66,4,66,5],[66,6,66,7],[66,8,66,9],[67,4,67,5],[67,6,67,7],[67,8,67,9],[62,4,62,5],[62,6,62,7],[62,8,62,9],[63,4,63,5],[63,6,63,7],[63,8,63,9],[64,4,64,5],[64,6,64,7],[64,8,64,9],[59,4,59,5],[59,6,59,7],[59,8,59,9],[60,4,60,5],[60,6,60,7],[60,8,60,9],[61,4,61,5],[61,6,61,7],[61,8,61,9],[56,4,56,5],[56,6,56,7],[56,8,56,9],[57,4,57,5],[57,6,57,7],[57,8,57,9],[58,4,58,5],[58,6,58,7],[58,8,58,9],[53,4,53,5],[53,6,53,7],[53,8,53,9],[54,4,54,5],[54,6,54,7],[54,8,54,9],[55,4,55,5],[55,6,55,7],[55,8,55,9],[50,4,50,5],[50,6,50,7],[50,8,50,9],[51,4,51,5],[51,6,51,7],[51,8,51,9],[52,4,52,5],[52,6,52,7],[52,8,52,9],[47,4,47,5],[47,6,47,7],[47,8,47,9],[48,4,48,5],[48,6,48,7],[48,8,48,9],[49,4,49,5],[49,6,49,7],[49,8,49,9],[44,4,44,5],[44,6,44,7],[44,8,44,9],[45,4,45,5],[45,6,45,7],[45,8,45,9],[46,4,46,5],[46,6,46,7],[46,8,46,9],[209,4,209,5],[209,6,209,7],[209,8,209,9],[210,4,210,5],[210,6,210,7],[210,8,210,9],[206,4,206,5],[206,6,206,7],[206,8,206,9],[207,4,207,5],[207,6,207,7],[207,8,207,9],[208,4,208,5],[208,6,208,7],[208,8,208,9],[203,4,203,5],[203,6,203,7],[203,8,203,9],[204,4,204,5],[204,6,204,7],[204,8,204,9],[205,4,205,5],[205,6,205,7],[205,8,205,9],[200,4,200,5],[200,6,200,7],[200,8,200,9],[201,4,201,5],[201,6,201,7],[201,8,201,9],[202,4,202,5],[202,6,202,7],[202,8,202,9],[197,4,197,5],[197,6,197,7],[197,8,197,9],[198,4,198,5],[198,6,198,7],[198,8,198,9],[199,4,199,5],[199,6,199,7],[199,8,199,9],[194,4,194,5],[194,6,194,7],[194,8,194,9],[195,4,195,5],[195,6,195,7],[195,8,195,9],[196,4,196,5],[196,6,196,7],[196,8,196,9],[191,4,191,5],[191,6,191,7],[191,8,191,9],[192,4,192,5],[192,6,192,7],[192,8,192,9],[193,4,193,5],[193,6,193,7],[193,8,193,9],[188,4,188,5],[188,6,188,7],[188,8,188,9],[189,4,189,5],[189,6,189,7],[189,8,189,9],[190,4,190,5],[190,6,190,7],[190,8,190,9],[185,4,185,5],[185,6,185,7],[185,8,185,9],[186,4,186,5],[186,6,186,7],[186,8,186,9],[187,4,187,5],[187,6,187,7],[187,8,187,9],[182,4,182,5],[182,6,182,7],[182,8,182,9],[183,4,183,5],[183,6,183,7],[183,8,183,9],[184,4,184,5],[184,6,184,7],[184,8,184,9],[179,4,179,5],[179,6,179,7],[179,8,179,9],[180,4,180,5],[180,6,180,7],[180,8,180,9],[181,4,181,5],[181,6,181,7],[181,8,181,9],[176,4,176,5],[176,6,176,7],[176,8,176,9],[177,4,177,5],[177,6,177,7],[177,8,177,9],[178,4,178,5],[178,6,178,7],[178,8,178,9],[173,4,173,5],[173,6,173,7],[173,8,173,9],[174,4,174,5],[174,6,174,7],[174,8,174,9],[175,4,175,5],[175,6,175,7],[175,8,175,9],[170,4,170,5],[170,6,170,7],[170,8,170,9],[171,4,171,5],[171,6,171,7],[171,8,171,9],[172,4,172,5],[172,6,172,7],[172,8,172,9],[167,4,167,5],[167,6,167,7],[167,8,167,9],[168,4,168,5],[168,6,168,7],[168,8,168,9],[169,4,169,5],[169,6,169,7],[169,8,169,9],[164,4,164,5],[164,6,164,7],[164,8,164,9],[165,4,165,5],[165,6,165,7],[165,8,165,9],[166,4,166,5],[166,6,166,7],[166,8,166,9],[161,4,161,5],[161,6,161,7],[161,8,161,9],[162,4,162,5],[162,6,162,7],[162,8,162,9],[163,4,163,5],[163,6,163,7],[163,8,163,9],[159,4,159,5],[159,6,159,7],[159,8,159,9],[160,4,160,5],[160,6,160,7],[160,8,160,9],[38,4,38,5],[38,6,38,7],[38,8,38,9],[39,4,39,5],[39,6,39,7],[39,8,39,9],[40,4,40,5],[40,6,40,7],[40,8,40,9],[41,4,41,5],[41,6,41,7],[41,8,41,9],[42,4,42,5],[42,6,42,7],[42,8,42,9],[43,4,43,5],[43,6,43,7],[43,8,43,9],[35,4,35,5],[35,6,35,7],[35,8,35,9],[36,4,36,5],[36,6,36,7],[36,8,36,9],[37,4,37,5],[37,6,37,7],[37,8,37,9],[23,6,23,7],[24,4,24,5],[24,6,24,7],[20,6,20,7],[21,4,21,5],[34,4,34,5],[34,6,34,7],[34,8,34,9],[32,4,32,5],[32,6,32,7],[32,8,32,9],[33,4,33,5],[33,6,33,7],[33,8,33,9],[20,8,20,9],[31,4,31,5],[31,6,31,7],[31,8,31,9],[25,8,25,9],[22,4,22,5],[22,6,22,7],[25,4,25,5],[25,6,25,7],[23,4,23,5],[211,8,211,9],[5,5,5,10],[26,4,26,5],[26,6,26,7],[26,8,26,9],[27,4,27,5],[27,6,27,7],[27,8,27,9],[28,4,28,5],[28,6,28,7],[28,8,28,9],[29,4,29,5],[29,6,29,7],[29,8,29,9],[30,4,30,5],[30,6,30,7],[30,8,30,9],[211,4,211,5],[211,6,211,7],[10,6,11,7],[10,4,11,5],[12,6,12,7],[12,4,12,5],[13,4,13,5],[19,6,19,7],[20,4,20,5],[12,8,12,9],[13,8,13,9],[14,8,14,9],[15,8,15,9],[16,8,16,9],[17,8,17,9],[18,8,18,9],[18,6,18,7],[13,6,13,7],[14,4,14,5],[17,4,17,5],[17,6,17,7],[18,4,18,5],[19,4,19,5],[1,1,2,5],[1,9,1,10],[2,9,2,10],[21,6,21,7],[10,3,11,3],[17,12,17,13],[18,12,18,13],[19,12,19,13],[20,12,20,13],[21,12,21,13],[6,5,6,10],[6,3,6,4],[7,3,7,4],[7,5,7,10],[4,3,4,10],[15,4,15,5],[15,6,15,7],[16,4,16,5],[16,6,16,7],[14,6,14,7],[10,10,11,10],[10,11,11,11],[12,12,12,13],[13,12,13,13],[14,12,14,13],[15,12,15,13],[16,12,16,13],[24,12,24,13],[23,8,23,9],[24,8,24,9],[19,8,19,9],[10,8,11,9],[26,12,26,13],[27,12,27,13],[28,12,28,13],[29,12,29,13],[25,12,25,13],[22,12,22,13],[23,12,23,13],[21,8,21,9],[22,8,22,9],[30,12,30,13],[31,12,31,13],[32,12,32,13],[33,12,33,13],[34,12,34,13],[35,12,35,13],[36,12,36,13],[37,12,37,13],[38,12,38,13],[39,12,39,13],[40,12,40,13],[41,12,41,13],[42,12,42,13],[43,12,43,13],[44,12,44,13],[45,12,45,13],[46,12,46,13],[47,12,47,13],[48,12,48,13],[49,12,49,13],[50,12,50,13],[51,12,51,13],[52,12,52,13],[53,12,53,13],[54,12,54,13],[55,12,55,13],[56,12,56,13],[57,12,57,13],[58,12,58,13],[59,12,59,13],[60,12,60,13],[61,12,61,13],[62,12,62,13],[63,12,63,13],[64,12,64,13],[65,12,65,13],[66,12,66,13],[67,12,67,13],[68,12,68,13],[69,12,69,13],[70,12,70,13],[71,12,71,13],[72,12,72,13],[73,12,73,13],[74,12,74,13],[75,12,75,13],[76,12,76,13],[77,12,77,13],[78,12,78,13],[79,12,79,13],[80,12,80,13],[81,12,81,13],[82,12,82,13],[83,12,83,13],[84,12,84,13],[85,12,85,13],[86,12,86,13],[87,12,87,13],[88,12,88,13],[89,12,89,13],[90,12,90,13],[91,12,91,13],[92,12,92,13],[93,12,93,13],[94,12,94,13],[95,12,95,13],[96,12,96,13],[97,12,97,13],[98,12,98,13],[99,12,99,13],[100,12,100,13],[101,12,101,13],[102,12,102,13],[103,12,103,13],[104,12,104,13],[105,12,105,13],[106,12,106,13],[107,12,107,13],[108,12,108,13],[109,12,109,13],[110,12,110,13],[111,12,111,13],[112,12,112,13],[113,12,113,13],[114,12,114,13],[115,12,115,13],[116,12,116,13],[117,12,117,13],[118,12,118,13],[119,12,119,13],[120,12,120,13],[121,12,121,13],[122,12,122,13],[123,12,123,13],[124,12,124,13],[125,12,125,13],[126,12,126,13],[127,12,127,13],[128,12,128,13],[129,12,129,13],[130,12,130,13],[131,12,131,13],[132,12,132,13],[133,12,133,13],[134,12,134,13],[135,12,135,13],[136,12,136,13],[137,12,137,13],[138,12,138,13],[139,12,139,13],[140,12,140,13],[141,12,141,13],[142,12,142,13],[143,12,143,13],[144,12,144,13],[145,12,145,13],[146,12,146,13],[147,12,147,13],[148,12,148,13],[149,12,149,13],[150,12,150,13],[151,12,151,13],[152,12,152,13],[153,12,153,13],[154,12,154,13],[155,12,155,13],[156,12,156,13],[157,12,157,13],[158,12,158,13],[159,12,159,13],[160,12,160,13],[176,12,176,13],[177,12,177,13],[178,12,178,13],[161,12,161,13],[162,12,162,13],[163,12,163,13],[164,12,164,13],[165,12,165,13],[166,12,166,13],[167,12,167,13],[168,12,168,13],[169,12,169,13],[211,12,211,13],[197,12,197,13],[198,12,198,13],[199,12,199,13],[200,12,200,13],[201,12,201,13],[202,12,202,13],[203,12,203,13],[204,12,204,13],[205,12,205,13],[210,12,210,13],[188,12,188,13],[189,12,189,13],[190,12,190,13],[191,12,191,13],[192,12,192,13],[193,12,193,13],[194,12,194,13],[195,12,195,13],[196,12,196,13],[28,21,29,24],[30,21,31,24],[12,21,13,24],[14,21,15,24],[7,21,8,24],[206,12,206,13],[207,12,207,13],[208,12,208,13],[209,12,209,13],[179,12,179,13],[180,12,180,13],[181,12,181,13],[182,12,182,13],[183,12,183,13],[184,12,184,13],[185,12,185,13],[186,12,186,13],[187,12,187,13],[170,12,170,13],[171,12,171,13],[172,12,172,13],[173,12,173,13],[174,12,174,13],[175,12,175,13]]}
[null,null,"HIDE",null,null,null,null,null,null,null,null,null,null,null,null,null,null,"HIDE",null,null,null,{"$f":"LOOKUP(2,1/(Lookups!E9:E200<>\"\"),Lookups!E9:E200)","v":"v 04012025"}]
[null,"Equipment"]
[]
[]
[null,null,null,"Building Details:"]
[null,null,null,null,null,"1. Are all RTUs used for comfort cooling only?"]
[null,null,null,null,null,"2. Select Building Type"]
[null,null,null,null,null,"3. Installation Date"]
[null,null,null,null,null,null,null,null,null,null,null,null,null,null,"ARC ",null,null,"Count"]
[null,null,null,"RTU Details: ",null,null,null,null,null,null,null,null,null,null,"Retrofit","New RTU","DCV only"]
[null,null,null,"Label","Manufacturer",null,"Model",null,"Serial",null,"Age (years)","Size (tons)","Blower Motor HP             "]
[]
[1,null,{"$f":"IF(ISNUMBER(SEARCH(\"x\",O13)),\"Retrofit\"& COUNTA($O$13:$O13),\nIF(ISNUMBER(SEARCH(\"x\",P13)),\"NewRTU\"& COUNTA($P$13:$P13),\nIF(ISNUMBER(SEARCH(\"x\",Q13)),\"DCVOnly\"& COUNTA($Q$13:$Q13),\n\"\")))","v":""},null,null,null,null,null,null,null,null,null,null,null,null,null,null,{"$f":"COUNTA(O13:Q13)","v":0}]
[2,null,{"$f":"IF(ISNUMBER(SEARCH(\"x\",O14)),\"Retrofit\"& COUNTA($O$13:$O14),\nIF(ISNUMBER(SEARCH(\"x\",P14)),\"NewRTU\"& COUNTA($P$13:$P14),\nIF(ISNUMBER(SEARCH(\"x\",Q14)),\"DCVOnly\"& COUNTA($Q$13:$Q14),\n\"\")))","v":""},null,null,null,null,null,null,null,null,null,null,null,null,null,null,{"$f":"COUNTA(O14:Q14)","v":0}]
[3,null,{"$f":"IF(ISNUMBER(SEARCH(\"x\",O15)),\"Retrofit\"& COUNTA($O$13:$O15),\nIF(ISNUMBER(SEARCH(\"x\",P15)),\"NewRTU\"& COUNTA($P$13:$P15),\nIF(ISNUMBER(SEARCH(\"x\",Q15)),\"DCVOnly\"& COUNTA($Q$13:$Q15),\n\"\")))","v":""},null,null,null,null,null,null,null,null,null,null,null,null,null,null,0]
[4,null,{"$f":"IF(ISNUMBER(SEARCH(\"x\",O16)),\"Retrofit\"& COUNTA($O$13:$O16),\nIF(ISNUMBER(SEARCH(\"x\",P16)),\"NewRTU\"& COUNTA($P$13:$P16),\nIF(ISNUMBER(SEARCH(\"x\",Q16)),\"DCVOnly\"& COUNTA($Q$13:$Q16),\n\"\")))","v":""},null,null,null,null,null,null,null,null,null,null,null,null,null,null,0]
[5,null,{"$f":"IF(ISNUMBER(SEARCH(\"x\",O17)),\"Retrofit\"& COUNTA($O$13:$O17),\nIF(ISNUMBER(SEARCH(\"x\",P17)),\"NewRTU\"& COUNTA($P$13:$P17),\nIF(ISNUMBER(SEARCH(\"x\",Q17)),\"DCVOnly\"& COUNTA($Q$13:$Q17),\n\"\")))","v":""},null,null,null,null,null,null,null,null,null,null,null,null,null,null,0]
[6,null,{"$f":"IF(ISNUMBER(SEARCH(\"x\",O18)),\"Retrofit\"& COUNTA($O$13:$O18),\nIF(ISNUMBER(SEARCH(\"x\",P18)),\"NewRTU\"& COUNTA($P$13:$P18),\nIF(ISNUMBER(SEARCH(\"x\",Q18)),\"DCVOnly\"& COUNTA($Q$13:$Q18),\n\"\")))","v":""},null,null,null,null,null,null,null,null,null,null,null,null,null,null,0]
[7,null,{"$f":"IF(ISNUMBER(SEARCH(\"x\",O19)),\"Retrofit\"& COUNTA($O$13:$O19),\nIF(ISNUMBER(SEARCH(\"x\",P19)),\"NewRTU\"& COUNTA($P$13:$P19),\nIF(ISNUMBER(SEARCH(\"x\",Q19)),\"DCVOnly\"& COUNTA($Q$13:$Q19),\n\"\")))","v":""},null,null,null,null,null,null,null,null,null,null,null,null,null,null,0]
[8,null,{"$f":"IF(ISNUMBER(SEARCH(\"x\",O20)),\"Retrofit\"& COUNTA($O$13:$O20),\nIF(ISNUMBER(SEARCH(\"x\",P20)),\"NewRTU\"& COUNTA($P$13:$P20),\nIF(ISNUMBER(SEARCH(\"x\",Q20)),\"DCVOnly\"& COUNTA($Q$13:$Q20),\n\"\")))","v":""},null,null,null,null,null,null,null,null,null,null,null,null,null,null,0]
[9,null,{"$f":"IF(ISNUMBER(SEARCH(\"x\",O21)),\"Retrofit\"& COUNTA($O$13:$O21),\nIF(ISNUMBER(SEARCH(\"x\",P21)),\"NewRTU\"& COUNTA($P$13:$P21),\nIF(ISNUMBER(SEARCH(\"x\",Q21)),\"DCVOnly\"& COUNTA($Q$13:$Q21),\n\"\")))","v":""},null,null,null,null,null,null,null,null,null,null,null,null,null,null,0]
[10,null,{"$f":"IF(ISNUMBER(SEARCH(\"x\",O22)),\"Retrofit\"& COUNTA($O$13:$O22),\nIF(ISNUMBER(SEARCH(\"x\",P22)),\"NewRTU\"& COUNTA($P$13:$P22),\nIF(ISNUMBER(SEARCH(\"x\",Q22)),\"DCVOnly\"& COUNTA($Q$13:$Q22),\n\"\")))","v":""},null,null,null,null,null,null,null,null,null,null,null,null,null,null,0]
[11,null,{"$f":"IF(ISNUMBER(SEARCH(\"x\",O23)),\"Retrofit\"& COUNTA($O$13:$O23),\nIF(ISNUMBER(SEARCH(\"x\",P23)),\"NewRTU\"& COUNTA($P$13:$P23),\nIF(ISNUMBER(SEARCH(\"x\",Q23)),\"DCVOnly\"& COUNTA($Q$13:$Q23),\n\"\")))","v":""},null,null,null,null,null,null,null,null,null,null,null,null,null,null,0]
[12,null,{"$f":"IF(ISNUMBER(SEARCH(\"x\",O24)),\"Retrofit\"& COUNTA($O$13:$O24),\nIF(ISNUMBER(SEARCH(\"x\",P24)),\"NewRTU\"& COUNTA($P$13:$P24),\nIF(ISNUMBER(SEARCH(\"x\",Q24)),\"DCVOnly\"& COUNTA($Q$13:$Q24),\n\"\")))","v":""},null,null,null,null,null,null,null,null,null,null,null,null,null,null,0]
[13,null,{"$f":"IF(ISNUMBER(SEARCH(\"x\",O25)),\"Retrofit\"& COUNTA($O$13:$O25),\nIF(ISNUMBER(SEARCH(\"x\",P25)),\"NewRTU\"& COUNTA($P$13:$P25),\nIF(ISNUMBER(SEARCH(\"x\",Q25)),\"DCVOnly\"& COUNTA($Q$13:$Q25),\n\"\")))","v":""},null,null,null,null,null,null,null,null,null,null,null,null,null,null,0]
[14,null,{"$f":"IF(ISNUMBER(SEARCH(\"x\",O26)),\"Retrofit\"& COUNTA($O$13:$O26),\nIF(ISNUMBER(SEARCH(\"x\",P26)),\"NewRTU\"& COUNTA($P$13:$P26),\nIF(ISNUMBER(SEARCH(\"x\",Q26)),\"DCVOnly\"& COUNTA($Q$13:$Q26),\n\"\")))","v":""},null,null,null,null,null,null,null,null,null,null,null,null,null,null,0]
[15,null,{"$f":"IF(ISNUMBER(SEARCH(\"x\",O27)),\"Retrofit\"& COUNTA($O$13:$O27),\nIF(ISNUMBER(SEARCH(\"x\",P27)),\"NewRTU\"& COUNTA($P$13:$P27),\nIF(ISNUMBER(SEARCH(\"x\",Q27)),\"DCVOnly\"& COUNTA($Q$13:$Q27),\n\"\")))","v":""},null,null,null,null,null,null,null,null,null,null,null,null,null,null,0]
[16,null,{"$f":"IF(ISNUMBER(SEARCH(\"x\",O28)),\"Retrofit\"& COUNTA($O$13:$O28),\nIF(ISNUMBER(SEARCH(\"x\",P28)),\"NewRTU\"& COUNTA($P$13:$P28),\nIF(ISNUMBER(SEARCH(\"x\",Q28)),\"DCVOnly\"& COUNTA($Q$13:$Q28),\n\"\")))","v":""},null,null,null,null,null,null,null,null,null,null,null,null,null,null,0]
[17,null,{"$f":"IF(ISNUMBER(SEARCH(\"x\",O29)),\"Retrofit\"& COUNTA($O$13:$O29),\nIF(ISNUMBER(SEARCH(\"x\",P29)),\"NewRTU\"& COUNTA($P$13:$P29),\nIF(ISNUMBER(SEARCH(\"x\",Q29)),\"DCVOnly\"& COUNTA($Q$13:$Q29),\n\"\")))","v":""},null,null,null,null,null,null,null,null,null,null,null,null,null,null,0]
[18,null,{"$f":"IF(ISNUMBER(SEARCH(\"x\",O30)),\"Retrofit\"& COUNTA($O$13:$O30),\nIF(ISNUMBER(SEARCH(\"x\",P30)),\"NewRTU\"& COUNTA($P$13:$P30),\nIF(ISNUMBER(SEARCH(\"x\",Q30)),\"DCVOnly\"& COUNTA($Q$13:$Q30),\n\"\")))","v":""},null,null,null,null,null,null,null,null,null,null,null,null,null,null,0]
[19,null,{"$f":"IF(ISNUMBER(SEARCH(\"x\",O31)),\"Retrofit\"& COUNTA($O$13:$O31),\nIF(ISNUMBER(SEARCH(\"x\",P31)),\"NewRTU\"& COUNTA($P$13:$P31),\nIF(ISNUMBER(SEARCH(\"x\",Q31)),\"DCVOnly\"& COUNTA($Q$13:$Q31),\n\"\")))","v":""},null,null,null,null,null,null,null,null,null,null,null,null,null,null,0]
[20,null,{"$f":"IF(ISNUMBER(SEARCH(\"x\",O32)),\"Retrofit\"& COUNTA($O$13:$O32),\nIF(ISNUMBER(SEARCH(\"x\",P32)),\"NewRTU\"& COUNTA($P$13:$P32),\nIF(ISNUMBER(SEARCH(\"x\",Q32)),\"DCVOnly\"& COUNTA($Q$13:$Q32),\n\"\")))","v":""},null,null,null,null,null,null,null,null,null,null,null,null,null,null,0]
[21,null,{"$f":"IF(ISNUMBER(SEARCH(\"x\",O33)),\"Retrofit\"& COUNTA($O$13:$O33),\nIF(ISNUMBER(SEARCH(\"x\",P33)),\"NewRTU\"& COUNTA($P$13:$P33),\nIF(ISNUMBER(SEARCH(\"x\",Q33)),\"DCVOnly\"& COUNTA($Q$13:$Q33),\n\"\")))","v":""},null,null,null,null,null,null,null,null,null,null,null,null,null,null,0]
[22,null,{"$f":"IF(ISNUMBER(SEARCH(\"x\",O34)),\"Retrofit\"& COUNTA($O$13:$O34),\nIF(ISNUMBER(SEARCH(\"x\",P34)),\"NewRTU\"& COUNTA($P$13:$P34),\nIF(ISNUMBER(SEARCH(\"x\",Q34)),\"DCVOnly\"& COUNTA($Q$13:$Q34),\n\"\")))","v":""},null,null,null,null,null,null,null,null,null,null,null,null,null,null,0]
[23,null,{"$f":"IF(ISNUMBER(SEARCH(\"x\",O35)),\"Retrofit\"& COUNTA($O$13:$O35),\nIF(ISNUMBER(SEARCH(\"x\",P35)),\"NewRTU\"& COUNTA($P$13:$P35),\nIF(ISNUMBER(SEARCH(\"x\",Q35)),\"DCVOnly\"& COUNTA($Q$13:$Q35),\n\"\")))","v":""},null,null,null,null,null,null,null,null,null,null,null,null,null,null,0]
[24,null,{"$f":"IF(ISNUMBER(SEARCH(\"x\",O36)),\"Retrofit\"& COUNTA($O$13:$O36),\nIF(ISNUMBER(SEARCH(\"x\",P36)),\"NewRTU\"& COUNTA($P$13:$P36),\nIF(ISNUMBER(SEARCH(\"x\",Q36)),\"DCVOnly\"& COUNTA($Q$13:$Q36),\n\"\")))","v":""},null,null,null,null,null,null,null,null,null,null,null,null,null,null,0]
[25,null,{"$f":"IF(ISNUMBER(SEARCH(\"x\",O37)),\"Retrofit\"& COUNTA($O$13:$O37),\nIF(ISNUMBER(SEARCH(\"x\",P37)),\"NewRTU\"& COUNTA($P$13:$P37),\nIF(ISNUMBER(SEARCH(\"x\",Q37)),\"DCVOnly\"& COUNTA($Q$13:$Q37),\n\"\")))","v":""},null,null,null,null,null,null,null,null,null,null,null,null,null,null,0]
[26,null,{"$f":"IF(ISNUMBER(SEARCH(\"x\",O38)),\"Retrofit\"& COUNTA($O$13:$O38),\nIF(ISNUMBER(SEARCH(\"x\",P38)),\"NewRTU\"& COUNTA($P$13:$P38),\nIF(ISNUMBER(SEARCH(\"x\",Q38)),\"DCVOnly\"& COUNTA($Q$13:$Q38),\n\"\")))","v":""},null,null,null,null,null,null,null,null,null,null,null,null,null,null,0]
[27,null,{"$f":"IF(ISNUMBER(SEARCH(\"x\",O39)),\"Retrofit\"& COUNTA($O$13:$O39),\nIF(ISNUMBER(SEARCH(\"x\",P39)),\"NewRTU\"& COUNTA($P$13:$P39),\nIF(ISNUMBER(SEARCH(\"x\",Q39)),\"DCVOnly\"& COUNTA($Q$13:$Q39),\n\"\")))","v":""},null,null,null,null,null,null,null,null,null,null,null,null,null,null,0]
[28,null,{"$f":"IF(ISNUMBER(SEARCH(\"x\",O40)),\"Retrofit\"& COUNTA($O$13:$O40),\nIF(ISNUMBER(SEARCH(\"x\",P40)),\"NewRTU\"& COUNTA($P$13:$P40),\nIF(ISNUMBER(SEARCH(\"x\",Q40)),\"DCVOnly\"& COUNTA($Q$13:$Q40),\n\"\")))","v":""},null,null,null,null,null,null,null,null,null,null,null,null,null,null,0]
[29,null,{"$f":"IF(ISNUMBER(SEARCH(\"x\",O41)),\"Retrofit\"& COUNTA($O$13:$O41),\nIF(ISNUMBER(SEARCH(\"x\",P41)),\"NewRTU\"& COUNTA($P$13:$P41),\nIF(ISNUMBER(SEARCH(\"x\",Q41)),\"DCVOnly\"& COUNTA($Q$13:$Q41),\n\"\")))","v":""},null,null,null,null,null,null,null,null,null,null,null,null,null,null,0]
[30,null,{"$f":"IF(ISNUMBER(SEARCH(\"x\",O42)),\"Retrofit\"& COUNTA($O$13:$O42),\nIF(ISNUMBER(SEARCH(\"x\",P42)),\"NewRTU\"& COUNTA($P$13:$P42),\nIF(ISNUMBER(SEARCH(\"x\",Q42)),\"DCVOnly\"& COUNTA($Q$13:$Q42),\n\"\")))","v":""},null,null,null,null,null,null,null,null,null,null,null,null,null,null,0]
[31,null,{"$f":"IF(ISNUMBER(SEARCH(\"x\",O43)),\"Retrofit\"& COUNTA($O$13:$O43),\nIF(ISNUMBER(SEARCH(\"x\",P43)),\"NewRTU\"& COUNTA($P$13:$P43),\nIF(ISNUMBER(SEARCH(\"x\",Q43)),\"DCVOnly\"& COUNTA($Q$13:$Q43),\n\"\")))","v":""},null,null,null,null,null,null,null,null,null,null,null,null,null,null,0]
[32,null,{"$f":"IF(ISNUMBER(SEARCH(\"x\",O44)),\"Retrofit\"& COUNTA($O$13:$O44),\nIF(ISNUMBER(SEARCH(\"x\",P44)),\"NewRTU\"& COUNTA($P$13:$P44),\nIF(ISNUMBER(SEARCH(\"x\",Q44)),\"DCVOnly\"& COUNTA($Q$13:$Q44),\n\"\")))","v":""},null,null,null,null,null,null,null,null,null,null,null,null,null,null,0]
[33,null,{"$f":"IF(ISNUMBER(SEARCH(\"x\",O45)),\"Retrofit\"& COUNTA($O$13:$O45),\nIF(ISNUMBER(SEARCH(\"x\",P45)),\"NewRTU\"& COUNTA($P$13:$P45),\nIF(ISNUMBER(SEARCH(\"x\",Q45)),\"DCVOnly\"& COUNTA($Q$13:$Q45),\n\"\")))","v":""},null,null,null,null,null,null,null,null,null,null,null,null,null,null,0]
[34,null,{"$f":"IF(ISNUMBER(SEARCH(\"x\",O46)),\"Retrofit\"& COUNTA($O$13:$O46),\nIF(ISNUMBER(SEARCH(\"x\",P46)),\"NewRTU\"& COUNTA($P$13:$P46),\nIF(ISNUMBER(SEARCH(\"x\",Q46)),\"DCVOnly\"& COUNTA($Q$13:$Q46),\n\"\")))","v":""},null,null,null,null,null,null,null,null,null,null,null,null,null,null,0]
[35,null,{"$f":"IF(ISNUMBER(SEARCH(\"x\",O47)),\"Retrofit\"& COUNTA($O$13:$O47),\nIF(ISNUMBER(SEARCH(\"x\",P47)),\"NewRTU\"& COUNTA($P$13:$P47),\nIF(ISNUMBER(SEARCH(\"x\",Q47)),\"DCVOnly\"& COUNTA($Q$13:$Q47),\n\"\")))","v":""},null,null,null,null,null,null,null,null,null,null,null,null,null,null,0]
[36,null,{"$f":"IF(ISNUMBER(SEARCH(\"x\",O48)),\"Retrofit\"& COUNTA($O$13:$O48),\nIF(ISNUMBER(SEARCH(\"x\",P48)),\"NewRTU\"& COUNTA($P$13:$P48),\nIF(ISNUMBER(SEARCH(\"x\",Q48)),\"DCVOnly\"& COUNTA($Q$13:$Q48),\n\"\")))","v":""},null,null,null,null,null,null,null,null,null,null,null,null,null,null,0]
[37,null,{"$f":"IF(ISNUMBER(SEARCH(\"x\",O49)),\"Retrofit\"& COUNTA($O$13:$O49),\nIF(ISNUMBER(SEARCH(\"x\",P49)),\"NewRTU\"& COUNTA($P$13:$P49),\nIF(ISNUMBER(SEARCH(\"x\",Q49)),\"DCVOnly\"& COUNTA($Q$13:$Q49),\n\"\")))","v":""},null,null,null,null,null,null,null,null,null,null,null,null,null,null,0]
[38,null,{"$f":"IF(ISNUMBER(SEARCH(\"x\",O50)),\"Retrofit\"& COUNTA($O$13:$O50),\nIF(ISNUMBER(SEARCH(\"x\",P50)),\"NewRTU\"& COUNTA($P$13:$P50),\nIF(ISNUMBER(SEARCH(\"x\",Q50)),\"DCVOnly\"& COUNTA($Q$13:$Q50),\n\"\")))","v":""},null,null,null,null,null,null,null,null,null,null,null,null,null,null,0]
[39,null,{"$f":"IF(ISNUMBER(SEARCH(\"x\",O51)),\"Retrofit\"& COUNTA($O$13:$O51),\nIF(ISNUMBER(SEARCH(\"x\",P51)),\"NewRTU\"& COUNTA($P$13:$P51),\nIF(ISNUMBER(SEARCH(\"x\",Q51)),\"DCVOnly\"& COUNTA($Q$13:$Q51),\n\"\")))","v":""},null,null,null,null,null,null,null,null,null,null,null,null,null,null,0]
[40,null,{"$f":"IF(ISNUMBER(SEARCH(\"x\",O52)),\"Retrofit\"& COUNTA($O$13:$O52),\nIF(ISNUMBER(SEARCH(\"x\",P52)),\"NewRTU\"& COUNTA($P$13:$P52),\nIF(ISNUMBER(SEARCH(\"x\",Q52)),\"DCVOnly\"& COUNTA($Q$13:$Q52),\n\"\")))","v":""},null,null,null,null,null,null,null,null,null,null,null,null,null,null,0]
[41,null,{"$f":"IF(ISNUMBER(SEARCH(\"x\",O53)),\"Retrofit\"& COUNTA($O$13:$O53),\nIF(ISNUMBER(SEARCH(\"x\",P53)),\"NewRTU\"& COUNTA($P$13:$P53),\nIF(ISNUMBER(SEARCH(\"x\",Q53)),\"DCVOnly\"& COUNTA($Q$13:$Q53),\n\"\")))","v":""},null,null,null,null,null,null,null,null,null,null,null,null,null,null,0]
[42,null,{"$f":"IF(ISNUMBER(SEARCH(\"x\",O54)),\"Retrofit\"& COUNTA($O$13:$O54),\nIF(ISNUMBER(SEARCH(\"x\",P54)),\"NewRTU\"& COUNTA($P$13:$P54),\nIF(ISNUMBER(SEARCH(\"x\",Q54)),\"DCVOnly\"& COUNTA($Q$13:$Q54),\n\"\")))","v":""},null,null,null,null,null,null,null,null,null,null,null,null,null,null,0]
[43,null,{"$f":"IF(ISNUMBER(SEARCH(\"x\",O55)),\"Retrofit\"& COUNTA($O$13:$O55),\nIF(ISNUMBER(SEARCH(\"x\",P55)),\"NewRTU\"& COUNTA($P$13:$P55),\nIF(ISNUMBER(SEARCH(\"x\",Q55)),\"DCVOnly\"& COUNTA($Q$13:$Q55),\n\"\")))","v":""},null,null,null,null,null,null,null,null,null,null,null,null,null,null,0]
[44,null,{"$f":"IF(ISNUMBER(SEARCH(\"x\",O56)),\"Retrofit\"& COUNTA($O$13:$O56),\nIF(ISNUMBER(SEARCH(\"x\",P56)),\"NewRTU\"& COUNTA($P$13:$P56),\nIF(ISNUMBER(SEARCH(\"x\",Q56)),\"DCVOnly\"& COUNTA($Q$13:$Q56),\n\"\")))","v":""},null,null,null,null,null,null,null,null,null,null,null,null,null,null,0]
[45,null,{"$f":"IF(ISNUMBER(SEARCH(\"x\",O57)),\"Retrofit\"& COUNTA($O$13:$O57),\nIF(ISNUMBER(SEARCH(\"x\",P57)),\"NewRTU\"& COUNTA($P$13:$P57),\nIF(ISNUMBER(SEARCH(\"x\",Q57)),\"DCVOnly\"& COUNTA($Q$13:$Q57),\n\"\")))","v":""},null,null,null,null,null,null,null,null,null,null,null,null,null,null,0]
[46,null,{"$f":"IF(ISNUMBER(SEARCH(\"x\",O58)),\"Retrofit\"& COUNTA($O$13:$O58),\nIF(ISNUMBER(SEARCH(\"x\",P58)),\"NewRTU\"& COUNTA($P$13:$P58),\nIF(ISNUMBER(SEARCH(\"x\",Q58)),\"DCVOnly\"& COUNTA($Q$13:$Q58),\n\"\")))","v":""},null,null,null,null,null,null,null,null,null,null,null,null,null,null,0]
[47,null,{"$f":"IF(ISNUMBER(SEARCH(\"x\",O59)),\"Retrofit\"& COUNTA($O$13:$O59),\nIF(ISNUMBER(SEARCH(\"x\",P59)),\"NewRTU\"& COUNTA($P$13:$P59),\nIF(ISNUMBER(SEARCH(\"x\",Q59)),\"DCVOnly\"& COUNTA($Q$13:$Q59),\n\"\")))","v":""},null,null,null,null,null,null,null,null,null,null,null,null,null,null,0]
[48,null,{"$f":"IF(ISNUMBER(SEARCH(\"x\",O60)),\"Retrofit\"& COUNTA($O$13:$O60),\nIF(ISNUMBER(SEARCH(\"x\",P60)),\"NewRTU\"& COUNTA($P$13:$P60),\nIF(ISNUMBER(SEARCH(\"x\",Q60)),\"DCVOnly\"& COUNTA($Q$13:$Q60),\n\"\")))","v":""},null,null,null,null,null,null,null,null,null,null,null,null,null,null,0]
[49,null,{"$f":"IF(ISNUMBER(SEARCH(\"x\",O61)),\"Retrofit\"& COUNTA($O$13:$O61),\nIF(ISNUMBER(SEARCH(\"x\",P61)),\"NewRTU\"& COUNTA($P$13:$P61),\nIF(ISNUMBER(SEARCH(\"x\",Q61)),\"DCVOnly\"& COUNTA($Q$13:$Q61),\n\"\")))","v":""},null,null,null,null,null,null,null,null,null,null,null,null,null,null,0]
[50,null,{"$f":"IF(ISNUMBER(SEARCH(\"x\",O62)),\"Retrofit\"& COUNTA($O$13:$O62),\nIF(ISNUMBER(SEARCH(\"x\",P62)),\"NewRTU\"& COUNTA($P$13:$P62),\nIF(ISNUMBER(SEARCH(\"x\",Q62)),\"DCVOnly\"& COUNTA($Q$13:$Q62),\n\"\")))","v":""},null,null,null,null,null,null,null,null,null,null,null,null,null,null,0]
[51,null,{"$f":"IF(ISNUMBER(SEARCH(\"x\",O63)),\"Retrofit\"& COUNTA($O$13:$O63),\nIF(ISNUMBER(SEARCH(\"x\",P63)),\"NewRTU\"& COUNTA($P$13:$P63),\nIF(ISNUMBER(SEARCH(\"x\",Q63)),\"DCVOnly\"& COUNTA($Q$13:$Q63),\n\"\")))","v":""},null,null,null,null,null,null,null,null,null,null,null,null,null,null,0]
[52,null,{"$f":"IF(ISNUMBER(SEARCH(\"x\",O64)),\"Retrofit\"& COUNTA($O$13:$O64),\nIF(ISNUMBER(SEARCH(\"x\",P64)),\"NewRTU\"& COUNTA($P$13:$P64),\nIF(ISNUMBER(SEARCH(\"x\",Q64)),\"DCVOnly\"& COUNTA($Q$13:$Q64),\n\"\")))","v":""},null,null,null,null,null,null,null,null,null,null,null,null,null,null,0]
[53,null,{"$f":"IF(ISNUMBER(SEARCH(\"x\",O65)),\"Retrofit\"& COUNTA($O$13:$O65),\nIF(ISNUMBER(SEARCH(\"x\",P65)),\"NewRTU\"& COUNTA($P$13:$P65),\nIF(ISNUMBER(SEARCH(\"x\",Q65)),\"DCVOnly\"& COUNTA($Q$13:$Q65),\n\"\")))","v":""},null,null,null,null,null,null,null,null,null,null,null,null,null,null,0]
[54,null,{"$f":"IF(ISNUMBER(SEARCH(\"x\",O66)),\"Retrofit\"& COUNTA($O$13:$O66),\nIF(ISNUMBER(SEARCH(\"x\",P66)),\"NewRTU\"& COUNTA($P$13:$P66),\nIF(ISNUMBER(SEARCH(\"x\",Q66)),\"DCVOnly\"& COUNTA($Q$13:$Q66),\n\"\")))","v":""},null,null,null,null,null,null,null,null,null,null,null,null,null,null,0]
[55,null,{"$f":"IF(ISNUMBER(SEARCH(\"x\",O67)),\"Retrofit\"& COUNTA($O$13:$O67),\nIF(ISNUMBER(SEARCH(\"x\",P67)),\"NewRTU\"& COUNTA($P$13:$P67),\nIF(ISNUMBER(SEARCH(\"x\",Q67)),\"DCVOnly\"& COUNTA($Q$13:$Q67),\n\"\")))","v":""},null,null,null,null,null,null,null,null,null,null,null,null,null,null,0]
[56,null,{"$f":"IF(ISNUMBER(SEARCH(\"x\",O68)),\"Retrofit\"& COUNTA($O$13:$O68),\nIF(ISNUMBER(SEARCH(\"x\",P68)),\"NewRTU\"& COUNTA($P$13:$P68),\nIF(ISNUMBER(SEARCH(\"x\",Q68)),\"DCVOnly\"& COUNTA($Q$13:$Q68),\n\"\")))","v":""},null,null,null,null,null,null,null,null,null,null,null,null,null,null,0]
[57,null,{"$f":"IF(ISNUMBER(SEARCH(\"x\",O69)),\"Retrofit\"& COUNTA($O$13:$O69),\nIF(ISNUMBER(SEARCH(\"x\",P69)),\"NewRTU\"& COUNTA($P$13:$P69),\nIF(ISNUMBER(SEARCH(\"x\",Q69)),\"DCVOnly\"& COUNTA($Q$13:$Q69),\n\"\")))","v":""},null,null,null,null,null,null,null,null,null,null,null,null,null,null,0]
[58,null,{"$f":"IF(ISNUMBER(SEARCH(\"x\",O70)),\"Retrofit\"& COUNTA($O$13:$O70),\nIF(ISNUMBER(SEARCH(\"x\",P70)),\"NewRTU\"& COUNTA($P$13:$P70),\nIF(ISNUMBER(SEARCH(\"x\",Q70)),\"DCVOnly\"& COUNTA($Q$13:$Q70),\n\"\")))","v":""},null,null,null,null,null,null,null,null,null,null,null,null,null,null,0]
[59,null,{"$f":"IF(ISNUMBER(SEARCH(\"x\",O71)),\"Retrofit\"& COUNTA($O$13:$O71),\nIF(ISNUMBER(SEARCH(\"x\",P71)),\"NewRTU\"& COUNTA($P$13:$P71),\nIF(ISNUMBER(SEARCH(\"x\",Q71)),\"DCVOnly\"& COUNTA($Q$13:$Q71),\n\"\")))","v":""},null,null,null,null,null,null,null,null,null,null,null,null,null,null,0]
[60,null,{"$f":"IF(ISNUMBER(SEARCH(\"x\",O72)),\"Retrofit\"& COUNTA($O$13:$O72),\nIF(ISNUMBER(SEARCH(\"x\",P72)),\"NewRTU\"& COUNTA($P$13:$P72),\nIF(ISNUMBER(SEARCH(\"x\",Q72)),\"DCVOnly\"& COUNTA($Q$13:$Q72),\n\"\")))","v":""},null,null,null,null,null,null,null,null,null,null,null,null,null,null,0]
[61,null,{"$f":"IF(ISNUMBER(SEARCH(\"x\",O73)),\"Retrofit\"& COUNTA($O$13:$O73),\nIF(ISNUMBER(SEARCH(\"x\",P73)),\"NewRTU\"& COUNTA($P$13:$P73),\nIF(ISNUMBER(SEARCH(\"x\",Q73)),\"DCVOnly\"& COUNTA($Q$13:$Q73),\n\"\")))","v":""},null,null,null,null,null,null,null,null,null,null,null,null,null,null,0]
[62,null,{"$f":"IF(ISNUMBER(SEARCH(\"x\",O74)),\"Retrofit\"& COUNTA($O$13:$O74),\nIF(ISNUMBER(SEARCH(\"x\",P74)),\"NewRTU\"& COUNTA($P$13:$P74),\nIF(ISNUMBER(SEARCH(\"x\",Q74)),\"DCVOnly\"& COUNTA($Q$13:$Q74),\n\"\")))","v":""},null,null,null,null,null,null,null,null,null,null,null,null,null,null,0]
[63,null,{"$f":"IF(ISNUMBER(SEARCH(\"x\",O75)),\"Retrofit\"& COUNTA($O$13:$O75),\nIF(ISNUMBER(SEARCH(\"x\",P75)),\"NewRTU\"& COUNTA($P$13:$P75),\nIF(ISNUMBER(SEARCH(\"x\",Q75)),\"DCVOnly\"& COUNTA($Q$13:$Q75),\n\"\")))","v":""},null,null,null,null,null,null,null,null,null,null,null,null,null,null,0]
[64,null,{"$f":"IF(ISNUMBER(SEARCH(\"x\",O76)),\"Retrofit\"& COUNTA($O$13:$O76),\nIF(ISNUMBER(SEARCH(\"x\",P76)),\"NewRTU\"& COUNTA($P$13:$P76),\nIF(ISNUMBER(SEARCH(\"x\",Q76)),\"DCVOnly\"& COUNTA($Q$13:$Q76),\n\"\")))","v":""},null,null,null,null,null,null,null,null,null,null,null,null,null,null,0]
[65,null,{"$f":"IF(ISNUMBER(SEARCH(\"x\",O77)),\"Retrofit\"& COUNTA($O$13:$O77),\nIF(ISNUMBER(SEARCH(\"x\",P77)),\"NewRTU\"& COUNTA($P$13:$P77),\nIF(ISNUMBER(SEARCH(\"x\",Q77)),\"DCVOnly\"& COUNTA($Q$13:$Q77),\n\"\")))","v":""},null,null,null,null,null,null,null,null,null,null,null,null,null,null,0]
[66,null,{"$f":"IF(ISNUMBER(SEARCH(\"x\",O78)),\"Retrofit\"& COUNTA($O$13:$O78),\nIF(ISNUMBER(SEARCH(\"x\",P78)),\"NewRTU\"& COUNTA($P$13:$P78),\nIF(ISNUMBER(SEARCH(\"x\",Q78)),\"DCVOnly\"& COUNTA($Q$13:$Q78),\n\"\")))","v":""},null,null,null,null,null,null,null,null,null,null,null,null,null,null,{"$f":"COUNTA(O78:Q78)","v":0}]
[67,null,{"$f":"IF(ISNUMBER(SEARCH(\"x\",O79)),\"Retrofit\"& COUNTA($O$13:$O79),\nIF(ISNUMBER(SEARCH(\"x\",P79)),\"NewRTU\"& COUNTA($P$13:$P79),\nIF(ISNUMBER(SEARCH(\"x\",Q79)),\"DCVOnly\"& COUNTA($Q$13:$Q79),\n\"\")))","v":""},null,null,null,null,null,null,null,null,null,null,null,null,null,null,0]
[68,null,{"$f":"IF(ISNUMBER(SEARCH(\"x\",O80)),\"Retrofit\"& COUNTA($O$13:$O80),\nIF(ISNUMBER(SEARCH(\"x\",P80)),\"NewRTU\"& COUNTA($P$13:$P80),\nIF(ISNUMBER(SEARCH(\"x\",Q80)),\"DCVOnly\"& COUNTA($Q$13:$Q80),\n\"\")))","v":""},null,null,null,null,null,null,null,null,null,null,null,null,null,null,0]
[69,null,{"$f":"IF(ISNUMBER(SEARCH(\"x\",O81)),\"Retrofit\"& COUNTA($O$13:$O81),\nIF(ISNUMBER(SEARCH(\"x\",P81)),\"NewRTU\"& COUNTA($P$13:$P81),\nIF(ISNUMBER(SEARCH(\"x\",Q81)),\"DCVOnly\"& COUNTA($Q$13:$Q81),\n\"\")))","v":""},null,null,null,null,null,null,null,null,null,null,null,null,null,null,0]
[70,null,{"$f":"IF(ISNUMBER(SEARCH(\"x\",O82)),\"Retrofit\"& COUNTA($O$13:$O82),\nIF(ISNUMBER(SEARCH(\"x\",P82)),\"NewRTU\"& COUNTA($P$13:$P82),\nIF(ISNUMBER(SEARCH(\"x\",Q82)),\"DCVOnly\"& COUNTA($Q$13:$Q82),\n\"\")))","v":""},null,null,null,null,null,null,null,null,null,null,null,null,null,null,0]
[71,null,{"$f":"IF(ISNUMBER(SEARCH(\"x\",O83)),\"Retrofit\"& COUNTA($O$13:$O83),\nIF(ISNUMBER(SEARCH(\"x\",P83)),\"NewRTU\"& COUNTA($P$13:$P83),\nIF(ISNUMBER(SEARCH(\"x\",Q83)),\"DCVOnly\"& COUNTA($Q$13:$Q83),\n\"\")))","v":""},null,null,null,null,null,null,null,null,null,null,null,null,null,null,0]
[72,null,{"$f":"IF(ISNUMBER(SEARCH(\"x\",O84)),\"Retrofit\"& COUNTA($O$13:$O84),\nIF(ISNUMBER(SEARCH(\"x\",P84)),\"NewRTU\"& COUNTA($P$13:$P84),\nIF(ISNUMBER(SEARCH(\"x\",Q84)),\"DCVOnly\"& COUNTA($Q$13:$Q84),\n\"\")))","v":""},null,null,null,null,null,null,null,null,null,null,null,null,null,null,0]
[73,null,{"$f":"IF(ISNUMBER(SEARCH(\"x\",O85)),\"Retrofit\"& COUNTA($O$13:$O85),\nIF(ISNUMBER(SEARCH(\"x\",P85)),\"NewRTU\"& COUNTA($P$13:$P85),\nIF(ISNUMBER(SEARCH(\"x\",Q85)),\"DCVOnly\"& COUNTA($Q$13:$Q85),\n\"\")))","v":""},null,null,null,null,null,null,null,null,null,null,null,null,null,null,0]
[74,null,{"$f":"IF(ISNUMBER(SEARCH(\"x\",O86)),\"Retrofit\"& COUNTA($O$13:$O86),\nIF(ISNUMBER(SEARCH(\"x\",P86)),\"NewRTU\"& COUNTA($P$13:$P86),\nIF(ISNUMBER(SEARCH(\"x\",Q86)),\"DCVOnly\"& COUNTA($Q$13:$Q86),\n\"\")))","v":""},null,null,null,null,null,null,null,null,null,null,null,null,null,null,0]
[75,null,{"$f":"IF(ISNUMBER(SEARCH(\"x\",O87)),\"Retrofit\"& COUNTA($O$13:$O87),\nIF(ISNUMBER(SEARCH(\"x\",P87)),\"NewRTU\"& COUNTA($P$13:$P87),\nIF(ISNUMBER(SEARCH(\"x\",Q87)),\"DCVOnly\"& COUNTA($Q$13:$Q87),\n\"\")))","v":""},null,null,null,null,null,null,null,null,null,null,null,null,null,null,0]
[76,null,{"$f":"IF(ISNUMBER(SEARCH(\"x\",O88)),\"Retrofit\"& COUNTA($O$13:$O88),\nIF(ISNUMBER(SEARCH(\"x\",P88)),\"NewRTU\"& COUNTA($P$13:$P88),\nIF(ISNUMBER(SEARCH(\"x\",Q88)),\"DCVOnly\"& COUNTA($Q$13:$Q88),\n\"\")))","v":""},null,null,null,null,null,null,null,null,null,null,null,null,null,null,0]
[77,null,{"$f":"IF(ISNUMBER(SEARCH(\"x\",O89)),\"Retrofit\"& COUNTA($O$13:$O89),\nIF(ISNUMBER(SEARCH(\"x\",P89)),\"NewRTU\"& COUNTA($P$13:$P89),\nIF(ISNUMBER(SEARCH(\"x\",Q89)),\"DCVOnly\"& COUNTA($Q$13:$Q89),\n\"\")))","v":""},null,null,null,null,null,null,null,null,null,null,null,null,null,null,0]
[78,null,{"$f":"IF(ISNUMBER(SEARCH(\"x\",O90)),\"Retrofit\"& COUNTA($O$13:$O90),\nIF(ISNUMBER(SEARCH(\"x\",P90)),\"NewRTU\"& COUNTA($P$13:$P90),\nIF(ISNUMBER(SEARCH(\"x\",Q90)),\"DCVOnly\"& COUNTA($Q$13:$Q90),\n\"\")))","v":""},null,null,null,null,null,null,null,null,null,null,null,null,null,null,0]
[79,null,{"$f":"IF(ISNUMBER(SEARCH(\"x\",O91)),\"Retrofit\"& COUNTA($O$13:$O91),\nIF(ISNUMBER(SEARCH(\"x\",P91)),\"NewRTU\"& COUNTA($P$13:$P91),\nIF(ISNUMBER(SEARCH(\"x\",Q91)),\"DCVOnly\"& COUNTA($Q$13:$Q91),\n\"\")))","v":""},null,null,null,null,null,null,null,null,null,null,null,null,null,null,0]
[80,null,{"$f":"IF(ISNUMBER(SEARCH(\"x\",O92)),\"Retrofit\"& COUNTA($O$13:$O92),\nIF(ISNUMBER(SEARCH(\"x\",P92)),\"NewRTU\"& COUNTA($P$13:$P92),\nIF(ISNUMBER(SEARCH(\"x\",Q92)),\"DCVOnly\"& COUNTA($Q$13:$Q92),\n\"\")))","v":""},null,null,null,null,null,null,null,null,null,null,null,null,null,null,0]
[81,null,{"$f":"IF(ISNUMBER(SEARCH(\"x\",O93)),\"Retrofit\"& COUNTA($O$13:$O93),\nIF(ISNUMBER(SEARCH(\"x\",P93)),\"NewRTU\"& COUNTA($P$13:$P93),\nIF(ISNUMBER(SEARCH(\"x\",Q93)),\"DCVOnly\"& COUNTA($Q$13:$Q93),\n\"\")))","v":""},null,null,null,null,null,null,null,null,null,null,null,null,null,null,0]
[82,null,{"$f":"IF(ISNUMBER(SEARCH(\"x\",O94)),\"Retrofit\"& COUNTA($O$13:$O94),\nIF(ISNUMBER(SEARCH(\"x\",P94)),\"NewRTU\"& COUNTA($P$13:$P94),\nIF(ISNUMBER(SEARCH(\"x\",Q94)),\"DCVOnly\"& COUNTA($Q$13:$Q94),\n\"\")))","v":""},null,null,null,null,null,null,null,null,null,null,null,null,null,null,0]
[83,null,{"$f":"IF(ISNUMBER(SEARCH(\"x\",O95)),\"Retrofit\"& COUNTA($O$13:$O95),\nIF(ISNUMBER(SEARCH(\"x\",P95)),\"NewRTU\"& COUNTA($P$13:$P95),\nIF(ISNUMBER(SEARCH(\"x\",Q95)),\"DCVOnly\"& COUNTA($Q$13:$Q95),\n\"\")))","v":""},null,null,null,null,null,null,null,null,null,null,null,null,null,null,0]
[84,null,{"$f":"IF(ISNUMBER(SEARCH(\"x\",O96)),\"Retrofit\"& COUNTA($O$13:$O96),\nIF(ISNUMBER(SEARCH(\"x\",P96)),\"NewRTU\"& COUNTA($P$13:$P96),\nIF(ISNUMBER(SEARCH(\"x\",Q96)),\"DCVOnly\"& COUNTA($Q$13:$Q96),\n\"\")))","v":""},null,null,null,null,null,null,null,null,null,null,null,null,null,null,0]
[85,null,{"$f":"IF(ISNUMBER(SEARCH(\"x\",O97)),\"Retrofit\"& COUNTA($O$13:$O97),\nIF(ISNUMBER(SEARCH(\"x\",P97)),\"NewRTU\"& COUNTA($P$13:$P97),\nIF(ISNUMBER(SEARCH(\"x\",Q97)),\"DCVOnly\"& COUNTA($Q$13:$Q97),\n\"\")))","v":""},null,null,null,null,null,null,null,null,null,null,null,null,null,null,0]
[86,null,{"$f":"IF(ISNUMBER(SEARCH(\"x\",O98)),\"Retrofit\"& COUNTA($O$13:$O98),\nIF(ISNUMBER(SEARCH(\"x\",P98)),\"NewRTU\"& COUNTA($P$13:$P98),\nIF(ISNUMBER(SEARCH(\"x\",Q98)),\"DCVOnly\"& COUNTA($Q$13:$Q98),\n\"\")))","v":""},null,null,null,null,null,null,null,null,null,null,null,null,null,null,0]
[87,null,{"$f":"IF(ISNUMBER(SEARCH(\"x\",O99)),\"Retrofit\"& COUNTA($O$13:$O99),\nIF(ISNUMBER(SEARCH(\"x\",P99)),\"NewRTU\"& COUNTA($P$13:$P99),\nIF(ISNUMBER(SEARCH(\"x\",Q99)),\"DCVOnly\"& COUNTA($Q$13:$Q99),\n\"\")))","v":""},null,null,null,null,null,null,null,null,null,null,null,null,null,null,0]
[88,null,{"$f":"IF(ISNUMBER(SEARCH(\"x\",O100)),\"Retrofit\"& COUNTA($O$13:$O100),\nIF(ISNUMBER(SEARCH(\"x\",P100)),\"NewRTU\"& COUNTA($P$13:$P100),\nIF(ISNUMBER(SEARCH(\"x\",Q100)),\"DCVOnly\"& COUNTA($Q$13:$Q100),\n\"\")))","v":""},null,null,null,null,null,null,null,null,null,null,null,null,null,null,0]
[89,null,{"$f":"IF(ISNUMBER(SEARCH(\"x\",O101)),\"Retrofit\"& COUNTA($O$13:$O101),\nIF(ISNUMBER(SEARCH(\"x\",P101)),\"NewRTU\"& COUNTA($P$13:$P101),\nIF(ISNUMBER(SEARCH(\"x\",Q101)),\"DCVOnly\"& COUNTA($Q$13:$Q101),\n\"\")))","v":""},null,null,null,null,null,null,null,null,null,null,null,null,null,null,0]
[90,null,{"$f":"IF(ISNUMBER(SEARCH(\"x\",O102)),\"Retrofit\"& COUNTA($O$13:$O102),\nIF(ISNUMBER(SEARCH(\"x\",P102)),\"NewRTU\"& COUNTA($P$13:$P102),\nIF(ISNUMBER(SEARCH(\"x\",Q102)),\"DCVOnly\"& COUNTA($Q$13:$Q102),\n\"\")))","v":""},null,null,null,null,null,null,null,null,null,null,null,null,null,null,0]
[91,null,{"$f":"IF(ISNUMBER(SEARCH(\"x\",O103)),\"Retrofit\"& COUNTA($O$13:$O103),\nIF(ISNUMBER(SEARCH(\"x\",P103)),\"NewRTU\"& COUNTA($P$13:$P103),\nIF(ISNUMBER(SEARCH(\"x\",Q103)),\"DCVOnly\"& COUNTA($Q$13:$Q103),\n\"\")))","v":""},null,null,null,null,null,null,null,null,null,null,null,null,null,null,0]
[92,null,{"$f":"IF(ISNUMBER(SEARCH(\"x\",O104)),\"Retrofit\"& COUNTA($O$13:$O104),\nIF(ISNUMBER(SEARCH(\"x\",P104)),\"NewRTU\"& COUNTA($P$13:$P104),\nIF(ISNUMBER(SEARCH(\"x\",Q104)),\"DCVOnly\"& COUNTA($Q$13:$Q104),\n\"\")))","v":""},null,null,null,null,null,null,null,null,null,null,null,null,null,null,0]
[93,null,{"$f":"IF(ISNUMBER(SEARCH(\"x\",O105)),\"Retrofit\"& COUNTA($O$13:$O105),\nIF(ISNUMBER(SEARCH(\"x\",P105)),\"NewRTU\"& COUNTA($P$13:$P105),\nIF(ISNUMBER(SEARCH(\"x\",Q105)),\"DCVOnly\"& COUNTA($Q$13:$Q105),\n\"\")))","v":""},null,null,null,null,null,null,null,null,null,null,null,null,null,null,0]
[94,null,{"$f":"IF(ISNUMBER(SEARCH(\"x\",O106)),\"Retrofit\"& COUNTA($O$13:$O106),\nIF(ISNUMBER(SEARCH(\"x\",P106)),\"NewRTU\"& COUNTA($P$13:$P106),\nIF(ISNUMBER(SEARCH(\"x\",Q106)),\"DCVOnly\"& COUNTA($Q$13:$Q106),\n\"\")))","v":""},null,null,null,null,null,null,null,null,null,null,null,null,null,null,0]
[95,null,{"$f":"IF(ISNUMBER(SEARCH(\"x\",O107)),\"Retrofit\"& COUNTA($O$13:$O107),\nIF(ISNUMBER(SEARCH(\"x\",P107)),\"NewRTU\"& COUNTA($P$13:$P107),\nIF(ISNUMBER(SEARCH(\"x\",Q107)),\"DCVOnly\"& COUNTA($Q$13:$Q107),\n\"\")))","v":""},null,null,null,null,null,null,null,null,null,null,null,null,null,null,0]
[96,null,{"$f":"IF(ISNUMBER(SEARCH(\"x\",O108)),\"Retrofit\"& COUNTA($O$13:$O108),\nIF(ISNUMBER(SEARCH(\"x\",P108)),\"NewRTU\"& COUNTA($P$13:$P108),\nIF(ISNUMBER(SEARCH(\"x\",Q108)),\"DCVOnly\"& COUNTA($Q$13:$Q108),\n\"\")))","v":""},null,null,null,null,null,null,null,null,null,null,null,null,null,null,0]
[97,null,{"$f":"IF(ISNUMBER(SEARCH(\"x\",O109)),\"Retrofit\"& COUNTA($O$13:$O109),\nIF(ISNUMBER(SEARCH(\"x\",P109)),\"NewRTU\"& COUNTA($P$13:$P109),\nIF(ISNUMBER(SEARCH(\"x\",Q109)),\"DCVOnly\"& COUNTA($Q$13:$Q109),\n\"\")))","v":""},null,null,null,null,null,null,null,null,null,null,null,null,null,null,0]
[98,null,{"$f":"IF(ISNUMBER(SEARCH(\"x\",O110)),\"Retrofit\"& COUNTA($O$13:$O110),\nIF(ISNUMBER(SEARCH(\"x\",P110)),\"NewRTU\"& COUNTA($P$13:$P110),\nIF(ISNUMBER(SEARCH(\"x\",Q110)),\"DCVOnly\"& COUNTA($Q$13:$Q110),\n\"\")))","v":""},null,null,null,null,null,null,null,null,null,null,null,null,null,null,0]
[99,null,{"$f":"IF(ISNUMBER(SEARCH(\"x\",O111)),\"Retrofit\"& COUNTA($O$13:$O111),\nIF(ISNUMBER(SEARCH(\"x\",P111)),\"NewRTU\"& COUNTA($P$13:$P111),\nIF(ISNUMBER(SEARCH(\"x\",Q111)),\"DCVOnly\"& COUNTA($Q$13:$Q111),\n\"\")))","v":""},null,null,null,null,null,null,null,null,null,null,null,null,null,null,0]
[100,null,{"$f":"IF(ISNUMBER(SEARCH(\"x\",O112)),\"Retrofit\"& COUNTA($O$13:$O112),\nIF(ISNUMBER(SEARCH(\"x\",P112)),\"NewRTU\"& COUNTA($P$13:$P112),\nIF(ISNUMBER(SEARCH(\"x\",Q112)),\"DCVOnly\"& COUNTA($Q$13:$Q112),\n\"\")))","v":""},null,null,null,null,null,null,null,null,null,null,null,null,null,null,0]
[101,null,{"$f":"IF(ISNUMBER(SEARCH(\"x\",O113)),\"Retrofit\"& COUNTA($O$13:$O113),\nIF(ISNUMBER(SEARCH(\"x\",P113)),\"NewRTU\"& COUNTA($P$13:$P113),\nIF(ISNUMBER(SEARCH(\"x\",Q113)),\"DCVOnly\"& COUNTA($Q$13:$Q113),\n\"\")))","v":""},null,null,null,null,null,null,null,null,null,null,null,null,null,null,0]
[102,null,{"$f":"IF(ISNUMBER(SEARCH(\"x\",O114)),\"Retrofit\"& COUNTA($O$13:$O114),\nIF(ISNUMBER(SEARCH(\"x\",P114)),\"NewRTU\"& COUNTA($P$13:$P114),\nIF(ISNUMBER(SEARCH(\"x\",Q114)),\"DCVOnly\"& COUNTA($Q$13:$Q114),\n\"\")))","v":""},null,null,null,null,null,null,null,null,null,null,null,null,null,null,0]
[103,null,{"$f":"IF(ISNUMBER(SEARCH(\"x\",O115)),\"Retrofit\"& COUNTA($O$13:$O115),\nIF(ISNUMBER(SEARCH(\"x\",P115)),\"NewRTU\"& COUNTA($P$13:$P115),\nIF(ISNUMBER(SEARCH(\"x\",Q115)),\"DCVOnly\"& COUNTA($Q$13:$Q115),\n\"\")))","v":""},null,null,null,null,null,null,null,null,null,null,null,null,null,null,0]
[104,null,{"$f":"IF(ISNUMBER(SEARCH(\"x\",O116)),\"Retrofit\"& COUNTA($O$13:$O116),\nIF(ISNUMBER(SEARCH(\"x\",P116)),\"NewRTU\"& COUNTA($P$13:$P116),\nIF(ISNUMBER(SEARCH(\"x\",Q116)),\"DCVOnly\"& COUNTA($Q$13:$Q116),\n\"\")))","v":""},null,null,null,null,null,null,null,null,null,null,null,null,null,null,0]
[105,null,{"$f":"IF(ISNUMBER(SEARCH(\"x\",O117)),\"Retrofit\"& COUNTA($O$13:$O117),\nIF(ISNUMBER(SEARCH(\"x\",P117)),\"NewRTU\"& COUNTA($P$13:$P117),\nIF(ISNUMBER(SEARCH(\"x\",Q117)),\"DCVOnly\"& COUNTA($Q$13:$Q117),\n\"\")))","v":""},null,null,null,null,null,null,null,null,null,null,null,null,null,null,0]
[106,null,{"$f":"IF(ISNUMBER(SEARCH(\"x\",O118)),\"Retrofit\"& COUNTA($O$13:$O118),\nIF(ISNUMBER(SEARCH(\"x\",P118)),\"NewRTU\"& COUNTA($P$13:$P118),\nIF(ISNUMBER(SEARCH(\"x\",Q118)),\"DCVOnly\"& COUNTA($Q$13:$Q118),\n\"\")))","v":""},null,null,null,null,null,null,null,null,null,null,null,null,null,null,0]
[107,null,{"$f":"IF(ISNUMBER(SEARCH(\"x\",O119)),\"Retrofit\"& COUNTA($O$13:$O119),\nIF(ISNUMBER(SEARCH(\"x\",P119)),\"NewRTU\"& COUNTA($P$13:$P119),\nIF(ISNUMBER(SEARCH(\"x\",Q119)),\"DCVOnly\"& COUNTA($Q$13:$Q119),\n\"\")))","v":""},null,null,null,null,null,null,null,null,null,null,null,null,null,null,0]
[108,null,{"$f":"IF(ISNUMBER(SEARCH(\"x\",O120)),\"Retrofit\"& COUNTA($O$13:$O120),\nIF(ISNUMBER(SEARCH(\"x\",P120)),\"NewRTU\"& COUNTA($P$13:$P120),\nIF(ISNUMBER(SEARCH(\"x\",Q120)),\"DCVOnly\"& COUNTA($Q$13:$Q120),\n\"\")))","v":""},null,null,null,null,null,null,null,null,null,null,null,null,null,null,0]
[109,null,{"$f":"IF(ISNUMBER(SEARCH(\"x\",O121)),\"Retrofit\"& COUNTA($O$13:$O121),\nIF(ISNUMBER(SEARCH(\"x\",P121)),\"NewRTU\"& COUNTA($P$13:$P121),\nIF(ISNUMBER(SEARCH(\"x\",Q121)),\"DCVOnly\"& COUNTA($Q$13:$Q121),\n\"\")))","v":""},null,null,null,null,null,null,null,null,null,null,null,null,null,null,0]
[110,null,{"$f":"IF(ISNUMBER(SEARCH(\"x\",O122)),\"Retrofit\"& COUNTA($O$13:$O122),\nIF(ISNUMBER(SEARCH(\"x\",P122)),\"NewRTU\"& COUNTA($P$13:$P122),\nIF(ISNUMBER(SEARCH(\"x\",Q122)),\"DCVOnly\"& COUNTA($Q$13:$Q122),\n\"\")))","v":""},null,null,null,null,null,null,null,null,null,null,null,null,null,null,0]
[111,null,{"$f":"IF(ISNUMBER(SEARCH(\"x\",O123)),\"Retrofit\"& COUNTA($O$13:$O123),\nIF(ISNUMBER(SEARCH(\"x\",P123)),\"NewRTU\"& COUNTA($P$13:$P123),\nIF(ISNUMBER(SEARCH(\"x\",Q123)),\"DCVOnly\"& COUNTA($Q$13:$Q123),\n\"\")))","v":""},null,null,null,null,null,null,null,null,null,null,null,null,null,null,0]
[112,null,{"$f":"IF(ISNUMBER(SEARCH(\"x\",O124)),\"Retrofit\"& COUNTA($O$13:$O124),\nIF(ISNUMBER(SEARCH(\"x\",P124)),\"NewRTU\"& COUNTA($P$13:$P124),\nIF(ISNUMBER(SEARCH(\"x\",Q124)),\"DCVOnly\"& COUNTA($Q$13:$Q124),\n\"\")))","v":""},null,null,null,null,null,null,null,null,null,null,null,null,null,null,0]
[113,null,{"$f":"IF(ISNUMBER(SEARCH(\"x\",O125)),\"Retrofit\"& COUNTA($O$13:$O125),\nIF(ISNUMBER(SEARCH(\"x\",P125)),\"NewRTU\"& COUNTA($P$13:$P125),\nIF(ISNUMBER(SEARCH(\"x\",Q125)),\"DCVOnly\"& COUNTA($Q$13:$Q125),\n\"\")))","v":""},null,null,null,null,null,null,null,null,null,null,null,null,null,null,0]
[114,null,{"$f":"IF(ISNUMBER(SEARCH(\"x\",O126)),\"Retrofit\"& COUNTA($O$13:$O126),\nIF(ISNUMBER(SEARCH(\"x\",P126)),\"NewRTU\"& COUNTA($P$13:$P126),\nIF(ISNUMBER(SEARCH(\"x\",Q126)),\"DCVOnly\"& COUNTA($Q$13:$Q126),\n\"\")))","v":""},null,null,null,null,null,null,null,null,null,null,null,null,null,null,0]
[115,null,{"$f":"IF(ISNUMBER(SEARCH(\"x\",O127)),\"Retrofit\"& COUNTA($O$13:$O127),\nIF(ISNUMBER(SEARCH(\"x\",P127)),\"NewRTU\"& COUNTA($P$13:$P127),\nIF(ISNUMBER(SEARCH(\"x\",Q127)),\"DCVOnly\"& COUNTA($Q$13:$Q127),\n\"\")))","v":""},null,null,null,null,null,null,null,null,null,null,null,null,null,null,0]
[116,null,{"$f":"IF(ISNUMBER(SEARCH(\"x\",O128)),\"Retrofit\"& COUNTA($O$13:$O128),\nIF(ISNUMBER(SEARCH(\"x\",P128)),\"NewRTU\"& COUNTA($P$13:$P128),\nIF(ISNUMBER(SEARCH(\"x\",Q128)),\"DCVOnly\"& COUNTA($Q$13:$Q128),\n\"\")))","v":""},null,null,null,null,null,null,null,null,null,null,null,null,null,null,0]
[117,null,{"$f":"IF(ISNUMBER(SEARCH(\"x\",O129)),\"Retrofit\"& COUNTA($O$13:$O129),\nIF(ISNUMBER(SEARCH(\"x\",P129)),\"NewRTU\"& COUNTA($P$13:$P129),\nIF(ISNUMBER(SEARCH(\"x\",Q129)),\"DCVOnly\"& COUNTA($Q$13:$Q129),\n\"\")))","v":""},null,null,null,null,null,null,null,null,null,null,null,null,null,null,0]
[118,null,{"$f":"IF(ISNUMBER(SEARCH(\"x\",O130)),\"Retrofit\"& COUNTA($O$13:$O130),\nIF(ISNUMBER(SEARCH(\"x\",P130)),\"NewRTU\"& COUNTA($P$13:$P130),\nIF(ISNUMBER(SEARCH(\"x\",Q130)),\"DCVOnly\"& COUNTA($Q$13:$Q130),\n\"\")))","v":""},null,null,null,null,null,null,null,null,null,null,null,null,null,null,0]
[119,null,{"$f":"IF(ISNUMBER(SEARCH(\"x\",O131)),\"Retrofit\"& COUNTA($O$13:$O131),\nIF(ISNUMBER(SEARCH(\"x\",P131)),\"NewRTU\"& COUNTA($P$13:$P131),\nIF(ISNUMBER(SEARCH(\"x\",Q131)),\"DCVOnly\"& COUNTA($Q$13:$Q131),\n\"\")))","v":""},null,null,null,null,null,null,null,null,null,null,null,null,null,null,0]
[120,null,{"$f":"IF(ISNUMBER(SEARCH(\"x\",O132)),\"Retrofit\"& COUNTA($O$13:$O132),\nIF(ISNUMBER(SEARCH(\"x\",P132)),\"NewRTU\"& COUNTA($P$13:$P132),\nIF(ISNUMBER(SEARCH(\"x\",Q132)),\"DCVOnly\"& COUNTA($Q$13:$Q132),\n\"\")))","v":""},null,null,null,null,null,null,null,null,null,null,null,null,null,null,0]
[121,null,{"$f":"IF(ISNUMBER(SEARCH(\"x\",O133)),\"Retrofit\"& COUNTA($O$13:$O133),\nIF(ISNUMBER(SEARCH(\"x\",P133)),\"NewRTU\"& COUNTA($P$13:$P133),\nIF(ISNUMBER(SEARCH(\"x\",Q133)),\"DCVOnly\"& COUNTA($Q$13:$Q133),\n\"\")))","v":""},null,null,null,null,null,null,null,null,null,null,null,null,null,null,0]
[122,null,{"$f":"IF(ISNUMBER(SEARCH(\"x\",O134)),\"Retrofit\"& COUNTA($O$13:$O134),\nIF(ISNUMBER(SEARCH(\"x\",P134)),\"NewRTU\"& COUNTA($P$13:$P134),\nIF(ISNUMBER(SEARCH(\"x\",Q134)),\"DCVOnly\"& COUNTA($Q$13:$Q134),\n\"\")))","v":""},null,null,null,null,null,null,null,null,null,null,null,null,null,null,0]
[123,null,{"$f":"IF(ISNUMBER(SEARCH(\"x\",O135)),\"Retrofit\"& COUNTA($O$13:$O135),\nIF(ISNUMBER(SEARCH(\"x\",P135)),\"NewRTU\"& COUNTA($P$13:$P135),\nIF(ISNUMBER(SEARCH(\"x\",Q135)),\"DCVOnly\"& COUNTA($Q$13:$Q135),\n\"\")))","v":""},null,null,null,null,null,null,null,null,null,null,null,null,null,null,0]
[124,null,{"$f":"IF(ISNUMBER(SEARCH(\"x\",O136)),\"Retrofit\"& COUNTA($O$13:$O136),\nIF(ISNUMBER(SEARCH(\"x\",P136)),\"NewRTU\"& COUNTA($P$13:$P136),\nIF(ISNUMBER(SEARCH(\"x\",Q136)),\"DCVOnly\"& COUNTA($Q$13:$Q136),\n\"\")))","v":""},null,null,null,null,null,null,null,null,null,null,null,null,null,null,0]
[125,null,{"$f":"IF(ISNUMBER(SEARCH(\"x\",O137)),\"Retrofit\"& COUNTA($O$13:$O137),\nIF(ISNUMBER(SEARCH(\"x\",P137)),\"NewRTU\"& COUNTA($P$13:$P137),\nIF(ISNUMBER(SEARCH(\"x\",Q137)),\"DCVOnly\"& COUNTA($Q$13:$Q137),\n\"\")))","v":""},null,null,null,null,null,null,null,null,null,null,null,null,null,null,0]
[126,null,{"$f":"IF(ISNUMBER(SEARCH(\"x\",O138)),\"Retrofit\"& COUNTA($O$13:$O138),\nIF(ISNUMBER(SEARCH(\"x\",P138)),\"NewRTU\"& COUNTA($P$13:$P138),\nIF(ISNUMBER(SEARCH(\"x\",Q138)),\"DCVOnly\"& COUNTA($Q$13:$Q138),\n\"\")))","v":""},null,null,null,null,null,null,null,null,null,null,null,null,null,null,0]
[127,null,{"$f":"IF(ISNUMBER(SEARCH(\"x\",O139)),\"Retrofit\"& COUNTA($O$13:$O139),\nIF(ISNUMBER(SEARCH(\"x\",P139)),\"NewRTU\"& COUNTA($P$13:$P139),\nIF(ISNUMBER(SEARCH(\"x\",Q139)),\"DCVOnly\"& COUNTA($Q$13:$Q139),\n\"\")))","v":""},null,null,null,null,null,null,null,null,null,null,null,null,null,null,0]
[128,null,{"$f":"IF(ISNUMBER(SEARCH(\"x\",O140)),\"Retrofit\"& COUNTA($O$13:$O140),\nIF(ISNUMBER(SEARCH(\"x\",P140)),\"NewRTU\"& COUNTA($P$13:$P140),\nIF(ISNUMBER(SEARCH(\"x\",Q140)),\"DCVOnly\"& COUNTA($Q$13:$Q140),\n\"\")))","v":""},null,null,null,null,null,null,null,null,null,null,null,null,null,null,0]
[129,null,{"$f":"IF(ISNUMBER(SEARCH(\"x\",O141)),\"Retrofit\"& COUNTA($O$13:$O141),\nIF(ISNUMBER(SEARCH(\"x\",P141)),\"NewRTU\"& COUNTA($P$13:$P141),\nIF(ISNUMBER(SEARCH(\"x\",Q141)),\"DCVOnly\"& COUNTA($Q$13:$Q141),\n\"\")))","v":""},null,null,null,null,null,null,null,null,null,null,null,null,null,null,0]
[130,null,{"$f":"IF(ISNUMBER(SEARCH(\"x\",O142)),\"Retrofit\"& COUNTA($O$13:$O142),\nIF(ISNUMBER(SEARCH(\"x\",P142)),\"NewRTU\"& COUNTA($P$13:$P142),\nIF(ISNUMBER(SEARCH(\"x\",Q142)),\"DCVOnly\"& COUNTA($Q$13:$Q142),\n\"\")))","v":""},null,null,null,null,null,null,null,null,null,null,null,null,null,null,{"$f":"COUNTA(O142:Q142)","v":0}]
[131,null,{"$f":"IF(ISNUMBER(SEARCH(\"x\",O143)),\"Retrofit\"& COUNTA($O$13:$O143),\nIF(ISNUMBER(SEARCH(\"x\",P143)),\"NewRTU\"& COUNTA($P$13:$P143),\nIF(ISNUMBER(SEARCH(\"x\",Q143)),\"DCVOnly\"& COUNTA($Q$13:$Q143),\n\"\")))","v":""},null,null,null,null,null,null,null,null,null,null,null,null,null,null,0]
[132,null,{"$f":"IF(ISNUMBER(SEARCH(\"x\",O144)),\"Retrofit\"& COUNTA($O$13:$O144),\nIF(ISNUMBER(SEARCH(\"x\",P144)),\"NewRTU\"& COUNTA($P$13:$P144),\nIF(ISNUMBER(SEARCH(\"x\",Q144)),\"DCVOnly\"& COUNTA($Q$13:$Q144),\n\"\")))","v":""},null,null,null,null,null,null,null,null,null,null,null,null,null,null,0]
[133,null,{"$f":"IF(ISNUMBER(SEARCH(\"x\",O145)),\"Retrofit\"& COUNTA($O$13:$O145),\nIF(ISNUMBER(SEARCH(\"x\",P145)),\"NewRTU\"& COUNTA($P$13:$P145),\nIF(ISNUMBER(SEARCH(\"x\",Q145)),\"DCVOnly\"& COUNTA($Q$13:$Q145),\n\"\")))","v":""},null,null,null,null,null,null,null,null,null,null,null,null,null,null,0]
[134,null,{"$f":"IF(ISNUMBER(SEARCH(\"x\",O146)),\"Retrofit\"& COUNTA($O$13:$O146),\nIF(ISNUMBER(SEARCH(\"x\",P146)),\"NewRTU\"& COUNTA($P$13:$P146),\nIF(ISNUMBER(SEARCH(\"x\",Q146)),\"DCVOnly\"& COUNTA($Q$13:$Q146),\n\"\")))","v":""},null,null,null,null,null,null,null,null,null,null,null,null,null,null,0]
[135,null,{"$f":"IF(ISNUMBER(SEARCH(\"x\",O147)),\"Retrofit\"& COUNTA($O$13:$O147),\nIF(ISNUMBER(SEARCH(\"x\",P147)),\"NewRTU\"& COUNTA($P$13:$P147),\nIF(ISNUMBER(SEARCH(\"x\",Q147)),\"DCVOnly\"& COUNTA($Q$13:$Q147),\n\"\")))","v":""},null,null,null,null,null,null,null,null,null,null,null,null,null,null,0]
[136,null,{"$f":"IF(ISNUMBER(SEARCH(\"x\",O148)),\"Retrofit\"& COUNTA($O$13:$O148),\nIF(ISNUMBER(SEARCH(\"x\",P148)),\"NewRTU\"& COUNTA($P$13:$P148),\nIF(ISNUMBER(SEARCH(\"x\",Q148)),\"DCVOnly\"& COUNTA($Q$13:$Q148),\n\"\")))","v":""},null,null,null,null,null,null,null,null,null,null,null,null,null,null,0]
[137,null,{"$f":"IF(ISNUMBER(SEARCH(\"x\",O149)),\"Retrofit\"& COUNTA($O$13:$O149),\nIF(ISNUMBER(SEARCH(\"x\",P149)),\"NewRTU\"& COUNTA($P$13:$P149),\nIF(ISNUMBER(SEARCH(\"x\",Q149)),\"DCVOnly\"& COUNTA($Q$13:$Q149),\n\"\")))","v":""},null,null,null,null,null,null,null,null,null,null,null,null,null,null,0]
[138,null,{"$f":"IF(ISNUMBER(SEARCH(\"x\",O150)),\"Retrofit\"& COUNTA($O$13:$O150),\nIF(ISNUMBER(SEARCH(\"x\",P150)),\"NewRTU\"& COUNTA($P$13:$P150),\nIF(ISNUMBER(SEARCH(\"x\",Q150)),\"DCVOnly\"& COUNTA($Q$13:$Q150),\n\"\")))","v":""},null,null,null,null,null,null,null,null,null,null,null,null,null,null,0]
[139,null,{"$f":"IF(ISNUMBER(SEARCH(\"x\",O151)),\"Retrofit\"& COUNTA($O$13:$O151),\nIF(ISNUMBER(SEARCH(\"x\",P151)),\"NewRTU\"& COUNTA($P$13:$P151),\nIF(ISNUMBER(SEARCH(\"x\",Q151)),\"DCVOnly\"& COUNTA($Q$13:$Q151),\n\"\")))","v":""},null,null,null,null,null,null,null,null,null,null,null,null,null,null,0]
[140,null,{"$f":"IF(ISNUMBER(SEARCH(\"x\",O152)),\"Retrofit\"& COUNTA($O$13:$O152),\nIF(ISNUMBER(SEARCH(\"x\",P152)),\"NewRTU\"& COUNTA($P$13:$P152),\nIF(ISNUMBER(SEARCH(\"x\",Q152)),\"DCVOnly\"& COUNTA($Q$13:$Q152),\n\"\")))","v":""},null,null,null,null,null,null,null,null,null,null,null,null,null,null,0]
[141,null,{"$f":"IF(ISNUMBER(SEARCH(\"x\",O153)),\"Retrofit\"& COUNTA($O$13:$O153),\nIF(ISNUMBER(SEARCH(\"x\",P153)),\"NewRTU\"& COUNTA($P$13:$P153),\nIF(ISNUMBER(SEARCH(\"x\",Q153)),\"DCVOnly\"& COUNTA($Q$13:$Q153),\n\"\")))","v":""},null,null,null,null,null,null,null,null,null,null,null,null,null,null,0]
[142,null,{"$f":"IF(ISNUMBER(SEARCH(\"x\",O154)),\"Retrofit\"& COUNTA($O$13:$O154),\nIF(ISNUMBER(SEARCH(\"x\",P154)),\"NewRTU\"& COUNTA($P$13:$P154),\nIF(ISNUMBER(SEARCH(\"x\",Q154)),\"DCVOnly\"& COUNTA($Q$13:$Q154),\n\"\")))","v":""},null,null,null,null,null,null,null,null,null,null,null,null,null,null,0]
[143,null,{"$f":"IF(ISNUMBER(SEARCH(\"x\",O155)),\"Retrofit\"& COUNTA($O$13:$O155),\nIF(ISNUMBER(SEARCH(\"x\",P155)),\"NewRTU\"& COUNTA($P$13:$P155),\nIF(ISNUMBER(SEARCH(\"x\",Q155)),\"DCVOnly\"& COUNTA($Q$13:$Q155),\n\"\")))","v":""},null,null,null,null,null,null,null,null,null,null,null,null,null,null,0]
[144,null,{"$f":"IF(ISNUMBER(SEARCH(\"x\",O156)),\"Retrofit\"& COUNTA($O$13:$O156),\nIF(ISNUMBER(SEARCH(\"x\",P156)),\"NewRTU\"& COUNTA($P$13:$P156),\nIF(ISNUMBER(SEARCH(\"x\",Q156)),\"DCVOnly\"& COUNTA($Q$13:$Q156),\n\"\")))","v":""},null,null,null,null,null,null,null,null,null,null,null,null,null,null,0]
[145,null,{"$f":"IF(ISNUMBER(SEARCH(\"x\",O157)),\"Retrofit\"& COUNTA($O$13:$O157),\nIF(ISNUMBER(SEARCH(\"x\",P157)),\"NewRTU\"& COUNTA($P$13:$P157),\nIF(ISNUMBER(SEARCH(\"x\",Q157)),\"DCVOnly\"& COUNTA($Q$13:$Q157),\n\"\")))","v":""},null,null,null,null,null,null,null,null,null,null,null,null,null,null,0]
[146,null,{"$f":"IF(ISNUMBER(SEARCH(\"x\",O158)),\"Retrofit\"& COUNTA($O$13:$O158),\nIF(ISNUMBER(SEARCH(\"x\",P158)),\"NewRTU\"& COUNTA($P$13:$P158),\nIF(ISNUMBER(SEARCH(\"x\",Q158)),\"DCVOnly\"& COUNTA($Q$13:$Q158),\n\"\")))","v":""},null,null,null,null,null,null,null,null,null,null,null,null,null,null,0]
[147,null,{"$f":"IF(ISNUMBER(SEARCH(\"x\",O159)),\"Retrofit\"& COUNTA($O$13:$O159),\nIF(ISNUMBER(SEARCH(\"x\",P159)),\"NewRTU\"& COUNTA($P$13:$P159),\nIF(ISNUMBER(SEARCH(\"x\",Q159)),\"DCVOnly\"& COUNTA($Q$13:$Q159),\n\"\")))","v":""},null,null,null,null,null,null,null,null,null,null,null,null,null,null,0]
[148,null,{"$f":"IF(ISNUMBER(SEARCH(\"x\",O160)),\"Retrofit\"& COUNTA($O$13:$O160),\nIF(ISNUMBER(SEARCH(\"x\",P160)),\"NewRTU\"& COUNTA($P$13:$P160),\nIF(ISNUMBER(SEARCH(\"x\",Q160)),\"DCVOnly\"& COUNTA($Q$13:$Q160),\n\"\")))","v":""},null,null,null,null,null,null,null,null,null,null,null,null,null,null,0]
[149,null,{"$f":"IF(ISNUMBER(SEARCH(\"x\",O161)),\"Retrofit\"& COUNTA($O$13:$O161),\nIF(ISNUMBER(SEARCH(\"x\",P161)),\"NewRTU\"& COUNTA($P$13:$P161),\nIF(ISNUMBER(SEARCH(\"x\",Q161)),\"DCVOnly\"& COUNTA($Q$13:$Q161),\n\"\")))","v":""},null,null,null,null,null,null,null,null,null,null,null,null,null,null,0]
[150,null,{"$f":"IF(ISNUMBER(SEARCH(\"x\",O162)),\"Retrofit\"& COUNTA($O$13:$O162),\nIF(ISNUMBER(SEARCH(\"x\",P162)),\"NewRTU\"& COUNTA($P$13:$P162),\nIF(ISNUMBER(SEARCH(\"x\",Q162)),\"DCVOnly\"& COUNTA($Q$13:$Q162),\n\"\")))","v":""},null,null,null,null,null,null,null,null,null,null,null,null,null,null,0]
[151,null,{"$f":"IF(ISNUMBER(SEARCH(\"x\",O163)),\"Retrofit\"& COUNTA($O$13:$O163),\nIF(ISNUMBER(SEARCH(\"x\",P163)),\"NewRTU\"& COUNTA($P$13:$P163),\nIF(ISNUMBER(SEARCH(\"x\",Q163)),\"DCVOnly\"& COUNTA($Q$13:$Q163),\n\"\")))","v":""},null,null,null,null,null,null,null,null,null,null,null,null,null,null,0]
[152,null,{"$f":"IF(ISNUMBER(SEARCH(\"x\",O164)),\"Retrofit\"& COUNTA($O$13:$O164),\nIF(ISNUMBER(SEARCH(\"x\",P164)),\"NewRTU\"& COUNTA($P$13:$P164),\nIF(ISNUMBER(SEARCH(\"x\",Q164)),\"DCVOnly\"& COUNTA($Q$13:$Q164),\n\"\")))","v":""},null,null,null,null,null,null,null,null,null,null,null,null,null,null,0]
[153,null,{"$f":"IF(ISNUMBER(SEARCH(\"x\",O165)),\"Retrofit\"& COUNTA($O$13:$O165),\nIF(ISNUMBER(SEARCH(\"x\",P165)),\"NewRTU\"& COUNTA($P$13:$P165),\nIF(ISNUMBER(SEARCH(\"x\",Q165)),\"DCVOnly\"& COUNTA($Q$13:$Q165),\n\"\")))","v":""},null,null,null,null,null,null,null,null,null,null,null,null,null,null,0]
[154,null,{"$f":"IF(ISNUMBER(SEARCH(\"x\",O166)),\"Retrofit\"& COUNTA($O$13:$O166),\nIF(ISNUMBER(SEARCH(\"x\",P166)),\"NewRTU\"& COUNTA($P$13:$P166),\nIF(ISNUMBER(SEARCH(\"x\",Q166)),\"DCVOnly\"& COUNTA($Q$13:$Q166),\n\"\")))","v":""},null,null,null,null,null,null,null,null,null,null,null,null,null,null,0]
[155,null,{"$f":"IF(ISNUMBER(SEARCH(\"x\",O167)),\"Retrofit\"& COUNTA($O$13:$O167),\nIF(ISNUMBER(SEARCH(\"x\",P167)),\"NewRTU\"& COUNTA($P$13:$P167),\nIF(ISNUMBER(SEARCH(\"x\",Q167)),\"DCVOnly\"& COUNTA($Q$13:$Q167),\n\"\")))","v":""},null,null,null,null,null,null,null,null,null,null,null,null,null,null,0]
[156,null,{"$f":"IF(ISNUMBER(SEARCH(\"x\",O168)),\"Retrofit\"& COUNTA($O$13:$O168),\nIF(ISNUMBER(SEARCH(\"x\",P168)),\"NewRTU\"& COUNTA($P$13:$P168),\nIF(ISNUMBER(SEARCH(\"x\",Q168)),\"DCVOnly\"& COUNTA($Q$13:$Q168),\n\"\")))","v":""},null,null,null,null,null,null,null,null,null,null,null,null,null,null,0]
[157,null,{"$f":"IF(ISNUMBER(SEARCH(\"x\",O169)),\"Retrofit\"& COUNTA($O$13:$O169),\nIF(ISNUMBER(SEARCH(\"x\",P169)),\"NewRTU\"& COUNTA($P$13:$P169),\nIF(ISNUMBER(SEARCH(\"x\",Q169)),\"DCVOnly\"& COUNTA($Q$13:$Q169),\n\"\")))","v":""},null,null,null,null,null,null,null,null,null,null,null,null,null,null,0]
[158,null,{"$f":"IF(ISNUMBER(SEARCH(\"x\",O170)),\"Retrofit\"& COUNTA($O$13:$O170),\nIF(ISNUMBER(SEARCH(\"x\",P170)),\"NewRTU\"& COUNTA($P$13:$P170),\nIF(ISNUMBER(SEARCH(\"x\",Q170)),\"DCVOnly\"& COUNTA($Q$13:$Q170),\n\"\")))","v":""},null,null,null,null,null,null,null,null,null,null,null,null,null,null,0]
[159,null,{"$f":"IF(ISNUMBER(SEARCH(\"x\",O171)),\"Retrofit\"& COUNTA($O$13:$O171),\nIF(ISNUMBER(SEARCH(\"x\",P171)),\"NewRTU\"& COUNTA($P$13:$P171),\nIF(ISNUMBER(SEARCH(\"x\",Q171)),\"DCVOnly\"& COUNTA($Q$13:$Q171),\n\"\")))","v":""},null,null,null,null,null,null,null,null,null,null,null,null,null,null,0]
[160,null,{"$f":"IF(ISNUMBER(SEARCH(\"x\",O172)),\"Retrofit\"& COUNTA($O$13:$O172),\nIF(ISNUMBER(SEARCH(\"x\",P172)),\"NewRTU\"& COUNTA($P$13:$P172),\nIF(ISNUMBER(SEARCH(\"x\",Q172)),\"DCVOnly\"& COUNTA($Q$13:$Q172),\n\"\")))","v":""},null,null,null,null,null,null,null,null,null,null,null,null,null,null,0]
[161,null,{"$f":"IF(ISNUMBER(SEARCH(\"x\",O173)),\"Retrofit\"& COUNTA($O$13:$O173),\nIF(ISNUMBER(SEARCH(\"x\",P173)),\"NewRTU\"& COUNTA($P$13:$P173),\nIF(ISNUMBER(SEARCH(\"x\",Q173)),\"DCVOnly\"& COUNTA($Q$13:$Q173),\n\"\")))","v":""},null,null,null,null,null,null,null,null,null,null,null,null,null,null,0]
[162,null,{"$f":"IF(ISNUMBER(SEARCH(\"x\",O174)),\"Retrofit\"& COUNTA($O$13:$O174),\nIF(ISNUMBER(SEARCH(\"x\",P174)),\"NewRTU\"& COUNTA($P$13:$P174),\nIF(ISNUMBER(SEARCH(\"x\",Q174)),\"DCVOnly\"& COUNTA($Q$13:$Q174),\n\"\")))","v":""},null,null,null,null,null,null,null,null,null,null,null,null,null,null,0]
[163,null,{"$f":"IF(ISNUMBER(SEARCH(\"x\",O175)),\"Retrofit\"& COUNTA($O$13:$O175),\nIF(ISNUMBER(SEARCH(\"x\",P175)),\"NewRTU\"& COUNTA($P$13:$P175),\nIF(ISNUMBER(SEARCH(\"x\",Q175)),\"DCVOnly\"& COUNTA($Q$13:$Q175),\n\"\")))","v":""},null,null,null,null,null,null,null,null,null,null,null,null,null,null,0]
[164,null,{"$f":"IF(ISNUMBER(SEARCH(\"x\",O176)),\"Retrofit\"& COUNTA($O$13:$O176),\nIF(ISNUMBER(SEARCH(\"x\",P176)),\"NewRTU\"& COUNTA($P$13:$P176),\nIF(ISNUMBER(SEARCH(\"x\",Q176)),\"DCVOnly\"& COUNTA($Q$13:$Q176),\n\"\")))","v":""},null,null,null,null,null,null,null,null,null,null,null,null,null,null,0]
[165,null,{"$f":"IF(ISNUMBER(SEARCH(\"x\",O177)),\"Retrofit\"& COUNTA($O$13:$O177),\nIF(ISNUMBER(SEARCH(\"x\",P177)),\"NewRTU\"& COUNTA($P$13:$P177),\nIF(ISNUMBER(SEARCH(\"x\",Q177)),\"DCVOnly\"& COUNTA($Q$13:$Q177),\n\"\")))","v":""},null,null,null,null,null,null,null,null,null,null,null,null,null,null,0]
[166,null,{"$f":"IF(ISNUMBER(SEARCH(\"x\",O178)),\"Retrofit\"& COUNTA($O$13:$O178),\nIF(ISNUMBER(SEARCH(\"x\",P178)),\"NewRTU\"& COUNTA($P$13:$P178),\nIF(ISNUMBER(SEARCH(\"x\",Q178)),\"DCVOnly\"& COUNTA($Q$13:$Q178),\n\"\")))","v":""},null,null,null,null,null,null,null,null,null,null,null,null,null,null,0]
[167,null,{"$f":"IF(ISNUMBER(SEARCH(\"x\",O179)),\"Retrofit\"& COUNTA($O$13:$O179),\nIF(ISNUMBER(SEARCH(\"x\",P179)),\"NewRTU\"& COUNTA($P$13:$P179),\nIF(ISNUMBER(SEARCH(\"x\",Q179)),\"DCVOnly\"& COUNTA($Q$13:$Q179),\n\"\")))","v":""},null,null,null,null,null,null,null,null,null,null,null,null,null,null,0]
[168,null,{"$f":"IF(ISNUMBER(SEARCH(\"x\",O180)),\"Retrofit\"& COUNTA($O$13:$O180),\nIF(ISNUMBER(SEARCH(\"x\",P180)),\"NewRTU\"& COUNTA($P$13:$P180),\nIF(ISNUMBER(SEARCH(\"x\",Q180)),\"DCVOnly\"& COUNTA($Q$13:$Q180),\n\"\")))","v":""},null,null,null,null,null,null,null,null,null,null,null,null,null,null,0]
[169,null,{"$f":"IF(ISNUMBER(SEARCH(\"x\",O181)),\"Retrofit\"& COUNTA($O$13:$O181),\nIF(ISNUMBER(SEARCH(\"x\",P181)),\"NewRTU\"& COUNTA($P$13:$P181),\nIF(ISNUMBER(SEARCH(\"x\",Q181)),\"DCVOnly\"& COUNTA($Q$13:$Q181),\n\"\")))","v":""},null,null,null,null,null,null,null,null,null,null,null,null,null,null,0]
[170,null,{"$f":"IF(ISNUMBER(SEARCH(\"x\",O182)),\"Retrofit\"& COUNTA($O$13:$O182),\nIF(ISNUMBER(SEARCH(\"x\",P182)),\"NewRTU\"& COUNTA($P$13:$P182),\nIF(ISNUMBER(SEARCH(\"x\",Q182)),\"DCVOnly\"& COUNTA($Q$13:$Q182),\n\"\")))","v":""},null,null,null,null,null,null,null,null,null,null,null,null,null,null,0]
[171,null,{"$f":"IF(ISNUMBER(SEARCH(\"x\",O183)),\"Retrofit\"& COUNTA($O$13:$O183),\nIF(ISNUMBER(SEARCH(\"x\",P183)),\"NewRTU\"& COUNTA($P$13:$P183),\nIF(ISNUMBER(SEARCH(\"x\",Q183)),\"DCVOnly\"& COUNTA($Q$13:$Q183),\n\"\")))","v":""},null,null,null,null,null,null,null,null,null,null,null,null,null,null,0]
[172,null,{"$f":"IF(ISNUMBER(SEARCH(\"x\",O184)),\"Retrofit\"& COUNTA($O$13:$O184),\nIF(ISNUMBER(SEARCH(\"x\",P184)),\"NewRTU\"& COUNTA($P$13:$P184),\nIF(ISNUMBER(SEARCH(\"x\",Q184)),\"DCVOnly\"& COUNTA($Q$13:$Q184),\n\"\")))","v":""},null,null,null,null,null,null,null,null,null,null,null,null,null,null,0]
[173,null,{"$f":"IF(ISNUMBER(SEARCH(\"x\",O185)),\"Retrofit\"& COUNTA($O$13:$O185),\nIF(ISNUMBER(SEARCH(\"x\",P185)),\"NewRTU\"& COUNTA($P$13:$P185),\nIF(ISNUMBER(SEARCH(\"x\",Q185)),\"DCVOnly\"& COUNTA($Q$13:$Q185),\n\"\")))","v":""},null,null,null,null,null,null,null,null,null,null,null,null,null,null,0]
[174,null,{"$f":"IF(ISNUMBER(SEARCH(\"x\",O186)),\"Retrofit\"& COUNTA($O$13:$O186),\nIF(ISNUMBER(SEARCH(\"x\",P186)),\"NewRTU\"& COUNTA($P$13:$P186),\nIF(ISNUMBER(SEARCH(\"x\",Q186)),\"DCVOnly\"& COUNTA($Q$13:$Q186),\n\"\")))","v":""},null,null,null,null,null,null,null,null,null,null,null,null,null,null,0]
[175,null,{"$f":"IF(ISNUMBER(SEARCH(\"x\",O187)),\"Retrofit\"& COUNTA($O$13:$O187),\nIF(ISNUMBER(SEARCH(\"x\",P187)),\"NewRTU\"& COUNTA($P$13:$P187),\nIF(ISNUMBER(SEARCH(\"x\",Q187)),\"DCVOnly\"& COUNTA($Q$13:$Q187),\n\"\")))","v":""},null,null,null,null,null,null,null,null,null,null,null,null,null,null,0]
[176,null,{"$f":"IF(ISNUMBER(SEARCH(\"x\",O188)),\"Retrofit\"& COUNTA($O$13:$O188),\nIF(ISNUMBER(SEARCH(\"x\",P188)),\"NewRTU\"& COUNTA($P$13:$P188),\nIF(ISNUMBER(SEARCH(\"x\",Q188)),\"DCVOnly\"& COUNTA($Q$13:$Q188),\n\"\")))","v":""},null,null,null,null,null,null,null,null,null,null,null,null,null,null,0]
[177,null,{"$f":"IF(ISNUMBER(SEARCH(\"x\",O189)),\"Retrofit\"& COUNTA($O$13:$O189),\nIF(ISNUMBER(SEARCH(\"x\",P189)),\"NewRTU\"& COUNTA($P$13:$P189),\nIF(ISNUMBER(SEARCH(\"x\",Q189)),\"DCVOnly\"& COUNTA($Q$13:$Q189),\n\"\")))","v":""},null,null,null,null,null,null,null,null,null,null,null,null,null,null,0]
[178,null,{"$f":"IF(ISNUMBER(SEARCH(\"x\",O190)),\"Retrofit\"& COUNTA($O$13:$O190),\nIF(ISNUMBER(SEARCH(\"x\",P190)),\"NewRTU\"& COUNTA($P$13:$P190),\nIF(ISNUMBER(SEARCH(\"x\",Q190)),\"DCVOnly\"& COUNTA($Q$13:$Q190),\n\"\")))","v":""},null,null,null,null,null,null,null,null,null,null,null,null,null,null,0]
[179,null,{"$f":"IF(ISNUMBER(SEARCH(\"x\",O191)),\"Retrofit\"& COUNTA($O$13:$O191),\nIF(ISNUMBER(SEARCH(\"x\",P191)),\"NewRTU\"& COUNTA($P$13:$P191),\nIF(ISNUMBER(SEARCH(\"x\",Q191)),\"DCVOnly\"& COUNTA($Q$13:$Q191),\n\"\")))","v":""},null,null,null,null,null,null,null,null,null,null,null,null,null,null,0]
[180,null,{"$f":"IF(ISNUMBER(SEARCH(\"x\",O192)),\"Retrofit\"& COUNTA($O$13:$O192),\nIF(ISNUMBER(SEARCH(\"x\",P192)),\"NewRTU\"& COUNTA($P$13:$P192),\nIF(ISNUMBER(SEARCH(\"x\",Q192)),\"DCVOnly\"& COUNTA($Q$13:$Q192),\n\"\")))","v":""},null,null,null,null,null,null,null,null,null,null,null,null,null,null,0]
[181,null,{"$f":"IF(ISNUMBER(SEARCH(\"x\",O193)),\"Retrofit\"& COUNTA($O$13:$O193),\nIF(ISNUMBER(SEARCH(\"x\",P193)),\"NewRTU\"& COUNTA($P$13:$P193),\nIF(ISNUMBER(SEARCH(\"x\",Q193)),\"DCVOnly\"& COUNTA($Q$13:$Q193),\n\"\")))","v":""},null,null,null,null,null,null,null,null,null,null,null,null,null,null,0]
[182,null,{"$f":"IF(ISNUMBER(SEARCH(\"x\",O194)),\"Retrofit\"& COUNTA($O$13:$O194),\nIF(ISNUMBER(SEARCH(\"x\",P194)),\"NewRTU\"& COUNTA($P$13:$P194),\nIF(ISNUMBER(SEARCH(\"x\",Q194)),\"DCVOnly\"& COUNTA($Q$13:$Q194),\n\"\")))","v":""},null,null,null,null,null,null,null,null,null,null,null,null,null,null,0]
[183,null,{"$f":"IF(ISNUMBER(SEARCH(\"x\",O195)),\"Retrofit\"& COUNTA($O$13:$O195),\nIF(ISNUMBER(SEARCH(\"x\",P195)),\"NewRTU\"& COUNTA($P$13:$P195),\nIF(ISNUMBER(SEARCH(\"x\",Q195)),\"DCVOnly\"& COUNTA($Q$13:$Q195),\n\"\")))","v":""},null,null,null,null,null,null,null,null,null,null,null,null,null,null,0]
[184,null,{"$f":"IF(ISNUMBER(SEARCH(\"x\",O196)),\"Retrofit\"& COUNTA($O$13:$O196),\nIF(ISNUMBER(SEARCH(\"x\",P196)),\"NewRTU\"& COUNTA($P$13:$P196),\nIF(ISNUMBER(SEARCH(\"x\",Q196)),\"DCVOnly\"& COUNTA($Q$13:$Q196),\n\"\")))","v":""},null,null,null,null,null,null,null,null,null,null,null,null,null,null,0]
[185,null,{"$f":"IF(ISNUMBER(SEARCH(\"x\",O197)),\"Retrofit\"& COUNTA($O$13:$O197),\nIF(ISNUMBER(SEARCH(\"x\",P197)),\"NewRTU\"& COUNTA($P$13:$P197),\nIF(ISNUMBER(SEARCH(\"x\",Q197)),\"DCVOnly\"& COUNTA($Q$13:$Q197),\n\"\")))","v":""},null,null,null,null,null,null,null,null,null,null,null,null,null,null,0]
[186,null,{"$f":"IF(ISNUMBER(SEARCH(\"x\",O198)),\"Retrofit\"& COUNTA($O$13:$O198),\nIF(ISNUMBER(SEARCH(\"x\",P198)),\"NewRTU\"& COUNTA($P$13:$P198),\nIF(ISNUMBER(SEARCH(\"x\",Q198)),\"DCVOnly\"& COUNTA($Q$13:$Q198),\n\"\")))","v":""},null,null,null,null,null,null,null,null,null,null,null,null,null,null,0]
[187,null,{"$f":"IF(ISNUMBER(SEARCH(\"x\",O199)),\"Retrofit\"& COUNTA($O$13:$O199),\nIF(ISNUMBER(SEARCH(\"x\",P199)),\"NewRTU\"& COUNTA($P$13:$P199),\nIF(ISNUMBER(SEARCH(\"x\",Q199)),\"DCVOnly\"& COUNTA($Q$13:$Q199),\n\"\")))","v":""},null,null,null,null,null,null,null,null,null,null,null,null,null,null,0]
[188,null,{"$f":"IF(ISNUMBER(SEARCH(\"x\",O200)),\"Retrofit\"& COUNTA($O$13:$O200),\nIF(ISNUMBER(SEARCH(\"x\",P200)),\"NewRTU\"& COUNTA($P$13:$P200),\nIF(ISNUMBER(SEARCH(\"x\",Q200)),\"DCVOnly\"& COUNTA($Q$13:$Q200),\n\"\")))","v":""},null,null,null,null,null,null,null,null,null,null,null,null,null,null,0]
[189,null,{"$f":"IF(ISNUMBER(SEARCH(\"x\",O201)),\"Retrofit\"& COUNTA($O$13:$O201),\nIF(ISNUMBER(SEARCH(\"x\",P201)),\"NewRTU\"& COUNTA($P$13:$P201),\nIF(ISNUMBER(SEARCH(\"x\",Q201)),\"DCVOnly\"& COUNTA($Q$13:$Q201),\n\"\")))","v":""},null,null,null,null,null,null,null,null,null,null,null,null,null,null,0]
[190,null,{"$f":"IF(ISNUMBER(SEARCH(\"x\",O202)),\"Retrofit\"& COUNTA($O$13:$O202),\nIF(ISNUMBER(SEARCH(\"x\",P202)),\"NewRTU\"& COUNTA($P$13:$P202),\nIF(ISNUMBER(SEARCH(\"x\",Q202)),\"DCVOnly\"& COUNTA($Q$13:$Q202),\n\"\")))","v":""},null,null,null,null,null,null,null,null,null,null,null,null,null,null,0]
[191,null,{"$f":"IF(ISNUMBER(SEARCH(\"x\",O203)),\"Retrofit\"& COUNTA($O$13:$O203),\nIF(ISNUMBER(SEARCH(\"x\",P203)),\"NewRTU\"& COUNTA($P$13:$P203),\nIF(ISNUMBER(SEARCH(\"x\",Q203)),\"DCVOnly\"& COUNTA($Q$13:$Q203),\n\"\")))","v":""},null,null,null,null,null,null,null,null,null,null,null,null,null,null,0]
[192,null,{"$f":"IF(ISNUMBER(SEARCH(\"x\",O204)),\"Retrofit\"& COUNTA($O$13:$O204),\nIF(ISNUMBER(SEARCH(\"x\",P204)),\"NewRTU\"& COUNTA($P$13:$P204),\nIF(ISNUMBER(SEARCH(\"x\",Q204)),\"DCVOnly\"& COUNTA($Q$13:$Q204),\n\"\")))","v":""},null,null,null,null,null,null,null,null,null,null,null,null,null,null,0]
[193,null,{"$f":"IF(ISNUMBER(SEARCH(\"x\",O205)),\"Retrofit\"& COUNTA($O$13:$O205),\nIF(ISNUMBER(SEARCH(\"x\",P205)),\"NewRTU\"& COUNTA($P$13:$P205),\nIF(ISNUMBER(SEARCH(\"x\",Q205)),\"DCVOnly\"& COUNTA($Q$13:$Q205),\n\"\")))","v":""},null,null,null,null,null,null,null,null,null,null,null,null,null,null,0]
[194,null,{"$f":"IF(ISNUMBER(SEARCH(\"x\",O206)),\"Retrofit\"& COUNTA($O$13:$O206),\nIF(ISNUMBER(SEARCH(\"x\",P206)),\"NewRTU\"& COUNTA($P$13:$P206),\nIF(ISNUMBER(SEARCH(\"x\",Q206)),\"DCVOnly\"& COUNTA($Q$13:$Q206),\n\"\")))","v":""},null,null,null,null,null,null,null,null,null,null,null,null,null,null,{"$f":"COUNTA(O206:Q206)","v":0}]
[195,null,{"$f":"IF(ISNUMBER(SEARCH(\"x\",O207)),\"Retrofit\"& COUNTA($O$13:$O207),\nIF(ISNUMBER(SEARCH(\"x\",P207)),\"NewRTU\"& COUNTA($P$13:$P207),\nIF(ISNUMBER(SEARCH(\"x\",Q207)),\"DCVOnly\"& COUNTA($Q$13:$Q207),\n\"\")))","v":""},null,null,null,null,null,null,null,null,null,null,null,null,null,null,0]
[196,null,{"$f":"IF(ISNUMBER(SEARCH(\"x\",O208)),\"Retrofit\"& COUNTA($O$13:$O208),\nIF(ISNUMBER(SEARCH(\"x\",P208)),\"NewRTU\"& COUNTA($P$13:$P208),\nIF(ISNUMBER(SEARCH(\"x\",Q208)),\"DCVOnly\"& COUNTA($Q$13:$Q208),\n\"\")))","v":""},null,null,null,null,null,null,null,null,null,null,null,null,null,null,0]
[197,null,{"$f":"IF(ISNUMBER(SEARCH(\"x\",O209)),\"Retrofit\"& COUNTA($O$13:$O209),\nIF(ISNUMBER(SEARCH(\"x\",P209)),\"NewRTU\"& COUNTA($P$13:$P209),\nIF(ISNUMBER(SEARCH(\"x\",Q209)),\"DCVOnly\"& COUNTA($Q$13:$Q209),\n\"\")))","v":""},null,null,null,null,null,null,null,null,null,null,null,null,null,null,0]
[198,null,{"$f":"IF(ISNUMBER(SEARCH(\"x\",O210)),\"Retrofit\"& COUNTA($O$13:$O210),\nIF(ISNUMBER(SEARCH(\"x\",P210)),\"NewRTU\"& COUNTA($P$13:$P210),\nIF(ISNUMBER(SEARCH(\"x\",Q210)),\"DCVOnly\"& COUNTA($Q$13:$Q210),\n\"\")))","v":""},null,null,null,null,null,null,null,null,null,null,null,null,null,null,0]
[199,null,{"$f":"IF(ISNUMBER(SEARCH(\"x\",O211)),\"Retrofit\"& COUNTA($O$13:$O211),\nIF(ISNUMBER(SEARCH(\"x\",P211)),\"NewRTU\"& COUNTA($P$13:$P211),\nIF(ISNUMBER(SEARCH(\"x\",Q211)),\"DCVOnly\"& COUNTA($Q$13:$Q211),\n\"\")))","v":""},null,null,null,null,null,null,null,null,null,null,null,null,null,null,0]
[200,null,null,null,null,null,null,null,null,null,null,null,null,null,null,null,null,0]

{"sheet":"ARC - Retrofit","index":3,"n_rows":110,"n_cols":21,"rows_kept":110,"cut":false,"hidden":true,"merged":[[22,7,22,8],[15,5,15,6],[16,5,16,6],[17,5,17,6],[12,2,12,6],[16,7,16,8],[17,2,17,3],[17,7,17,8],[16,2,16,3],[18,7,18,8],[13,7,14,8],[15,2,15,3],[15,7,15,8],[13,2,14,3],[5,2,5,11],[6,2,6,11],[23,2,23,3],[23,7,23,8],[22,2,22,3],[24,7,24,8],[19,2,19,3],[19,7,19,8],[18,2,18,3],[20,7,20,8],[21,2,21,3],[21,7,21,8],[20,2,20,3],[20,5,20,6],[21,5,21,6],[22,5,22,6],[23,5,23,6],[18,5,18,6],[19,5,19,6],[7,2,7,11],[8,2,8,11],[9,2,9,11],[10,2,10,11],[13,5,14,6],[28,7,28,8],[29,2,29,3],[29,7,29,8],[28,2,28,3],[30,7,30,8],[30,2,30,3],[25,2,25,3],[25,7,25,8],[24,2,24,3],[26,7,26,8],[27,2,27,3],[27,7,27,8],[26,2,26,3],[24,5,24,6],[25,5,25,6],[26,5,26,6],[27,5,27,6],[28,5,28,6],[29,5,29,6],[30,5,30,6],[36,7,36,8],[31,2,31,3],[31,7,31,8],[36,2,36,3],[38,7,38,8],[32,7,32,8],[33,2,33,3],[33,7,33,8],[32,2,32,3],[35,2,35,3],[35,7,35,8],[34,2,34,3],[34,7,34,8],[34,5,34,6],[35,5,35,6],[36,5,36,6],[37,7,37,8],[31,5,31,6],[32,5,32,6],[33,5,33,6],[42,7,42,8],[37,2,37,3],[42,2,42,3],[44,7,44,8],[39,2,39,3],[39,7,39,8],[38,2,38,3],[41,2,41,3],[41,7,41,8],[40,2,40,3],[40,7,40,8],[37,5,37,6],[38,5,38,6],[39,5,39,6],[40,5,40,6],[41,5,41,6],[42,5,42,6],[43,7,43,8],[48,7,48,8],[43,2,43,3],[48,2,48,3],[50,7,50,8],[45,2,45,3],[45,7,45,8],[44,2,44,3],[47,2,47,3],[47,7,47,8],[46,2,46,3],[46,7,46,8],[43,5,43,6],[44,5,44,6],[45,5,45,6],[46,5,46,6],[47,5,47,6],[48,5,48,6],[49,7,49,8],[54,7,54,8],[49,2,49,3],[54,2,54,3],[56,7,56,8],[51,2,51,3],[51,7,51,8],[50,2,50,3],[53,2,53,3],[53,7,53,8],[52,2,52,3],[55,2,55,3],[55,7,55,8],[52,7,52,8],[49,5,49,6],[50,5,50,6],[51,5,51,6],[52,5,52,6],[53,5,53,6],[54,5,54,6],[55,5,55,6],[60,2,60,3],[62,7,62,8],[57,2,57,3],[57,7,57,8],[56,2,56,3],[59,2,59,3],[59,7,59,8],[58,2,58,3],[61,2,61,3],[61,7,61,8],[58,7,58,8],[60,7,60,8],[59,5,59,6],[60,5,60,6],[61,5,61,6],[56,5,56,6],[57,5,57,6],[58,5,58,6],[66,2,66,3],[68,7,68,8],[63,2,63,3],[63,7,63,8],[62,2,62,3],[65,2,65,3],[65,7,65,8],[64,2,64,3],[67,2,67,3],[67,7,67,8],[64,7,64,8],[66,7,66,8],[62,5,62,6],[63,5,63,6],[64,5,64,6],[65,5,65,6],[66,5,66,6],[67,5,67,6],[73,2,73,3],[73,7,73,8],[72,2,72,3],[69,2,69,3],[69,7,69,8],[68,2,68,3],[71,2,71,3],[71,7,71,8],[70,2,70,3],[70,7,70,8],[72,7,72,8],[68,5,68,6],[69,5,69,6],[70,5,70,6],[71,5,71,6],[72,5,72,6],[73,5,73,6],[79,2,79,3],[79,7,79,8],[78,2,78,3],[81,2,81,3],[81,7,81,8],[80,2,80,3],[74,7,74,8],[75,2,75,3],[75,7,75,8],[74,2,74,3],[77,2,77,3],[77,7,77,8],[76,2,76,3],[80,7,80,8],[78,7,78,8],[76,7,76,8],[74,5,74,6],[75,5,75,6],[76,5,76,6],[77,5,77,6],[78,5,78,6],[79,5,79,6],[80,5,80,6],[81,5,81,6],[87,2,87,3],[87,7,87,8],[86,2,86,3],[89,2,89,3],[89,7,89,8],[88,2,88,3],[83,2,83,3],[83,7,83,8],[82,2,82,3],[85,2,85,3],[85,7,85,8],[84,2,84,3],[86,7,86,8],[84,7,84,8],[82,7,82,8],[88,7,88,8],[83,5,83,6],[84,5,84,6],[85,5,85,6],[86,5,86,6],[82,5,82,6],[87,5,87,6],[88,5,88,6],[89,5,89,6],[95,2,95,3],[95,7,95,8],[94,2,94,3],[97,2,97,3],[97,7,97,8],[96,2,96,3],[91,2,91,3],[91,7,91,8],[90,2,90,3],[93,2,93,3],[93,7,93,8],[92,2,92,3],[96,7,96,8],[94,7,94,8],[92,7,92,8],[90,7,90,8],[92,5,92,6],[93,5,93,6],[94,5,94,6],[95,5,95,6],[90,5,90,6],[91,5,91,6],[96,5,96,6],[97,5,97,6],[109,2,109,3],[106,7,106,8],[107,2,107,3],[107,7,107,8],[106,2,106,3],[109,7,109,8],[108,7,108,8],[108,2,108,3],[103,2,103,3],[103,7,103,8],[106,5,106,6],[107,5,107,6],[108,5,108,6],[109,5,109,6],[4,20,5,23],[6,20,8,23],[102,2,102,3],[105,2,105,3],[105,7,105,8],[104,2,104,3],[99,2,99,3],[99,7,99,8],[98,2,98,3],[101,2,101,3],[101,7,101,8],[100,2,100,3],[104,7,104,8],[102,7,102,8],[100,7,100,8],[98,7,98,8],[101,5,101,6],[102,5,102,6],[103,5,103,6],[104,5,104,6],[105,5,105,6],[98,5,98,6],[99,5,99,6],[100,5,100,6]]}
[null,null,null,null,"HIDE",null,null,null,null,"HIDE"]
[null,"Advanced Rooftop Controls (Retrofit)",null,null,null,null,null,null,null,null,null,null,"Total kWh/yr Savings",{"$f":"SUM(J16:J110)","v":0},null,"Incentive",{"$f":"SUM(H16:I110)","v":0}]
[null,null,null,null,null,null,null,null,null,"Customer Costs",{"$f":"SUM(F16:G110)","v":0},null,"Total kW Savings",0,null,"Electric Cost Savings/YR",{"$f":"IFERROR(N2*INDEX(kWhRates,MATCH(RateSchedule,RateSchedules,0))+N3*12*INDEX(kWRates,MATCH(RateSchedule,RateSchedules,0)),0)","v":0},null,null,null,"Instructions"]
[null,null,null,null,null,null,null,null,null,null,null,null,null,null,null,null,null,null,null,null,"1. Complete yellow cells."]
[null,null,"Confirm the following:",null,null,null,null,null,null,null,null,null,null,null,null,null,null,null,null,null,"Note"]
[null,null,"1. RTUs is ≥ 5 tons"]
[null,null,"2. Control is installed on an existing unitary package rooftop unit (no split-systems)",null,null,null,null,null,null,null,null,null,null,null,null,null,null,null,null,null,"All fields must be completed to calculate the savings & incentives"]
[null,null,"3. Existing rooftop unit is between 1 and 15 years old"]
[null,null,"4. Control includes CO2 or occupancy based sensor that determines ventillation and space conditioning needs"]
[null,null,"5. Control includes digital, integrated economizer controls"]
[null,null,"6. Control replaces constant speed fan motor with either a supply fan VFD or multi-speed fan motor with controller that meets ventilation and space conditioning needs"]
[]
[null,null,"Equipment Details: "]
[null,null,"Rooftop Unit Label (from equipment tab)",null,"RTU Size","Customer Cost",null,"Estimated Incentive",null,"kWh"]
[]
[1,{"$f":"IFERROR(IF(\nAND(\n    E16>=0,\n    15>=INDEX(Equipment!K:K,MATCH(\"Retrofit\"&A16,Equipment!C:C,0)),\n    1<=INDEX(Equipment!K:K,MATCH(\"Retrofit\"&A16,Equipment!C:C,0))\n),\n\"eligible\",\n\"ineligible\"),\"\")","v":""},{"$f":"IFERROR(INDEX(Equipment!$D:$D,MATCH(\"Retrofit\" & A16,Equipment!$C:$C,0)),\"\")","v":""},null,{"$f":"IFERROR(INDEX(Equipment!$L$13:$L$212,MATCH(\"Retrofit\" & $A16,Equipment!$C$13:$C$211,0)),\"\")","v":""},null,null,{"$f":"IF(E16=\"\",\"\",IF(B16<>\"eligible\",0,IF(AND(E16>=5,E16<=10),2000,IF(AND(E16>10,E16<=15),2800,IF(AND(E16>15,E16<=20),4000,IF(AND(E16>20),4500,IF(AND(E16>0,E16<5),500,0)))))))","v":""},null,{"$f":"IFERROR(IF(B16<>\"eligible\",0,0.539*INDEX(OpHours,MATCH(Equipment!$D$7,BuildingType,0))*INDEX(Equipment!$M$13:$M$212,MATCH(\"Retrofit\"&A16,Equipment!$C$13:$C$211,0))),0)","v":0}]
[2,{"$f":"IFERROR(IF(\nAND(\n    E17>=0,\n    15>=INDEX(Equipment!K:K,MATCH(\"Retrofit\"&A17,Equipment!C:C,0)),\n    1<=INDEX(Equipment!K:K,MATCH(\"Retrofit\"&A17,Equipment!C:C,0))\n),\n\"eligible\",\n\"ineligible\"),\"\")","v":""},{"$f":"IFERROR(INDEX(Equipment!$D:$D,MATCH(\"Retrofit\" & A17,Equipment!$C:$C,0)),\"\")","v":""},null,{"$f":"IFERROR(INDEX(Equipment!$L$13:$L$212,MATCH(\"Retrofit\" & $A17,Equipment!$C$13:$C$211,0)),\"\")","v":""},null,null,{"$f":"IF(E17=\"\",\"\",IF(B17<>\"eligible\",0,IF(AND(E17>=5,E17<=10),2000,IF(AND(E17>10,E17<=15),2800,IF(AND(E17>15,E17<=20),4000,IF(AND(E17>20),4500,IF(AND(E17>0,E17<5),500,0)))))))","v":""},null,{"$f":"IFERROR(IF(B17<>\"eligible\",0,0.539*INDEX(OpHours,MATCH(Equipment!$D$7,BuildingType,0))*INDEX(Equipment!$M$13:$M$212,MATCH(\"Retrofit\"&A17,Equipment!$C$13:$C$211,0))),0)","v":0}]
[3,{"$f":"IFERROR(IF(\nAND(\n    E18>=0,\n    15>=INDEX(Equipment!K:K,MATCH(\"Retrofit\"&A18,Equipment!C:C,0)),\n    1<=INDEX(Equipment!K:K,MATCH(\"Retrofit\"&A18,Equipment!C:C,0))\n),\n\"eligible\",\n\"ineligible\"),\"\")","v":""},{"$f":"IFERROR(INDEX(Equipment!$D:$D,MATCH(\"Retrofit\" & A18,Equipment!$C:$C,0)),\"\")","v":""},null,{"$f":"IFERROR(INDEX(Equipment!$L$13:$L$212,MATCH(\"Retrofit\" & $A18,Equipment!$C$13:$C$211,0)),\"\")","v":""},null,null,"",null,{"$f":"IFERROR(IF(B18<>\"eligible\",0,0.539*INDEX(OpHours,MATCH(Equipment!$D$7,BuildingType,0))*INDEX(Equipment!$M$13:$M$212,MATCH(\"Retrofit\"&A18,Equipment!$C$13:$C$211,0))),0)","v":0}]
[4,{"$f":"IFERROR(IF(\nAND(\n    E19>=0,\n    15>=INDEX(Equipment!K:K,MATCH(\"Retrofit\"&A19,Equipment!C:C,0)),\n    1<=INDEX(Equipment!K:K,MATCH(\"Retrofit\"&A19,Equipment!C:C,0))\n),\n\"eligible\",\n\"ineligible\"),\"\")","v":""},{"$f":"IFERROR(INDEX(Equipment!$D:$D,MATCH(\"Retrofit\" & A19,Equipment!$C:$C,0)),\"\")","v":""},null,{"$f":"IFERROR(INDEX(Equipment!$L$13:$L$212,MATCH(\"Retrofit\" & $A19,Equipment!$C$13:$C$211,0)),\"\")","v":""},null,null,"",null,{"$f":"IFERROR(IF(B19<>\"eligible\",0,0.539*INDEX(OpHours,MATCH(Equipment!$D$7,BuildingType,0))*INDEX(Equipment!$M$13:$M$212,MATCH(\"Retrofit\"&A19,Equipment!$C$13:$C$211,0))),0)","v":0}]
[5,{"$f":"IFERROR(IF(\nAND(\n    E20>=0,\n    15>=INDEX(Equipment!K:K,MATCH(\"Retrofit\"&A20,Equipment!C:C,0)),\n    1<=INDEX(Equipment!K:K,MATCH(\"Retrofit\"&A20,Equipment!C:C,0))\n),\n\"eligible\",\n\"ineligible\"),\"\")","v":""},{"$f":"IFERROR(INDEX(Equipment!$D:$D,MATCH(\"Retrofit\" & A20,Equipment!$C:$C,0)),\"\")","v":""},null,{"$f":"IFERROR(INDEX(Equipment!$L$13:$L$212,MATCH(\"Retrofit\" & $A20,Equipment!$C$13:$C$211,0)),\"\")","v":""},null,null,"",null,{"$f":"IFERROR(IF(B20<>\"eligible\",0,0.539*INDEX(OpHours,MATCH(Equipment!$D$7,BuildingType,0))*INDEX(Equipment!$M$13:$M$212,MATCH(\"Retrofit\"&A20,Equipment!$C$13:$C$211,0))),0)","v":0}]
[6,{"$f":"IFERROR(IF(\nAND(\n    E21>=0,\n    15>=INDEX(Equipment!K:K,MATCH(\"Retrofit\"&A21,Equipment!C:C,0)),\n    1<=INDEX(Equipment!K:K,MATCH(\"Retrofit\"&A21,Equipment!C:C,0))\n),\n\"eligible\",\n\"ineligible\"),\"\")","v":""},{"$f":"IFERROR(INDEX(Equipment!$D:$D,MATCH(\"Retrofit\" & A21,Equipment!$C:$C,0)),\"\")","v":""},null,{"$f":"IFERROR(INDEX(Equipment!$L$13:$L$212,MATCH(\"Retrofit\" & $A21,Equipment!$C$13:$C$211,0)),\"\")","v":""},null,null,"",null,{"$f":"IFERROR(IF(B21<>\"eligible\",0,0.539*INDEX(OpHours,MATCH(Equipment!$D$7,BuildingType,0))*INDEX(Equipment!$M$13:$M$212,MATCH(\"Retrofit\"&A21,Equipment!$C$13:$C$211,0))),0)","v":0}]
[7,{"$f":"IFERROR(IF(\nAND(\n    E22>=0,\n    15>=INDEX(Equipment!K:K,MATCH(\"Retrofit\"&A22,Equipment!C:C,0)),\n    1<=INDEX(Equipment!K:K,MATCH(\"Retrofit\"&A22,Equipment!C:C,0))\n),\n\"eligible\",\n\"ineligible\"),\"\")","v":""},{"$f":"IFERROR(INDEX(Equipment!$D:$D,MATCH(\"Retrofit\" & A22,Equipment!$C:$C,0)),\"\")","v":""},null,{"$f":"IFERROR(INDEX(Equipment!$L$13:$L$212,MATCH(\"Retrofit\" & $A22,Equipment!$C$13:$C$211,0)),\"\")","v":""},null,null,"",null,{"$f":"IFERROR(IF(B22<>\"eligible\",0,0.539*INDEX(OpHours,MATCH(Equipment!$D$7,BuildingType,0))*INDEX(Equipment!$M$13:$M$212,MATCH(\"Retrofit\"&A22,Equipment!$C$13:$C$211,0))),0)","v":0}]
[8,{"$f":"IFERROR(IF(\nAND(\n    E23>=0,\n    15>=INDEX(Equipment!K:K,MATCH(\"Retrofit\"&A23,Equipment!C:C,0)),\n    1<=INDEX(Equipment!K:K,MATCH(\"Retrofit\"&A23,Equipment!C:C,0))\n),\n\"eligible\",\n\"ineligible\"),\"\")","v":""},{"$f":"IFERROR(INDEX(Equipment!$D:$D,MATCH(\"Retrofit\" & A23,Equipment!$C:$C,0)),\"\")","v":""},null,{"$f":"IFERROR(INDEX(Equipment!$L$13:$L$212,MATCH(\"Retrofit\" & $A23,Equipment!$C$13:$C$211,0)),\"\")","v":""},null,null,"",null,{"$f":"IFERROR(IF(B23<>\"eligible\",0,0.539*INDEX(OpHours,MATCH(Equipment!$D$7,BuildingType,0))*INDEX(Equipment!$M$13:$M$212,MATCH(\"Retrofit\"&A23,Equipment!$C$13:$C$211,0))),0)","v":0}]
[9,{"$f":"IFERROR(IF(\nAND(\n    E24>=0,\n    15>=INDEX(Equipment!K:K,MATCH(\"Retrofit\"&A24,Equipment!C:C,0)),\n    1<=INDEX(Equipment!K:K,MATCH(\"Retrofit\"&A24,Equipment!C:C,0))\n),\n\"eligible\",\n\"ineligible\"),\"\")","v":""},{"$f":"IFERROR(INDEX(Equipment!$D:$D,MATCH(\"Retrofit\" & A24,Equipment!$C:$C,0)),\"\")","v":""},null,{"$f":"IFERROR(INDEX(Equipment!$L$13:$L$212,MATCH(\"Retrofit\" & $A24,Equipment!$C$13:$C$211,0)),\"\")","v":""},null,null,"",null,{"$f":"IFERROR(IF(B24<>\"eligible\",0,0.539*INDEX(OpHours,MATCH(Equipment!$D$7,BuildingType,0))*INDEX(Equipment!$M$13:$M$212,MATCH(\"Retrofit\"&A24,Equipment!$C$13:$C$211,0))),0)","v":0}]
[10,{"$f":"IFERROR(IF(\nAND(\n    E25>=0,\n    15>=INDEX(Equipment!K:K,MATCH(\"Retrofit\"&A25,Equipment!C:C,0)),\n    1<=INDEX(Equipment!K:K,MATCH(\"Retrofit\"&A25,Equipment!C:C,0))\n),\n\"eligible\",\n\"ineligible\"),\"\")","v":""},{"$f":"IFERROR(INDEX(Equipment!$D:$D,MATCH(\"Retrofit\" & A25,Equipment!$C:$C,0)),\"\")","v":""},null,{"$f":"IFERROR(INDEX(Equipment!$L$13:$L$212,MATCH(\"Retrofit\" & $A25,Equipment!$C$13:$C$211,0)),\"\")","v":""},null,null,"",null,{"$f":"IFERROR(IF(B25<>\"eligible\",0,0.539*INDEX(OpHours,MATCH(Equipment!$D$7,BuildingType,0))*INDEX(Equipment!$M$13:$M$212,MATCH(\"Retrofit\"&A25,Equipment!$C$13:$C$211,0))),0)","v":0}]
[11,{"$f":"IFERROR(IF(\nAND(\n    E26>=0,\n    15>=INDEX(Equipment!K:K,MATCH(\"Retrofit\"&A26,Equipment!C:C,0)),\n    1<=INDEX(Equipment!K:K,MATCH(\"Retrofit\"&A26,Equipment!C:C,0))\n),\n\"eligible\",\n\"ineligible\"),\"\")","v":""},{"$f":"IFERROR(INDEX(Equipment!$D:$D,MATCH(\"Retrofit\" & A26,Equipment!$C:$C,0)),\"\")","v":""},null,{"$f":"IFERROR(INDEX(Equipment!$L$13:$L$212,MATCH(\"Retrofit\" & $A26,Equipment!$C$13:$C$211,0)),\"\")","v":""},null,null,"",null,{"$f":"IFERROR(IF(B26<>\"eligible\",0,0.539*INDEX(OpHours,MATCH(Equipment!$D$7,BuildingType,0))*INDEX(Equipment!$M$13:$M$212,MATCH(\"Retrofit\"&A26,Equipment!$C$13:$C$211,0))),0)","v":0}]
[12,{"$f":"IFERROR(IF(\nAND(\n    E27>=0,\n    15>=INDEX(Equipment!K:K,MATCH(\"Retrofit\"&A27,Equipment!C:C,0)),\n    1<=INDEX(Equipment!K:K,MATCH(\"Retrofit\"&A27,Equipment!C:C,0))\n),\n\"eligible\",\n\"ineligible\"),\"\")","v":""},{"$f":"IFERROR(INDEX(Equipment!$D:$D,MATCH(\"Retrofit\" & A27,Equipment!$C:$C,0)),\"\")","v":""},null,{"$f":"IFERROR(INDEX(Equipment!$L$13:$L$212,MATCH(\"Retrofit\" & $A27,Equipment!$C$13:$C$211,0)),\"\")","v":""},null,null,"",null,{"$f":"IFERROR(IF(B27<>\"eligible\",0,0.539*INDEX(OpHours,MATCH(Equipment!$D$7,BuildingType,0))*INDEX(Equipment!$M$13:$M$212,MATCH(\"Retrofit\"&A27,Equipment!$C$13:$C$211,0))),0)","v":0}]
[13,{"$f":"IFERROR(IF(\nAND(\n    E28>=0,\n    15>=INDEX(Equipment!K:K,MATCH(\"Retrofit\"&A28,Equipment!C:C,0)),\n    1<=INDEX(Equipment!K:K,MATCH(\"Retrofit\"&A28,Equipment!C:C,0))\n),\n\"eligible\",\n\"ineligible\"),\"\")","v":""},{"$f":"IFERROR(INDEX(Equipment!$D:$D,MATCH(\"Retrofit\" & A28,Equipment!$C:$C,0)),\"\")","v":""},null,{"$f":"IFERROR(INDEX(Equipment!$L$13:$L$212,MATCH(\"Retrofit\" & $A28,Equipment!$C$13:$C$211,0)),\"\")","v":""},null,null,"",null,{"$f":"IFERROR(IF(B28<>\"eligible\",0,0.539*INDEX(OpHours,MATCH(Equipment!$D$7,BuildingType,0))*INDEX(Equipment!$M$13:$M$212,MATCH(\"Retrofit\"&A28,Equipment!$C$13:$C$211,0))),0)","v":0}]
[14,{"$f":"IFERROR(IF(\nAND(\n    E29>=0,\n    15>=INDEX(Equipment!K:K,MATCH(\"Retrofit\"&A29,Equipment!C:C,0)),\n    1<=INDEX(Equipment!K:K,MATCH(\"Retrofit\"&A29,Equipment!C:C,0))\n),\n\"eligible\",\n\"ineligible\"),\"\")","v":""},{"$f":"IFERROR(INDEX(Equipment!$D:$D,MATCH(\"Retrofit\" & A29,Equipment!$C:$C,0)),\"\")","v":""},null,{"$f":"IFERROR(INDEX(Equipment!$L$13:$L$212,MATCH(\"Retrofit\" & $A29,Equipment!$C$13:$C$211,0)),\"\")","v":""},null,null,"",null,{"$f":"IFERROR(IF(B29<>\"eligible\",0,0.539*INDEX(OpHours,MATCH(Equipment!$D$7,BuildingType,0))*INDEX(Equipment!$M$13:$M$212,MATCH(\"Retrofit\"&A29,Equipment!$C$13:$C$211,0))),0)","v":0}]
[15,{"$f":"IFERROR(IF(\nAND(\n    E30>=0,\n    15>=INDEX(Equipment!K:K,MATCH(\"Retrofit\"&A30,Equipment!C:C,0)),\n    1<=INDEX(Equipment!K:K,MATCH(\"Retrofit\"&A30,Equipment!C:C,0))\n),\n\"eligible\",\n\"ineligible\"),\"\")","v":""},{"$f":"IFERROR(INDEX(Equipment!$D:$D,MATCH(\"Retrofit\" & A30,Equipment!$C:$C,0)),\"\")","v":""},null,{"$f":"IFERROR(INDEX(Equipment!$L$13:$L$212,MATCH(\"Retrofit\" & $A30,Equipment!$C$13:$C$211,0)),\"\")","v":""},null,null,"",null,{"$f":"IFERROR(IF(B30<>\"eligible\",0,0.539*INDEX(OpHours,MATCH(Equipment!$D$7,BuildingType,0))*INDEX(Equipment!$M$13:$M$212,MATCH(\"Retrofit\"&A30,Equipment!$C$13:$C$211,0))),0)","v":0}]
[16,{"$f":"IFERROR(IF(\nAND(\n    E31>=0,\n    15>=INDEX(Equipment!K:K,MATCH(\"Retrofit\"&A31,Equipment!C:C,0)),\n    1<=INDEX(Equipment!K:K,MATCH(\"Retrofit\"&A31,Equipment!C:C,0))\n),\n\"eligible\",\n\"ineligible\"),\"\")","v":""},{"$f":"IFERROR(INDEX(Equipment!$D:$D,MATCH(\"Retrofit\" & A31,Equipment!$C:$C,0)),\"\")","v":""},null,{"$f":"IFERROR(INDEX(Equipment!$L$13:$L$212,MATCH(\"Retrofit\" & $A31,Equipment!$C$13:$C$211,0)),\"\")","v":""},null,null,"",null,{"$f":"IFERROR(IF(B31<>\"eligible\",0,0.539*INDEX(OpHours,MATCH(Equipment!$D$7,BuildingType,0))*INDEX(Equipment!$M$13:$M$212,MATCH(\"Retrofit\"&A31,Equipment!$C$13:$C$211,0))),0)","v":0}]
[17,{"$f":"IFERROR(IF(\nAND(\n    E32>=0,\n    15>=INDEX(Equipment!K:K,MATCH(\"Retrofit\"&A32,Equipment!C:C,0)),\n    1<=INDEX(Equipment!K:K,MATCH(\"Retrofit\"&A32,Equipment!C:C,0))\n),\n\"eligible\",\n\"ineligible\"),\"\")","v":""},{"$f":"IFERROR(INDEX(Equipment!$D:$D,MATCH(\"Retrofit\" & A32,Equipment!$C:$C,0)),\"\")","v":""},null,{"$f":"IFERROR(INDEX(Equipment!$L$13:$L$212,MATCH(\"Retrofit\" & $A32,Equipment!$C$13:$C$211,0)),\"\")","v":""},null,null,"",null,{"$f":"IFERROR(IF(B32<>\"eligible\",0,0.539*INDEX(OpHours,MATCH(Equipment!$D$7,BuildingType,0))*INDEX(Equipment!$M$13:$M$212,MATCH(\"Retrofit\"&A32,Equipment!$C$13:$C$211,0))),0)","v":0}]
[18,{"$f":"IFERROR(IF(\nAND(\n    E33>=0,\n    15>=INDEX(Equipment!K:K,MATCH(\"Retrofit\"&A33,Equipment!C:C,0)),\n    1<=INDEX(Equipment!K:K,MATCH(\"Retrofit\"&A33,Equipment!C:C,0))\n),\n\"eligible\",\n\"ineligible\"),\"\")","v":""},{"$f":"IFERROR(INDEX(Equipment!$D:$D,MATCH(\"Retrofit\" & A33,Equipment!$C:$C,0)),\"\")","v":""},null,{"$f":"IFERROR(INDEX(Equipment!$L$13:$L$212,MATCH(\"Retrofit\" & $A33,Equipment!$C$13:$C$211,0)),\"\")","v":""},null,null,"",null,{"$f":"IFERROR(IF(B33<>\"eligible\",0,0.539*INDEX(OpHours,MATCH(Equipment!$D$7,BuildingType,0))*INDEX(Equipment!$M$13:$M$212,MATCH(\"Retrofit\"&A33,Equipment!$C$13:$C$211,0))),0)","v":0}]
[19,{"$f":"IFERROR(IF(\nAND(\n    E34>=0,\n    15>=INDEX(Equipment!K:K,MATCH(\"Retrofit\"&A34,Equipment!C:C,0)),\n    1<=INDEX(Equipment!K:K,MATCH(\"Retrofit\"&A34,Equipment!C:C,0))\n),\n\"eligible\",\n\"ineligible\"),\"\")","v":""},{"$f":"IFERROR(INDEX(Equipment!$D:$D,MATCH(\"Retrofit\" & A34,Equipment!$C:$C,0)),\"\")","v":""},null,{"$f":"IFERROR(INDEX(Equipment!$L$13:$L$212,MATCH(\"Retrofit\" & $A34,Equipment!$C$13:$C$211,0)),\"\")","v":""},null,null,"",null,{"$f":"IFERROR(IF(B34<>\"eligible\",0,0.539*INDEX(OpHours,MATCH(Equipment!$D$7,BuildingType,0))*INDEX(Equipment!$M$13:$M$212,MATCH(\"Retrofit\"&A34,Equipment!$C$13:$C$211,0))),0)","v":0}]
[20,{"$f":"IFERROR(IF(\nAND(\n    E35>=0,\n    15>=INDEX(Equipment!K:K,MATCH(\"Retrofit\"&A35,Equipment!C:C,0)),\n    1<=INDEX(Equipment!K:K,MATCH(\"Retrofit\"&A35,Equipment!C:C,0))\n),\n\"eligible\",\n\"ineligible\"),\"\")","v":""},{"$f":"IFERROR(INDEX(Equipment!$D:$D,MATCH(\"Retrofit\" & A35,Equipment!$C:$C,0)),\"\")","v":""},null,{"$f":"IFERROR(INDEX(Equipment!$L$13:$L$212,MATCH(\"Retrofit\" & $A35,Equipment!$C$13:$C$211,0)),\"\")","v":""},null,null,"",null,{"$f":"IFERROR(IF(B35<>\"eligible\",0,0.539*INDEX(OpHours,MATCH(Equipment!$D$7,BuildingType,0))*INDEX(Equipment!$M$13:$M$212,MATCH(\"Retrofit\"&A35,Equipment!$C$13:$C$211,0))),0)","v":0}]
[21,{"$f":"IFERROR(IF(\nAND(\n    E36>=0,\n    15>=INDEX(Equipment!K:K,MATCH(\"Retrofit\"&A36,Equipment!C:C,0)),\n    1<=INDEX(Equipment!K:K,MATCH(\"Retrofit\"&A36,Equipment!C:C,0))\n),\n\"eligible\",\n\"ineligible\"),\"\")","v":""},{"$f":"IFERROR(INDEX(Equipment!$D:$D,MATCH(\"Retrofit\" & A36,Equipment!$C:$C,0)),\"\")","v":""},null,{"$f":"IFERROR(INDEX(Equipment!$L$13:$L$212,MATCH(\"Retrofit\" & $A36,Equipment!$C$13:$C$211,0)),\"\")","v":""},null,null,"",null,{"$f":"IFERROR(IF(B36<>\"eligible\",0,0.539*INDEX(OpHours,MATCH(Equipment!$D$7,BuildingType,0))*INDEX(Equipment!$M$13:$M$212,MATCH(\"Retrofit\"&A36,Equipment!$C$13:$C$211,0))),0)","v":0}]
[22,{"$f":"IFERROR(IF(\nAND(\n    E37>=0,\n    15>=INDEX(Equipment!K:K,MATCH(\"Retrofit\"&A37,Equipment!C:C,0)),\n    1<=INDEX(Equipment!K:K,MATCH(\"Retrofit\"&A37,Equipment!C:C,0))\n),\n\"eligible\",\n\"ineligible\"),\"\")","v":""},{"$f":"IFERROR(INDEX(Equipment!$D:$D,MATCH(\"Retrofit\" & A37,Equipment!$C:$C,0)),\"\")","v":""},null,{"$f":"IFERROR(INDEX(Equipment!$L$13:$L$212,MATCH(\"Retrofit\" & $A37,Equipment!$C$13:$C$211,0)),\"\")","v":""},null,null,"",null,{"$f":"IFERROR(IF(B37<>\"eligible\",0,0.539*INDEX(OpHours,MATCH(Equipment!$D$7,BuildingType,0))*INDEX(Equipment!$M$13:$M$212,MATCH(\"Retrofit\"&A37,Equipment!$C$13:$C$211,0))),0)","v":0}]
[23,{"$f":"IFERROR(IF(\nAND(\n    E38>=0,\n    15>=INDEX(Equipment!K:K,MATCH(\"Retrofit\"&A38,Equipment!C:C,0)),\n    1<=INDEX(Equipment!K:K,MATCH(\"Retrofit\"&A38,Equipment!C:C,0))\n),\n\"eligible\",\n\"ineligible\"),\"\")","v":""},{"$f":"IFERROR(INDEX(Equipment!$D:$D,MATCH(\"Retrofit\" & A38,Equipment!$C:$C,0)),\"\")","v":""},null,{"$f":"IFERROR(INDEX(Equipment!$L$13:$L$212,MATCH(\"Retrofit\" & $A38,Equipment!$C$13:$C$211,0)),\"\")","v":""},null,null,"",null,{"$f":"IFERROR(IF(B38<>\"eligible\",0,0.539*INDEX(OpHours,MATCH(Equipment!$D$7,BuildingType,0))*INDEX(Equipment!$M$13:$M$212,MATCH(\"Retrofit\"&A38,Equipment!$C$13:$C$211,0))),0)","v":0}]
[24,{"$f":"IFERROR(IF(\nAND(\n    E39>=0,\n    15>=INDEX(Equipment!K:K,MATCH(\"Retrofit\"&A39,Equipment!C:C,0)),\n    1<=INDEX(Equipment!K:K,MATCH(\"Retrofit\"&A39,Equipment!C:C,0))\n),\n\"eligible\",\n\"ineligible\"),\"\")","v":""},{"$f":"IFERROR(INDEX(Equipment!$D:$D,MATCH(\"Retrofit\" & A39,Equipment!$C:$C,0)),\"\")","v":""},null,{"$f":"IFERROR(INDEX(Equipment!$L$13:$L$212,MATCH(\"Retrofit\" & $A39,Equipment!$C$13:$C$211,0)),\"\")","v":""},null,null,"",null,{"$f":"IFERROR(IF(B39<>\"eligible\",0,0.539*INDEX(OpHours,MATCH(Equipment!$D$7,BuildingType,0))*INDEX(Equipment!$M$13:$M$212,MATCH(\"Retrofit\"&A39,Equipment!$C$13:$C$211,0))),0)","v":0}]
[25,{"$f":"IFERROR(IF(\nAND(\n    E40>=0,\n    15>=INDEX(Equipment!K:K,MATCH(\"Retrofit\"&A40,Equipment!C:C,0)),\n    1<=INDEX(Equipment!K:K,MATCH(\"Retrofit\"&A40,Equipment!C:C,0))\n),\n\"eligible\",\n\"ineligible\"),\"\")","v":""},{"$f":"IFERROR(INDEX(Equipment!$D:$D,MATCH(\"Retrofit\" & A40,Equipment!$C:$C,0)),\"\")","v":""},null,{"$f":"IFERROR(INDEX(Equipment!$L$13:$L$212,MATCH(\"Retrofit\" & $A40,Equipment!$C$13:$C$211,0)),\"\")","v":""},null,null,"",null,{"$f":"IFERROR(IF(B40<>\"eligible\",0,0.539*INDEX(OpHours,MATCH(Equipment!$D$7,BuildingType,0))*INDEX(Equipment!$M$13:$M$212,MATCH(\"Retrofit\"&A40,Equipment!$C$13:$C$211,0))),0)","v":0}]
[26,{"$f":"IFERROR(IF(\nAND(\n    E41>=0,\n    15>=INDEX(Equipment!K:K,MATCH(\"Retrofit\"&A41,Equipment!C:C,0)),\n    1<=INDEX(Equipment!K:K,MATCH(\"Retrofit\"&A41,Equipment!C:C,0))\n),\n\"eligible\",\n\"ineligible\"),\"\")","v":""},{"$f":"IFERROR(INDEX(Equipment!$D:$D,MATCH(\"Retrofit\" & A41,Equipment!$C:$C,0)),\"\")","v":""},null,{"$f":"IFERROR(INDEX(Equipment!$L$13:$L$212,MATCH(\"Retrofit\" & $A41,Equipment!$C$13:$C$211,0)),\"\")","v":""},null,null,"",null,{"$f":"IFERROR(IF(B41<>\"eligible\",0,0.539*INDEX(OpHours,MATCH(Equipment!$D$7,BuildingType,0))*INDEX(Equipment!$M$13:$M$212,MATCH(\"Retrofit\"&A41,Equipment!$C$13:$C$211,0))),0)","v":0}]
[27,{"$f":"IFERROR(IF(\nAND(\n    E42>=0,\n    15>=INDEX(Equipment!K:K,MATCH(\"Retrofit\"&A42,Equipment!C:C,0)),\n    1<=INDEX(Equipment!K:K,MATCH(\"Retrofit\"&A42,Equipment!C:C,0))\n),\n\"eligible\",\n\"ineligible\"),\"\")","v":""},{"$f":"IFERROR(INDEX(Equipment!$D:$D,MATCH(\"Retrofit\" & A42,Equipment!$C:$C,0)),\"\")","v":""},null,{"$f":"IFERROR(INDEX(Equipment!$L$13:$L$212,MATCH(\"Retrofit\" & $A42,Equipment!$C$13:$C$211,0)),\"\")","v":""},null,null,"",null,{"$f":"IFERROR(IF(B42<>\"eligible\",0,0.539*INDEX(OpHours,MATCH(Equipment!$D$7,BuildingType,0))*INDEX(Equipment!$M$13:$M$212,MATCH(\"Retrofit\"&A42,Equipment!$C$13:$C$211,0))),0)","v":0}]
[28,{"$f":"IFERROR(IF(\nAND(\n    E43>=0,\n    15>=INDEX(Equipment!K:K,MATCH(\"Retrofit\"&A43,Equipment!C:C,0)),\n    1<=INDEX(Equipment!K:K,MATCH(\"Retrofit\"&A43,Equipment!C:C,0))\n),\n\"eligible\",\n\"ineligible\"),\"\")","v":""},{"$f":"IFERROR(INDEX(Equipment!$D:$D,MATCH(\"Retrofit\" & A43,Equipment!$C:$C,0)),\"\")","v":""},null,{"$f":"IFERROR(INDEX(Equipment!$L$13:$L$212,MATCH(\"Retrofit\" & $A43,Equipment!$C$13:$C$211,0)),\"\")","v":""},null,null,"",null,{"$f":"IFERROR(IF(B43<>\"eligible\",0,0.539*INDEX(OpHours,MATCH(Equipment!$D$7,BuildingType,0))*INDEX(Equipment!$M$13:$M$212,MATCH(\"Retrofit\"&A43,Equipment!$C$13:$C$211,0))),0)","v":0}]
[29,{"$f":"IFERROR(IF(\nAND(\n    E44>=0,\n    15>=INDEX(Equipment!K:K,MATCH(\"Retrofit\"&A44,Equipment!C:C,0)),\n    1<=INDEX(Equipment!K:K,MATCH(\"Retrofit\"&A44,Equipment!C:C,0))\n),\n\"eligible\",\n\"ineligible\"),\"\")","v":""},{"$f":"IFERROR(INDEX(Equipment!$D:$D,MATCH(\"Retrofit\" & A44,Equipment!$C:$C,0)),\"\")","v":""},null,{"$f":"IFERROR(INDEX(Equipment!$L$13:$L$212,MATCH(\"Retrofit\" & $A44,Equipment!$C$13:$C$211,0)),\"\")","v":""},null,null,"",null,{"$f":"IFERROR(IF(B44<>\"eligible\",0,0.539*INDEX(OpHours,MATCH(Equipment!$D$7,BuildingType,0))*INDEX(Equipment!$M$13:$M$212,MATCH(\"Retrofit\"&A44,Equipment!$C$13:$C$211,0))),0)","v":0}]
[30,{"$f":"IFERROR(IF(\nAND(\n    E45>=0,\n    15>=INDEX(Equipment!K:K,MATCH(\"Retrofit\"&A45,Equipment!C:C,0)),\n    1<=INDEX(Equipment!K:K,MATCH(\"Retrofit\"&A45,Equipment!C:C,0))\n),\n\"eligible\",\n\"ineligible\"),\"\")","v":""},{"$f":"IFERROR(INDEX(Equipment!$D:$D,MATCH(\"Retrofit\" & A45,Equipment!$C:$C,0)),\"\")","v":""},null,{"$f":"IFERROR(INDEX(Equipment!$L$13:$L$212,MATCH(\"Retrofit\" & $A45,Equipment!$C$13:$C$211,0)),\"\")","v":""},null,null,"",null,{"$f":"IFERROR(IF(B45<>\"eligible\",0,0.539*INDEX(OpHours,MATCH(Equipment!$D$7,BuildingType,0))*INDEX(Equipment!$M$13:$M$212,MATCH(\"Retrofit\"&A45,Equipment!$C$13:$C$211,0))),0)","v":0}]
[31,{"$f":"IFERROR(IF(\nAND(\n    E46>=0,\n    15>=INDEX(Equipment!K:K,MATCH(\"Retrofit\"&A46,Equipment!C:C,0)),\n    1<=INDEX(Equipment!K:K,MATCH(\"Retrofit\"&A46,Equipment!C:C,0))\n),\n\"eligible\",\n\"ineligible\"),\"\")","v":""},{"$f":"IFERROR(INDEX(Equipment!$D:$D,MATCH(\"Retrofit\" & A46,Equipment!$C:$C,0)),\"\")","v":""},null,{"$f":"IFERROR(INDEX(Equipment!$L$13:$L$212,MATCH(\"Retrofit\" & $A46,Equipment!$C$13:$C$211,0)),\"\")","v":""},null,null,"",null,{"$f":"IFERROR(IF(B46<>\"eligible\",0,0.539*INDEX(OpHours,MATCH(Equipment!$D$7,BuildingType,0))*INDEX(Equipment!$M$13:$M$212,MATCH(\"Retrofit\"&A46,Equipment!$C$13:$C$211,0))),0)","v":0}]
[32,{"$f":"IFERROR(IF(\nAND(\n    E47>=0,\n    15>=INDEX(Equipment!K:K,MATCH(\"Retrofit\"&A47,Equipment!C:C,0)),\n    1<=INDEX(Equipment!K:K,MATCH(\"Retrofit\"&A47,Equipment!C:C,0))\n),\n\"eligible\",\n\"ineligible\"),\"\")","v":""},{"$f":"IFERROR(INDEX(Equipment!$D:$D,MATCH(\"Retrofit\" & A47,Equipment!$C:$C,0)),\"\")","v":""},null,{"$f":"IFERROR(INDEX(Equipment!$L$13:$L$212,MATCH(\"Retrofit\" & $A47,Equipment!$C$13:$C$211,0)),\"\")","v":""},null,null,"",null,{"$f":"IFERROR(IF(B47<>\"eligible\",0,0.539*INDEX(OpHours,MATCH(Equipment!$D$7,BuildingType,0))*INDEX(Equipment!$M$13:$M$212,MATCH(\"Retrofit\"&A47,Equipment!$C$13:$C$211,0))),0)","v":0}]
[33,{"$f":"IFERROR(IF(\nAND(\n    E48>=0,\n    15>=INDEX(Equipment!K:K,MATCH(\"Retrofit\"&A48,Equipment!C:C,0)),\n    1<=INDEX(Equipment!K:K,MATCH(\"Retrofit\"&A48,Equipment!C:C,0))\n),\n\"eligible\",\n\"ineligible\"),\"\")","v":""},{"$f":"IFERROR(INDEX(Equipment!$D:$D,MATCH(\"Retrofit\" & A48,Equipment!$C:$C,0)),\"\")","v":""},null,{"$f":"IFERROR(INDEX(Equipment!$L$13:$L$212,MATCH(\"Retrofit\" & $A48,Equipment!$C$13:$C$211,0)),\"\")","v":""},null,null,"",null,{"$f":"IFERROR(IF(B48<>\"eligible\",0,0.539*INDEX(OpHours,MATCH(Equipment!$D$7,BuildingType,0))*INDEX(Equipment!$M$13:$M$212,MATCH(\"Retrofit\"&A48,Equipment!$C$13:$C$211,0))),0)","v":0}]
[34,{"$f":"IFERROR(IF(\nAND(\n    E49>=0,\n    15>=INDEX(Equipment!K:K,MATCH(\"Retrofit\"&A49,Equipment!C:C,0)),\n    1<=INDEX(Equipment!K:K,MATCH(\"Retrofit\"&A49,Equipment!C:C,0))\n),\n\"eligible\",\n\"ineligible\"),\"\")","v":""},{"$f":"IFERROR(INDEX(Equipment!$D:$D,MATCH(\"Retrofit\" & A49,Equipment!$C:$C,0)),\"\")","v":""},null,{"$f":"IFERROR(INDEX(Equipment!$L$13:$L$212,MATCH(\"Retrofit\" & $A49,Equipment!$C$13:$C$211,0)),\"\")","v":""},null,null,"",null,{"$f":"IFERROR(IF(B49<>\"eligible\",0,0.539*INDEX(OpHours,MATCH(Equipment!$D$7,BuildingType,0))*INDEX(Equipment!$M$13:$M$212,MATCH(\"Retrofit\"&A49,Equipment!$C$13:$C$211,0))),0)","v":0}]
[35,{"$f":"IFERROR(IF(\nAND(\n    E50>=0,\n    15>=INDEX(Equipment!K:K,MATCH(\"Retrofit\"&A50,Equipment!C:C,0)),\n    1<=INDEX(Equipment!K:K,MATCH(\"Retrofit\"&A50,Equipment!C:C,0))\n),\n\"eligible\",\n\"ineligible\"),\"\")","v":""},{"$f":"IFERROR(INDEX(Equipment!$D:$D,MATCH(\"Retrofit\" & A50,Equipment!$C:$C,0)),\"\")","v":""},null,{"$f":"IFERROR(INDEX(Equipment!$L$13:$L$212,MATCH(\"Retrofit\" & $A50,Equipment!$C$13:$C$211,0)),\"\")","v":""},null,null,"",null,{"$f":"IFERROR(IF(B50<>\"eligible\",0,0.539*INDEX(OpHours,MATCH(Equipment!$D$7,BuildingType,0))*INDEX(Equipment!$M$13:$M$212,MATCH(\"Retrofit\"&A50,Equipment!$C$13:$C$211,0))),0)","v":0}]
[36,{"$f":"IFERROR(IF(\nAND(\n    E51>=0,\n    15>=INDEX(Equipment!K:K,MATCH(\"Retrofit\"&A51,Equipment!C:C,0)),\n    1<=INDEX(Equipment!K:K,MATCH(\"Retrofit\"&A51,Equipment!C:C,0))\n),\n\"eligible\",\n\"ineligible\"),\"\")","v":""},{"$f":"IFERROR(INDEX(Equipment!$D:$D,MATCH(\"Retrofit\" & A51,Equipment!$C:$C,0)),\"\")","v":""},null,{"$f":"IFERROR(INDEX(Equipment!$L$13:$L$212,MATCH(\"Retrofit\" & $A51,Equipment!$C$13:$C$211,0)),\"\")","v":""},null,null,"",null,{"$f":"IFERROR(IF(B51<>\"eligible\",0,0.539*INDEX(OpHours,MATCH(Equipment!$D$7,BuildingType,0))*INDEX(Equipment!$M$13:$M$212,MATCH(\"Retrofit\"&A51,Equipment!$C$13:$C$211,0))),0)","v":0}]
[37,{"$f":"IFERROR(IF(\nAND(\n    E52>=0,\n    15>=INDEX(Equipment!K:K,MATCH(\"Retrofit\"&A52,Equipment!C:C,0)),\n    1<=INDEX(Equipment!K:K,MATCH(\"Retrofit\"&A52,Equipment!C:C,0))\n),\n\"eligible\",\n\"ineligible\"),\"\")","v":""},{"$f":"IFERROR(INDEX(Equipment!$D:$D,MATCH(\"Retrofit\" & A52,Equipment!$C:$C,0)),\"\")","v":""},null,{"$f":"IFERROR(INDEX(Equipment!$L$13:$L$212,MATCH(\"Retrofit\" & $A52,Equipment!$C$13:$C$211,0)),\"\")","v":""},null,null,"",null,{"$f":"IFERROR(IF(B52<>\"eligible\",0,0.539*INDEX(OpHours,MATCH(Equipment!$D$7,BuildingType,0))*INDEX(Equipment!$M$13:$M$212,MATCH(\"Retrofit\"&A52,Equipment!$C$13:$C$211,0))),0)","v":0}]
[38,{"$f":"IFERROR(IF(\nAND(\n    E53>=0,\n    15>=INDEX(Equipment!K:K,MATCH(\"Retrofit\"&A53,Equipment!C:C,0)),\n    1<=INDEX(Equipment!K:K,MATCH(\"Retrofit\"&A53,Equipment!C:C,0))\n),\n\"eligible\",\n\"ineligible\"),\"\")","v":""},{"$f":"IFERROR(INDEX(Equipment!$D:$D,MATCH(\"Retrofit\" & A53,Equipment!$C:$C,0)),\"\")","v":""},null,{"$f":"IFERROR(INDEX(Equipment!$L$13:$L$212,MATCH(\"Retrofit\" & $A53,Equipment!$C$13:$C$211,0)),\"\")","v":""},null,null,"",null,{"$f":"IFERROR(IF(B53<>\"eligible\",0,0.539*INDEX(OpHours,MATCH(Equipment!$D$7,BuildingType,0))*INDEX(Equipment!$M$13:$M$212,MATCH(\"Retrofit\"&A53,Equipment!$C$13:$C$211,0))),0)","v":0}]
[39,{"$f":"IFERROR(IF(\nAND(\n    E54>=0,\n    15>=INDEX(Equipment!K:K,MATCH(\"Retrofit\"&A54,Equipment!C:C,0)),\n    1<=INDEX(Equipment!K:K,MATCH(\"Retrofit\"&A54,Equipment!C:C,0))\n),\n\"eligible\",\n\"ineligible\"),\"\")","v":""},{"$f":"IFERROR(INDEX(Equipment!$D:$D,MATCH(\"Retrofit\" & A54,Equipment!$C:$C,0)),\"\")","v":""},null,{"$f":"IFERROR(INDEX(Equipment!$L$13:$L$212,MATCH(\"Retrofit\" & $A54,Equipment!$C$13:$C$211,0)),\"\")","v":""},null,null,"",null,{"$f":"IFERROR(IF(B54<>\"eligible\",0,0.539*INDEX(OpHours,MATCH(Equipment!$D$7,BuildingType,0))*INDEX(Equipment!$M$13:$M$212,MATCH(\"Retrofit\"&A54,Equipment!$C$13:$C$211,0))),0)","v":0}]
[40,{"$f":"IFERROR(IF(\nAND(\n    E55>=0,\n    15>=INDEX(Equipment!K:K,MATCH(\"Retrofit\"&A55,Equipment!C:C,0)),\n    1<=INDEX(Equipment!K:K,MATCH(\"Retrofit\"&A55,Equipment!C:C,0))\n),\n\"eligible\",\n\"ineligible\"),\"\")","v":""},{"$f":"IFERROR(INDEX(Equipment!$D:$D,MATCH(\"Retrofit\" & A55,Equipment!$C:$C,0)),\"\")","v":""},null,{"$f":"IFERROR(INDEX(Equipment!$L$13:$L$212,MATCH(\"Retrofit\" & $A55,Equipment!$C$13:$C$211,0)),\"\")","v":""},null,null,"",null,{"$f":"IFERROR(IF(B55<>\"eligible\",0,0.539*INDEX(OpHours,MATCH(Equipment!$D$7,BuildingType,0))*INDEX(Equipment!$M$13:$M$212,MATCH(\"Retrofit\"&A55,Equipment!$C$13:$C$211,0))),0)","v":0}]
[41,{"$f":"IFERROR(IF(\nAND(\n    E56>=0,\n    15>=INDEX(Equipment!K:K,MATCH(\"Retrofit\"&A56,Equipment!C:C,0)),\n    1<=INDEX(Equipment!K:K,MATCH(\"Retrofit\"&A56,Equipment!C:C,0))\n),\n\"eligible\",\n\"ineligible\"),\"\")","v":""},{"$f":"IFERROR(INDEX(Equipment!$D:$D,MATCH(\"Retrofit\" & A56,Equipment!$C:$C,0)),\"\")","v":""},null,{"$f":"IFERROR(INDEX(Equipment!$L$13:$L$212,MATCH(\"Retrofit\" & $A56,Equipment!$C$13:$C$211,0)),\"\")","v":""},null,null,"",null,{"$f":"IFERROR(IF(B56<>\"eligible\",0,0.539*INDEX(OpHours,MATCH(Equipment!$D$7,BuildingType,0))*INDEX(Equipment!$M$13:$M$212,MATCH(\"Retrofit\"&A56,Equipment!$C$13:$C$211,0))),0)","v":0}]
[42,{"$f":"IFERROR(IF(\nAND(\n    E57>=0,\n    15>=INDEX(Equipment!K:K,MATCH(\"Retrofit\"&A57,Equipment!C:C,0)),\n    1<=INDEX(Equipment!K:K,MATCH(\"Retrofit\"&A57,Equipment!C:C,0))\n),\n\"eligible\",\n\"ineligible\"),\"\")","v":""},{"$f":"IFERROR(INDEX(Equipment!$D:$D,MATCH(\"Retrofit\" & A57,Equipment!$C:$C,0)),\"\")","v":""},null,{"$f":"IFERROR(INDEX(Equipment!$L$13:$L$212,MATCH(\"Retrofit\" & $A57,Equipment!$C$13:$C$211,0)),\"\")","v":""},null,null,"",null,{"$f":"IFERROR(IF(B57<>\"eligible\",0,0.539*INDEX(OpHours,MATCH(Equipment!$D$7,BuildingType,0))*INDEX(Equipment!$M$13:$M$212,MATCH(\"Retrofit\"&A57,Equipment!$C$13:$C$211,0))),0)","v":0}]
[43,{"$f":"IFERROR(IF(\nAND(\n    E58>=0,\n    15>=INDEX(Equipment!K:K,MATCH(\"Retrofit\"&A58,Equipment!C:C,0)),\n    1<=INDEX(Equipment!K:K,MATCH(\"Retrofit\"&A58,Equipment!C:C,0))\n),\n\"eligible\",\n\"ineligible\"),\"\")","v":""},{"$f":"IFERROR(INDEX(Equipment!$D:$D,MATCH(\"Retrofit\" & A58,Equipment!$C:$C,0)),\"\")","v":""},null,{"$f":"IFERROR(INDEX(Equipment!$L$13:$L$212,MATCH(\"Retrofit\" & $A58,Equipment!$C$13:$C$211,0)),\"\")","v":""},null,null,"",null,{"$f":"IFERROR(IF(B58<>\"eligible\",0,0.539*INDEX(OpHours,MATCH(Equipment!$D$7,BuildingType,0))*INDEX(Equipment!$M$13:$M$212,MATCH(\"Retrofit\"&A58,Equipment!$C$13:$C$211,0))),0)","v":0}]
[44,{"$f":"IFERROR(IF(\nAND(\n    E59>=0,\n    15>=INDEX(Equipment!K:K,MATCH(\"Retrofit\"&A59,Equipment!C:C,0)),\n    1<=INDEX(Equipment!K:K,MATCH(\"Retrofit\"&A59,Equipment!C:C,0))\n),\n\"eligible\",\n\"ineligible\"),\"\")","v":""},{"$f":"IFERROR(INDEX(Equipment!$D:$D,MATCH(\"Retrofit\" & A59,Equipment!$C:$C,0)),\"\")","v":""},null,{"$f":"IFERROR(INDEX(Equipment!$L$13:$L$212,MATCH(\"Retrofit\" & $A59,Equipment!$C$13:$C$211,0)),\"\")","v":""},null,null,"",null,{"$f":"IFERROR(IF(B59<>\"eligible\",0,0.539*INDEX(OpHours,MATCH(Equipment!$D$7,BuildingType,0))*INDEX(Equipment!$M$13:$M$212,MATCH(\"Retrofit\"&A59,Equipment!$C$13:$C$211,0))),0)","v":0}]
[45,{"$f":"IFERROR(IF(\nAND(\n    E60>=0,\n    15>=INDEX(Equipment!K:K,MATCH(\"Retrofit\"&A60,Equipment!C:C,0)),\n    1<=INDEX(Equipment!K:K,MATCH(\"Retrofit\"&A60,Equipment!C:C,0))\n),\n\"eligible\",\n\"ineligible\"),\"\")","v":""},{"$f":"IFERROR(INDEX(Equipment!$D:$D,MATCH(\"Retrofit\" & A60,Equipment!$C:$C,0)),\"\")","v":""},null,{"$f":"IFERROR(INDEX(Equipment!$L$13:$L$212,MATCH(\"Retrofit\" & $A60,Equipment!$C$13:$C$211,0)),\"\")","v":""},null,null,"",null,{"$f":"IFERROR(IF(B60<>\"eligible\",0,0.539*INDEX(OpHours,MATCH(Equipment!$D$7,BuildingType,0))*INDEX(Equipment!$M$13:$M$212,MATCH(\"Retrofit\"&A60,Equipment!$C$13:$C$211,0))),0)","v":0}]
[46,{"$f":"IFERROR(IF(\nAND(\n    E61>=0,\n    15>=INDEX(Equipment!K:K,MATCH(\"Retrofit\"&A61,Equipment!C:C,0)),\n    1<=INDEX(Equipment!K:K,MATCH(\"Retrofit\"&A61,Equipment!C:C,0))\n),\n\"eligible\",\n\"ineligible\"),\"\")","v":""},{"$f":"IFERROR(INDEX(Equipment!$D:$D,MATCH(\"Retrofit\" & A61,Equipment!$C:$C,0)),\"\")","v":""},null,{"$f":"IFERROR(INDEX(Equipment!$L$13:$L$212,MATCH(\"Retrofit\" & $A61,Equipment!$C$13:$C$211,0)),\"\")","v":""},null,null,"",null,{"$f":"IFERROR(IF(B61<>\"eligible\",0,0.539*INDEX(OpHours,MATCH(Equipment!$D$7,BuildingType,0))*INDEX(Equipment!$M$13:$M$212,MATCH(\"Retrofit\"&A61,Equipment!$C$13:$C$211,0))),0)","v":0}]
[47,{"$f":"IFERROR(IF(\nAND(\n    E62>=0,\n    15>=INDEX(Equipment!K:K,MATCH(\"Retrofit\"&A62,Equipment!C:C,0)),\n    1<=INDEX(Equipment!K:K,MATCH(\"Retrofit\"&A62,Equipment!C:C,0))\n),\n\"eligible\",\n\"ineligible\"),\"\")","v":""},{"$f":"IFERROR(INDEX(Equipment!$D:$D,MATCH(\"Retrofit\" & A62,Equipment!$C:$C,0)),\"\")","v":""},null,{"$f":"IFERROR(INDEX(Equipment!$L$13:$L$212,MATCH(\"Retrofit\" & $A62,Equipment!$C$13:$C$211,0)),\"\")","v":""},null,null,"",null,{"$f":"IFERROR(IF(B62<>\"eligible\",0,0.539*INDEX(OpHours,MATCH(Equipment!$D$7,BuildingType,0))*INDEX(Equipment!$M$13:$M$212,MATCH(\"Retrofit\"&A62,Equipment!$C$13:$C$211,0))),0)","v":0}]
[48,{"$f":"IFERROR(IF(\nAND(\n    E63>=0,\n    15>=INDEX(Equipment!K:K,MATCH(\"Retrofit\"&A63,Equipment!C:C,0)),\n    1<=INDEX(Equipment!K:K,MATCH(\"Retrofit\"&A63,Equipment!C:C,0))\n),\n\"eligible\",\n\"ineligible\"),\"\")","v":""},{"$f":"IFERROR(INDEX(Equipment!$D:$D,MATCH(\"Retrofit\" & A63,Equipment!$C:$C,0)),\"\")","v":""},null,{"$f":"IFERROR(INDEX(Equipment!$L$13:$L$212,MATCH(\"Retrofit\" & $A63,Equipment!$C$13:$C$211,0)),\"\")","v":""},null,null,"",null,{"$f":"IFERROR(IF(B63<>\"eligible\",0,0.539*INDEX(OpHours,MATCH(Equipment!$D$7,BuildingType,0))*INDEX(Equipment!$M$13:$M$212,MATCH(\"Retrofit\"&A63,Equipment!$C$13:$C$211,0))),0)","v":0}]
[49,{"$f":"IFERROR(IF(\nAND(\n    E64>=0,\n    15>=INDEX(Equipment!K:K,MATCH(\"Retrofit\"&A64,Equipment!C:C,0)),\n    1<=INDEX(Equipment!K:K,MATCH(\"Retrofit\"&A64,Equipment!C:C,0))\n),\n\"eligible\",\n\"ineligible\"),\"\")","v":""},{"$f":"IFERROR(INDEX(Equipment!$D:$D,MATCH(\"Retrofit\" & A64,Equipment!$C:$C,0)),\"\")","v":""},null,{"$f":"IFERROR(INDEX(Equipment!$L$13:$L$212,MATCH(\"Retrofit\" & $A64,Equipment!$C$13:$C$211,0)),\"\")","v":""},null,null,"",null,{"$f":"IFERROR(IF(B64<>\"eligible\",0,0.539*INDEX(OpHours,MATCH(Equipment!$D$7,BuildingType,0))*INDEX(Equipment!$M$13:$M$212,MATCH(\"Retrofit\"&A64,Equipment!$C$13:$C$211,0))),0)","v":0}]
[50,{"$f":"IFERROR(IF(\nAND(\n    E65>=0,\n    15>=INDEX(Equipment!K:K,MATCH(\"Retrofit\"&A65,Equipment!C:C,0)),\n    1<=INDEX(Equipment!K:K,MATCH(\"Retrofit\"&A65,Equipment!C:C,0))\n),\n\"eligible\",\n\"ineligible\"),\"\")","v":""},{"$f":"IFERROR(INDEX(Equipment!$D:$D,MATCH(\"Retrofit\" & A65,Equipment!$C:$C,0)),\"\")","v":""},null,{"$f":"IFERROR(INDEX(Equipment!$L$13:$L$212,MATCH(\"Retrofit\" & $A65,Equipment!$C$13:$C$211,0)),\"\")","v":""},null,null,"",null,{"$f":"IFERROR(IF(B65<>\"eligible\",0,0.539*INDEX(OpHours,MATCH(Equipment!$D$7,BuildingType,0))*INDEX(Equipment!$M$13:$M$212,MATCH(\"Retrofit\"&A65,Equipment!$C$13:$C$211,0))),0)","v":0}]
[51,{"$f":"IFERROR(IF(\nAND(\n    E66>=0,\n    15>=INDEX(Equipment!K:K,MATCH(\"Retrofit\"&A66,Equipment!C:C,0)),\n    1<=INDEX(Equipment!K:K,MATCH(\"Retrofit\"&A66,Equipment!C:C,0))\n),\n\"eligible\",\n\"ineligible\"),\"\")","v":""},{"$f":"IFERROR(INDEX(Equipment!$D:$D,MATCH(\"Retrofit\" & A66,Equipment!$C:$C,0)),\"\")","v":""},null,{"$f":"IFERROR(INDEX(Equipment!$L$13:$L$212,MATCH(\"Retrofit\" & $A66,Equipment!$C$13:$C$211,0)),\"\")","v":""},null,null,"",null,{"$f":"IFERROR(IF(B66<>\"eligible\",0,0.539*INDEX(OpHours,MATCH(Equipment!$D$7,BuildingType,0))*INDEX(Equipment!$M$13:$M$212,MATCH(\"Retrofit\"&A66,Equipment!$C$13:$C$211,0))),0)","v":0}]
[52,{"$f":"IFERROR(IF(\nAND(\n    E67>=0,\n    15>=INDEX(Equipment!K:K,MATCH(\"Retrofit\"&A67,Equipment!C:C,0)),\n    1<=INDEX(Equipment!K:K,MATCH(\"Retrofit\"&A67,Equipment!C:C,0))\n),\n\"eligible\",\n\"ineligible\"),\"\")","v":""},{"$f":"IFERROR(INDEX(Equipment!$D:$D,MATCH(\"Retrofit\" & A67,Equipment!$C:$C,0)),\"\")","v":""},null,{"$f":"IFERROR(INDEX(Equipment!$L$13:$L$212,MATCH(\"Retrofit\" & $A67,Equipment!$C$13:$C$211,0)),\"\")","v":""},null,null,"",null,{"$f":"IFERROR(IF(B67<>\"eligible\",0,0.539*INDEX(OpHours,MATCH(Equipment!$D$7,BuildingType,0))*INDEX(Equipment!$M$13:$M$212,MATCH(\"Retrofit\"&A67,Equipment!$C$13:$C$211,0))),0)","v":0}]
[53,{"$f":"IFERROR(IF(\nAND(\n    E68>=0,\n    15>=INDEX(Equipment!K:K,MATCH(\"Retrofit\"&A68,Equipment!C:C,0)),\n    1<=INDEX(Equipment!K:K,MATCH(\"Retrofit\"&A68,Equipment!C:C,0))\n),\n\"eligible\",\n\"ineligible\"),\"\")","v":""},{"$f":"IFERROR(INDEX(Equipment!$D:$D,MATCH(\"Retrofit\" & A68,Equipment!$C:$C,0)),\"\")","v":""},null,{"$f":"IFERROR(INDEX(Equipment!$L$13:$L$212,MATCH(\"Retrofit\" & $A68,Equipment!$C$13:$C$211,0)),\"\")","v":""},null,null,"",null,{"$f":"IFERROR(IF(B68<>\"eligible\",0,0.539*INDEX(OpHours,MATCH(Equipment!$D$7,BuildingType,0))*INDEX(Equipment!$M$13:$M$212,MATCH(\"Retrofit\"&A68,Equipment!$C$13:$C$211,0))),0)","v":0}]
[54,{"$f":"IFERROR(IF(\nAND(\n    E69>=0,\n    15>=INDEX(Equipment!K:K,MATCH(\"Retrofit\"&A69,Equipment!C:C,0)),\n    1<=INDEX(Equipment!K:K,MATCH(\"Retrofit\"&A69,Equipment!C:C,0))\n),\n\"eligible\",\n\"ineligible\"),\"\")","v":""},{"$f":"IFERROR(INDEX(Equipment!$D:$D,MATCH(\"Retrofit\" & A69,Equipment!$C:$C,0)),\"\")","v":""},null,{"$f":"IFERROR(INDEX(Equipment!$L$13:$L$212,MATCH(\"Retrofit\" & $A69,Equipment!$C$13:$C$211,0)),\"\")","v":""},null,null,"",null,{"$f":"IFERROR(IF(B69<>\"eligible\",0,0.539*INDEX(OpHours,MATCH(Equipment!$D$7,BuildingType,0))*INDEX(Equipment!$M$13:$M$212,MATCH(\"Retrofit\"&A69,Equipment!$C$13:$C$211,0))),0)","v":0}]
[55,{"$f":"IFERROR(IF(\nAND(\n    E70>=0,\n    15>=INDEX(Equipment!K:K,MATCH(\"Retrofit\"&A70,Equipment!C:C,0)),\n    1<=INDEX(Equipment!K:K,MATCH(\"Retrofit\"&A70,Equipment!C:C,0))\n),\n\"eligible\",\n\"ineligible\"),\"\")","v":""},{"$f":"IFERROR(INDEX(Equipment!$D:$D,MATCH(\"Retrofit\" & A70,Equipment!$C:$C,0)),\"\")","v":""},null,{"$f":"IFERROR(INDEX(Equipment!$L$13:$L$212,MATCH(\"Retrofit\" & $A70,Equipment!$C$13:$C$211,0)),\"\")","v":""},null,null,"",null,{"$f":"IFERROR(IF(B70<>\"eligible\",0,0.539*INDEX(OpHours,MATCH(Equipment!$D$7,BuildingType,0))*INDEX(Equipment!$M$13:$M$212,MATCH(\"Retrofit\"&A70,Equipment!$C$13:$C$211,0))),0)","v":0}]
[56,{"$f":"IFERROR(IF(\nAND(\n    E71>=0,\n    15>=INDEX(Equipment!K:K,MATCH(\"Retrofit\"&A71,Equipment!C:C,0)),\n    1<=INDEX(Equipment!K:K,MATCH(\"Retrofit\"&A71,Equipment!C:C,0))\n),\n\"eligible\",\n\"ineligible\"),\"\")","v":""},{"$f":"IFERROR(INDEX(Equipment!$D:$D,MATCH(\"Retrofit\" & A71,Equipment!$C:$C,0)),\"\")","v":""},null,{"$f":"IFERROR(INDEX(Equipment!$L$13:$L$212,MATCH(\"Retrofit\" & $A71,Equipment!$C$13:$C$211,0)),\"\")","v":""},null,null,"",null,{"$f":"IFERROR(IF(B71<>\"eligible\",0,0.539*INDEX(OpHours,MATCH(Equipment!$D$7,BuildingType,0))*INDEX(Equipment!$M$13:$M$212,MATCH(\"Retrofit\"&A71,Equipment!$C$13:$C$211,0))),0)","v":0}]
[57,{"$f":"IFERROR(IF(\nAND(\n    E72>=0,\n    15>=INDEX(Equipment!K:K,MATCH(\"Retrofit\"&A72,Equipment!C:C,0)),\n    1<=INDEX(Equipment!K:K,MATCH(\"Retrofit\"&A72,Equipment!C:C,0))\n),\n\"eligible\",\n\"ineligible\"),\"\")","v":""},{"$f":"IFERROR(INDEX(Equipment!$D:$D,MATCH(\"Retrofit\" & A72,Equipment!$C:$C,0)),\"\")","v":""},null,{"$f":"IFERROR(INDEX(Equipment!$L$13:$L$212,MATCH(\"Retrofit\" & $A72,Equipment!$C$13:$C$211,0)),\"\")","v":""},null,null,"",null,{"$f":"IFERROR(IF(B72<>\"eligible\",0,0.539*INDEX(OpHours,MATCH(Equipment!$D$7,BuildingType,0))*INDEX(Equipment!$M$13:$M$212,MATCH(\"Retrofit\"&A72,Equipment!$C$13:$C$211,0))),0)","v":0}]
[58,{"$f":"IFERROR(IF(\nAND(\n    E73>=0,\n    15>=INDEX(Equipment!K:K,MATCH(\"Retrofit\"&A73,Equipment!C:C,0)),\n    1<=INDEX(Equipment!K:K,MATCH(\"Retrofit\"&A73,Equipment!C:C,0))\n),\n\"eligible\",\n\"ineligible\"),\"\")","v":""},{"$f":"IFERROR(INDEX(Equipment!$D:$D,MATCH(\"Retrofit\" & A73,Equipment!$C:$C,0)),\"\")","v":""},null,{"$f":"IFERROR(INDEX(Equipment!$L$13:$L$212,MATCH(\"Retrofit\" & $A73,Equipment!$C$13:$C$211,0)),\"\")","v":""},null,null,"",null,{"$f":"IFERROR(IF(B73<>\"eligible\",0,0.539*INDEX(OpHours,MATCH(Equipment!$D$7,BuildingType,0))*INDEX(Equipment!$M$13:$M$212,MATCH(\"Retrofit\"&A73,Equipment!$C$13:$C$211,0))),0)","v":0}]
[59,{"$f":"IFERROR(IF(\nAND(\n    E74>=0,\n    15>=INDEX(Equipment!K:K,MATCH(\"Retrofit\"&A74,Equipment!C:C,0)),\n    1<=INDEX(Equipment!K:K,MATCH(\"Retrofit\"&A74,Equipment!C:C,0))\n),\n\"eligible\",\n\"ineligible\"),\"\")","v":""},{"$f":"IFERROR(INDEX(Equipment!$D:$D,MATCH(\"Retrofit\" & A74,Equipment!$C:$C,0)),\"\")","v":""},null,{"$f":"IFERROR(INDEX(Equipment!$L$13:$L$212,MATCH(\"Retrofit\" & $A74,Equipment!$C$13:$C$211,0)),\"\")","v":""},null,null,"",null,{"$f":"IFERROR(IF(B74<>\"eligible\",0,0.539*INDEX(OpHours,MATCH(Equipment!$D$7,BuildingType,0))*INDEX(Equipment!$M$13:$M$212,MATCH(\"Retrofit\"&A74,Equipment!$C$13:$C$211,0))),0)","v":0}]
[60,{"$f":"IFERROR(IF(\nAND(\n    E75>=0,\n    15>=INDEX(Equipment!K:K,MATCH(\"Retrofit\"&A75,Equipment!C:C,0)),\n    1<=INDEX(Equipment!K:K,MATCH(\"Retrofit\"&A75,Equipment!C:C,0))\n),\n\"eligible\",\n\"ineligible\"),\"\")","v":""},{"$f":"IFERROR(INDEX(Equipment!$D:$D,MATCH(\"Retrofit\" & A75,Equipment!$C:$C,0)),\"\")","v":""},null,{"$f":"IFERROR(INDEX(Equipment!$L$13:$L$212,MATCH(\"Retrofit\" & $A75,Equipment!$C$13:$C$211,0)),\"\")","v":""},null,null,"",null,{"$f":"IFERROR(IF(B75<>\"eligible\",0,0.539*INDEX(OpHours,MATCH(Equipment!$D$7,BuildingType,0))*INDEX(Equipment!$M$13:$M$212,MATCH(\"Retrofit\"&A75,Equipment!$C$13:$C$211,0))),0)","v":0}]
[61,{"$f":"IFERROR(IF(\nAND(\n    E76>=0,\n    15>=INDEX(Equipment!K:K,MATCH(\"Retrofit\"&A76,Equipment!C:C,0)),\n    1<=INDEX(Equipment!K:K,MATCH(\"Retrofit\"&A76,Equipment!C:C,0))\n),\n\"eligible\",\n\"ineligible\"),\"\")","v":""},{"$f":"IFERROR(INDEX(Equipment!$D:$D,MATCH(\"Retrofit\" & A76,Equipment!$C:$C,0)),\"\")","v":""},null,{"$f":"IFERROR(INDEX(Equipment!$L$13:$L$212,MATCH(\"Retrofit\" & $A76,Equipment!$C$13:$C$211,0)),\"\")","v":""},null,null,"",null,{"$f":"IFERROR(IF(B76<>\"eligible\",0,0.539*INDEX(OpHours,MATCH(Equipment!$D$7,BuildingType,0))*INDEX(Equipment!$M$13:$M$212,MATCH(\"Retrofit\"&A76,Equipment!$C$13:$C$211,0))),0)","v":0}]
[62,{"$f":"IFERROR(IF(\nAND(\n    E77>=0,\n    15>=INDEX(Equipment!K:K,MATCH(\"Retrofit\"&A77,Equipment!C:C,0)),\n    1<=INDEX(Equipment!K:K,MATCH(\"Retrofit\"&A77,Equipment!C:C,0))\n),\n\"eligible\",\n\"ineligible\"),\"\")","v":""},{"$f":"IFERROR(INDEX(Equipment!$D:$D,MATCH(\"Retrofit\" & A77,Equipment!$C:$C,0)),\"\")","v":""},null,{"$f":"IFERROR(INDEX(Equipment!$L$13:$L$212,MATCH(\"Retrofit\" & $A77,Equipment!$C$13:$C$211,0)),\"\")","v":""},null,null,"",null,{"$f":"IFERROR(IF(B77<>\"eligible\",0,0.539*INDEX(OpHours,MATCH(Equipment!$D$7,BuildingType,0))*INDEX(Equipment!$M$13:$M$212,MATCH(\"Retrofit\"&A77,Equipment!$C$13:$C$211,0))),0)","v":0}]
[63,{"$f":"IFERROR(IF(\nAND(\n    E78>=0,\n    15>=INDEX(Equipment!K:K,MATCH(\"Retrofit\"&A78,Equipment!C:C,0)),\n    1<=INDEX(Equipment!K:K,MATCH(\"Retrofit\"&A78,Equipment!C:C,0))\n),\n\"eligible\",\n\"ineligible\"),\"\")","v":""},{"$f":"IFERROR(INDEX(Equipment!$D:$D,MATCH(\"Retrofit\" & A78,Equipment!$C:$C,0)),\"\")","v":""},null,{"$f":"IFERROR(INDEX(Equipment!$L$13:$L$212,MATCH(\"Retrofit\" & $A78,Equipment!$C$13:$C$211,0)),\"\")","v":""},null,null,"",null,{"$f":"IFERROR(IF(B78<>\"eligible\",0,0.539*INDEX(OpHours,MATCH(Equipment!$D$7,BuildingType,0))*INDEX(Equipment!$M$13:$M$212,MATCH(\"Retrofit\"&A78,Equipment!$C$13:$C$211,0))),0)","v":0}]
[64,{"$f":"IFERROR(IF(\nAND(\n    E79>=0,\n    15>=INDEX(Equipment!K:K,MATCH(\"Retrofit\"&A79,Equipment!C:C,0)),\n    1<=INDEX(Equipment!K:K,MATCH(\"Retrofit\"&A79,Equipment!C:C,0))\n),\n\"eligible\",\n\"ineligible\"),\"\")","v":""},{"$f":"IFERROR(INDEX(Equipment!$D:$D,MATCH(\"Retrofit\" & A79,Equipment!$C:$C,0)),\"\")","v":""},null,{"$f":"IFERROR(INDEX(Equipment!$L$13:$L$212,MATCH(\"Retrofit\" & $A79,Equipment!$C$13:$C$211,0)),\"\")","v":""},null,null,"",null,{"$f":"IFERROR(IF(B79<>\"eligible\",0,0.539*INDEX(OpHours,MATCH(Equipment!$D$7,BuildingType,0))*INDEX(Equipment!$M$13:$M$212,MATCH(\"Retrofit\"&A79,Equipment!$C$13:$C$211,0))),0)","v":0}]
[65,{"$f":"IFERROR(IF(\nAND(\n    E80>=0,\n    15>=INDEX(Equipment!K:K,MATCH(\"Retrofit\"&A80,Equipment!C:C,0)),\n    1<=INDEX(Equipment!K:K,MATCH(\"Retrofit\"&A80,Equipment!C:C,0))\n),\n\"eligible\",\n\"ineligible\"),\"\")","v":""},{"$f":"IFERROR(INDEX(Equipment!$D:$D,MATCH(\"Retrofit\" & A80,Equipment!$C:$C,0)),\"\")","v":""},null,{"$f":"IFERROR(INDEX(Equipment!$L$13:$L$212,MATCH(\"Retrofit\" & $A80,Equipment!$C$13:$C$211,0)),\"\")","v":""},null,null,"",null,{"$f":"IFERROR(IF(B80<>\"eligible\",0,0.539*INDEX(OpHours,MATCH(Equipment!$D$7,BuildingType,0))*INDEX(Equipment!$M$13:$M$212,MATCH(\"Retrofit\"&A80,Equipment!$C$13:$C$211,0))),0)","v":0}]
[66,{"$f":"IFERROR(IF(\nAND(\n    E81>=0,\n    15>=INDEX(Equipment!K:K,MATCH(\"Retrofit\"&A81,Equipment!C:C,0)),\n    1<=INDEX(Equipment!K:K,MATCH(\"Retrofit\"&A81,Equipment!C:C,0))\n),\n\"eligible\",\n\"ineligible\"),\"\")","v":""},{"$f":"IFERROR(INDEX(Equipment!$D:$D,MATCH(\"Retrofit\" & A81,Equipment!$C:$C,0)),\"\")","v":""},null,{"$f":"IFERROR(INDEX(Equipment!$L$13:$L$212,MATCH(\"Retrofit\" & $A81,Equipment!$C$13:$C$211,0)),\"\")","v":""},null,null,{"$f":"IF(E81=\"\",\"\",IF(B81<>\"eligible\",0,IF(AND(E81>=5,E81<=10),2000,IF(AND(E81>10,E81<=15),2800,IF(AND(E81>15,E81<=20),4000,IF(AND(E81>20),4500,IF(AND(E81>0,E81<5),500,0)))))))","v":""},null,{"$f":"IFERROR(IF(B81<>\"eligible\",0,0.539*INDEX(OpHours,MATCH(Equipment!$D$7,BuildingType,0))*INDEX(Equipment!$M$13:$M$212,MATCH(\"Retrofit\"&A81,Equipment!$C$13:$C$211,0))),0)","v":0}]
[67,{"$f":"IFERROR(IF(\nAND(\n    E82>=0,\n    15>=INDEX(Equipment!K:K,MATCH(\"Retrofit\"&A82,Equipment!C:C,0)),\n    1<=INDEX(Equipment!K:K,MATCH(\"Retrofit\"&A82,Equipment!C:C,0))\n),\n\"eligible\",\n\"ineligible\"),\"\")","v":""},{"$f":"IFERROR(INDEX(Equipment!$D:$D,MATCH(\"Retrofit\" & A82,Equipment!$C:$C,0)),\"\")","v":""},null,{"$f":"IFERROR(INDEX(Equipment!$L$13:$L$212,MATCH(\"Retrofit\" & $A82,Equipment!$C$13:$C$211,0)),\"\")","v":""},null,null,"",null,{"$f":"IFERROR(IF(B82<>\"eligible\",0,0.539*INDEX(OpHours,MATCH(Equipment!$D$7,BuildingType,0))*INDEX(Equipment!$M$13:$M$212,MATCH(\"Retrofit\"&A82,Equipment!$C$13:$C$211,0))),0)","v":0}]
[68,{"$f":"IFERROR(IF(\nAND(\n    E83>=0,\n    15>=INDEX(Equipment!K:K,MATCH(\"Retrofit\"&A83,Equipment!C:C,0)),\n    1<=INDEX(Equipment!K:K,MATCH(\"Retrofit\"&A83,Equipment!C:C,0))\n),\n\"eligible\",\n\"ineligible\"),\"\")","v":""},{"$f":"IFERROR(INDEX(Equipment!$D:$D,MATCH(\"Retrofit\" & A83,Equipment!$C:$C,0)),\"\")","v":""},null,{"$f":"IFERROR(INDEX(Equipment!$L$13:$L$212,MATCH(\"Retrofit\" & $A83,Equipment!$C$13:$C$211,0)),\"\")","v":""},null,null,"",null,{"$f":"IFERROR(IF(B83<>\"eligible\",0,0.539*INDEX(OpHours,MATCH(Equipment!$D$7,BuildingType,0))*INDEX(Equipment!$M$13:$M$212,MATCH(\"Retrofit\"&A83,Equipment!$C$13:$C$211,0))),0)","v":0}]
[69,{"$f":"IFERROR(IF(\nAND(\n    E84>=0,\n    15>=INDEX(Equipment!K:K,MATCH(\"Retrofit\"&A84,Equipment!C:C,0)),\n    1<=INDEX(Equipment!K:K,MATCH(\"Retrofit\"&A84,Equipment!C:C,0))\n),\n\"eligible\",\n\"ineligible\"),\"\")","v":""},{"$f":"IFERROR(INDEX(Equipment!$D:$D,MATCH(\"Retrofit\" & A84,Equipment!$C:$C,0)),\"\")","v":""},null,{"$f":"IFERROR(INDEX(Equipment!$L$13:$L$212,MATCH(\"Retrofit\" & $A84,Equipment!$C$13:$C$211,0)),\"\")","v":""},null,null,"",null,{"$f":"IFERROR(IF(B84<>\"eligible\",0,0.539*INDEX(OpHours,MATCH(Equipment!$D$7,BuildingType,0))*INDEX(Equipment!$M$13:$M$212,MATCH(\"Retrofit\"&A84,Equipment!$C$13:$C$211,0))),0)","v":0}]
[70,{"$f":"IFERROR(IF(\nAND(\n    E85>=0,\n    15>=INDEX(Equipment!K:K,MATCH(\"Retrofit\"&A85,Equipment!C:C,0)),\n    1<=INDEX(Equipment!K:K,MATCH(\"Retrofit\"&A85,Equipment!C:C,0))\n),\n\"eligible\",\n\"ineligible\"),\"\")","v":""},{"$f":"IFERROR(INDEX(Equipment!$D:$D,MATCH(\"Retrofit\" & A85,Equipment!$C:$C,0)),\"\")","v":""},null,{"$f":"IFERROR(INDEX(Equipment!$L$13:$L$212,MATCH(\"Retrofit\" & $A85,Equipment!$C$13:$C$211,0)),\"\")","v":""},null,null,"",null,{"$f":"IFERROR(IF(B85<>\"eligible\",0,0.539*INDEX(OpHours,MATCH(Equipment!$D$7,BuildingType,0))*INDEX(Equipment!$M$13:$M$212,MATCH(\"Retrofit\"&A85,Equipment!$C$13:$C$211,0))),0)","v":0}]
[71,{"$f":"IFERROR(IF(\nAND(\n    E86>=0,\n    15>=INDEX(Equipment!K:K,MATCH(\"Retrofit\"&A86,Equipment!C:C,0)),\n    1<=INDEX(Equipment!K:K,MATCH(\"Retrofit\"&A86,Equipment!C:C,0))\n),\n\"eligible\",\n\"ineligible\"),\"\")","v":""},{"$f":"IFERROR(INDEX(Equipment!$D:$D,MATCH(\"Retrofit\" & A86,Equipment!$C:$C,0)),\"\")","v":""},null,{"$f":"IFERROR(INDEX(Equipment!$L$13:$L$212,MATCH(\"Retrofit\" & $A86,Equipment!$C$13:$C$211,0)),\"\")","v":""},null,null,"",null,{"$f":"IFERROR(IF(B86<>\"eligible\",0,0.539*INDEX(OpHours,MATCH(Equipment!$D$7,BuildingType,0))*INDEX(Equipment!$M$13:$M$212,MATCH(\"Retrofit\"&A86,Equipment!$C$13:$C$211,0))),0)","v":0}]
[72,{"$f":"IFERROR(IF(\nAND(\n    E87>=0,\n    15>=INDEX(Equipment!K:K,MATCH(\"Retrofit\"&A87,Equipment!C:C,0)),\n    1<=INDEX(Equipment!K:K,MATCH(\"Retrofit\"&A87,Equipment!C:C,0))\n),\n\"eligible\",\n\"ineligible\"),\"\")","v":""},{"$f":"IFERROR(INDEX(Equipment!$D:$D,MATCH(\"Retrofit\" & A87,Equipment!$C:$C,0)),\"\")","v":""},null,{"$f":"IFERROR(INDEX(Equipment!$L$13:$L$212,MATCH(\"Retrofit\" & $A87,Equipment!$C$13:$C$211,0)),\"\")","v":""},null,null,"",null,{"$f":"IFERROR(IF(B87<>\"eligible\",0,0.539*INDEX(OpHours,MATCH(Equipment!$D$7,BuildingType,0))*INDEX(Equipment!$M$13:$M$212,MATCH(\"Retrofit\"&A87,Equipment!$C$13:$C$211,0))),0)","v":0}]
[73,{"$f":"IFERROR(IF(\nAND(\n    E88>=0,\n    15>=INDEX(Equipment!K:K,MATCH(\"Retrofit\"&A88,Equipment!C:C,0)),\n    1<=INDEX(Equipment!K:K,MATCH(\"Retrofit\"&A88,Equipment!C:C,0))\n),\n\"eligible\",\n\"ineligible\"),\"\")","v":""},{"$f":"IFERROR(INDEX(Equipment!$D:$D,MATCH(\"Retrofit\" & A88,Equipment!$C:$C,0)),\"\")","v":""},null,{"$f":"IFERROR(INDEX(Equipment!$L$13:$L$212,MATCH(\"Retrofit\" & $A88,Equipment!$C$13:$C$211,0)),\"\")","v":""},null,null,"",null,{"$f":"IFERROR(IF(B88<>\"eligible\",0,0.539*INDEX(OpHours,MATCH(Equipment!$D$7,BuildingType,0))*INDEX(Equipment!$M$13:$M$212,MATCH(\"Retrofit\"&A88,Equipment!$C$13:$C$211,0))),0)","v":0}]
[74,{"$f":"IFERROR(IF(\nAND(\n    E89>=0,\n    15>=INDEX(Equipment!K:K,MATCH(\"Retrofit\"&A89,Equipment!C:C,0)),\n    1<=INDEX(Equipment!K:K,MATCH(\"Retrofit\"&A89,Equipment!C:C,0))\n),\n\"eligible\",\n\"ineligible\"),\"\")","v":""},{"$f":"IFERROR(INDEX(Equipment!$D:$D,MATCH(\"Retrofit\" & A89,Equipment!$C:$C,0)),\"\")","v":""},null,{"$f":"IFERROR(INDEX(Equipment!$L$13:$L$212,MATCH(\"Retrofit\" & $A89,Equipment!$C$13:$C$211,0)),\"\")","v":""},null,null,"",null,{"$f":"IFERROR(IF(B89<>\"eligible\",0,0.539*INDEX(OpHours,MATCH(Equipment!$D$7,BuildingType,0))*INDEX(Equipment!$M$13:$M$212,MATCH(\"Retrofit\"&A89,Equipment!$C$13:$C$211,0))),0)","v":0}]
[75,{"$f":"IFERROR(IF(\nAND(\n    E90>=0,\n    15>=INDEX(Equipment!K:K,MATCH(\"Retrofit\"&A90,Equipment!C:C,0)),\n    1<=INDEX(Equipment!K:K,MATCH(\"Retrofit\"&A90,Equipment!C:C,0))\n),\n\"eligible\",\n\"ineligible\"),\"\")","v":""},{"$f":"IFERROR(INDEX(Equipment!$D:$D,MATCH(\"Retrofit\" & A90,Equipment!$C:$C,0)),\"\")","v":""},null,{"$f":"IFERROR(INDEX(Equipment!$L$13:$L$212,MATCH(\"Retrofit\" & $A90,Equipment!$C$13:$C$211,0)),\"\")","v":""},null,null,"",null,{"$f":"IFERROR(IF(B90<>\"eligible\",0,0.539*INDEX(OpHours,MATCH(Equipment!$D$7,BuildingType,0))*INDEX(Equipment!$M$13:$M$212,MATCH(\"Retrofit\"&A90,Equipment!$C$13:$C$211,0))),0)","v":0}]
[76,{"$f":"IFERROR(IF(\nAND(\n    E91>=0,\n    15>=INDEX(Equipment!K:K,MATCH(\"Retrofit\"&A91,Equipment!C:C,0)),\n    1<=INDEX(Equipment!K:K,MATCH(\"Retrofit\"&A91,Equipment!C:C,0))\n),\n\"eligible\",\n\"ineligible\"),\"\")","v":""},{"$f":"IFERROR(INDEX(Equipment!$D:$D,MATCH(\"Retrofit\" & A91,Equipment!$C:$C,0)),\"\")","v":""},null,{"$f":"IFERROR(INDEX(Equipment!$L$13:$L$212,MATCH(\"Retrofit\" & $A91,Equipment!$C$13:$C$211,0)),\"\")","v":""},null,null,"",null,{"$f":"IFERROR(IF(B91<>\"eligible\",0,0.539*INDEX(OpHours,MATCH(Equipment!$D$7,BuildingType,0))*INDEX(Equipment!$M$13:$M$212,MATCH(\"Retrofit\"&A91,Equipment!$C$13:$C$211,0))),0)","v":0}]
[77,{"$f":"IFERROR(IF(\nAND(\n    E92>=0,\n    15>=INDEX(Equipment!K:K,MATCH(\"Retrofit\"&A92,Equipment!C:C,0)),\n    1<=INDEX(Equipment!K:K,MATCH(\"Retrofit\"&A92,Equipment!C:C,0))\n),\n\"eligible\",\n\"ineligible\"),\"\")","v":""},{"$f":"IFERROR(INDEX(Equipment!$D:$D,MATCH(\"Retrofit\" & A92,Equipment!$C:$C,0)),\"\")","v":""},null,{"$f":"IFERROR(INDEX(Equipment!$L$13:$L$212,MATCH(\"Retrofit\" & $A92,Equipment!$C$13:$C$211,0)),\"\")","v":""},null,null,"",null,{"$f":"IFERROR(IF(B92<>\"eligible\",0,0.539*INDEX(OpHours,MATCH(Equipment!$D$7,BuildingType,0))*INDEX(Equipment!$M$13:$M$212,MATCH(\"Retrofit\"&A92,Equipment!$C$13:$C$211,0))),0)","v":0}]
[78,{"$f":"IFERROR(IF(\nAND(\n    E93>=0,\n    15>=INDEX(Equipment!K:K,MATCH(\"Retrofit\"&A93,Equipment!C:C,0)),\n    1<=INDEX(Equipment!K:K,MATCH(\"Retrofit\"&A93,Equipment!C:C,0))\n),\n\"eligible\",\n\"ineligible\"),\"\")","v":""},{"$f":"IFERROR(INDEX(Equipment!$D:$D,MATCH(\"Retrofit\" & A93,Equipment!$C:$C,0)),\"\")","v":""},null,{"$f":"IFERROR(INDEX(Equipment!$L$13:$L$212,MATCH(\"Retrofit\" & $A93,Equipment!$C$13:$C$211,0)),\"\")","v":""},null,null,"",null,{"$f":"IFERROR(IF(B93<>\"eligible\",0,0.539*INDEX(OpHours,MATCH(Equipment!$D$7,BuildingType,0))*INDEX(Equipment!$M$13:$M$212,MATCH(\"Retrofit\"&A93,Equipment!$C$13:$C$211,0))),0)","v":0}]
[79,{"$f":"IFERROR(IF(\nAND(\n    E94>=0,\n    15>=INDEX(Equipment!K:K,MATCH(\"Retrofit\"&A94,Equipment!C:C,0)),\n    1<=INDEX(Equipment!K:K,MATCH(\"Retrofit\"&A94,Equipment!C:C,0))\n),\n\"eligible\",\n\"ineligible\"),\"\")","v":""},{"$f":"IFERROR(INDEX(Equipment!$D:$D,MATCH(\"Retrofit\" & A94,Equipment!$C:$C,0)),\"\")","v":""},null,{"$f":"IFERROR(INDEX(Equipment!$L$13:$L$212,MATCH(\"Retrofit\" & $A94,Equipment!$C$13:$C$211,0)),\"\")","v":""},null,null,"",null,{"$f":"IFERROR(IF(B94<>\"eligible\",0,0.539*INDEX(OpHours,MATCH(Equipment!$D$7,BuildingType,0))*INDEX(Equipment!$M$13:$M$212,MATCH(\"Retrofit\"&A94,Equipment!$C$13:$C$211,0))),0)","v":0}]
[80,{"$f":"IFERROR(IF(\nAND(\n    E95>=0,\n    15>=INDEX(Equipment!K:K,MATCH(\"Retrofit\"&A95,Equipment!C:C,0)),\n    1<=INDEX(Equipment!K:K,MATCH(\"Retrofit\"&A95,Equipment!C:C,0))\n),\n\"eligible\",\n\"ineligible\"),\"\")","v":""},{"$f":"IFERROR(INDEX(Equipment!$D:$D,MATCH(\"Retrofit\" & A95,Equipment!$C:$C,0)),\"\")","v":""},null,{"$f":"IFERROR(INDEX(Equipment!$L$13:$L$212,MATCH(\"Retrofit\" & $A95,Equipment!$C$13:$C$211,0)),\"\")","v":""},null,null,"",null,{"$f":"IFERROR(IF(B95<>\"eligible\",0,0.539*INDEX(OpHours,MATCH(Equipment!$D$7,BuildingType,0))*INDEX(Equipment!$M$13:$M$212,MATCH(\"Retrofit\"&A95,Equipment!$C$13:$C$211,0))),0)","v":0}]
[81,{"$f":"IFERROR(IF(\nAND(\n    E96>=0,\n    15>=INDEX(Equipment!K:K,MATCH(\"Retrofit\"&A96,Equipment!C:C,0)),\n    1<=INDEX(Equipment!K:K,MATCH(\"Retrofit\"&A96,Equipment!C:C,0))\n),\n\"eligible\",\n\"ineligible\"),\"\")","v":""},{"$f":"IFERROR(INDEX(Equipment!$D:$D,MATCH(\"Retrofit\" & A96,Equipment!$C:$C,0)),\"\")","v":""},null,{"$f":"IFERROR(INDEX(Equipment!$L$13:$L$212,MATCH(\"Retrofit\" & $A96,Equipment!$C$13:$C$211,0)),\"\")","v":""},null,null,"",null,{"$f":"IFERROR(IF(B96<>\"eligible\",0,0.539*INDEX(OpHours,MATCH(Equipment!$D$7,BuildingType,0))*INDEX(Equipment!$M$13:$M$212,MATCH(\"Retrofit\"&A96,Equipment!$C$13:$C$211,0))),0)","v":0}]
[82,{"$f":"IFERROR(IF(\nAND(\n    E97>=0,\n    15>=INDEX(Equipment!K:K,MATCH(\"Retrofit\"&A97,Equipment!C:C,0)),\n    1<=INDEX(Equipment!K:K,MATCH(\"Retrofit\"&A97,Equipment!C:C,0))\n),\n\"eligible\",\n\"ineligible\"),\"\")","v":""},{"$f":"IFERROR(INDEX(Equipment!$D:$D,MATCH(\"Retrofit\" & A97,Equipment!$C:$C,0)),\"\")","v":""},null,{"$f":"IFERROR(INDEX(Equipment!$L$13:$L$212,MATCH(\"Retrofit\" & $A97,Equipment!$C$13:$C$211,0)),\"\")","v":""},null,null,"",null,{"$f":"IFERROR(IF(B97<>\"eligible\",0,0.539*INDEX(OpHours,MATCH(Equipment!$D$7,BuildingType,0))*INDEX(Equipment!$M$13:$M$212,MATCH(\"Retrofit\"&A97,Equipment!$C$13:$C$211,0))),0)","v":0}]
[83,{"$f":"IFERROR(IF(\nAND(\n    E98>=0,\n    15>=INDEX(Equipment!K:K,MATCH(\"Retrofit\"&A98,Equipment!C:C,0)),\n    1<=INDEX(Equipment!K:K,MATCH(\"Retrofit\"&A98,Equipment!C:C,0))\n),\n\"eligible\",\n\"ineligible\"),\"\")","v":""},{"$f":"IFERROR(INDEX(Equipment!$D:$D,MATCH(\"Retrofit\" & A98,Equipment!$C:$C,0)),\"\")","v":""},null,{"$f":"IFERROR(INDEX(Equipment!$L$13:$L$212,MATCH(\"Retrofit\" & $A98,Equipment!$C$13:$C$211,0)),\"\")","v":""},null,null,"",null,{"$f":"IFERROR(IF(B98<>\"eligible\",0,0.539*INDEX(OpHours,MATCH(Equipment!$D$7,BuildingType,0))*INDEX(Equipment!$M$13:$M$212,MATCH(\"Retrofit\"&A98,Equipment!$C$13:$C$211,0))),0)","v":0}]
[84,{"$f":"IFERROR(IF(\nAND(\n    E99>=0,\n    15>=INDEX(Equipment!K:K,MATCH(\"Retrofit\"&A99,Equipment!C:C,0)),\n    1<=INDEX(Equipment!K:K,MATCH(\"Retrofit\"&A99,Equipment!C:C,0))\n),\n\"eligible\",\n\"ineligible\"),\"\")","v":""},{"$f":"IFERROR(INDEX(Equipment!$D:$D,MATCH(\"Retrofit\" & A99,Equipment!$C:$C,0)),\"\")","v":""},null,{"$f":"IFERROR(INDEX(Equipment!$L$13:$L$212,MATCH(\"Retrofit\" & $A99,Equipment!$C$13:$C$211,0)),\"\")","v":""},null,null,"",null,{"$f":"IFERROR(IF(B99<>\"eligible\",0,0.539*INDEX(OpHours,MATCH(Equipment!$D$7,BuildingType,0))*INDEX(Equipment!$M$13:$M$212,MATCH(\"Retrofit\"&A99,Equipment!$C$13:$C$211,0))),0)","v":0}]
[85,{"$f":"IFERROR(IF(\nAND(\n    E100>=0,\n    15>=INDEX(Equipment!K:K,MATCH(\"Retrofit\"&A100,Equipment!C:C,0)),\n    1<=INDEX(Equipment!K:K,MATCH(\"Retrofit\"&A100,Equipment!C:C,0))\n),\n\"eligible\",\n\"ineligible\"),\"\")","v":""},{"$f":"IFERROR(INDEX(Equipment!$D:$D,MATCH(\"Retrofit\" & A100,Equipment!$C:$C,0)),\"\")","v":""},null,{"$f":"IFERROR(INDEX(Equipment!$L$13:$L$212,MATCH(\"Retrofit\" & $A100,Equipment!$C$13:$C$211,0)),\"\")","v":""},null,null,"",null,{"$f":"IFERROR(IF(B100<>\"eligible\",0,0.539*INDEX(OpHours,MATCH(Equipment!$D$7,BuildingType,0))*INDEX(Equipment!$M$13:$M$212,MATCH(\"Retrofit\"&A100,Equipment!$C$13:$C$211,0))),0)","v":0}]
[86,{"$f":"IFERROR(IF(\nAND(\n    E101>=0,\n    15>=INDEX(Equipment!K:K,MATCH(\"Retrofit\"&A101,Equipment!C:C,0)),\n    1<=INDEX(Equipment!K:K,MATCH(\"Retrofit\"&A101,Equipment!C:C,0))\n),\n\"eligible\",\n\"ineligible\"),\"\")","v":""},{"$f":"IFERROR(INDEX(Equipment!$D:$D,MATCH(\"Retrofit\" & A101,Equipment!$C:$C,0)),\"\")","v":""},null,{"$f":"IFERROR(INDEX(Equipment!$L$13:$L$212,MATCH(\"Retrofit\" & $A101,Equipment!$C$13:$C$211,0)),\"\")","v":""},null,null,"",null,{"$f":"IFERROR(IF(B101<>\"eligible\",0,0.539*INDEX(OpHours,MATCH(Equipment!$D$7,BuildingType,0))*INDEX(Equipment!$M$13:$M$212,MATCH(\"Retrofit\"&A101,Equipment!$C$13:$C$211,0))),0)","v":0}]
[87,{"$f":"IFERROR(IF(\nAND(\n    E102>=0,\n    15>=INDEX(Equipment!K:K,MATCH(\"Retrofit\"&A102,Equipment!C:C,0)),\n    1<=INDEX(Equipment!K:K,MATCH(\"Retrofit\"&A102,Equipment!C:C,0))\n),\n\"eligible\",\n\"ineligible\"),\"\")","v":""},{"$f":"IFERROR(INDEX(Equipment!$D:$D,MATCH(\"Retrofit\" & A102,Equipment!$C:$C,0)),\"\")","v":""},null,{"$f":"IFERROR(INDEX(Equipment!$L$13:$L$212,MATCH(\"Retrofit\" & $A102,Equipment!$C$13:$C$211,0)),\"\")","v":""},null,null,"",null,{"$f":"IFERROR(IF(B102<>\"eligible\",0,0.539*INDEX(OpHours,MATCH(Equipment!$D$7,BuildingType,0))*INDEX(Equipment!$M$13:$M$212,MATCH(\"Retrofit\"&A102,Equipment!$C$13:$C$211,0))),0)","v":0}]
[88,{"$f":"IFERROR(IF(\nAND(\n    E103>=0,\n    15>=INDEX(Equipment!K:K,MATCH(\"Retrofit\"&A103,Equipment!C:C,0)),\n    1<=INDEX(Equipment!K:K,MATCH(\"Retrofit\"&A103,Equipment!C:C,0))\n),\n\"eligible\",\n\"ineligible\"),\"\")","v":""},{"$f":"IFERROR(INDEX(Equipment!$D:$D,MATCH(\"Retrofit\" & A103,Equipment!$C:$C,0)),\"\")","v":""},null,{"$f":"IFERROR(INDEX(Equipment!$L$13:$L$212,MATCH(\"Retrofit\" & $A103,Equipment!$C$13:$C$211,0)),\"\")","v":""},null,null,"",null,{"$f":"IFERROR(IF(B103<>\"eligible\",0,0.539*INDEX(OpHours,MATCH(Equipment!$D$7,BuildingType,0))*INDEX(Equipment!$M$13:$M$212,MATCH(\"Retrofit\"&A103,Equipment!$C$13:$C$211,0))),0)","v":0}]
[89,{"$f":"IFERROR(IF(\nAND(\n    E104>=0,\n    15>=INDEX(Equipment!K:K,MATCH(\"Retrofit\"&A104,Equipment!C:C,0)),\n    1<=INDEX(Equipment!K:K,MATCH(\"Retrofit\"&A104,Equipment!C:C,0))\n),\n\"eligible\",\n\"ineligible\"),\"\")","v":""},{"$f":"IFERROR(INDEX(Equipment!$D:$D,MATCH(\"Retrofit\" & A104,Equipment!$C:$C,0)),\"\")","v":""},null,{"$f":"IFERROR(INDEX(Equipment!$L$13:$L$212,MATCH(\"Retrofit\" & $A104,Equipment!$C$13:$C$211,0)),\"\")","v":""},null,null,"",null,{"$f":"IFERROR(IF(B104<>\"eligible\",0,0.539*INDEX(OpHours,MATCH(Equipment!$D$7,BuildingType,0))*INDEX(Equipment!$M$13:$M$212,MATCH(\"Retrofit\"&A104,Equipment!$C$13:$C$211,0))),0)","v":0}]
[90,{"$f":"IFERROR(IF(\nAND(\n    E105>=0,\n    15>=INDEX(Equipment!K:K,MATCH(\"Retrofit\"&A105,Equipment!C:C,0)),\n    1<=INDEX(Equipment!K:K,MATCH(\"Retrofit\"&A105,Equipment!C:C,0))\n),\n\"eligible\",\n\"ineligible\"),\"\")","v":""},{"$f":"IFERROR(INDEX(Equipment!$D:$D,MATCH(\"Retrofit\" & A105,Equipment!$C:$C,0)),\"\")","v":""},null,{"$f":"IFERROR(INDEX(Equipment!$L$13:$L$212,MATCH(\"Retrofit\" & $A105,Equipment!$C$13:$C$211,0)),\"\")","v":""},null,null,"",null,{"$f":"IFERROR(IF(B105<>\"eligible\",0,0.539*INDEX(OpHours,MATCH(Equipment!$D$7,BuildingType,0))*INDEX(Equipment!$M$13:$M$212,MATCH(\"Retrofit\"&A105,Equipment!$C$13:$C$211,0))),0)","v":0}]
[91,{"$f":"IFERROR(IF(\nAND(\n    E106>=0,\n    15>=INDEX(Equipment!K:K,MATCH(\"Retrofit\"&A106,Equipment!C:C,0)),\n    1<=INDEX(Equipment!K:K,MATCH(\"Retrofit\"&A106,Equipment!C:C,0))\n),\n\"eligible\",\n\"ineligible\"),\"\")","v":""},{"$f":"IFERROR(INDEX(Equipment!$D:$D,MATCH(\"Retrofit\" & A106,Equipment!$C:$C,0)),\"\")","v":""},null,{"$f":"IFERROR(INDEX(Equipment!$L$13:$L$212,MATCH(\"Retrofit\" & $A106,Equipment!$C$13:$C$211,0)),\"\")","v":""},null,null,"",null,{"$f":"IFERROR(IF(B106<>\"eligible\",0,0.539*INDEX(OpHours,MATCH(Equipment!$D$7,BuildingType,0))*INDEX(Equipment!$M$13:$M$212,MATCH(\"Retrofit\"&A106,Equipment!$C$13:$C$211,0))),0)","v":0}]
[92,{"$f":"IFERROR(IF(\nAND(\n    E107>=0,\n    15>=INDEX(Equipment!K:K,MATCH(\"Retrofit\"&A107,Equipment!C:C,0)),\n    1<=INDEX(Equipment!K:K,MATCH(\"Retrofit\"&A107,Equipment!C:C,0))\n),\n\"eligible\",\n\"ineligible\"),\"\")","v":""},{"$f":"IFERROR(INDEX(Equipment!$D:$D,MATCH(\"Retrofit\" & A107,Equipment!$C:$C,0)),\"\")","v":""},null,{"$f":"IFERROR(INDEX(Equipment!$L$13:$L$212,MATCH(\"Retrofit\" & $A107,Equipment!$C$13:$C$211,0)),\"\")","v":""},null,null,"",null,{"$f":"IFERROR(IF(B107<>\"eligible\",0,0.539*INDEX(OpHours,MATCH(Equipment!$D$7,BuildingType,0))*INDEX(Equipment!$M$13:$M$212,MATCH(\"Retrofit\"&A107,Equipment!$C$13:$C$211,0))),0)","v":0}]
[93,{"$f":"IFERROR(IF(\nAND(\n    E108>=0,\n    15>=INDEX(Equipment!K:K,MATCH(\"Retrofit\"&A108,Equipment!C:C,0)),\n    1<=INDEX(Equipment!K:K,MATCH(\"Retrofit\"&A108,Equipment!C:C,0))\n),\n\"eligible\",\n\"ineligible\"),\"\")","v":""},{"$f":"IFERROR(INDEX(Equipment!$D:$D,MATCH(\"Retrofit\" & A108,Equipment!$C:$C,0)),\"\")","v":""},null,{"$f":"IFERROR(INDEX(Equipment!$L$13:$L$212,MATCH(\"Retrofit\" & $A108,Equipment!$C$13:$C$211,0)),\"\")","v":""},null,null,"",null,{"$f":"IFERROR(IF(B108<>\"eligible\",0,0.539*INDEX(OpHours,MATCH(Equipment!$D$7,BuildingType,0))*INDEX(Equipment!$M$13:$M$212,MATCH(\"Retrofit\"&A108,Equipment!$C$13:$C$211,0))),0)","v":0}]
[94,{"$f":"IFERROR(IF(\nAND(\n    E109>=0,\n    15>=INDEX(Equipment!K:K,MATCH(\"Retrofit\"&A109,Equipment!C:C,0)),\n    1<=INDEX(Equipment!K:K,MATCH(\"Retrofit\"&A109,Equipment!C:C,0))\n),\n\"eligible\",\n\"ineligible\"),\"\")","v":""},{"$f":"IFERROR(INDEX(Equipment!$D:$D,MATCH(\"Retrofit\" & A109,Equipment!$C:$C,0)),\"\")","v":""},null,{"$f":"IFERROR(INDEX(Equipment!$L$13:$L$212,MATCH(\"Retrofit\" & $A109,Equipment!$C$13:$C$211,0)),\"\")","v":""},null,null,"",null,{"$f":"IFERROR(IF(B109<>\"eligible\",0,0.539*INDEX(OpHours,MATCH(Equipment!$D$7,BuildingType,0))*INDEX(Equipment!$M$13:$M$212,MATCH(\"Retrofit\"&A109,Equipment!$C$13:$C$211,0))),0)","v":0}]
[95,{"$f":"IFERROR(IF(\nAND(\n    E110>=0,\n    15>=INDEX(Equipment!K:K,MATCH(\"Retrofit\"&A110,Equipment!C:C,0)),\n    1<=INDEX(Equipment!K:K,MATCH(\"Retrofit\"&A110,Equipment!C:C,0))\n),\n\"eligible\",\n\"ineligible\"),\"\")","v":""},{"$f":"IFERROR(INDEX(Equipment!$D:$D,MATCH(\"Retrofit\" & A110,Equipment!$C:$C,0)),\"\")","v":""},null,{"$f":"IFERROR(INDEX(Equipment!$L$13:$L$212,MATCH(\"Retrofit\" & $A110,Equipment!$C$13:$C$211,0)),\"\")","v":""},null,null,"",null,{"$f":"IFERROR(IF(B110<>\"eligible\",0,0.539*INDEX(OpHours,MATCH(Equipment!$D$7,BuildingType,0))*INDEX(Equipment!$M$13:$M$212,MATCH(\"Retrofit\"&A110,Equipment!$C$13:$C$211,0))),0)","v":0}]

{"sheet":"ARC - New RTU","index":4,"n_rows":110,"n_cols":21,"rows_kept":110,"cut":false,"hidden":true,"merged":[[109,2,109,3],[109,5,109,6],[109,7,109,8],[107,2,107,3],[107,5,107,6],[107,7,107,8],[108,2,108,3],[108,5,108,6],[108,7,108,8],[105,2,105,3],[105,5,105,6],[105,7,105,8],[106,2,106,3],[106,5,106,6],[106,7,106,8],[103,2,103,3],[103,5,103,6],[103,7,103,8],[104,2,104,3],[104,5,104,6],[104,7,104,8],[101,2,101,3],[101,5,101,6],[101,7,101,8],[102,2,102,3],[102,5,102,6],[102,7,102,8],[99,2,99,3],[99,5,99,6],[99,7,99,8],[100,2,100,3],[100,5,100,6],[100,7,100,8],[97,2,97,3],[97,5,97,6],[97,7,97,8],[98,2,98,3],[98,5,98,6],[98,7,98,8],[95,2,95,3],[95,5,95,6],[95,7,95,8],[96,2,96,3],[96,5,96,6],[96,7,96,8],[93,2,93,3],[93,5,93,6],[93,7,93,8],[94,2,94,3],[94,5,94,6],[94,7,94,8],[91,2,91,3],[91,5,91,6],[91,7,91,8],[92,2,92,3],[92,5,92,6],[92,7,92,8],[89,2,89,3],[89,5,89,6],[89,7,89,8],[90,2,90,3],[90,5,90,6],[90,7,90,8],[87,2,87,3],[87,5,87,6],[87,7,87,8],[88,2,88,3],[88,5,88,6],[88,7,88,8],[85,2,85,3],[85,5,85,6],[85,7,85,8],[86,2,86,3],[86,5,86,6],[86,7,86,8],[83,2,83,3],[83,5,83,6],[83,7,83,8],[84,2,84,3],[84,5,84,6],[84,7,84,8],[81,2,81,3],[81,5,81,6],[81,7,81,8],[82,2,82,3],[82,5,82,6],[82,7,82,8],[79,2,79,3],[79,5,79,6],[79,7,79,8],[80,2,80,3],[80,5,80,6],[80,7,80,8],[77,2,77,3],[77,5,77,6],[77,7,77,8],[78,2,78,3],[78,5,78,6],[78,7,78,8],[75,2,75,3],[75,5,75,6],[75,7,75,8],[76,2,76,3],[76,5,76,6],[76,7,76,8],[73,2,73,3],[73,5,73,6],[73,7,73,8],[74,2,74,3],[74,5,74,6],[74,7,74,8],[71,2,71,3],[71,5,71,6],[71,7,71,8],[72,2,72,3],[72,5,72,6],[72,7,72,8],[69,2,69,3],[69,5,69,6],[69,7,69,8],[70,2,70,3],[70,5,70,6],[70,7,70,8],[67,2,67,3],[67,5,67,6],[67,7,67,8],[68,2,68,3],[68,5,68,6],[68,7,68,8],[65,2,65,3],[65,5,65,6],[65,7,65,8],[66,2,66,3],[66,5,66,6],[66,7,66,8],[63,2,63,3],[63,5,63,6],[63,7,63,8],[64,2,64,3],[64,5,64,6],[64,7,64,8],[61,2,61,3],[61,5,61,6],[61,7,61,8],[62,2,62,3],[62,5,62,6],[62,7,62,8],[59,2,59,3],[59,5,59,6],[59,7,59,8],[60,2,60,3],[60,5,60,6],[60,7,60,8],[57,2,57,3],[57,5,57,6],[57,7,57,8],[58,2,58,3],[58,5,58,6],[58,7,58,8],[55,2,55,3],[55,5,55,6],[55,7,55,8],[56,2,56,3],[56,5,56,6],[56,7,56,8],[53,2,53,3],[53,5,53,6],[53,7,53,8],[54,2,54,3],[54,5,54,6],[54,7,54,8],[51,2,51,3],[51,5,51,6],[51,7,51,8],[52,2,52,3],[52,5,52,6],[52,7,52,8],[49,2,49,3],[49,5,49,6],[49,7,49,8],[50,2,50,3],[50,5,50,6],[50,7,50,8],[47,2,47,3],[47,5,47,6],[47,7,47,8],[48,2,48,3],[48,5,48,6],[48,7,48,8],[45,2,45,3],[45,5,45,6],[45,7,45,8],[46,2,46,3],[46,5,46,6],[46,7,46,8],[43,2,43,3],[43,5,43,6],[43,7,43,8],[44,2,44,3],[44,5,44,6],[44,7,44,8],[41,2,41,3],[41,5,41,6],[41,7,41,8],[42,2,42,3],[42,5,42,6],[42,7,42,8],[39,2,39,3],[39,5,39,6],[39,7,39,8],[40,2,40,3],[40,5,40,6],[40,7,40,8],[37,2,37,3],[37,5,37,6],[37,7,37,8],[38,2,38,3],[38,5,38,6],[38,7,38,8],[35,2,35,3],[35,5,35,6],[35,7,35,8],[36,2,36,3],[36,5,36,6],[36,7,36,8],[33,2,33,3],[33,5,33,6],[33,7,33,8],[34,2,34,3],[34,5,34,6],[34,7,34,8],[31,2,31,3],[31,5,31,6],[31,7,31,8],[32,2,32,3],[32,5,32,6],[32,7,32,8],[29,2,29,3],[29,5,29,6],[29,7,29,8],[30,2,30,3],[30,5,30,6],[30,7,30,8],[27,2,27,3],[27,5,27,6],[27,7,27,8],[28,2,28,3],[28,5,28,6],[28,7,28,8],[25,2,25,3],[25,5,25,6],[25,7,25,8],[26,2,26,3],[26,5,26,6],[26,7,26,8],[23,2,23,3],[23,5,23,6],[23,7,23,8],[24,2,24,3],[24,5,24,6],[24,7,24,8],[21,2,21,3],[21,5,21,6],[21,7,21,8],[22,2,22,3],[22,5,22,6],[22,7,22,8],[19,2,19,3],[19,5,19,6],[19,7,19,8],[20,2,20,3],[20,5,20,6],[20,7,20,8],[17,2,17,3],[17,5,17,6],[17,7,17,8],[18,2,18,3],[18,5,18,6],[18,7,18,8],[15,2,15,3],[15,5,15,6],[15,7,15,8],[16,2,16,3],[16,5,16,6],[16,7,16,8],[12,2,12,6],[13,2,14,3],[13,5,14,6],[13,7,14,8],[4,20,5,23],[6,20,8,23],[5,2,5,11],[6,2,6,11],[7,2,7,11],[8,2,8,11],[9,2,9,11],[10,2,10,11]]}
[null,null,null,null,"HIDE",null,null,null,null,"HIDE"]
[null,"Advanced Rooftop Controls (New RTU)",null,null,null,null,null,null,null,null,null,null,"Total kWh/yr Savings",{"$f":"SUM(J16:J110)","v":0},null,"Incentive",{"$f":"SUM(H16:I110)","v":0}]
[null,null,null,null,null,null,null,null,null,"Customer Costs",{"$f":"SUM(F16:G110)","v":0},null,"Total kW Savings",0,null,"Electric Cost Savings/YR",{"$f":"IFERROR(N2*INDEX(kWhRates,MATCH(RateSchedule,RateSchedules,0))+N3*12*INDEX(kWRates,MATCH(RateSchedule,RateSchedules,0)),0)","v":0},null,null,null,"Instructions"]
[null,null,null,null,null,null,null,null,null,null,null,null,null,null,null,null,null,null,null,null,"1. Complete yellow cells."]
[null,null,"Confirm the following:",null,null,null,null,null,null,null,null,null,null,null,null,null,null,null,null,null,"Note"]
[null,null,"1. RTU is ≥ 5 tons"]
[null,null,"2. Control is installed on a unitary package rooftop unit (no split-systems)",null,null,null,null,null,null,null,null,null,null,null,null,null,null,null,null,null,"All fields must be completed to calculate the savings & incentives"]
[null,null,"3. Rooftop unit is less than 1 year old"]
[null,null,"4. Control includes CO2 or occupancy based sensor that determines ventillation and space conditioning needs"]
[null,null,"5. Control includes digital, integrated economizer controls"]
[null,null,"6. Equipment utilizes a constant speed fan motor with either a supply fan VFD or multi-speed fan motor with controller that meets ventilation and space conditioning needs"]
[]
[null,null,"Equipment Details: "]
[null,null,"Rooftop Unit Label (from equipment tab)",null,"RTU Size","Customer Cost",null,"Estimated Incentive",null,"kWh"]
[]
[1,{"$f":"IFERROR(IF(\nAND(\n    E16>=0,\n    1>INDEX(Equipment!K:K,MATCH(\"NewRTU\"&A16,Equipment!C:C,0))\n),\n\"eligible\",\n\"ineligible\"),\"\")","v":""},{"$f":"IFERROR(INDEX(Equipment!$D:$D,MATCH(\"NewRTU\" & A16,Equipment!$C:$C,0)),\"\")","v":""},null,{"$f":"IFERROR(INDEX(Equipment!$L$13:$L$212,MATCH(\"NewRTU\" & $A16,Equipment!$C$13:$C$212,0)),\"\")","v":""},null,null,{"$f":"IF(E16=\"\",\"\",IF(B16<>\"eligible\",0,IF(AND(E16>=5,E16<=10),1200,IF(AND(E16>10,E16<=15),1800,IF(AND(E16>15,E16<=20),2500,IF(AND(E16>20),2800,IF(AND(E16>0,E16<5),400,0)))))))","v":""},null,{"$f":"IFERROR(IF(B16<>\"eligible\",0,0.341*INDEX(OpHours,MATCH(Equipment!$D$7,BuildingType,0))*INDEX(Equipment!$M$13:$M$212,MATCH(\"NewRTU\"&A16,Equipment!$C$13:$C$211,0))),0)","v":0}]
[2,{"$f":"IFERROR(IF(\nAND(\n    E17>=0,\n    1>INDEX(Equipment!K:K,MATCH(\"NewRTU\"&A17,Equipment!C:C,0))\n),\n\"eligible\",\n\"ineligible\"),\"\")","v":""},{"$f":"IFERROR(INDEX(Equipment!$D:$D,MATCH(\"NewRTU\" & A17,Equipment!$C:$C,0)),\"\")","v":""},null,{"$f":"IFERROR(INDEX(Equipment!$L$13:$L$212,MATCH(\"NewRTU\" & $A17,Equipment!$C$13:$C$211,0)),\"\")","v":""},null,null,{"$f":"IF(E17=\"\",\"\",IF(B17<>\"eligible\",0,IF(AND(E17>=5,E17<=10),1200,IF(AND(E17>10,E17<=15),1800,IF(AND(E17>15,E17<=20),2500,IF(AND(E17>20),2800,IF(AND(E17>0,E17<5),400,0)))))))","v":""},null,{"$f":"IFERROR(IF(B17<>\"eligible\",0,0.341*INDEX(OpHours,MATCH(Equipment!$D$7,BuildingType,0))*INDEX(Equipment!$M$13:$M$212,MATCH(\"NewRTU\"&A17,Equipment!$C$13:$C$211,0))),0)","v":0}]
[3,{"$f":"IFERROR(IF(\nAND(\n    E18>=0,\n    1>INDEX(Equipment!K:K,MATCH(\"NewRTU\"&A18,Equipment!C:C,0))\n),\n\"eligible\",\n\"ineligible\"),\"\")","v":""},{"$f":"IFERROR(INDEX(Equipment!$D:$D,MATCH(\"NewRTU\" & A18,Equipment!$C:$C,0)),\"\")","v":""},null,{"$f":"IFERROR(INDEX(Equipment!$L$13:$L$212,MATCH(\"NewRTU\" & $A18,Equipment!$C$13:$C$211,0)),\"\")","v":""},null,null,"",null,{"$f":"IFERROR(IF(B18<>\"eligible\",0,0.341*INDEX(OpHours,MATCH(Equipment!$D$7,BuildingType,0))*INDEX(Equipment!$M$13:$M$212,MATCH(\"NewRTU\"&A18,Equipment!$C$13:$C$211,0))),0)","v":0}]
[4,{"$f":"IFERROR(IF(\nAND(\n    E19>=0,\n    1>INDEX(Equipment!K:K,MATCH(\"NewRTU\"&A19,Equipment!C:C,0))\n),\n\"eligible\",\n\"ineligible\"),\"\")","v":""},{"$f":"IFERROR(INDEX(Equipment!$D:$D,MATCH(\"NewRTU\" & A19,Equipment!$C:$C,0)),\"\")","v":""},null,{"$f":"IFERROR(INDEX(Equipment!$L$13:$L$212,MATCH(\"NewRTU\" & $A19,Equipment!$C$13:$C$211,0)),\"\")","v":""},null,null,"",null,{"$f":"IFERROR(IF(B19<>\"eligible\",0,0.341*INDEX(OpHours,MATCH(Equipment!$D$7,BuildingType,0))*INDEX(Equipment!$M$13:$M$212,MATCH(\"NewRTU\"&A19,Equipment!$C$13:$C$211,0))),0)","v":0}]
[5,{"$f":"IFERROR(IF(\nAND(\n    E20>=0,\n    1>INDEX(Equipment!K:K,MATCH(\"NewRTU\"&A20,Equipment!C:C,0))\n),\n\"eligible\",\n\"ineligible\"),\"\")","v":""},{"$f":"IFERROR(INDEX(Equipment!$D:$D,MATCH(\"NewRTU\" & A20,Equipment!$C:$C,0)),\"\")","v":""},null,{"$f":"IFERROR(INDEX(Equipment!$L$13:$L$212,MATCH(\"NewRTU\" & $A20,Equipment!$C$13:$C$211,0)),\"\")","v":""},null,null,"",null,{"$f":"IFERROR(IF(B20<>\"eligible\",0,0.341*INDEX(OpHours,MATCH(Equipment!$D$7,BuildingType,0))*INDEX(Equipment!$M$13:$M$212,MATCH(\"NewRTU\"&A20,Equipment!$C$13:$C$211,0))),0)","v":0}]
[6,{"$f":"IFERROR(IF(\nAND(\n    E21>=0,\n    1>INDEX(Equipment!K:K,MATCH(\"NewRTU\"&A21,Equipment!C:C,0))\n),\n\"eligible\",\n\"ineligible\"),\"\")","v":""},{"$f":"IFERROR(INDEX(Equipment!$D:$D,MATCH(\"NewRTU\" & A21,Equipment!$C:$C,0)),\"\")","v":""},null,{"$f":"IFERROR(INDEX(Equipment!$L$13:$L$212,MATCH(\"NewRTU\" & $A21,Equipment!$C$13:$C$211,0)),\"\")","v":""},null,null,"",null,{"$f":"IFERROR(IF(B21<>\"eligible\",0,0.341*INDEX(OpHours,MATCH(Equipment!$D$7,BuildingType,0))*INDEX(Equipment!$M$13:$M$212,MATCH(\"NewRTU\"&A21,Equipment!$C$13:$C$211,0))),0)","v":0}]
[7,{"$f":"IFERROR(IF(\nAND(\n    E22>=0,\n    1>INDEX(Equipment!K:K,MATCH(\"NewRTU\"&A22,Equipment!C:C,0))\n),\n\"eligible\",\n\"ineligible\"),\"\")","v":""},{"$f":"IFERROR(INDEX(Equipment!$D:$D,MATCH(\"NewRTU\" & A22,Equipment!$C:$C,0)),\"\")","v":""},null,{"$f":"IFERROR(INDEX(Equipment!$L$13:$L$212,MATCH(\"NewRTU\" & $A22,Equipment!$C$13:$C$211,0)),\"\")","v":""},null,null,"",null,{"$f":"IFERROR(IF(B22<>\"eligible\",0,0.341*INDEX(OpHours,MATCH(Equipment!$D$7,BuildingType,0))*INDEX(Equipment!$M$13:$M$212,MATCH(\"NewRTU\"&A22,Equipment!$C$13:$C$211,0))),0)","v":0}]
[8,{"$f":"IFERROR(IF(\nAND(\n    E23>=0,\n    1>INDEX(Equipment!K:K,MATCH(\"NewRTU\"&A23,Equipment!C:C,0))\n),\n\"eligible\",\n\"ineligible\"),\"\")","v":""},{"$f":"IFERROR(INDEX(Equipment!$D:$D,MATCH(\"NewRTU\" & A23,Equipment!$C:$C,0)),\"\")","v":""},null,{"$f":"IFERROR(INDEX(Equipment!$L$13:$L$212,MATCH(\"NewRTU\" & $A23,Equipment!$C$13:$C$211,0)),\"\")","v":""},null,null,"",null,{"$f":"IFERROR(IF(B23<>\"eligible\",0,0.341*INDEX(OpHours,MATCH(Equipment!$D$7,BuildingType,0))*INDEX(Equipment!$M$13:$M$212,MATCH(\"NewRTU\"&A23,Equipment!$C$13:$C$211,0))),0)","v":0}]
[9,{"$f":"IFERROR(IF(\nAND(\n    E24>=0,\n    1>INDEX(Equipment!K:K,MATCH(\"NewRTU\"&A24,Equipment!C:C,0))\n),\n\"eligible\",\n\"ineligible\"),\"\")","v":""},{"$f":"IFERROR(INDEX(Equipment!$D:$D,MATCH(\"NewRTU\" & A24,Equipment!$C:$C,0)),\"\")","v":""},null,{"$f":"IFERROR(INDEX(Equipment!$L$13:$L$212,MATCH(\"NewRTU\" & $A24,Equipment!$C$13:$C$211,0)),\"\")","v":""},null,null,"",null,{"$f":"IFERROR(IF(B24<>\"eligible\",0,0.341*INDEX(OpHours,MATCH(Equipment!$D$7,BuildingType,0))*INDEX(Equipment!$M$13:$M$212,MATCH(\"NewRTU\"&A24,Equipment!$C$13:$C$211,0))),0)","v":0}]
[10,{"$f":"IFERROR(IF(\nAND(\n    E25>=0,\n    1>INDEX(Equipment!K:K,MATCH(\"NewRTU\"&A25,Equipment!C:C,0))\n),\n\"eligible\",\n\"ineligible\"),\"\")","v":""},{"$f":"IFERROR(INDEX(Equipment!$D:$D,MATCH(\"NewRTU\" & A25,Equipment!$C:$C,0)),\"\")","v":""},null,{"$f":"IFERROR(INDEX(Equipment!$L$13:$L$212,MATCH(\"NewRTU\" & $A25,Equipment!$C$13:$C$211,0)),\"\")","v":""},null,null,"",null,{"$f":"IFERROR(IF(B25<>\"eligible\",0,0.341*INDEX(OpHours,MATCH(Equipment!$D$7,BuildingType,0))*INDEX(Equipment!$M$13:$M$212,MATCH(\"NewRTU\"&A25,Equipment!$C$13:$C$211,0))),0)","v":0}]
[11,{"$f":"IFERROR(IF(\nAND(\n    E26>=0,\n    1>INDEX(Equipment!K:K,MATCH(\"NewRTU\"&A26,Equipment!C:C,0))\n),\n\"eligible\",\n\"ineligible\"),\"\")","v":""},{"$f":"IFERROR(INDEX(Equipment!$D:$D,MATCH(\"NewRTU\" & A26,Equipment!$C:$C,0)),\"\")","v":""},null,{"$f":"IFERROR(INDEX(Equipment!$L$13:$L$212,MATCH(\"NewRTU\" & $A26,Equipment!$C$13:$C$211,0)),\"\")","v":""},null,null,"",null,{"$f":"IFERROR(IF(B26<>\"eligible\",0,0.341*INDEX(OpHours,MATCH(Equipment!$D$7,BuildingType,0))*INDEX(Equipment!$M$13:$M$212,MATCH(\"NewRTU\"&A26,Equipment!$C$13:$C$211,0))),0)","v":0}]
[12,{"$f":"IFERROR(IF(\nAND(\n    E27>=0,\n    1>INDEX(Equipment!K:K,MATCH(\"NewRTU\"&A27,Equipment!C:C,0))\n),\n\"eligible\",\n\"ineligible\"),\"\")","v":""},{"$f":"IFERROR(INDEX(Equipment!$D:$D,MATCH(\"NewRTU\" & A27,Equipment!$C:$C,0)),\"\")","v":""},null,{"$f":"IFERROR(INDEX(Equipment!$L$13:$L$212,MATCH(\"NewRTU\" & $A27,Equipment!$C$13:$C$211,0)),\"\")","v":""},null,null,"",null,{"$f":"IFERROR(IF(B27<>\"eligible\",0,0.341*INDEX(OpHours,MATCH(Equipment!$D$7,BuildingType,0))*INDEX(Equipment!$M$13:$M$212,MATCH(\"NewRTU\"&A27,Equipment!$C$13:$C$211,0))),0)","v":0}]
[13,{"$f":"IFERROR(IF(\nAND(\n    E28>=0,\n    1>INDEX(Equipment!K:K,MATCH(\"NewRTU\"&A28,Equipment!C:C,0))\n),\n\"eligible\",\n\"ineligible\"),\"\")","v":""},{"$f":"IFERROR(INDEX(Equipment!$D:$D,MATCH(\"NewRTU\" & A28,Equipment!$C:$C,0)),\"\")","v":""},null,{"$f":"IFERROR(INDEX(Equipment!$L$13:$L$212,MATCH(\"NewRTU\" & $A28,Equipment!$C$13:$C$211,0)),\"\")","v":""},null,null,"",null,{"$f":"IFERROR(IF(B28<>\"eligible\",0,0.341*INDEX(OpHours,MATCH(Equipment!$D$7,BuildingType,0))*INDEX(Equipment!$M$13:$M$212,MATCH(\"NewRTU\"&A28,Equipment!$C$13:$C$211,0))),0)","v":0}]
[14,{"$f":"IFERROR(IF(\nAND(\n    E29>=0,\n    1>INDEX(Equipment!K:K,MATCH(\"NewRTU\"&A29,Equipment!C:C,0))\n),\n\"eligible\",\n\"ineligible\"),\"\")","v":""},{"$f":"IFERROR(INDEX(Equipment!$D:$D,MATCH(\"NewRTU\" & A29,Equipment!$C:$C,0)),\"\")","v":""},null,{"$f":"IFERROR(INDEX(Equipment!$L$13:$L$212,MATCH(\"NewRTU\" & $A29,Equipment!$C$13:$C$211,0)),\"\")","v":""},null,null,"",null,{"$f":"IFERROR(IF(B29<>\"eligible\",0,0.341*INDEX(OpHours,MATCH(Equipment!$D$7,BuildingType,0))*INDEX(Equipment!$M$13:$M$212,MATCH(\"NewRTU\"&A29,Equipment!$C$13:$C$211,0))),0)","v":0}]
[15,{"$f":"IFERROR(IF(\nAND(\n    E30>=0,\n    1>INDEX(Equipment!K:K,MATCH(\"NewRTU\"&A30,Equipment!C:C,0))\n),\n\"eligible\",\n\"ineligible\"),\"\")","v":""},{"$f":"IFERROR(INDEX(Equipment!$D:$D,MATCH(\"NewRTU\" & A30,Equipment!$C:$C,0)),\"\")","v":""},null,{"$f":"IFERROR(INDEX(Equipment!$L$13:$L$212,MATCH(\"NewRTU\" & $A30,Equipment!$C$13:$C$211,0)),\"\")","v":""},null,null,"",null,{"$f":"IFERROR(IF(B30<>\"eligible\",0,0.341*INDEX(OpHours,MATCH(Equipment!$D$7,BuildingType,0))*INDEX(Equipment!$M$13:$M$212,MATCH(\"NewRTU\"&A30,Equipment!$C$13:$C$211,0))),0)","v":0}]
[16,{"$f":"IFERROR(IF(\nAND(\n    E31>=0,\n    1>INDEX(Equipment!K:K,MATCH(\"NewRTU\"&A31,Equipment!C:C,0))\n),\n\"eligible\",\n\"ineligible\"),\"\")","v":""},{"$f":"IFERROR(INDEX(Equipment!$D:$D,MATCH(\"NewRTU\" & A31,Equipment!$C:$C,0)),\"\")","v":""},null,{"$f":"IFERROR(INDEX(Equipment!$L$13:$L$212,MATCH(\"NewRTU\" & $A31,Equipment!$C$13:$C$211,0)),\"\")","v":""},null,null,"",null,{"$f":"IFERROR(IF(B31<>\"eligible\",0,0.341*INDEX(OpHours,MATCH(Equipment!$D$7,BuildingType,0))*INDEX(Equipment!$M$13:$M$212,MATCH(\"NewRTU\"&A31,Equipment!$C$13:$C$211,0))),0)","v":0}]
[17,{"$f":"IFERROR(IF(\nAND(\n    E32>=0,\n    1>INDEX(Equipment!K:K,MATCH(\"NewRTU\"&A32,Equipment!C:C,0))\n),\n\"eligible\",\n\"ineligible\"),\"\")","v":""},{"$f":"IFERROR(INDEX(Equipment!$D:$D,MATCH(\"NewRTU\" & A32,Equipment!$C:$C,0)),\"\")","v":""},null,{"$f":"IFERROR(INDEX(Equipment!$L$13:$L$212,MATCH(\"NewRTU\" & $A32,Equipment!$C$13:$C$211,0)),\"\")","v":""},null,null,"",null,{"$f":"IFERROR(IF(B32<>\"eligible\",0,0.341*INDEX(OpHours,MATCH(Equipment!$D$7,BuildingType,0))*INDEX(Equipment!$M$13:$M$212,MATCH(\"NewRTU\"&A32,Equipment!$C$13:$C$211,0))),0)","v":0}]
[18,{"$f":"IFERROR(IF(\nAND(\n    E33>=0,\n    1>INDEX(Equipment!K:K,MATCH(\"NewRTU\"&A33,Equipment!C:C,0))\n),\n\"eligible\",\n\"ineligible\"),\"\")","v":""},{"$f":"IFERROR(INDEX(Equipment!$D:$D,MATCH(\"NewRTU\" & A33,Equipment!$C:$C,0)),\"\")","v":""},null,{"$f":"IFERROR(INDEX(Equipment!$L$13:$L$212,MATCH(\"NewRTU\" & $A33,Equipment!$C$13:$C$211,0)),\"\")","v":""},null,null,"",null,{"$f":"IFERROR(IF(B33<>\"eligible\",0,0.341*INDEX(OpHours,MATCH(Equipment!$D$7,BuildingType,0))*INDEX(Equipment!$M$13:$M$212,MATCH(\"NewRTU\"&A33,Equipment!$C$13:$C$211,0))),0)","v":0}]
[19,{"$f":"IFERROR(IF(\nAND(\n    E34>=0,\n    1>INDEX(Equipment!K:K,MATCH(\"NewRTU\"&A34,Equipment!C:C,0))\n),\n\"eligible\",\n\"ineligible\"),\"\")","v":""},{"$f":"IFERROR(INDEX(Equipment!$D:$D,MATCH(\"NewRTU\" & A34,Equipment!$C:$C,0)),\"\")","v":""},null,{"$f":"IFERROR(INDEX(Equipment!$L$13:$L$212,MATCH(\"NewRTU\" & $A34,Equipment!$C$13:$C$211,0)),\"\")","v":""},null,null,"",null,{"$f":"IFERROR(IF(B34<>\"eligible\",0,0.341*INDEX(OpHours,MATCH(Equipment!$D$7,BuildingType,0))*INDEX(Equipment!$M$13:$M$212,MATCH(\"NewRTU\"&A34,Equipment!$C$13:$C$211,0))),0)","v":0}]
[20,{"$f":"IFERROR(IF(\nAND(\n    E35>=0,\n    1>INDEX(Equipment!K:K,MATCH(\"NewRTU\"&A35,Equipment!C:C,0))\n),\n\"eligible\",\n\"ineligible\"),\"\")","v":""},{"$f":"IFERROR(INDEX(Equipment!$D:$D,MATCH(\"NewRTU\" & A35,Equipment!$C:$C,0)),\"\")","v":""},null,{"$f":"IFERROR(INDEX(Equipment!$L$13:$L$212,MATCH(\"NewRTU\" & $A35,Equipment!$C$13:$C$211,0)),\"\")","v":""},null,null,"",null,{"$f":"IFERROR(IF(B35<>\"eligible\",0,0.341*INDEX(OpHours,MATCH(Equipment!$D$7,BuildingType,0))*INDEX(Equipment!$M$13:$M$212,MATCH(\"NewRTU\"&A35,Equipment!$C$13:$C$211,0))),0)","v":0}]
[21,{"$f":"IFERROR(IF(\nAND(\n    E36>=0,\n    1>INDEX(Equipment!K:K,MATCH(\"NewRTU\"&A36,Equipment!C:C,0))\n),\n\"eligible\",\n\"ineligible\"),\"\")","v":""},{"$f":"IFERROR(INDEX(Equipment!$D:$D,MATCH(\"NewRTU\" & A36,Equipment!$C:$C,0)),\"\")","v":""},null,{"$f":"IFERROR(INDEX(Equipment!$L$13:$L$212,MATCH(\"NewRTU\" & $A36,Equipment!$C$13:$C$211,0)),\"\")","v":""},null,null,"",null,{"$f":"IFERROR(IF(B36<>\"eligible\",0,0.341*INDEX(OpHours,MATCH(Equipment!$D$7,BuildingType,0))*INDEX(Equipment!$M$13:$M$212,MATCH(\"NewRTU\"&A36,Equipment!$C$13:$C$211,0))),0)","v":0}]
[22,{"$f":"IFERROR(IF(\nAND(\n    E37>=0,\n    1>INDEX(Equipment!K:K,MATCH(\"NewRTU\"&A37,Equipment!C:C,0))\n),\n\"eligible\",\n\"ineligible\"),\"\")","v":""},{"$f":"IFERROR(INDEX(Equipment!$D:$D,MATCH(\"NewRTU\" & A37,Equipment!$C:$C,0)),\"\")","v":""},null,{"$f":"IFERROR(INDEX(Equipment!$L$13:$L$212,MATCH(\"NewRTU\" & $A37,Equipment!$C$13:$C$211,0)),\"\")","v":""},null,null,"",null,{"$f":"IFERROR(IF(B37<>\"eligible\",0,0.341*INDEX(OpHours,MATCH(Equipment!$D$7,BuildingType,0))*INDEX(Equipment!$M$13:$M$212,MATCH(\"NewRTU\"&A37,Equipment!$C$13:$C$211,0))),0)","v":0}]
[23,{"$f":"IFERROR(IF(\nAND(\n    E38>=0,\n    1>INDEX(Equipment!K:K,MATCH(\"NewRTU\"&A38,Equipment!C:C,0))\n),\n\"eligible\",\n\"ineligible\"),\"\")","v":""},{"$f":"IFERROR(INDEX(Equipment!$D:$D,MATCH(\"NewRTU\" & A38,Equipment!$C:$C,0)),\"\")","v":""},null,{"$f":"IFERROR(INDEX(Equipment!$L$13:$L$212,MATCH(\"NewRTU\" & $A38,Equipment!$C$13:$C$211,0)),\"\")","v":""},null,null,"",null,{"$f":"IFERROR(IF(B38<>\"eligible\",0,0.341*INDEX(OpHours,MATCH(Equipment!$D$7,BuildingType,0))*INDEX(Equipment!$M$13:$M$212,MATCH(\"NewRTU\"&A38,Equipment!$C$13:$C$211,0))),0)","v":0}]
[24,{"$f":"IFERROR(IF(\nAND(\n    E39>=0,\n    1>INDEX(Equipment!K:K,MATCH(\"NewRTU\"&A39,Equipment!C:C,0))\n),\n\"eligible\",\n\"ineligible\"),\"\")","v":""},{"$f":"IFERROR(INDEX(Equipment!$D:$D,MATCH(\"NewRTU\" & A39,Equipment!$C:$C,0)),\"\")","v":""},null,{"$f":"IFERROR(INDEX(Equipment!$L$13:$L$212,MATCH(\"NewRTU\" & $A39,Equipment!$C$13:$C$211,0)),\"\")","v":""},null,null,"",null,{"$f":"IFERROR(IF(B39<>\"eligible\",0,0.341*INDEX(OpHours,MATCH(Equipment!$D$7,BuildingType,0))*INDEX(Equipment!$M$13:$M$212,MATCH(\"NewRTU\"&A39,Equipment!$C$13:$C$211,0))),0)","v":0}]
[25,{"$f":"IFERROR(IF(\nAND(\n    E40>=0,\n    1>INDEX(Equipment!K:K,MATCH(\"NewRTU\"&A40,Equipment!C:C,0))\n),\n\"eligible\",\n\"ineligible\"),\"\")","v":""},{"$f":"IFERROR(INDEX(Equipment!$D:$D,MATCH(\"NewRTU\" & A40,Equipment!$C:$C,0)),\"\")","v":""},null,{"$f":"IFERROR(INDEX(Equipment!$L$13:$L$212,MATCH(\"NewRTU\" & $A40,Equipment!$C$13:$C$211,0)),\"\")","v":""},null,null,"",null,{"$f":"IFERROR(IF(B40<>\"eligible\",0,0.341*INDEX(OpHours,MATCH(Equipment!$D$7,BuildingType,0))*INDEX(Equipment!$M$13:$M$212,MATCH(\"NewRTU\"&A40,Equipment!$C$13:$C$211,0))),0)","v":0}]
[26,{"$f":"IFERROR(IF(\nAND(\n    E41>=0,\n    1>INDEX(Equipment!K:K,MATCH(\"NewRTU\"&A41,Equipment!C:C,0))\n),\n\"eligible\",\n\"ineligible\"),\"\")","v":""},{"$f":"IFERROR(INDEX(Equipment!$D:$D,MATCH(\"NewRTU\" & A41,Equipment!$C:$C,0)),\"\")","v":""},null,{"$f":"IFERROR(INDEX(Equipment!$L$13:$L$212,MATCH(\"NewRTU\" & $A41,Equipment!$C$13:$C$211,0)),\"\")","v":""},null,null,"",null,{"$f":"IFERROR(IF(B41<>\"eligible\",0,0.341*INDEX(OpHours,MATCH(Equipment!$D$7,BuildingType,0))*INDEX(Equipment!$M$13:$M$212,MATCH(\"NewRTU\"&A41,Equipment!$C$13:$C$211,0))),0)","v":0}]
[27,{"$f":"IFERROR(IF(\nAND(\n    E42>=0,\n    1>INDEX(Equipment!K:K,MATCH(\"NewRTU\"&A42,Equipment!C:C,0))\n),\n\"eligible\",\n\"ineligible\"),\"\")","v":""},{"$f":"IFERROR(INDEX(Equipment!$D:$D,MATCH(\"NewRTU\" & A42,Equipment!$C:$C,0)),\"\")","v":""},null,{"$f":"IFERROR(INDEX(Equipment!$L$13:$L$212,MATCH(\"NewRTU\" & $A42,Equipment!$C$13:$C$211,0)),\"\")","v":""},null,null,"",null,{"$f":"IFERROR(IF(B42<>\"eligible\",0,0.341*INDEX(OpHours,MATCH(Equipment!$D$7,BuildingType,0))*INDEX(Equipment!$M$13:$M$212,MATCH(\"NewRTU\"&A42,Equipment!$C$13:$C$211,0))),0)","v":0}]
[28,{"$f":"IFERROR(IF(\nAND(\n    E43>=0,\n    1>INDEX(Equipment!K:K,MATCH(\"NewRTU\"&A43,Equipment!C:C,0))\n),\n\"eligible\",\n\"ineligible\"),\"\")","v":""},{"$f":"IFERROR(INDEX(Equipment!$D:$D,MATCH(\"NewRTU\" & A43,Equipment!$C:$C,0)),\"\")","v":""},null,{"$f":"IFERROR(INDEX(Equipment!$L$13:$L$212,MATCH(\"NewRTU\" & $A43,Equipment!$C$13:$C$211,0)),\"\")","v":""},null,null,"",null,{"$f":"IFERROR(IF(B43<>\"eligible\",0,0.341*INDEX(OpHours,MATCH(Equipment!$D$7,BuildingType,0))*INDEX(Equipment!$M$13:$M$212,MATCH(\"NewRTU\"&A43,Equipment!$C$13:$C$211,0))),0)","v":0}]
[29,{"$f":"IFERROR(IF(\nAND(\n    E44>=0,\n    1>INDEX(Equipment!K:K,MATCH(\"NewRTU\"&A44,Equipment!C:C,0))\n),\n\"eligible\",\n\"ineligible\"),\"\")","v":""},{"$f":"IFERROR(INDEX(Equipment!$D:$D,MATCH(\"NewRTU\" & A44,Equipment!$C:$C,0)),\"\")","v":""},null,{"$f":"IFERROR(INDEX(Equipment!$L$13:$L$212,MATCH(\"NewRTU\" & $A44,Equipment!$C$13:$C$211,0)),\"\")","v":""},null,null,"",null,{"$f":"IFERROR(IF(B44<>\"eligible\",0,0.341*INDEX(OpHours,MATCH(Equipment!$D$7,BuildingType,0))*INDEX(Equipment!$M$13:$M$212,MATCH(\"NewRTU\"&A44,Equipment!$C$13:$C$211,0))),0)","v":0}]
[30,{"$f":"IFERROR(IF(\nAND(\n    E45>=0,\n    1>INDEX(Equipment!K:K,MATCH(\"NewRTU\"&A45,Equipment!C:C,0))\n),\n\"eligible\",\n\"ineligible\"),\"\")","v":""},{"$f":"IFERROR(INDEX(Equipment!$D:$D,MATCH(\"NewRTU\" & A45,Equipment!$C:$C,0)),\"\")","v":""},null,{"$f":"IFERROR(INDEX(Equipment!$L$13:$L$212,MATCH(\"NewRTU\" & $A45,Equipment!$C$13:$C$211,0)),\"\")","v":""},null,null,"",null,{"$f":"IFERROR(IF(B45<>\"eligible\",0,0.341*INDEX(OpHours,MATCH(Equipment!$D$7,BuildingType,0))*INDEX(Equipment!$M$13:$M$212,MATCH(\"NewRTU\"&A45,Equipment!$C$13:$C$211,0))),0)","v":0}]
[31,{"$f":"IFERROR(IF(\nAND(\n    E46>=0,\n    1>INDEX(Equipment!K:K,MATCH(\"NewRTU\"&A46,Equipment!C:C,0))\n),\n\"eligible\",\n\"ineligible\"),\"\")","v":""},{"$f":"IFERROR(INDEX(Equipment!$D:$D,MATCH(\"NewRTU\" & A46,Equipment!$C:$C,0)),\"\")","v":""},null,{"$f":"IFERROR(INDEX(Equipment!$L$13:$L$212,MATCH(\"NewRTU\" & $A46,Equipment!$C$13:$C$211,0)),\"\")","v":""},null,null,"",null,{"$f":"IFERROR(IF(B46<>\"eligible\",0,0.341*INDEX(OpHours,MATCH(Equipment!$D$7,BuildingType,0))*INDEX(Equipment!$M$13:$M$212,MATCH(\"NewRTU\"&A46,Equipment!$C$13:$C$211,0))),0)","v":0}]
[32,{"$f":"IFERROR(IF(\nAND(\n    E47>=0,\n    1>INDEX(Equipment!K:K,MATCH(\"NewRTU\"&A47,Equipment!C:C,0))\n),\n\"eligible\",\n\"ineligible\"),\"\")","v":""},{"$f":"IFERROR(INDEX(Equipment!$D:$D,MATCH(\"NewRTU\" & A47,Equipment!$C:$C,0)),\"\")","v":""},null,{"$f":"IFERROR(INDEX(Equipment!$L$13:$L$212,MATCH(\"NewRTU\" & $A47,Equipment!$C$13:$C$211,0)),\"\")","v":""},null,null,"",null,{"$f":"IFERROR(IF(B47<>\"eligible\",0,0.341*INDEX(OpHours,MATCH(Equipment!$D$7,BuildingType,0))*INDEX(Equipment!$M$13:$M$212,MATCH(\"NewRTU\"&A47,Equipment!$C$13:$C$211,0))),0)","v":0}]
[33,{"$f":"IFERROR(IF(\nAND(\n    E48>=0,\n    1>INDEX(Equipment!K:K,MATCH(\"NewRTU\"&A48,Equipment!C:C,0))\n),\n\"eligible\",\n\"ineligible\"),\"\")","v":""},{"$f":"IFERROR(INDEX(Equipment!$D:$D,MATCH(\"NewRTU\" & A48,Equipment!$C:$C,0)),\"\")","v":""},null,{"$f":"IFERROR(INDEX(Equipment!$L$13:$L$212,MATCH(\"NewRTU\" & $A48,Equipment!$C$13:$C$211,0)),\"\")","v":""},null,null,"",null,{"$f":"IFERROR(IF(B48<>\"eligible\",0,0.341*INDEX(OpHours,MATCH(Equipment!$D$7,BuildingType,0))*INDEX(Equipment!$M$13:$M$212,MATCH(\"NewRTU\"&A48,Equipment!$C$13:$C$211,0))),0)","v":0}]
[34,{"$f":"IFERROR(IF(\nAND(\n    E49>=0,\n    1>INDEX(Equipment!K:K,MATCH(\"NewRTU\"&A49,Equipment!C:C,0))\n),\n\"eligible\",\n\"ineligible\"),\"\")","v":""},{"$f":"IFERROR(INDEX(Equipment!$D:$D,MATCH(\"NewRTU\" & A49,Equipment!$C:$C,0)),\"\")","v":""},null,{"$f":"IFERROR(INDEX(Equipment!$L$13:$L$212,MATCH(\"NewRTU\" & $A49,Equipment!$C$13:$C$211,0)),\"\")","v":""},null,null,"",null,{"$f":"IFERROR(IF(B49<>\"eligible\",0,0.341*INDEX(OpHours,MATCH(Equipment!$D$7,BuildingType,0))*INDEX(Equipment!$M$13:$M$212,MATCH(\"NewRTU\"&A49,Equipment!$C$13:$C$211,0))),0)","v":0}]
[35,{"$f":"IFERROR(IF(\nAND(\n    E50>=0,\n    1>INDEX(Equipment!K:K,MATCH(\"NewRTU\"&A50,Equipment!C:C,0))\n),\n\"eligible\",\n\"ineligible\"),\"\")","v":""},{"$f":"IFERROR(INDEX(Equipment!$D:$D,MATCH(\"NewRTU\" & A50,Equipment!$C:$C,0)),\"\")","v":""},null,{"$f":"IFERROR(INDEX(Equipment!$L$13:$L$212,MATCH(\"NewRTU\" & $A50,Equipment!$C$13:$C$211,0)),\"\")","v":""},null,null,"",null,{"$f":"IFERROR(IF(B50<>\"eligible\",0,0.341*INDEX(OpHours,MATCH(Equipment!$D$7,BuildingType,0))*INDEX(Equipment!$M$13:$M$212,MATCH(\"NewRTU\"&A50,Equipment!$C$13:$C$211,0))),0)","v":0}]
[36,{"$f":"IFERROR(IF(\nAND(\n    E51>=0,\n    1>INDEX(Equipment!K:K,MATCH(\"NewRTU\"&A51,Equipment!C:C,0))\n),\n\"eligible\",\n\"ineligible\"),\"\")","v":""},{"$f":"IFERROR(INDEX(Equipment!$D:$D,MATCH(\"NewRTU\" & A51,Equipment!$C:$C,0)),\"\")","v":""},null,{"$f":"IFERROR(INDEX(Equipment!$L$13:$L$212,MATCH(\"NewRTU\" & $A51,Equipment!$C$13:$C$211,0)),\"\")","v":""},null,null,"",null,{"$f":"IFERROR(IF(B51<>\"eligible\",0,0.341*INDEX(OpHours,MATCH(Equipment!$D$7,BuildingType,0))*INDEX(Equipment!$M$13:$M$212,MATCH(\"NewRTU\"&A51,Equipment!$C$13:$C$211,0))),0)","v":0}]
[37,{"$f":"IFERROR(IF(\nAND(\n    E52>=0,\n    1>INDEX(Equipment!K:K,MATCH(\"NewRTU\"&A52,Equipment!C:C,0))\n),\n\"eligible\",\n\"ineligible\"),\"\")","v":""},{"$f":"IFERROR(INDEX(Equipment!$D:$D,MATCH(\"NewRTU\" & A52,Equipment!$C:$C,0)),\"\")","v":""},null,{"$f":"IFERROR(INDEX(Equipment!$L$13:$L$212,MATCH(\"NewRTU\" & $A52,Equipment!$C$13:$C$211,0)),\"\")","v":""},null,null,"",null,{"$f":"IFERROR(IF(B52<>\"eligible\",0,0.341*INDEX(OpHours,MATCH(Equipment!$D$7,BuildingType,0))*INDEX(Equipment!$M$13:$M$212,MATCH(\"NewRTU\"&A52,Equipment!$C$13:$C$211,0))),0)","v":0}]
[38,{"$f":"IFERROR(IF(\nAND(\n    E53>=0,\n    1>INDEX(Equipment!K:K,MATCH(\"NewRTU\"&A53,Equipment!C:C,0))\n),\n\"eligible\",\n\"ineligible\"),\"\")","v":""},{"$f":"IFERROR(INDEX(Equipment!$D:$D,MATCH(\"NewRTU\" & A53,Equipment!$C:$C,0)),\"\")","v":""},null,{"$f":"IFERROR(INDEX(Equipment!$L$13:$L$212,MATCH(\"NewRTU\" & $A53,Equipment!$C$13:$C$211,0)),\"\")","v":""},null,null,"",null,{"$f":"IFERROR(IF(B53<>\"eligible\",0,0.341*INDEX(OpHours,MATCH(Equipment!$D$7,BuildingType,0))*INDEX(Equipment!$M$13:$M$212,MATCH(\"NewRTU\"&A53,Equipment!$C$13:$C$211,0))),0)","v":0}]
[39,{"$f":"IFERROR(IF(\nAND(\n    E54>=0,\n    1>INDEX(Equipment!K:K,MATCH(\"NewRTU\"&A54,Equipment!C:C,0))\n),\n\"eligible\",\n\"ineligible\"),\"\")","v":""},{"$f":"IFERROR(INDEX(Equipment!$D:$D,MATCH(\"NewRTU\" & A54,Equipment!$C:$C,0)),\"\")","v":""},null,{"$f":"IFERROR(INDEX(Equipment!$L$13:$L$212,MATCH(\"NewRTU\" & $A54,Equipment!$C$13:$C$211,0)),\"\")","v":""},null,null,"",null,{"$f":"IFERROR(IF(B54<>\"eligible\",0,0.341*INDEX(OpHours,MATCH(Equipment!$D$7,BuildingType,0))*INDEX(Equipment!$M$13:$M$212,MATCH(\"NewRTU\"&A54,Equipment!$C$13:$C$211,0))),0)","v":0}]
[40,{"$f":"IFERROR(IF(\nAND(\n    E55>=0,\n    1>INDEX(Equipment!K:K,MATCH(\"NewRTU\"&A55,Equipment!C:C,0))\n),\n\"eligible\",\n\"ineligible\"),\"\")","v":""},{"$f":"IFERROR(INDEX(Equipment!$D:$D,MATCH(\"NewRTU\" & A55,Equipment!$C:$C,0)),\"\")","v":""},null,{"$f":"IFERROR(INDEX(Equipment!$L$13:$L$212,MATCH(\"NewRTU\" & $A55,Equipment!$C$13:$C$211,0)),\"\")","v":""},null,null,"",null,{"$f":"IFERROR(IF(B55<>\"eligible\",0,0.341*INDEX(OpHours,MATCH(Equipment!$D$7,BuildingType,0))*INDEX(Equipment!$M$13:$M$212,MATCH(\"NewRTU\"&A55,Equipment!$C$13:$C$211,0))),0)","v":0}]
[41,{"$f":"IFERROR(IF(\nAND(\n    E56>=0,\n    1>INDEX(Equipment!K:K,MATCH(\"NewRTU\"&A56,Equipment!C:C,0))\n),\n\"eligible\",\n\"ineligible\"),\"\")","v":""},{"$f":"IFERROR(INDEX(Equipment!$D:$D,MATCH(\"NewRTU\" & A56,Equipment!$C:$C,0)),\"\")","v":""},null,{"$f":"IFERROR(INDEX(Equipment!$L$13:$L$212,MATCH(\"NewRTU\" & $A56,Equipment!$C$13:$C$211,0)),\"\")","v":""},null,null,"",null,{"$f":"IFERROR(IF(B56<>\"eligible\",0,0.341*INDEX(OpHours,MATCH(Equipment!$D$7,BuildingType,0))*INDEX(Equipment!$M$13:$M$212,MATCH(\"NewRTU\"&A56,Equipment!$C$13:$C$211,0))),0)","v":0}]
[42,{"$f":"IFERROR(IF(\nAND(\n    E57>=0,\n    1>INDEX(Equipment!K:K,MATCH(\"NewRTU\"&A57,Equipment!C:C,0))\n),\n\"eligible\",\n\"ineligible\"),\"\")","v":""},{"$f":"IFERROR(INDEX(Equipment!$D:$D,MATCH(\"NewRTU\" & A57,Equipment!$C:$C,0)),\"\")","v":""},null,{"$f":"IFERROR(INDEX(Equipment!$L$13:$L$212,MATCH(\"NewRTU\" & $A57,Equipment!$C$13:$C$211,0)),\"\")","v":""},null,null,"",null,{"$f":"IFERROR(IF(B57<>\"eligible\",0,0.341*INDEX(OpHours,MATCH(Equipment!$D$7,BuildingType,0))*INDEX(Equipment!$M$13:$M$212,MATCH(\"NewRTU\"&A57,Equipment!$C$13:$C$211,0))),0)","v":0}]
[43,{"$f":"IFERROR(IF(\nAND(\n    E58>=0,\n    1>INDEX(Equipment!K:K,MATCH(\"NewRTU\"&A58,Equipment!C:C,0))\n),\n\"eligible\",\n\"ineligible\"),\"\")","v":""},{"$f":"IFERROR(INDEX(Equipment!$D:$D,MATCH(\"NewRTU\" & A58,Equipment!$C:$C,0)),\"\")","v":""},null,{"$f":"IFERROR(INDEX(Equipment!$L$13:$L$212,MATCH(\"NewRTU\" & $A58,Equipment!$C$13:$C$211,0)),\"\")","v":""},null,null,"",null,{"$f":"IFERROR(IF(B58<>\"eligible\",0,0.341*INDEX(OpHours,MATCH(Equipment!$D$7,BuildingType,0))*INDEX(Equipment!$M$13:$M$212,MATCH(\"NewRTU\"&A58,Equipment!$C$13:$C$211,0))),0)","v":0}]
[44,{"$f":"IFERROR(IF(\nAND(\n    E59>=0,\n    1>INDEX(Equipment!K:K,MATCH(\"NewRTU\"&A59,Equipment!C:C,0))\n),\n\"eligible\",\n\"ineligible\"),\"\")","v":""},{"$f":"IFERROR(INDEX(Equipment!$D:$D,MATCH(\"NewRTU\" & A59,Equipment!$C:$C,0)),\"\")","v":""},null,{"$f":"IFERROR(INDEX(Equipment!$L$13:$L$212,MATCH(\"NewRTU\" & $A59,Equipment!$C$13:$C$211,0)),\"\")","v":""},null,null,"",null,{"$f":"IFERROR(IF(B59<>\"eligible\",0,0.341*INDEX(OpHours,MATCH(Equipment!$D$7,BuildingType,0))*INDEX(Equipment!$M$13:$M$212,MATCH(\"NewRTU\"&A59,Equipment!$C$13:$C$211,0))),0)","v":0}]
[45,{"$f":"IFERROR(IF(\nAND(\n    E60>=0,\n    1>INDEX(Equipment!K:K,MATCH(\"NewRTU\"&A60,Equipment!C:C,0))\n),\n\"eligible\",\n\"ineligible\"),\"\")","v":""},{"$f":"IFERROR(INDEX(Equipment!$D:$D,MATCH(\"NewRTU\" & A60,Equipment!$C:$C,0)),\"\")","v":""},null,{"$f":"IFERROR(INDEX(Equipment!$L$13:$L$212,MATCH(\"NewRTU\" & $A60,Equipment!$C$13:$C$211,0)),\"\")","v":""},null,null,"",null,{"$f":"IFERROR(IF(B60<>\"eligible\",0,0.341*INDEX(OpHours,MATCH(Equipment!$D$7,BuildingType,0))*INDEX(Equipment!$M$13:$M$212,MATCH(\"NewRTU\"&A60,Equipment!$C$13:$C$211,0))),0)","v":0}]
[46,{"$f":"IFERROR(IF(\nAND(\n    E61>=0,\n    1>INDEX(Equipment!K:K,MATCH(\"NewRTU\"&A61,Equipment!C:C,0))\n),\n\"eligible\",\n\"ineligible\"),\"\")","v":""},{"$f":"IFERROR(INDEX(Equipment!$D:$D,MATCH(\"NewRTU\" & A61,Equipment!$C:$C,0)),\"\")","v":""},null,{"$f":"IFERROR(INDEX(Equipment!$L$13:$L$212,MATCH(\"NewRTU\" & $A61,Equipment!$C$13:$C$211,0)),\"\")","v":""},null,null,"",null,{"$f":"IFERROR(IF(B61<>\"eligible\",0,0.341*INDEX(OpHours,MATCH(Equipment!$D$7,BuildingType,0))*INDEX(Equipment!$M$13:$M$212,MATCH(\"NewRTU\"&A61,Equipment!$C$13:$C$211,0))),0)","v":0}]
[47,{"$f":"IFERROR(IF(\nAND(\n    E62>=0,\n    1>INDEX(Equipment!K:K,MATCH(\"NewRTU\"&A62,Equipment!C:C,0))\n),\n\"eligible\",\n\"ineligible\"),\"\")","v":""},{"$f":"IFERROR(INDEX(Equipment!$D:$D,MATCH(\"NewRTU\" & A62,Equipment!$C:$C,0)),\"\")","v":""},null,{"$f":"IFERROR(INDEX(Equipment!$L$13:$L$212,MATCH(\"NewRTU\" & $A62,Equipment!$C$13:$C$211,0)),\"\")","v":""},null,null,"",null,{"$f":"IFERROR(IF(B62<>\"eligible\",0,0.341*INDEX(OpHours,MATCH(Equipment!$D$7,BuildingType,0))*INDEX(Equipment!$M$13:$M$212,MATCH(\"NewRTU\"&A62,Equipment!$C$13:$C$211,0))),0)","v":0}]
[48,{"$f":"IFERROR(IF(\nAND(\n    E63>=0,\n    1>INDEX(Equipment!K:K,MATCH(\"NewRTU\"&A63,Equipment!C:C,0))\n),\n\"eligible\",\n\"ineligible\"),\"\")","v":""},{"$f":"IFERROR(INDEX(Equipment!$D:$D,MATCH(\"NewRTU\" & A63,Equipment!$C:$C,0)),\"\")","v":""},null,{"$f":"IFERROR(INDEX(Equipment!$L$13:$L$212,MATCH(\"NewRTU\" & $A63,Equipment!$C$13:$C$211,0)),\"\")","v":""},null,null,"",null,{"$f":"IFERROR(IF(B63<>\"eligible\",0,0.341*INDEX(OpHours,MATCH(Equipment!$D$7,BuildingType,0))*INDEX(Equipment!$M$13:$M$212,MATCH(\"NewRTU\"&A63,Equipment!$C$13:$C$211,0))),0)","v":0}]
[49,{"$f":"IFERROR(IF(\nAND(\n    E64>=0,\n    1>INDEX(Equipment!K:K,MATCH(\"NewRTU\"&A64,Equipment!C:C,0))\n),\n\"eligible\",\n\"ineligible\"),\"\")","v":""},{"$f":"IFERROR(INDEX(Equipment!$D:$D,MATCH(\"NewRTU\" & A64,Equipment!$C:$C,0)),\"\")","v":""},null,{"$f":"IFERROR(INDEX(Equipment!$L$13:$L$212,MATCH(\"NewRTU\" & $A64,Equipment!$C$13:$C$211,0)),\"\")","v":""},null,null,"",null,{"$f":"IFERROR(IF(B64<>\"eligible\",0,0.341*INDEX(OpHours,MATCH(Equipment!$D$7,BuildingType,0))*INDEX(Equipment!$M$13:$M$212,MATCH(\"NewRTU\"&A64,Equipment!$C$13:$C$211,0))),0)","v":0}]
[50,{"$f":"IFERROR(IF(\nAND(\n    E65>=0,\n    1>INDEX(Equipment!K:K,MATCH(\"NewRTU\"&A65,Equipment!C:C,0))\n),\n\"eligible\",\n\"ineligible\"),\"\")","v":""},{"$f":"IFERROR(INDEX(Equipment!$D:$D,MATCH(\"NewRTU\" & A65,Equipment!$C:$C,0)),\"\")","v":""},null,{"$f":"IFERROR(INDEX(Equipment!$L$13:$L$212,MATCH(\"NewRTU\" & $A65,Equipment!$C$13:$C$211,0)),\"\")","v":""},null,null,"",null,{"$f":"IFERROR(IF(B65<>\"eligible\",0,0.341*INDEX(OpHours,MATCH(Equipment!$D$7,BuildingType,0))*INDEX(Equipment!$M$13:$M$212,MATCH(\"NewRTU\"&A65,Equipment!$C$13:$C$211,0))),0)","v":0}]
[51,{"$f":"IFERROR(IF(\nAND(\n    E66>=0,\n    1>INDEX(Equipment!K:K,MATCH(\"NewRTU\"&A66,Equipment!C:C,0))\n),\n\"eligible\",\n\"ineligible\"),\"\")","v":""},{"$f":"IFERROR(INDEX(Equipment!$D:$D,MATCH(\"NewRTU\" & A66,Equipment!$C:$C,0)),\"\")","v":""},null,{"$f":"IFERROR(INDEX(Equipment!$L$13:$L$212,MATCH(\"NewRTU\" & $A66,Equipment!$C$13:$C$211,0)),\"\")","v":""},null,null,"",null,{"$f":"IFERROR(IF(B66<>\"eligible\",0,0.341*INDEX(OpHours,MATCH(Equipment!$D$7,BuildingType,0))*INDEX(Equipment!$M$13:$M$212,MATCH(\"NewRTU\"&A66,Equipment!$C$13:$C$211,0))),0)","v":0}]
[52,{"$f":"IFERROR(IF(\nAND(\n    E67>=0,\n    1>INDEX(Equipment!K:K,MATCH(\"NewRTU\"&A67,Equipment!C:C,0))\n),\n\"eligible\",\n\"ineligible\"),\"\")","v":""},{"$f":"IFERROR(INDEX(Equipment!$D:$D,MATCH(\"NewRTU\" & A67,Equipment!$C:$C,0)),\"\")","v":""},null,{"$f":"IFERROR(INDEX(Equipment!$L$13:$L$212,MATCH(\"NewRTU\" & $A67,Equipment!$C$13:$C$211,0)),\"\")","v":""},null,null,"",null,{"$f":"IFERROR(IF(B67<>\"eligible\",0,0.341*INDEX(OpHours,MATCH(Equipment!$D$7,BuildingType,0))*INDEX(Equipment!$M$13:$M$212,MATCH(\"NewRTU\"&A67,Equipment!$C$13:$C$211,0))),0)","v":0}]
[53,{"$f":"IFERROR(IF(\nAND(\n    E68>=0,\n    1>INDEX(Equipment!K:K,MATCH(\"NewRTU\"&A68,Equipment!C:C,0))\n),\n\"eligible\",\n\"ineligible\"),\"\")","v":""},{"$f":"IFERROR(INDEX(Equipment!$D:$D,MATCH(\"NewRTU\" & A68,Equipment!$C:$C,0)),\"\")","v":""},null,{"$f":"IFERROR(INDEX(Equipment!$L$13:$L$212,MATCH(\"NewRTU\" & $A68,Equipment!$C$13:$C$211,0)),\"\")","v":""},null,null,"",null,{"$f":"IFERROR(IF(B68<>\"eligible\",0,0.341*INDEX(OpHours,MATCH(Equipment!$D$7,BuildingType,0))*INDEX(Equipment!$M$13:$M$212,MATCH(\"NewRTU\"&A68,Equipment!$C$13:$C$211,0))),0)","v":0}]
[54,{"$f":"IFERROR(IF(\nAND(\n    E69>=0,\n    1>INDEX(Equipment!K:K,MATCH(\"NewRTU\"&A69,Equipment!C:C,0))\n),\n\"eligible\",\n\"ineligible\"),\"\")","v":""},{"$f":"IFERROR(INDEX(Equipment!$D:$D,MATCH(\"NewRTU\" & A69,Equipment!$C:$C,0)),\"\")","v":""},null,{"$f":"IFERROR(INDEX(Equipment!$L$13:$L$212,MATCH(\"NewRTU\" & $A69,Equipment!$C$13:$C$211,0)),\"\")","v":""},null,null,"",null,{"$f":"IFERROR(IF(B69<>\"eligible\",0,0.341*INDEX(OpHours,MATCH(Equipment!$D$7,BuildingType,0))*INDEX(Equipment!$M$13:$M$212,MATCH(\"NewRTU\"&A69,Equipment!$C$13:$C$211,0))),0)","v":0}]
[55,{"$f":"IFERROR(IF(\nAND(\n    E70>=0,\n    1>INDEX(Equipment!K:K,MATCH(\"NewRTU\"&A70,Equipment!C:C,0))\n),\n\"eligible\",\n\"ineligible\"),\"\")","v":""},{"$f":"IFERROR(INDEX(Equipment!$D:$D,MATCH(\"NewRTU\" & A70,Equipment!$C:$C,0)),\"\")","v":""},null,{"$f":"IFERROR(INDEX(Equipment!$L$13:$L$212,MATCH(\"NewRTU\" & $A70,Equipment!$C$13:$C$211,0)),\"\")","v":""},null,null,"",null,{"$f":"IFERROR(IF(B70<>\"eligible\",0,0.341*INDEX(OpHours,MATCH(Equipment!$D$7,BuildingType,0))*INDEX(Equipment!$M$13:$M$212,MATCH(\"NewRTU\"&A70,Equipment!$C$13:$C$211,0))),0)","v":0}]
[56,{"$f":"IFERROR(IF(\nAND(\n    E71>=0,\n    1>INDEX(Equipment!K:K,MATCH(\"NewRTU\"&A71,Equipment!C:C,0))\n),\n\"eligible\",\n\"ineligible\"),\"\")","v":""},{"$f":"IFERROR(INDEX(Equipment!$D:$D,MATCH(\"NewRTU\" & A71,Equipment!$C:$C,0)),\"\")","v":""},null,{"$f":"IFERROR(INDEX(Equipment!$L$13:$L$212,MATCH(\"NewRTU\" & $A71,Equipment!$C$13:$C$211,0)),\"\")","v":""},null,null,"",null,{"$f":"IFERROR(IF(B71<>\"eligible\",0,0.341*INDEX(OpHours,MATCH(Equipment!$D$7,BuildingType,0))*INDEX(Equipment!$M$13:$M$212,MATCH(\"NewRTU\"&A71,Equipment!$C$13:$C$211,0))),0)","v":0}]
[57,{"$f":"IFERROR(IF(\nAND(\n    E72>=0,\n    1>INDEX(Equipment!K:K,MATCH(\"NewRTU\"&A72,Equipment!C:C,0))\n),\n\"eligible\",\n\"ineligible\"),\"\")","v":""},{"$f":"IFERROR(INDEX(Equipment!$D:$D,MATCH(\"NewRTU\" & A72,Equipment!$C:$C,0)),\"\")","v":""},null,{"$f":"IFERROR(INDEX(Equipment!$L$13:$L$212,MATCH(\"NewRTU\" & $A72,Equipment!$C$13:$C$211,0)),\"\")","v":""},null,null,"",null,{"$f":"IFERROR(IF(B72<>\"eligible\",0,0.341*INDEX(OpHours,MATCH(Equipment!$D$7,BuildingType,0))*INDEX(Equipment!$M$13:$M$212,MATCH(\"NewRTU\"&A72,Equipment!$C$13:$C$211,0))),0)","v":0}]
[58,{"$f":"IFERROR(IF(\nAND(\n    E73>=0,\n    1>INDEX(Equipment!K:K,MATCH(\"NewRTU\"&A73,Equipment!C:C,0))\n),\n\"eligible\",\n\"ineligible\"),\"\")","v":""},{"$f":"IFERROR(INDEX(Equipment!$D:$D,MATCH(\"NewRTU\" & A73,Equipment!$C:$C,0)),\"\")","v":""},null,{"$f":"IFERROR(INDEX(Equipment!$L$13:$L$212,MATCH(\"NewRTU\" & $A73,Equipment!$C$13:$C$211,0)),\"\")","v":""},null,null,"",null,{"$f":"IFERROR(IF(B73<>\"eligible\",0,0.341*INDEX(OpHours,MATCH(Equipment!$D$7,BuildingType,0))*INDEX(Equipment!$M$13:$M$212,MATCH(\"NewRTU\"&A73,Equipment!$C$13:$C$211,0))),0)","v":0}]
[59,{"$f":"IFERROR(IF(\nAND(\n    E74>=0,\n    1>INDEX(Equipment!K:K,MATCH(\"NewRTU\"&A74,Equipment!C:C,0))\n),\n\"eligible\",\n\"ineligible\"),\"\")","v":""},{"$f":"IFERROR(INDEX(Equipment!$D:$D,MATCH(\"NewRTU\" & A74,Equipment!$C:$C,0)),\"\")","v":""},null,{"$f":"IFERROR(INDEX(Equipment!$L$13:$L$212,MATCH(\"NewRTU\" & $A74,Equipment!$C$13:$C$211,0)),\"\")","v":""},null,null,"",null,{"$f":"IFERROR(IF(B74<>\"eligible\",0,0.341*INDEX(OpHours,MATCH(Equipment!$D$7,BuildingType,0))*INDEX(Equipment!$M$13:$M$212,MATCH(\"NewRTU\"&A74,Equipment!$C$13:$C$211,0))),0)","v":0}]
[60,{"$f":"IFERROR(IF(\nAND(\n    E75>=0,\n    1>INDEX(Equipment!K:K,MATCH(\"NewRTU\"&A75,Equipment!C:C,0))\n),\n\"eligible\",\n\"ineligible\"),\"\")","v":""},{"$f":"IFERROR(INDEX(Equipment!$D:$D,MATCH(\"NewRTU\" & A75,Equipment!$C:$C,0)),\"\")","v":""},null,{"$f":"IFERROR(INDEX(Equipment!$L$13:$L$212,MATCH(\"NewRTU\" & $A75,Equipment!$C$13:$C$211,0)),\"\")","v":""},null,null,"",null,{"$f":"IFERROR(IF(B75<>\"eligible\",0,0.341*INDEX(OpHours,MATCH(Equipment!$D$7,BuildingType,0))*INDEX(Equipment!$M$13:$M$212,MATCH(\"NewRTU\"&A75,Equipment!$C$13:$C$211,0))),0)","v":0}]
[61,{"$f":"IFERROR(IF(\nAND(\n    E76>=0,\n    1>INDEX(Equipment!K:K,MATCH(\"NewRTU\"&A76,Equipment!C:C,0))\n),\n\"eligible\",\n\"ineligible\"),\"\")","v":""},{"$f":"IFERROR(INDEX(Equipment!$D:$D,MATCH(\"NewRTU\" & A76,Equipment!$C:$C,0)),\"\")","v":""},null,{"$f":"IFERROR(INDEX(Equipment!$L$13:$L$212,MATCH(\"NewRTU\" & $A76,Equipment!$C$13:$C$211,0)),\"\")","v":""},null,null,"",null,{"$f":"IFERROR(IF(B76<>\"eligible\",0,0.341*INDEX(OpHours,MATCH(Equipment!$D$7,BuildingType,0))*INDEX(Equipment!$M$13:$M$212,MATCH(\"NewRTU\"&A76,Equipment!$C$13:$C$211,0))),0)","v":0}]
[62,{"$f":"IFERROR(IF(\nAND(\n    E77>=0,\n    1>INDEX(Equipment!K:K,MATCH(\"NewRTU\"&A77,Equipment!C:C,0))\n),\n\"eligible\",\n\"ineligible\"),\"\")","v":""},{"$f":"IFERROR(INDEX(Equipment!$D:$D,MATCH(\"NewRTU\" & A77,Equipment!$C:$C,0)),\"\")","v":""},null,{"$f":"IFERROR(INDEX(Equipment!$L$13:$L$212,MATCH(\"NewRTU\" & $A77,Equipment!$C$13:$C$211,0)),\"\")","v":""},null,null,"",null,{"$f":"IFERROR(IF(B77<>\"eligible\",0,0.341*INDEX(OpHours,MATCH(Equipment!$D$7,BuildingType,0))*INDEX(Equipment!$M$13:$M$212,MATCH(\"NewRTU\"&A77,Equipment!$C$13:$C$211,0))),0)","v":0}]
[63,{"$f":"IFERROR(IF(\nAND(\n    E78>=0,\n    1>INDEX(Equipment!K:K,MATCH(\"NewRTU\"&A78,Equipment!C:C,0))\n),\n\"eligible\",\n\"ineligible\"),\"\")","v":""},{"$f":"IFERROR(INDEX(Equipment!$D:$D,MATCH(\"NewRTU\" & A78,Equipment!$C:$C,0)),\"\")","v":""},null,{"$f":"IFERROR(INDEX(Equipment!$L$13:$L$212,MATCH(\"NewRTU\" & $A78,Equipment!$C$13:$C$211,0)),\"\")","v":""},null,null,"",null,{"$f":"IFERROR(IF(B78<>\"eligible\",0,0.341*INDEX(OpHours,MATCH(Equipment!$D$7,BuildingType,0))*INDEX(Equipment!$M$13:$M$212,MATCH(\"NewRTU\"&A78,Equipment!$C$13:$C$211,0))),0)","v":0}]
[64,{"$f":"IFERROR(IF(\nAND(\n    E79>=0,\n    1>INDEX(Equipment!K:K,MATCH(\"NewRTU\"&A79,Equipment!C:C,0))\n),\n\"eligible\",\n\"ineligible\"),\"\")","v":""},{"$f":"IFERROR(INDEX(Equipment!$D:$D,MATCH(\"NewRTU\" & A79,Equipment!$C:$C,0)),\"\")","v":""},null,{"$f":"IFERROR(INDEX(Equipment!$L$13:$L$212,MATCH(\"NewRTU\" & $A79,Equipment!$C$13:$C$211,0)),\"\")","v":""},null,null,"",null,{"$f":"IFERROR(IF(B79<>\"eligible\",0,0.341*INDEX(OpHours,MATCH(Equipment!$D$7,BuildingType,0))*INDEX(Equipment!$M$13:$M$212,MATCH(\"NewRTU\"&A79,Equipment!$C$13:$C$211,0))),0)","v":0}]
[65,{"$f":"IFERROR(IF(\nAND(\n    E80>=0,\n    1>INDEX(Equipment!K:K,MATCH(\"NewRTU\"&A80,Equipment!C:C,0))\n),\n\"eligible\",\n\"ineligible\"),\"\")","v":""},{"$f":"IFERROR(INDEX(Equipment!$D:$D,MATCH(\"NewRTU\" & A80,Equipment!$C:$C,0)),\"\")","v":""},null,{"$f":"IFERROR(INDEX(Equipment!$L$13:$L$212,MATCH(\"NewRTU\" & $A80,Equipment!$C$13:$C$211,0)),\"\")","v":""},null,null,"",null,{"$f":"IFERROR(IF(B80<>\"eligible\",0,0.341*INDEX(OpHours,MATCH(Equipment!$D$7,BuildingType,0))*INDEX(Equipment!$M$13:$M$212,MATCH(\"NewRTU\"&A80,Equipment!$C$13:$C$211,0))),0)","v":0}]
[66,{"$f":"IFERROR(IF(\nAND(\n    E81>=0,\n    1>INDEX(Equipment!K:K,MATCH(\"NewRTU\"&A81,Equipment!C:C,0))\n),\n\"eligible\",\n\"ineligible\"),\"\")","v":""},{"$f":"IFERROR(INDEX(Equipment!$D:$D,MATCH(\"NewRTU\" & A81,Equipment!$C:$C,0)),\"\")","v":""},null,{"$f":"IFERROR(INDEX(Equipment!$L$13:$L$212,MATCH(\"NewRTU\" & $A81,Equipment!$C$13:$C$211,0)),\"\")","v":""},null,null,{"$f":"IF(E81=\"\",\"\",IF(B81<>\"eligible\",0,IF(AND(E81>=5,E81<=10),1200,IF(AND(E81>10,E81<=15),1800,IF(AND(E81>15,E81<=20),2500,IF(AND(E81>20),2800,IF(AND(E81>0,E81<5),400,0)))))))","v":""},null,{"$f":"IFERROR(IF(B81<>\"eligible\",0,0.341*INDEX(OpHours,MATCH(Equipment!$D$7,BuildingType,0))*INDEX(Equipment!$M$13:$M$212,MATCH(\"NewRTU\"&A81,Equipment!$C$13:$C$211,0))),0)","v":0}]
[67,{"$f":"IFERROR(IF(\nAND(\n    E82>=0,\n    1>INDEX(Equipment!K:K,MATCH(\"NewRTU\"&A82,Equipment!C:C,0))\n),\n\"eligible\",\n\"ineligible\"),\"\")","v":""},{"$f":"IFERROR(INDEX(Equipment!$D:$D,MATCH(\"NewRTU\" & A82,Equipment!$C:$C,0)),\"\")","v":""},null,{"$f":"IFERROR(INDEX(Equipment!$L$13:$L$212,MATCH(\"NewRTU\" & $A82,Equipment!$C$13:$C$211,0)),\"\")","v":""},null,null,"",null,{"$f":"IFERROR(IF(B82<>\"eligible\",0,0.341*INDEX(OpHours,MATCH(Equipment!$D$7,BuildingType,0))*INDEX(Equipment!$M$13:$M$212,MATCH(\"NewRTU\"&A82,Equipment!$C$13:$C$211,0))),0)","v":0}]
[68,{"$f":"IFERROR(IF(\nAND(\n    E83>=0,\n    1>INDEX(Equipment!K:K,MATCH(\"NewRTU\"&A83,Equipment!C:C,0))\n),\n\"eligible\",\n\"ineligible\"),\"\")","v":""},{"$f":"IFERROR(INDEX(Equipment!$D:$D,MATCH(\"NewRTU\" & A83,Equipment!$C:$C,0)),\"\")","v":""},null,{"$f":"IFERROR(INDEX(Equipment!$L$13:$L$212,MATCH(\"NewRTU\" & $A83,Equipment!$C$13:$C$211,0)),\"\")","v":""},null,null,"",null,{"$f":"IFERROR(IF(B83<>\"eligible\",0,0.341*INDEX(OpHours,MATCH(Equipment!$D$7,BuildingType,0))*INDEX(Equipment!$M$13:$M$212,MATCH(\"NewRTU\"&A83,Equipment!$C$13:$C$211,0))),0)","v":0}]
[69,{"$f":"IFERROR(IF(\nAND(\n    E84>=0,\n    1>INDEX(Equipment!K:K,MATCH(\"NewRTU\"&A84,Equipment!C:C,0))\n),\n\"eligible\",\n\"ineligible\"),\"\")","v":""},{"$f":"IFERROR(INDEX(Equipment!$D:$D,MATCH(\"NewRTU\" & A84,Equipment!$C:$C,0)),\"\")","v":""},null,{"$f":"IFERROR(INDEX(Equipment!$L$13:$L$212,MATCH(\"NewRTU\" & $A84,Equipment!$C$13:$C$211,0)),\"\")","v":""},null,null,"",null,{"$f":"IFERROR(IF(B84<>\"eligible\",0,0.341*INDEX(OpHours,MATCH(Equipment!$D$7,BuildingType,0))*INDEX(Equipment!$M$13:$M$212,MATCH(\"NewRTU\"&A84,Equipment!$C$13:$C$211,0))),0)","v":0}]
[70,{"$f":"IFERROR(IF(\nAND(\n    E85>=0,\n    1>INDEX(Equipment!K:K,MATCH(\"NewRTU\"&A85,Equipment!C:C,0))\n),\n\"eligible\",\n\"ineligible\"),\"\")","v":""},{"$f":"IFERROR(INDEX(Equipment!$D:$D,MATCH(\"NewRTU\" & A85,Equipment!$C:$C,0)),\"\")","v":""},null,{"$f":"IFERROR(INDEX(Equipment!$L$13:$L$212,MATCH(\"NewRTU\" & $A85,Equipment!$C$13:$C$211,0)),\"\")","v":""},null,null,"",null,{"$f":"IFERROR(IF(B85<>\"eligible\",0,0.341*INDEX(OpHours,MATCH(Equipment!$D$7,BuildingType,0))*INDEX(Equipment!$M$13:$M$212,MATCH(\"NewRTU\"&A85,Equipment!$C$13:$C$211,0))),0)","v":0}]
[71,{"$f":"IFERROR(IF(\nAND(\n    E86>=0,\n    1>INDEX(Equipment!K:K,MATCH(\"NewRTU\"&A86,Equipment!C:C,0))\n),\n\"eligible\",\n\"ineligible\"),\"\")","v":""},{"$f":"IFERROR(INDEX(Equipment!$D:$D,MATCH(\"NewRTU\" & A86,Equipment!$C:$C,0)),\"\")","v":""},null,{"$f":"IFERROR(INDEX(Equipment!$L$13:$L$212,MATCH(\"NewRTU\" & $A86,Equipment!$C$13:$C$211,0)),\"\")","v":""},null,null,"",null,{"$f":"IFERROR(IF(B86<>\"eligible\",0,0.341*INDEX(OpHours,MATCH(Equipment!$D$7,BuildingType,0))*INDEX(Equipment!$M$13:$M$212,MATCH(\"NewRTU\"&A86,Equipment!$C$13:$C$211,0))),0)","v":0}]
[72,{"$f":"IFERROR(IF(\nAND(\n    E87>=0,\n    1>INDEX(Equipment!K:K,MATCH(\"NewRTU\"&A87,Equipment!C:C,0))\n),\n\"eligible\",\n\"ineligible\"),\"\")","v":""},{"$f":"IFERROR(INDEX(Equipment!$D:$D,MATCH(\"NewRTU\" & A87,Equipment!$C:$C,0)),\"\")","v":""},null,{"$f":"IFERROR(INDEX(Equipment!$L$13:$L$212,MATCH(\"NewRTU\" & $A87,Equipment!$C$13:$C$211,0)),\"\")","v":""},null,null,"",null,{"$f":"IFERROR(IF(B87<>\"eligible\",0,0.341*INDEX(OpHours,MATCH(Equipment!$D$7,BuildingType,0))*INDEX(Equipment!$M$13:$M$212,MATCH(\"NewRTU\"&A87,Equipment!$C$13:$C$211,0))),0)","v":0}]
[73,{"$f":"IFERROR(IF(\nAND(\n    E88>=0,\n    1>INDEX(Equipment!K:K,MATCH(\"NewRTU\"&A88,Equipment!C:C,0))\n),\n\"eligible\",\n\"ineligible\"),\"\")","v":""},{"$f":"IFERROR(INDEX(Equipment!$D:$D,MATCH(\"NewRTU\" & A88,Equipment!$C:$C,0)),\"\")","v":""},null,{"$f":"IFERROR(INDEX(Equipment!$L$13:$L$212,MATCH(\"NewRTU\" & $A88,Equipment!$C$13:$C$211,0)),\"\")","v":""},null,null,"",null,{"$f":"IFERROR(IF(B88<>\"eligible\",0,0.341*INDEX(OpHours,MATCH(Equipment!$D$7,BuildingType,0))*INDEX(Equipment!$M$13:$M$212,MATCH(\"NewRTU\"&A88,Equipment!$C$13:$C$211,0))),0)","v":0}]
[74,{"$f":"IFERROR(IF(\nAND(\n    E89>=0,\n    1>INDEX(Equipment!K:K,MATCH(\"NewRTU\"&A89,Equipment!C:C,0))\n),\n\"eligible\",\n\"ineligible\"),\"\")","v":""},{"$f":"IFERROR(INDEX(Equipment!$D:$D,MATCH(\"NewRTU\" & A89,Equipment!$C:$C,0)),\"\")","v":""},null,{"$f":"IFERROR(INDEX(Equipment!$L$13:$L$212,MATCH(\"NewRTU\" & $A89,Equipment!$C$13:$C$211,0)),\"\")","v":""},null,null,"",null,{"$f":"IFERROR(IF(B89<>\"eligible\",0,0.341*INDEX(OpHours,MATCH(Equipment!$D$7,BuildingType,0))*INDEX(Equipment!$M$13:$M$212,MATCH(\"NewRTU\"&A89,Equipment!$C$13:$C$211,0))),0)","v":0}]
[75,{"$f":"IFERROR(IF(\nAND(\n    E90>=0,\n    1>INDEX(Equipment!K:K,MATCH(\"NewRTU\"&A90,Equipment!C:C,0))\n),\n\"eligible\",\n\"ineligible\"),\"\")","v":""},{"$f":"IFERROR(INDEX(Equipment!$D:$D,MATCH(\"NewRTU\" & A90,Equipment!$C:$C,0)),\"\")","v":""},null,{"$f":"IFERROR(INDEX(Equipment!$L$13:$L$212,MATCH(\"NewRTU\" & $A90,Equipment!$C$13:$C$211,0)),\"\")","v":""},null,null,"",null,{"$f":"IFERROR(IF(B90<>\"eligible\",0,0.341*INDEX(OpHours,MATCH(Equipment!$D$7,BuildingType,0))*INDEX(Equipment!$M$13:$M$212,MATCH(\"NewRTU\"&A90,Equipment!$C$13:$C$211,0))),0)","v":0}]
[76,{"$f":"IFERROR(IF(\nAND(\n    E91>=0,\n    1>INDEX(Equipment!K:K,MATCH(\"NewRTU\"&A91,Equipment!C:C,0))\n),\n\"eligible\",\n\"ineligible\"),\"\")","v":""},{"$f":"IFERROR(INDEX(Equipment!$D:$D,MATCH(\"NewRTU\" & A91,Equipment!$C:$C,0)),\"\")","v":""},null,{"$f":"IFERROR(INDEX(Equipment!$L$13:$L$212,MATCH(\"NewRTU\" & $A91,Equipment!$C$13:$C$211,0)),\"\")","v":""},null,null,"",null,{"$f":"IFERROR(IF(B91<>\"eligible\",0,0.341*INDEX(OpHours,MATCH(Equipment!$D$7,BuildingType,0))*INDEX(Equipment!$M$13:$M$212,MATCH(\"NewRTU\"&A91,Equipment!$C$13:$C$211,0))),0)","v":0}]
[77,{"$f":"IFERROR(IF(\nAND(\n    E92>=0,\n    1>INDEX(Equipment!K:K,MATCH(\"NewRTU\"&A92,Equipment!C:C,0))\n),\n\"eligible\",\n\"ineligible\"),\"\")","v":""},{"$f":"IFERROR(INDEX(Equipment!$D:$D,MATCH(\"NewRTU\" & A92,Equipment!$C:$C,0)),\"\")","v":""},null,{"$f":"IFERROR(INDEX(Equipment!$L$13:$L$212,MATCH(\"NewRTU\" & $A92,Equipment!$C$13:$C$211,0)),\"\")","v":""},null,null,"",null,{"$f":"IFERROR(IF(B92<>\"eligible\",0,0.341*INDEX(OpHours,MATCH(Equipment!$D$7,BuildingType,0))*INDEX(Equipment!$M$13:$M$212,MATCH(\"NewRTU\"&A92,Equipment!$C$13:$C$211,0))),0)","v":0}]
[78,{"$f":"IFERROR(IF(\nAND(\n    E93>=0,\n    1>INDEX(Equipment!K:K,MATCH(\"NewRTU\"&A93,Equipment!C:C,0))\n),\n\"eligible\",\n\"ineligible\"),\"\")","v":""},{"$f":"IFERROR(INDEX(Equipment!$D:$D,MATCH(\"NewRTU\" & A93,Equipment!$C:$C,0)),\"\")","v":""},null,{"$f":"IFERROR(INDEX(Equipment!$L$13:$L$212,MATCH(\"NewRTU\" & $A93,Equipment!$C$13:$C$211,0)),\"\")","v":""},null,null,"",null,{"$f":"IFERROR(IF(B93<>\"eligible\",0,0.341*INDEX(OpHours,MATCH(Equipment!$D$7,BuildingType,0))*INDEX(Equipment!$M$13:$M$212,MATCH(\"NewRTU\"&A93,Equipment!$C$13:$C$211,0))),0)","v":0}]
[79,{"$f":"IFERROR(IF(\nAND(\n    E94>=0,\n    1>INDEX(Equipment!K:K,MATCH(\"NewRTU\"&A94,Equipment!C:C,0))\n),\n\"eligible\",\n\"ineligible\"),\"\")","v":""},{"$f":"IFERROR(INDEX(Equipment!$D:$D,MATCH(\"NewRTU\" & A94,Equipment!$C:$C,0)),\"\")","v":""},null,{"$f":"IFERROR(INDEX(Equipment!$L$13:$L$212,MATCH(\"NewRTU\" & $A94,Equipment!$C$13:$C$211,0)),\"\")","v":""},null,null,"",null,{"$f":"IFERROR(IF(B94<>\"eligible\",0,0.341*INDEX(OpHours,MATCH(Equipment!$D$7,BuildingType,0))*INDEX(Equipment!$M$13:$M$212,MATCH(\"NewRTU\"&A94,Equipment!$C$13:$C$211,0))),0)","v":0}]
[80,{"$f":"IFERROR(IF(\nAND(\n    E95>=0,\n    1>INDEX(Equipment!K:K,MATCH(\"NewRTU\"&A95,Equipment!C:C,0))\n),\n\"eligible\",\n\"ineligible\"),\"\")","v":""},{"$f":"IFERROR(INDEX(Equipment!$D:$D,MATCH(\"NewRTU\" & A95,Equipment!$C:$C,0)),\"\")","v":""},null,{"$f":"IFERROR(INDEX(Equipment!$L$13:$L$212,MATCH(\"NewRTU\" & $A95,Equipment!$C$13:$C$211,0)),\"\")","v":""},null,null,"",null,{"$f":"IFERROR(IF(B95<>\"eligible\",0,0.341*INDEX(OpHours,MATCH(Equipment!$D$7,BuildingType,0))*INDEX(Equipment!$M$13:$M$212,MATCH(\"NewRTU\"&A95,Equipment!$C$13:$C$211,0))),0)","v":0}]
[81,{"$f":"IFERROR(IF(\nAND(\n    E96>=0,\n    1>INDEX(Equipment!K:K,MATCH(\"NewRTU\"&A96,Equipment!C:C,0))\n),\n\"eligible\",\n\"ineligible\"),\"\")","v":""},{"$f":"IFERROR(INDEX(Equipment!$D:$D,MATCH(\"NewRTU\" & A96,Equipment!$C:$C,0)),\"\")","v":""},null,{"$f":"IFERROR(INDEX(Equipment!$L$13:$L$212,MATCH(\"NewRTU\" & $A96,Equipment!$C$13:$C$211,0)),\"\")","v":""},null,null,"",null,{"$f":"IFERROR(IF(B96<>\"eligible\",0,0.341*INDEX(OpHours,MATCH(Equipment!$D$7,BuildingType,0))*INDEX(Equipment!$M$13:$M$212,MATCH(\"NewRTU\"&A96,Equipment!$C$13:$C$211,0))),0)","v":0}]
[82,{"$f":"IFERROR(IF(\nAND(\n    E97>=0,\n    1>INDEX(Equipment!K:K,MATCH(\"NewRTU\"&A97,Equipment!C:C,0))\n),\n\"eligible\",\n\"ineligible\"),\"\")","v":""},{"$f":"IFERROR(INDEX(Equipment!$D:$D,MATCH(\"NewRTU\" & A97,Equipment!$C:$C,0)),\"\")","v":""},null,{"$f":"IFERROR(INDEX(Equipment!$L$13:$L$212,MATCH(\"NewRTU\" & $A97,Equipment!$C$13:$C$211,0)),\"\")","v":""},null,null,"",null,{"$f":"IFERROR(IF(B97<>\"eligible\",0,0.341*INDEX(OpHours,MATCH(Equipment!$D$7,BuildingType,0))*INDEX(Equipment!$M$13:$M$212,MATCH(\"NewRTU\"&A97,Equipment!$C$13:$C$211,0))),0)","v":0}]
[83,{"$f":"IFERROR(IF(\nAND(\n    E98>=0,\n    1>INDEX(Equipment!K:K,MATCH(\"NewRTU\"&A98,Equipment!C:C,0))\n),\n\"eligible\",\n\"ineligible\"),\"\")","v":""},{"$f":"IFERROR(INDEX(Equipment!$D:$D,MATCH(\"NewRTU\" & A98,Equipment!$C:$C,0)),\"\")","v":""},null,{"$f":"IFERROR(INDEX(Equipment!$L$13:$L$212,MATCH(\"NewRTU\" & $A98,Equipment!$C$13:$C$211,0)),\"\")","v":""},null,null,"",null,{"$f":"IFERROR(IF(B98<>\"eligible\",0,0.341*INDEX(OpHours,MATCH(Equipment!$D$7,BuildingType,0))*INDEX(Equipment!$M$13:$M$212,MATCH(\"NewRTU\"&A98,Equipment!$C$13:$C$211,0))),0)","v":0}]
[84,{"$f":"IFERROR(IF(\nAND(\n    E99>=0,\n    1>INDEX(Equipment!K:K,MATCH(\"NewRTU\"&A99,Equipment!C:C,0))\n),\n\"eligible\",\n\"ineligible\"),\"\")","v":""},{"$f":"IFERROR(INDEX(Equipment!$D:$D,MATCH(\"NewRTU\" & A99,Equipment!$C:$C,0)),\"\")","v":""},null,{"$f":"IFERROR(INDEX(Equipment!$L$13:$L$212,MATCH(\"NewRTU\" & $A99,Equipment!$C$13:$C$211,0)),\"\")","v":""},null,null,"",null,{"$f":"IFERROR(IF(B99<>\"eligible\",0,0.341*INDEX(OpHours,MATCH(Equipment!$D$7,BuildingType,0))*INDEX(Equipment!$M$13:$M$212,MATCH(\"NewRTU\"&A99,Equipment!$C$13:$C$211,0))),0)","v":0}]
[85,{"$f":"IFERROR(IF(\nAND(\n    E100>=0,\n    1>INDEX(Equipment!K:K,MATCH(\"NewRTU\"&A100,Equipment!C:C,0))\n),\n\"eligible\",\n\"ineligible\"),\"\")","v":""},{"$f":"IFERROR(INDEX(Equipment!$D:$D,MATCH(\"NewRTU\" & A100,Equipment!$C:$C,0)),\"\")","v":""},null,{"$f":"IFERROR(INDEX(Equipment!$L$13:$L$212,MATCH(\"NewRTU\" & $A100,Equipment!$C$13:$C$211,0)),\"\")","v":""},null,null,"",null,{"$f":"IFERROR(IF(B100<>\"eligible\",0,0.341*INDEX(OpHours,MATCH(Equipment!$D$7,BuildingType,0))*INDEX(Equipment!$M$13:$M$212,MATCH(\"NewRTU\"&A100,Equipment!$C$13:$C$211,0))),0)","v":0}]
[86,{"$f":"IFERROR(IF(\nAND(\n    E101>=0,\n    1>INDEX(Equipment!K:K,MATCH(\"NewRTU\"&A101,Equipment!C:C,0))\n),\n\"eligible\",\n\"ineligible\"),\"\")","v":""},{"$f":"IFERROR(INDEX(Equipment!$D:$D,MATCH(\"NewRTU\" & A101,Equipment!$C:$C,0)),\"\")","v":""},null,{"$f":"IFERROR(INDEX(Equipment!$L$13:$L$212,MATCH(\"NewRTU\" & $A101,Equipment!$C$13:$C$211,0)),\"\")","v":""},null,null,"",null,{"$f":"IFERROR(IF(B101<>\"eligible\",0,0.341*INDEX(OpHours,MATCH(Equipment!$D$7,BuildingType,0))*INDEX(Equipment!$M$13:$M$212,MATCH(\"NewRTU\"&A101,Equipment!$C$13:$C$211,0))),0)","v":0}]
[87,{"$f":"IFERROR(IF(\nAND(\n    E102>=0,\n    1>INDEX(Equipment!K:K,MATCH(\"NewRTU\"&A102,Equipment!C:C,0))\n),\n\"eligible\",\n\"ineligible\"),\"\")","v":""},{"$f":"IFERROR(INDEX(Equipment!$D:$D,MATCH(\"NewRTU\" & A102,Equipment!$C:$C,0)),\"\")","v":""},null,{"$f":"IFERROR(INDEX(Equipment!$L$13:$L$212,MATCH(\"NewRTU\" & $A102,Equipment!$C$13:$C$211,0)),\"\")","v":""},null,null,"",null,{"$f":"IFERROR(IF(B102<>\"eligible\",0,0.341*INDEX(OpHours,MATCH(Equipment!$D$7,BuildingType,0))*INDEX(Equipment!$M$13:$M$212,MATCH(\"NewRTU\"&A102,Equipment!$C$13:$C$211,0))),0)","v":0}]
[88,{"$f":"IFERROR(IF(\nAND(\n    E103>=0,\n    1>INDEX(Equipment!K:K,MATCH(\"NewRTU\"&A103,Equipment!C:C,0))\n),\n\"eligible\",\n\"ineligible\"),\"\")","v":""},{"$f":"IFERROR(INDEX(Equipment!$D:$D,MATCH(\"NewRTU\" & A103,Equipment!$C:$C,0)),\"\")","v":""},null,{"$f":"IFERROR(INDEX(Equipment!$L$13:$L$212,MATCH(\"NewRTU\" & $A103,Equipment!$C$13:$C$211,0)),\"\")","v":""},null,null,"",null,{"$f":"IFERROR(IF(B103<>\"eligible\",0,0.341*INDEX(OpHours,MATCH(Equipment!$D$7,BuildingType,0))*INDEX(Equipment!$M$13:$M$212,MATCH(\"NewRTU\"&A103,Equipment!$C$13:$C$211,0))),0)","v":0}]
[89,{"$f":"IFERROR(IF(\nAND(\n    E104>=0,\n    1>INDEX(Equipment!K:K,MATCH(\"NewRTU\"&A104,Equipment!C:C,0))\n),\n\"eligible\",\n\"ineligible\"),\"\")","v":""},{"$f":"IFERROR(INDEX(Equipment!$D:$D,MATCH(\"NewRTU\" & A104,Equipment!$C:$C,0)),\"\")","v":""},null,{"$f":"IFERROR(INDEX(Equipment!$L$13:$L$212,MATCH(\"NewRTU\" & $A104,Equipment!$C$13:$C$211,0)),\"\")","v":""},null,null,"",null,{"$f":"IFERROR(IF(B104<>\"eligible\",0,0.341*INDEX(OpHours,MATCH(Equipment!$D$7,BuildingType,0))*INDEX(Equipment!$M$13:$M$212,MATCH(\"NewRTU\"&A104,Equipment!$C$13:$C$211,0))),0)","v":0}]
[90,{"$f":"IFERROR(IF(\nAND(\n    E105>=0,\n    1>INDEX(Equipment!K:K,MATCH(\"NewRTU\"&A105,Equipment!C:C,0))\n),\n\"eligible\",\n\"ineligible\"),\"\")","v":""},{"$f":"IFERROR(INDEX(Equipment!$D:$D,MATCH(\"NewRTU\" & A105,Equipment!$C:$C,0)),\"\")","v":""},null,{"$f":"IFERROR(INDEX(Equipment!$L$13:$L$212,MATCH(\"NewRTU\" & $A105,Equipment!$C$13:$C$211,0)),\"\")","v":""},null,null,"",null,{"$f":"IFERROR(IF(B105<>\"eligible\",0,0.341*INDEX(OpHours,MATCH(Equipment!$D$7,BuildingType,0))*INDEX(Equipment!$M$13:$M$212,MATCH(\"NewRTU\"&A105,Equipment!$C$13:$C$211,0))),0)","v":0}]
[91,{"$f":"IFERROR(IF(\nAND(\n    E106>=0,\n    1>INDEX(Equipment!K:K,MATCH(\"NewRTU\"&A106,Equipment!C:C,0))\n),\n\"eligible\",\n\"ineligible\"),\"\")","v":""},{"$f":"IFERROR(INDEX(Equipment!$D:$D,MATCH(\"NewRTU\" & A106,Equipment!$C:$C,0)),\"\")","v":""},null,{"$f":"IFERROR(INDEX(Equipment!$L$13:$L$212,MATCH(\"NewRTU\" & $A106,Equipment!$C$13:$C$211,0)),\"\")","v":""},null,null,"",null,{"$f":"IFERROR(IF(B106<>\"eligible\",0,0.341*INDEX(OpHours,MATCH(Equipment!$D$7,BuildingType,0))*INDEX(Equipment!$M$13:$M$212,MATCH(\"NewRTU\"&A106,Equipment!$C$13:$C$211,0))),0)","v":0}]
[92,{"$f":"IFERROR(IF(\nAND(\n    E107>=0,\n    1>INDEX(Equipment!K:K,MATCH(\"NewRTU\"&A107,Equipment!C:C,0))\n),\n\"eligible\",\n\"ineligible\"),\"\")","v":""},{"$f":"IFERROR(INDEX(Equipment!$D:$D,MATCH(\"NewRTU\" & A107,Equipment!$C:$C,0)),\"\")","v":""},null,{"$f":"IFERROR(INDEX(Equipment!$L$13:$L$212,MATCH(\"NewRTU\" & $A107,Equipment!$C$13:$C$211,0)),\"\")","v":""},null,null,"",null,{"$f":"IFERROR(IF(B107<>\"eligible\",0,0.341*INDEX(OpHours,MATCH(Equipment!$D$7,BuildingType,0))*INDEX(Equipment!$M$13:$M$212,MATCH(\"NewRTU\"&A107,Equipment!$C$13:$C$211,0))),0)","v":0}]
[93,{"$f":"IFERROR(IF(\nAND(\n    E108>=0,\n    1>INDEX(Equipment!K:K,MATCH(\"NewRTU\"&A108,Equipment!C:C,0))\n),\n\"eligible\",\n\"ineligible\"),\"\")","v":""},{"$f":"IFERROR(INDEX(Equipment!$D:$D,MATCH(\"NewRTU\" & A108,Equipment!$C:$C,0)),\"\")","v":""},null,{"$f":"IFERROR(INDEX(Equipment!$L$13:$L$212,MATCH(\"NewRTU\" & $A108,Equipment!$C$13:$C$211,0)),\"\")","v":""},null,null,"",null,{"$f":"IFERROR(IF(B108<>\"eligible\",0,0.341*INDEX(OpHours,MATCH(Equipment!$D$7,BuildingType,0))*INDEX(Equipment!$M$13:$M$212,MATCH(\"NewRTU\"&A108,Equipment!$C$13:$C$211,0))),0)","v":0}]
[94,{"$f":"IFERROR(IF(\nAND(\n    E109>=0,\n    1>INDEX(Equipment!K:K,MATCH(\"NewRTU\"&A109,Equipment!C:C,0))\n),\n\"eligible\",\n\"ineligible\"),\"\")","v":""},{"$f":"IFERROR(INDEX(Equipment!$D:$D,MATCH(\"NewRTU\" & A109,Equipment!$C:$C,0)),\"\")","v":""},null,{"$f":"IFERROR(INDEX(Equipment!$L$13:$L$212,MATCH(\"NewRTU\" & $A109,Equipment!$C$13:$C$211,0)),\"\")","v":""},null,null,"",null,{"$f":"IFERROR(IF(B109<>\"eligible\",0,0.341*INDEX(OpHours,MATCH(Equipment!$D$7,BuildingType,0))*INDEX(Equipment!$M$13:$M$212,MATCH(\"NewRTU\"&A109,Equipment!$C$13:$C$211,0))),0)","v":0}]
[95,{"$f":"IFERROR(IF(\nAND(\n    E110>=0,\n    1>INDEX(Equipment!K:K,MATCH(\"NewRTU\"&A110,Equipment!C:C,0))\n),\n\"eligible\",\n\"ineligible\"),\"\")","v":""},{"$f":"IFERROR(INDEX(Equipment!$D:$D,MATCH(\"NewRTU\" & A110,Equipment!$C:$C,0)),\"\")","v":""},null,{"$f":"IFERROR(INDEX(Equipment!$L$13:$L$212,MATCH(\"NewRTU\" & $A110,Equipment!$C$13:$C$211,0)),\"\")","v":""},null,null,"",null,{"$f":"IFERROR(IF(B110<>\"eligible\",0,0.341*INDEX(OpHours,MATCH(Equipment!$D$7,BuildingType,0))*INDEX(Equipment!$M$13:$M$212,MATCH(\"NewRTU\"&A110,Equipment!$C$13:$C$211,0))),0)","v":0}]

{"sheet":"ARC - DCV Only","index":5,"n_rows":110,"n_cols":21,"rows_kept":110,"cut":false,"hidden":true,"merged":[[109,2,109,3],[109,5,109,6],[109,7,109,8],[107,2,107,3],[107,5,107,6],[107,7,107,8],[108,2,108,3],[108,5,108,6],[108,7,108,8],[105,2,105,3],[105,5,105,6],[105,7,105,8],[106,2,106,3],[106,5,106,6],[106,7,106,8],[103,2,103,3],[103,5,103,6],[103,7,103,8],[104,2,104,3],[104,5,104,6],[104,7,104,8],[101,2,101,3],[101,5,101,6],[101,7,101,8],[102,2,102,3],[102,5,102,6],[102,7,102,8],[99,2,99,3],[99,5,99,6],[99,7,99,8],[100,2,100,3],[100,5,100,6],[100,7,100,8],[97,2,97,3],[97,5,97,6],[97,7,97,8],[98,2,98,3],[98,5,98,6],[98,7,98,8],[95,2,95,3],[95,5,95,6],[95,7,95,8],[96,2,96,3],[96,5,96,6],[96,7,96,8],[93,2,93,3],[93,5,93,6],[93,7,93,8],[94,2,94,3],[94,5,94,6],[94,7,94,8],[91,2,91,3],[91,5,91,6],[91,7,91,8],[92,2,92,3],[92,5,92,6],[92,7,92,8],[89,2,89,3],[89,5,89,6],[89,7,89,8],[90,2,90,3],[90,5,90,6],[90,7,90,8],[87,2,87,3],[87,5,87,6],[87,7,87,8],[88,2,88,3],[88,5,88,6],[88,7,88,8],[85,2,85,3],[85,5,85,6],[85,7,85,8],[86,2,86,3],[86,5,86,6],[86,7,86,8],[83,2,83,3],[83,5,83,6],[83,7,83,8],[84,2,84,3],[84,5,84,6],[84,7,84,8],[81,2,81,3],[81,5,81,6],[81,7,81,8],[82,2,82,3],[82,5,82,6],[82,7,82,8],[79,2,79,3],[79,5,79,6],[79,7,79,8],[80,2,80,3],[80,5,80,6],[80,7,80,8],[77,2,77,3],[77,5,77,6],[77,7,77,8],[78,2,78,3],[78,5,78,6],[78,7,78,8],[75,2,75,3],[75,5,75,6],[75,7,75,8],[76,2,76,3],[76,5,76,6],[76,7,76,8],[73,2,73,3],[73,5,73,6],[73,7,73,8],[74,2,74,3],[74,5,74,6],[74,7,74,8],[71,2,71,3],[71,5,71,6],[71,7,71,8],[72,2,72,3],[72,5,72,6],[72,7,72,8],[69,2,69,3],[69,5,69,6],[69,7,69,8],[70,2,70,3],[70,5,70,6],[70,7,70,8],[67,2,67,3],[67,5,67,6],[67,7,67,8],[68,2,68,3],[68,5,68,6],[68,7,68,8],[65,2,65,3],[65,5,65,6],[65,7,65,8],[66,2,66,3],[66,5,66,6],[66,7,66,8],[63,2,63,3],[63,5,63,6],[63,7,63,8],[64,2,64,3],[64,5,64,6],[64,7,64,8],[61,2,61,3],[61,5,61,6],[61,7,61,8],[62,2,62,3],[62,5,62,6],[62,7,62,8],[59,2,59,3],[59,5,59,6],[59,7,59,8],[60,2,60,3],[60,5,60,6],[60,7,60,8],[57,2,57,3],[57,5,57,6],[57,7,57,8],[58,2,58,3],[58,5,58,6],[58,7,58,8],[55,2,55,3],[55,5,55,6],[55,7,55,8],[56,2,56,3],[56,5,56,6],[56,7,56,8],[53,2,53,3],[53,5,53,6],[53,7,53,8],[54,2,54,3],[54,5,54,6],[54,7,54,8],[51,2,51,3],[51,5,51,6],[51,7,51,8],[52,2,52,3],[52,5,52,6],[52,7,52,8],[49,2,49,3],[49,5,49,6],[49,7,49,8],[50,2,50,3],[50,5,50,6],[50,7,50,8],[47,2,47,3],[47,5,47,6],[47,7,47,8],[48,2,48,3],[48,5,48,6],[48,7,48,8],[45,2,45,3],[45,5,45,6],[45,7,45,8],[46,2,46,3],[46,5,46,6],[46,7,46,8],[43,2,43,3],[43,5,43,6],[43,7,43,8],[44,2,44,3],[44,5,44,6],[44,7,44,8],[41,2,41,3],[41,5,41,6],[41,7,41,8],[42,2,42,3],[42,5,42,6],[42,7,42,8],[39,2,39,3],[39,5,39,6],[39,7,39,8],[40,2,40,3],[40,5,40,6],[40,7,40,8],[37,2,37,3],[37,5,37,6],[37,7,37,8],[38,2,38,3],[38,5,38,6],[38,7,38,8],[35,2,35,3],[35,5,35,6],[35,7,35,8],[36,2,36,3],[36,5,36,6],[36,7,36,8],[33,2,33,3],[33,5,33,6],[33,7,33,8],[34,2,34,3],[34,5,34,6],[34,7,34,8],[31,2,31,3],[31,5,31,6],[31,7,31,8],[32,2,32,3],[32,5,32,6],[32,7,32,8],[29,2,29,3],[29,5,29,6],[29,7,29,8],[30,2,30,3],[30,5,30,6],[30,7,30,8],[27,2,27,3],[27,5,27,6],[27,7,27,8],[28,2,28,3],[28,5,28,6],[28,7,28,8],[25,2,25,3],[25,5,25,6],[25,7,25,8],[26,2,26,3],[26,5,26,6],[26,7,26,8],[23,2,23,3],[23,5,23,6],[23,7,23,8],[24,2,24,3],[24,5,24,6],[24,7,24,8],[21,2,21,3],[21,5,21,6],[21,7,21,8],[22,2,22,3],[22,5,22,6],[22,7,22,8],[19,2,19,3],[19,5,19,6],[19,7,19,8],[20,2,20,3],[20,5,20,6],[20,7,20,8],[17,2,17,3],[17,5,17,6],[17,7,17,8],[18,2,18,3],[18,5,18,6],[18,7,18,8],[15,2,15,3],[15,5,15,6],[15,7,15,8],[16,2,16,3],[16,5,16,6],[16,7,16,8],[12,2,12,6],[13,2,14,3],[13,5,14,6],[13,7,14,8],[4,20,5,23],[6,20,8,23],[5,2,5,11],[6,2,6,11],[7,2,7,11],[8,2,8,11],[9,2,9,11],[10,2,10,11]]}
[null,null,null,null,"HIDE",null,null,null,null,"HIDE"]
[null,"Advanced Rooftop Controls (DCV Only)",null,null,null,null,null,null,null,null,null,null,"Total kWh/yr Savings",{"$f":"SUM(J16:J110)","v":0},null,"Incentive",{"$f":"SUM(H16:I110)","v":0}]
[null,null,null,null,null,null,null,null,null,"Customer Costs",{"$f":"SUM(F16:G110)","v":0},null,"Total kW Savings",0,null,"Electric Cost Savings/YR",{"$f":"IFERROR(N2*INDEX(kWhRates,MATCH(RateSchedule,RateSchedules,0))+N3*12*INDEX(kWRates,MATCH(RateSchedule,RateSchedules,0)),0)","v":0},null,null,null,"Instructions"]
[null,null,null,null,null,null,null,null,null,null,null,null,null,null,null,null,null,null,null,null,"1. Complete yellow cells."]
[null,null,"Confirm the following:",null,null,null,null,null,null,null,null,null,null,null,null,null,null,null,null,null,"Note"]
[null,null,"1. RTU is ≥ 5 tons"]
[null,null,"2. Control is installed on an existing unitary package rooftop unit (no split-systems)",null,null,null,null,null,null,null,null,null,null,null,null,null,null,null,null,null,"All fields must be completed to calculate the savings & incentives"]
[null,null,"3. Existing rooftop unit is less than 15 years old"]
[null,null,"4. Control includes CO2 or occupancy based sensor that determines ventillation and space conditioning needs"]
[null,null,"5. Control includes digital, integrated economizer controls"]
[]
[]
[null,null,"Equipment Details: "]
[null,null,"Rooftop Unit Label (from equipment tab)",null,"RTU Size","Customer Cost",null,"Estimated Incentive",null,"kWh"]
[]
[1,{"$f":"IFERROR(IF(\nAND(\n    E16>=0,\n    15>INDEX(Equipment!K:K,MATCH(\"DCVOnly\"&A16,Equipment!C:C,0))\n),\n\"eligible\",\n\"ineligible\"),\"\")","v":""},{"$f":"IFERROR(INDEX(Equipment!$D:$D,MATCH(\"DCVOnly\" & A16,Equipment!$C:$C,0)),\"\")","v":""},null,{"$f":"IFERROR(INDEX(Equipment!$L:$L,MATCH(\"DCVOnly\" & $A16,Equipment!$C:$C,0)),\"\")","v":""},null,null,{"$f":"IF(E16=\"\",\"\",IF(B16<>\"eligible\",0,IF(AND(E16>=5,E16<=10),500,IF(AND(E16>10,E16<=15),600,IF(AND(E16>15,E16<=20),700,IF(AND(E16>20),800,IF(AND(E16>0,E16<5),300,0)))))))","v":""},null,{"$f":"IFERROR(IF(B16<>\"eligible\",0,0.223*INDEX(OpHours,MATCH(Equipment!$D$7,BuildingType,0))*INDEX(Equipment!$M$13:$M$212,MATCH(\"DCVOnly\"&A16,Equipment!$C$13:$C$211,0))),0)","v":0}]
[2,{"$f":"IFERROR(IF(\nAND(\n    E17>=0,\n    15>INDEX(Equipment!K:K,MATCH(\"DCVOnly\"&A17,Equipment!C:C,0))\n),\n\"eligible\",\n\"ineligible\"),\"\")","v":""},{"$f":"IFERROR(INDEX(Equipment!$D:$D,MATCH(\"DCVOnly\" & A17,Equipment!$C:$C,0)),\"\")","v":""},null,{"$f":"IFERROR(INDEX(Equipment!$L:$L,MATCH(\"DCVOnly\" & $A17,Equipment!$C:$C,0)),\"\")","v":""},null,null,{"$f":"IF(E17=\"\",\"\",IF(B17<>\"eligible\",0,IF(AND(E17>=5,E17<=10),500,IF(AND(E17>10,E17<=15),600,IF(AND(E17>15,E17<=20),700,IF(AND(E17>20),800,IF(AND(E17>0,E17<5),300,0)))))))","v":""},null,{"$f":"IFERROR(IF(B17<>\"eligible\",0,0.223*INDEX(OpHours,MATCH(Equipment!$D$7,BuildingType,0))*INDEX(Equipment!$M$13:$M$212,MATCH(\"DCVOnly\"&A17,Equipment!$C$12:$C$211,0))),0)","v":0}]
[3,{"$f":"IFERROR(IF(\nAND(\n    E18>=0,\n    15>INDEX(Equipment!K:K,MATCH(\"DCVOnly\"&A18,Equipment!C:C,0))\n),\n\"eligible\",\n\"ineligible\"),\"\")","v":""},{"$f":"IFERROR(INDEX(Equipment!$D:$D,MATCH(\"DCVOnly\" & A18,Equipment!$C:$C,0)),\"\")","v":""},null,{"$f":"IFERROR(INDEX(Equipment!$L:$L,MATCH(\"DCVOnly\" & $A18,Equipment!$C:$C,0)),\"\")","v":""},null,null,"",null,{"$f":"IFERROR(IF(B18<>\"eligible\",0,0.223*INDEX(OpHours,MATCH(Equipment!$D$7,BuildingType,0))*INDEX(Equipment!$M$13:$M$212,MATCH(\"DCVOnly\"&A18,Equipment!$C$12:$C$211,0))),0)","v":0}]
[4,{"$f":"IFERROR(IF(\nAND(\n    E19>=0,\n    15>INDEX(Equipment!K:K,MATCH(\"DCVOnly\"&A19,Equipment!C:C,0))\n),\n\"eligible\",\n\"ineligible\"),\"\")","v":""},{"$f":"IFERROR(INDEX(Equipment!$D:$D,MATCH(\"DCVOnly\" & A19,Equipment!$C:$C,0)),\"\")","v":""},null,{"$f":"IFERROR(INDEX(Equipment!$L:$L,MATCH(\"DCVOnly\" & $A19,Equipment!$C:$C,0)),\"\")","v":""},null,null,"",null,{"$f":"IFERROR(IF(B19<>\"eligible\",0,0.223*INDEX(OpHours,MATCH(Equipment!$D$7,BuildingType,0))*INDEX(Equipment!$M$13:$M$212,MATCH(\"DCVOnly\"&A19,Equipment!$C$12:$C$211,0))),0)","v":0}]
[5,{"$f":"IFERROR(IF(\nAND(\n    E20>=0,\n    15>INDEX(Equipment!K:K,MATCH(\"DCVOnly\"&A20,Equipment!C:C,0))\n),\n\"eligible\",\n\"ineligible\"),\"\")","v":""},{"$f":"IFERROR(INDEX(Equipment!$D:$D,MATCH(\"DCVOnly\" & A20,Equipment!$C:$C,0)),\"\")","v":""},null,{"$f":"IFERROR(INDEX(Equipment!$L:$L,MATCH(\"DCVOnly\" & $A20,Equipment!$C:$C,0)),\"\")","v":""},null,null,"",null,{"$f":"IFERROR(IF(B20<>\"eligible\",0,0.223*INDEX(OpHours,MATCH(Equipment!$D$7,BuildingType,0))*INDEX(Equipment!$M$13:$M$212,MATCH(\"DCVOnly\"&A20,Equipment!$C$12:$C$211,0))),0)","v":0}]
[6,{"$f":"IFERROR(IF(\nAND(\n    E21>=0,\n    15>INDEX(Equipment!K:K,MATCH(\"DCVOnly\"&A21,Equipment!C:C,0))\n),\n\"eligible\",\n\"ineligible\"),\"\")","v":""},{"$f":"IFERROR(INDEX(Equipment!$D:$D,MATCH(\"DCVOnly\" & A21,Equipment!$C:$C,0)),\"\")","v":""},null,{"$f":"IFERROR(INDEX(Equipment!$L:$L,MATCH(\"DCVOnly\" & $A21,Equipment!$C:$C,0)),\"\")","v":""},null,null,"",null,{"$f":"IFERROR(IF(B21<>\"eligible\",0,0.223*INDEX(OpHours,MATCH(Equipment!$D$7,BuildingType,0))*INDEX(Equipment!$M$13:$M$212,MATCH(\"DCVOnly\"&A21,Equipment!$C$12:$C$211,0))),0)","v":0}]
[7,{"$f":"IFERROR(IF(\nAND(\n    E22>=0,\n    15>INDEX(Equipment!K:K,MATCH(\"DCVOnly\"&A22,Equipment!C:C,0))\n),\n\"eligible\",\n\"ineligible\"),\"\")","v":""},{"$f":"IFERROR(INDEX(Equipment!$D:$D,MATCH(\"DCVOnly\" & A22,Equipment!$C:$C,0)),\"\")","v":""},null,{"$f":"IFERROR(INDEX(Equipment!$L:$L,MATCH(\"DCVOnly\" & $A22,Equipment!$C:$C,0)),\"\")","v":""},null,null,"",null,{"$f":"IFERROR(IF(B22<>\"eligible\",0,0.223*INDEX(OpHours,MATCH(Equipment!$D$7,BuildingType,0))*INDEX(Equipment!$M$13:$M$212,MATCH(\"DCVOnly\"&A22,Equipment!$C$12:$C$211,0))),0)","v":0}]
[8,{"$f":"IFERROR(IF(\nAND(\n    E23>=0,\n    15>INDEX(Equipment!K:K,MATCH(\"DCVOnly\"&A23,Equipment!C:C,0))\n),\n\"eligible\",\n\"ineligible\"),\"\")","v":""},{"$f":"IFERROR(INDEX(Equipment!$D:$D,MATCH(\"DCVOnly\" & A23,Equipment!$C:$C,0)),\"\")","v":""},null,{"$f":"IFERROR(INDEX(Equipment!$L:$L,MATCH(\"DCVOnly\" & $A23,Equipment!$C:$C,0)),\"\")","v":""},null,null,"",null,{"$f":"IFERROR(IF(B23<>\"eligible\",0,0.223*INDEX(OpHours,MATCH(Equipment!$D$7,BuildingType,0))*INDEX(Equipment!$M$13:$M$212,MATCH(\"DCVOnly\"&A23,Equipment!$C$12:$C$211,0))),0)","v":0}]
[9,{"$f":"IFERROR(IF(\nAND(\n    E24>=0,\n    15>INDEX(Equipment!K:K,MATCH(\"DCVOnly\"&A24,Equipment!C:C,0))\n),\n\"eligible\",\n\"ineligible\"),\"\")","v":""},{"$f":"IFERROR(INDEX(Equipment!$D:$D,MATCH(\"DCVOnly\" & A24,Equipment!$C:$C,0)),\"\")","v":""},null,{"$f":"IFERROR(INDEX(Equipment!$L:$L,MATCH(\"DCVOnly\" & $A24,Equipment!$C:$C,0)),\"\")","v":""},null,null,"",null,{"$f":"IFERROR(IF(B24<>\"eligible\",0,0.223*INDEX(OpHours,MATCH(Equipment!$D$7,BuildingType,0))*INDEX(Equipment!$M$13:$M$212,MATCH(\"DCVOnly\"&A24,Equipment!$C$12:$C$211,0))),0)","v":0}]
[10,{"$f":"IFERROR(IF(\nAND(\n    E25>=0,\n    15>INDEX(Equipment!K:K,MATCH(\"DCVOnly\"&A25,Equipment!C:C,0))\n),\n\"eligible\",\n\"ineligible\"),\"\")","v":""},{"$f":"IFERROR(INDEX(Equipment!$D:$D,MATCH(\"DCVOnly\" & A25,Equipment!$C:$C,0)),\"\")","v":""},null,{"$f":"IFERROR(INDEX(Equipment!$L:$L,MATCH(\"DCVOnly\" & $A25,Equipment!$C:$C,0)),\"\")","v":""},null,null,"",null,{"$f":"IFERROR(IF(B25<>\"eligible\",0,0.223*INDEX(OpHours,MATCH(Equipment!$D$7,BuildingType,0))*INDEX(Equipment!$M$13:$M$212,MATCH(\"DCVOnly\"&A25,Equipment!$C$12:$C$211,0))),0)","v":0}]
[11,{"$f":"IFERROR(IF(\nAND(\n    E26>=0,\n    15>INDEX(Equipment!K:K,MATCH(\"DCVOnly\"&A26,Equipment!C:C,0))\n),\n\"eligible\",\n\"ineligible\"),\"\")","v":""},{"$f":"IFERROR(INDEX(Equipment!$D:$D,MATCH(\"DCVOnly\" & A26,Equipment!$C:$C,0)),\"\")","v":""},null,{"$f":"IFERROR(INDEX(Equipment!$L:$L,MATCH(\"DCVOnly\" & $A26,Equipment!$C:$C,0)),\"\")","v":""},null,null,"",null,{"$f":"IFERROR(IF(B26<>\"eligible\",0,0.223*INDEX(OpHours,MATCH(Equipment!$D$7,BuildingType,0))*INDEX(Equipment!$M$13:$M$212,MATCH(\"DCVOnly\"&A26,Equipment!$C$12:$C$211,0))),0)","v":0}]
[12,{"$f":"IFERROR(IF(\nAND(\n    E27>=0,\n    15>INDEX(Equipment!K:K,MATCH(\"DCVOnly\"&A27,Equipment!C:C,0))\n),\n\"eligible\",\n\"ineligible\"),\"\")","v":""},{"$f":"IFERROR(INDEX(Equipment!$D:$D,MATCH(\"DCVOnly\" & A27,Equipment!$C:$C,0)),\"\")","v":""},null,{"$f":"IFERROR(INDEX(Equipment!$L:$L,MATCH(\"DCVOnly\" & $A27,Equipment!$C:$C,0)),\"\")","v":""},null,null,"",null,{"$f":"IFERROR(IF(B27<>\"eligible\",0,0.223*INDEX(OpHours,MATCH(Equipment!$D$7,BuildingType,0))*INDEX(Equipment!$M$13:$M$212,MATCH(\"DCVOnly\"&A27,Equipment!$C$12:$C$211,0))),0)","v":0}]
[13,{"$f":"IFERROR(IF(\nAND(\n    E28>=0,\n    15>INDEX(Equipment!K:K,MATCH(\"DCVOnly\"&A28,Equipment!C:C,0))\n),\n\"eligible\",\n\"ineligible\"),\"\")","v":""},{"$f":"IFERROR(INDEX(Equipment!$D:$D,MATCH(\"DCVOnly\" & A28,Equipment!$C:$C,0)),\"\")","v":""},null,{"$f":"IFERROR(INDEX(Equipment!$L:$L,MATCH(\"DCVOnly\" & $A28,Equipment!$C:$C,0)),\"\")","v":""},null,null,"",null,{"$f":"IFERROR(IF(B28<>\"eligible\",0,0.223*INDEX(OpHours,MATCH(Equipment!$D$7,BuildingType,0))*INDEX(Equipment!$M$13:$M$212,MATCH(\"DCVOnly\"&A28,Equipment!$C$12:$C$211,0))),0)","v":0}]
[14,{"$f":"IFERROR(IF(\nAND(\n    E29>=0,\n    15>INDEX(Equipment!K:K,MATCH(\"DCVOnly\"&A29,Equipment!C:C,0))\n),\n\"eligible\",\n\"ineligible\"),\"\")","v":""},{"$f":"IFERROR(INDEX(Equipment!$D:$D,MATCH(\"DCVOnly\" & A29,Equipment!$C:$C,0)),\"\")","v":""},null,{"$f":"IFERROR(INDEX(Equipment!$L:$L,MATCH(\"DCVOnly\" & $A29,Equipment!$C:$C,0)),\"\")","v":""},null,null,"",null,{"$f":"IFERROR(IF(B29<>\"eligible\",0,0.223*INDEX(OpHours,MATCH(Equipment!$D$7,BuildingType,0))*INDEX(Equipment!$M$13:$M$212,MATCH(\"DCVOnly\"&A29,Equipment!$C$12:$C$211,0))),0)","v":0}]
[15,{"$f":"IFERROR(IF(\nAND(\n    E30>=0,\n    15>INDEX(Equipment!K:K,MATCH(\"DCVOnly\"&A30,Equipment!C:C,0))\n),\n\"eligible\",\n\"ineligible\"),\"\")","v":""},{"$f":"IFERROR(INDEX(Equipment!$D:$D,MATCH(\"DCVOnly\" & A30,Equipment!$C:$C,0)),\"\")","v":""},null,{"$f":"IFERROR(INDEX(Equipment!$L:$L,MATCH(\"DCVOnly\" & $A30,Equipment!$C:$C,0)),\"\")","v":""},null,null,"",null,{"$f":"IFERROR(IF(B30<>\"eligible\",0,0.223*INDEX(OpHours,MATCH(Equipment!$D$7,BuildingType,0))*INDEX(Equipment!$M$13:$M$212,MATCH(\"DCVOnly\"&A30,Equipment!$C$12:$C$211,0))),0)","v":0}]
[16,{"$f":"IFERROR(IF(\nAND(\n    E31>=0,\n    15>INDEX(Equipment!K:K,MATCH(\"DCVOnly\"&A31,Equipment!C:C,0))\n),\n\"eligible\",\n\"ineligible\"),\"\")","v":""},{"$f":"IFERROR(INDEX(Equipment!$D:$D,MATCH(\"DCVOnly\" & A31,Equipment!$C:$C,0)),\"\")","v":""},null,{"$f":"IFERROR(INDEX(Equipment!$L:$L,MATCH(\"DCVOnly\" & $A31,Equipment!$C:$C,0)),\"\")","v":""},null,null,"",null,{"$f":"IFERROR(IF(B31<>\"eligible\",0,0.223*INDEX(OpHours,MATCH(Equipment!$D$7,BuildingType,0))*INDEX(Equipment!$M$13:$M$212,MATCH(\"DCVOnly\"&A31,Equipment!$C$12:$C$211,0))),0)","v":0}]
[17,{"$f":"IFERROR(IF(\nAND(\n    E32>=0,\n    15>INDEX(Equipment!K:K,MATCH(\"DCVOnly\"&A32,Equipment!C:C,0))\n),\n\"eligible\",\n\"ineligible\"),\"\")","v":""},{"$f":"IFERROR(INDEX(Equipment!$D:$D,MATCH(\"DCVOnly\" & A32,Equipment!$C:$C,0)),\"\")","v":""},null,{"$f":"IFERROR(INDEX(Equipment!$L:$L,MATCH(\"DCVOnly\" & $A32,Equipment!$C:$C,0)),\"\")","v":""},null,null,"",null,{"$f":"IFERROR(IF(B32<>\"eligible\",0,0.223*INDEX(OpHours,MATCH(Equipment!$D$7,BuildingType,0))*INDEX(Equipment!$M$13:$M$212,MATCH(\"DCVOnly\"&A32,Equipment!$C$12:$C$211,0))),0)","v":0}]
[18,{"$f":"IFERROR(IF(\nAND(\n    E33>=0,\n    15>INDEX(Equipment!K:K,MATCH(\"DCVOnly\"&A33,Equipment!C:C,0))\n),\n\"eligible\",\n\"ineligible\"),\"\")","v":""},{"$f":"IFERROR(INDEX(Equipment!$D:$D,MATCH(\"DCVOnly\" & A33,Equipment!$C:$C,0)),\"\")","v":""},null,{"$f":"IFERROR(INDEX(Equipment!$L:$L,MATCH(\"DCVOnly\" & $A33,Equipment!$C:$C,0)),\"\")","v":""},null,null,"",null,{"$f":"IFERROR(IF(B33<>\"eligible\",0,0.223*INDEX(OpHours,MATCH(Equipment!$D$7,BuildingType,0))*INDEX(Equipment!$M$13:$M$212,MATCH(\"DCVOnly\"&A33,Equipment!$C$12:$C$211,0))),0)","v":0}]
[19,{"$f":"IFERROR(IF(\nAND(\n    E34>=0,\n    15>INDEX(Equipment!K:K,MATCH(\"DCVOnly\"&A34,Equipment!C:C,0))\n),\n\"eligible\",\n\"ineligible\"),\"\")","v":""},{"$f":"IFERROR(INDEX(Equipment!$D:$D,MATCH(\"DCVOnly\" & A34,Equipment!$C:$C,0)),\"\")","v":""},null,{"$f":"IFERROR(INDEX(Equipment!$L:$L,MATCH(\"DCVOnly\" & $A34,Equipment!$C:$C,0)),\"\")","v":""},null,null,"",null,{"$f":"IFERROR(IF(B34<>\"eligible\",0,0.223*INDEX(OpHours,MATCH(Equipment!$D$7,BuildingType,0))*INDEX(Equipment!$M$13:$M$212,MATCH(\"DCVOnly\"&A34,Equipment!$C$12:$C$211,0))),0)","v":0}]
[20,{"$f":"IFERROR(IF(\nAND(\n    E35>=0,\n    15>INDEX(Equipment!K:K,MATCH(\"DCVOnly\"&A35,Equipment!C:C,0))\n),\n\"eligible\",\n\"ineligible\"),\"\")","v":""},{"$f":"IFERROR(INDEX(Equipment!$D:$D,MATCH(\"DCVOnly\" & A35,Equipment!$C:$C,0)),\"\")","v":""},null,{"$f":"IFERROR(INDEX(Equipment!$L:$L,MATCH(\"DCVOnly\" & $A35,Equipment!$C:$C,0)),\"\")","v":""},null,null,"",null,{"$f":"IFERROR(IF(B35<>\"eligible\",0,0.223*INDEX(OpHours,MATCH(Equipment!$D$7,BuildingType,0))*INDEX(Equipment!$M$13:$M$212,MATCH(\"DCVOnly\"&A35,Equipment!$C$12:$C$211,0))),0)","v":0}]
[21,{"$f":"IFERROR(IF(\nAND(\n    E36>=0,\n    15>INDEX(Equipment!K:K,MATCH(\"DCVOnly\"&A36,Equipment!C:C,0))\n),\n\"eligible\",\n\"ineligible\"),\"\")","v":""},{"$f":"IFERROR(INDEX(Equipment!$D:$D,MATCH(\"DCVOnly\" & A36,Equipment!$C:$C,0)),\"\")","v":""},null,{"$f":"IFERROR(INDEX(Equipment!$L:$L,MATCH(\"DCVOnly\" & $A36,Equipment!$C:$C,0)),\"\")","v":""},null,null,"",null,{"$f":"IFERROR(IF(B36<>\"eligible\",0,0.223*INDEX(OpHours,MATCH(Equipment!$D$7,BuildingType,0))*INDEX(Equipment!$M$13:$M$212,MATCH(\"DCVOnly\"&A36,Equipment!$C$12:$C$211,0))),0)","v":0}]
[22,{"$f":"IFERROR(IF(\nAND(\n    E37>=0,\n    15>INDEX(Equipment!K:K,MATCH(\"DCVOnly\"&A37,Equipment!C:C,0))\n),\n\"eligible\",\n\"ineligible\"),\"\")","v":""},{"$f":"IFERROR(INDEX(Equipment!$D:$D,MATCH(\"DCVOnly\" & A37,Equipment!$C:$C,0)),\"\")","v":""},null,{"$f":"IFERROR(INDEX(Equipment!$L:$L,MATCH(\"DCVOnly\" & $A37,Equipment!$C:$C,0)),\"\")","v":""},null,null,"",null,{"$f":"IFERROR(IF(B37<>\"eligible\",0,0.223*INDEX(OpHours,MATCH(Equipment!$D$7,BuildingType,0))*INDEX(Equipment!$M$13:$M$212,MATCH(\"DCVOnly\"&A37,Equipment!$C$12:$C$211,0))),0)","v":0}]
[23,{"$f":"IFERROR(IF(\nAND(\n    E38>=0,\n    15>INDEX(Equipment!K:K,MATCH(\"DCVOnly\"&A38,Equipment!C:C,0))\n),\n\"eligible\",\n\"ineligible\"),\"\")","v":""},{"$f":"IFERROR(INDEX(Equipment!$D:$D,MATCH(\"DCVOnly\" & A38,Equipment!$C:$C,0)),\"\")","v":""},null,{"$f":"IFERROR(INDEX(Equipment!$L:$L,MATCH(\"DCVOnly\" & $A38,Equipment!$C:$C,0)),\"\")","v":""},null,null,"",null,{"$f":"IFERROR(IF(B38<>\"eligible\",0,0.223*INDEX(OpHours,MATCH(Equipment!$D$7,BuildingType,0))*INDEX(Equipment!$M$13:$M$212,MATCH(\"DCVOnly\"&A38,Equipment!$C$12:$C$211,0))),0)","v":0}]
[24,{"$f":"IFERROR(IF(\nAND(\n    E39>=0,\n    15>INDEX(Equipment!K:K,MATCH(\"DCVOnly\"&A39,Equipment!C:C,0))\n),\n\"eligible\",\n\"ineligible\"),\"\")","v":""},{"$f":"IFERROR(INDEX(Equipment!$D:$D,MATCH(\"DCVOnly\" & A39,Equipment!$C:$C,0)),\"\")","v":""},null,{"$f":"IFERROR(INDEX(Equipment!$L:$L,MATCH(\"DCVOnly\" & $A39,Equipment!$C:$C,0)),\"\")","v":""},null,null,"",null,{"$f":"IFERROR(IF(B39<>\"eligible\",0,0.223*INDEX(OpHours,MATCH(Equipment!$D$7,BuildingType,0))*INDEX(Equipment!$M$13:$M$212,MATCH(\"DCVOnly\"&A39,Equipment!$C$12:$C$211,0))),0)","v":0}]
[25,{"$f":"IFERROR(IF(\nAND(\n    E40>=0,\n    15>INDEX(Equipment!K:K,MATCH(\"DCVOnly\"&A40,Equipment!C:C,0))\n),\n\"eligible\",\n\"ineligible\"),\"\")","v":""},{"$f":"IFERROR(INDEX(Equipment!$D:$D,MATCH(\"DCVOnly\" & A40,Equipment!$C:$C,0)),\"\")","v":""},null,{"$f":"IFERROR(INDEX(Equipment!$L:$L,MATCH(\"DCVOnly\" & $A40,Equipment!$C:$C,0)),\"\")","v":""},null,null,"",null,{"$f":"IFERROR(IF(B40<>\"eligible\",0,0.223*INDEX(OpHours,MATCH(Equipment!$D$7,BuildingType,0))*INDEX(Equipment!$M$13:$M$212,MATCH(\"DCVOnly\"&A40,Equipment!$C$12:$C$211,0))),0)","v":0}]
[26,{"$f":"IFERROR(IF(\nAND(\n    E41>=0,\n    15>INDEX(Equipment!K:K,MATCH(\"DCVOnly\"&A41,Equipment!C:C,0))\n),\n\"eligible\",\n\"ineligible\"),\"\")","v":""},{"$f":"IFERROR(INDEX(Equipment!$D:$D,MATCH(\"DCVOnly\" & A41,Equipment!$C:$C,0)),\"\")","v":""},null,{"$f":"IFERROR(INDEX(Equipment!$L:$L,MATCH(\"DCVOnly\" & $A41,Equipment!$C:$C,0)),\"\")","v":""},null,null,"",null,{"$f":"IFERROR(IF(B41<>\"eligible\",0,0.223*INDEX(OpHours,MATCH(Equipment!$D$7,BuildingType,0))*INDEX(Equipment!$M$13:$M$212,MATCH(\"DCVOnly\"&A41,Equipment!$C$12:$C$211,0))),0)","v":0}]
[27,{"$f":"IFERROR(IF(\nAND(\n    E42>=0,\n    15>INDEX(Equipment!K:K,MATCH(\"DCVOnly\"&A42,Equipment!C:C,0))\n),\n\"eligible\",\n\"ineligible\"),\"\")","v":""},{"$f":"IFERROR(INDEX(Equipment!$D:$D,MATCH(\"DCVOnly\" & A42,Equipment!$C:$C,0)),\"\")","v":""},null,{"$f":"IFERROR(INDEX(Equipment!$L:$L,MATCH(\"DCVOnly\" & $A42,Equipment!$C:$C,0)),\"\")","v":""},null,null,"",null,{"$f":"IFERROR(IF(B42<>\"eligible\",0,0.223*INDEX(OpHours,MATCH(Equipment!$D$7,BuildingType,0))*INDEX(Equipment!$M$13:$M$212,MATCH(\"DCVOnly\"&A42,Equipment!$C$12:$C$211,0))),0)","v":0}]
[28,{"$f":"IFERROR(IF(\nAND(\n    E43>=0,\n    15>INDEX(Equipment!K:K,MATCH(\"DCVOnly\"&A43,Equipment!C:C,0))\n),\n\"eligible\",\n\"ineligible\"),\"\")","v":""},{"$f":"IFERROR(INDEX(Equipment!$D:$D,MATCH(\"DCVOnly\" & A43,Equipment!$C:$C,0)),\"\")","v":""},null,{"$f":"IFERROR(INDEX(Equipment!$L:$L,MATCH(\"DCVOnly\" & $A43,Equipment!$C:$C,0)),\"\")","v":""},null,null,"",null,{"$f":"IFERROR(IF(B43<>\"eligible\",0,0.223*INDEX(OpHours,MATCH(Equipment!$D$7,BuildingType,0))*INDEX(Equipment!$M$13:$M$212,MATCH(\"DCVOnly\"&A43,Equipment!$C$12:$C$211,0))),0)","v":0}]
[29,{"$f":"IFERROR(IF(\nAND(\n    E44>=0,\n    15>INDEX(Equipment!K:K,MATCH(\"DCVOnly\"&A44,Equipment!C:C,0))\n),\n\"eligible\",\n\"ineligible\"),\"\")","v":""},{"$f":"IFERROR(INDEX(Equipment!$D:$D,MATCH(\"DCVOnly\" & A44,Equipment!$C:$C,0)),\"\")","v":""},null,{"$f":"IFERROR(INDEX(Equipment!$L:$L,MATCH(\"DCVOnly\" & $A44,Equipment!$C:$C,0)),\"\")","v":""},null,null,"",null,{"$f":"IFERROR(IF(B44<>\"eligible\",0,0.223*INDEX(OpHours,MATCH(Equipment!$D$7,BuildingType,0))*INDEX(Equipment!$M$13:$M$212,MATCH(\"DCVOnly\"&A44,Equipment!$C$12:$C$211,0))),0)","v":0}]
[30,{"$f":"IFERROR(IF(\nAND(\n    E45>=0,\n    15>INDEX(Equipment!K:K,MATCH(\"DCVOnly\"&A45,Equipment!C:C,0))\n),\n\"eligible\",\n\"ineligible\"),\"\")","v":""},{"$f":"IFERROR(INDEX(Equipment!$D:$D,MATCH(\"DCVOnly\" & A45,Equipment!$C:$C,0)),\"\")","v":""},null,{"$f":"IFERROR(INDEX(Equipment!$L:$L,MATCH(\"DCVOnly\" & $A45,Equipment!$C:$C,0)),\"\")","v":""},null,null,"",null,{"$f":"IFERROR(IF(B45<>\"eligible\",0,0.223*INDEX(OpHours,MATCH(Equipment!$D$7,BuildingType,0))*INDEX(Equipment!$M$13:$M$212,MATCH(\"DCVOnly\"&A45,Equipment!$C$12:$C$211,0))),0)","v":0}]
[31,{"$f":"IFERROR(IF(\nAND(\n    E46>=0,\n    15>INDEX(Equipment!K:K,MATCH(\"DCVOnly\"&A46,Equipment!C:C,0))\n),\n\"eligible\",\n\"ineligible\"),\"\")","v":""},{"$f":"IFERROR(INDEX(Equipment!$D:$D,MATCH(\"DCVOnly\" & A46,Equipment!$C:$C,0)),\"\")","v":""},null,{"$f":"IFERROR(INDEX(Equipment!$L:$L,MATCH(\"DCVOnly\" & $A46,Equipment!$C:$C,0)),\"\")","v":""},null,null,"",null,{"$f":"IFERROR(IF(B46<>\"eligible\",0,0.223*INDEX(OpHours,MATCH(Equipment!$D$7,BuildingType,0))*INDEX(Equipment!$M$13:$M$212,MATCH(\"DCVOnly\"&A46,Equipment!$C$12:$C$211,0))),0)","v":0}]
[32,{"$f":"IFERROR(IF(\nAND(\n    E47>=0,\n    15>INDEX(Equipment!K:K,MATCH(\"DCVOnly\"&A47,Equipment!C:C,0))\n),\n\"eligible\",\n\"ineligible\"),\"\")","v":""},{"$f":"IFERROR(INDEX(Equipment!$D:$D,MATCH(\"DCVOnly\" & A47,Equipment!$C:$C,0)),\"\")","v":""},null,{"$f":"IFERROR(INDEX(Equipment!$L:$L,MATCH(\"DCVOnly\" & $A47,Equipment!$C:$C,0)),\"\")","v":""},null,null,"",null,{"$f":"IFERROR(IF(B47<>\"eligible\",0,0.223*INDEX(OpHours,MATCH(Equipment!$D$7,BuildingType,0))*INDEX(Equipment!$M$13:$M$212,MATCH(\"DCVOnly\"&A47,Equipment!$C$12:$C$211,0))),0)","v":0}]
[33,{"$f":"IFERROR(IF(\nAND(\n    E48>=0,\n    15>INDEX(Equipment!K:K,MATCH(\"DCVOnly\"&A48,Equipment!C:C,0))\n),\n\"eligible\",\n\"ineligible\"),\"\")","v":""},{"$f":"IFERROR(INDEX(Equipment!$D:$D,MATCH(\"DCVOnly\" & A48,Equipment!$C:$C,0)),\"\")","v":""},null,{"$f":"IFERROR(INDEX(Equipment!$L:$L,MATCH(\"DCVOnly\" & $A48,Equipment!$C:$C,0)),\"\")","v":""},null,null,"",null,{"$f":"IFERROR(IF(B48<>\"eligible\",0,0.223*INDEX(OpHours,MATCH(Equipment!$D$7,BuildingType,0))*INDEX(Equipment!$M$13:$M$212,MATCH(\"DCVOnly\"&A48,Equipment!$C$12:$C$211,0))),0)","v":0}]
[34,{"$f":"IFERROR(IF(\nAND(\n    E49>=0,\n    15>INDEX(Equipment!K:K,MATCH(\"DCVOnly\"&A49,Equipment!C:C,0))\n),\n\"eligible\",\n\"ineligible\"),\"\")","v":""},{"$f":"IFERROR(INDEX(Equipment!$D:$D,MATCH(\"DCVOnly\" & A49,Equipment!$C:$C,0)),\"\")","v":""},null,{"$f":"IFERROR(INDEX(Equipment!$L:$L,MATCH(\"DCVOnly\" & $A49,Equipment!$C:$C,0)),\"\")","v":""},null,null,"",null,{"$f":"IFERROR(IF(B49<>\"eligible\",0,0.223*INDEX(OpHours,MATCH(Equipment!$D$7,BuildingType,0))*INDEX(Equipment!$M$13:$M$212,MATCH(\"DCVOnly\"&A49,Equipment!$C$12:$C$211,0))),0)","v":0}]
[35,{"$f":"IFERROR(IF(\nAND(\n    E50>=0,\n    15>INDEX(Equipment!K:K,MATCH(\"DCVOnly\"&A50,Equipment!C:C,0))\n),\n\"eligible\",\n\"ineligible\"),\"\")","v":""},{"$f":"IFERROR(INDEX(Equipment!$D:$D,MATCH(\"DCVOnly\" & A50,Equipment!$C:$C,0)),\"\")","v":""},null,{"$f":"IFERROR(INDEX(Equipment!$L:$L,MATCH(\"DCVOnly\" & $A50,Equipment!$C:$C,0)),\"\")","v":""},null,null,"",null,{"$f":"IFERROR(IF(B50<>\"eligible\",0,0.223*INDEX(OpHours,MATCH(Equipment!$D$7,BuildingType,0))*INDEX(Equipment!$M$13:$M$212,MATCH(\"DCVOnly\"&A50,Equipment!$C$12:$C$211,0))),0)","v":0}]
[36,{"$f":"IFERROR(IF(\nAND(\n    E51>=0,\n    15>INDEX(Equipment!K:K,MATCH(\"DCVOnly\"&A51,Equipment!C:C,0))\n),\n\"eligible\",\n\"ineligible\"),\"\")","v":""},{"$f":"IFERROR(INDEX(Equipment!$D:$D,MATCH(\"DCVOnly\" & A51,Equipment!$C:$C,0)),\"\")","v":""},null,{"$f":"IFERROR(INDEX(Equipment!$L:$L,MATCH(\"DCVOnly\" & $A51,Equipment!$C:$C,0)),\"\")","v":""},null,null,"",null,{"$f":"IFERROR(IF(B51<>\"eligible\",0,0.223*INDEX(OpHours,MATCH(Equipment!$D$7,BuildingType,0))*INDEX(Equipment!$M$13:$M$212,MATCH(\"DCVOnly\"&A51,Equipment!$C$12:$C$211,0))),0)","v":0}]
[37,{"$f":"IFERROR(IF(\nAND(\n    E52>=0,\n    15>INDEX(Equipment!K:K,MATCH(\"DCVOnly\"&A52,Equipment!C:C,0))\n),\n\"eligible\",\n\"ineligible\"),\"\")","v":""},{"$f":"IFERROR(INDEX(Equipment!$D:$D,MATCH(\"DCVOnly\" & A52,Equipment!$C:$C,0)),\"\")","v":""},null,{"$f":"IFERROR(INDEX(Equipment!$L:$L,MATCH(\"DCVOnly\" & $A52,Equipment!$C:$C,0)),\"\")","v":""},null,null,"",null,{"$f":"IFERROR(IF(B52<>\"eligible\",0,0.223*INDEX(OpHours,MATCH(Equipment!$D$7,BuildingType,0))*INDEX(Equipment!$M$13:$M$212,MATCH(\"DCVOnly\"&A52,Equipment!$C$12:$C$211,0))),0)","v":0}]
[38,{"$f":"IFERROR(IF(\nAND(\n    E53>=0,\n    15>INDEX(Equipment!K:K,MATCH(\"DCVOnly\"&A53,Equipment!C:C,0))\n),\n\"eligible\",\n\"ineligible\"),\"\")","v":""},{"$f":"IFERROR(INDEX(Equipment!$D:$D,MATCH(\"DCVOnly\" & A53,Equipment!$C:$C,0)),\"\")","v":""},null,{"$f":"IFERROR(INDEX(Equipment!$L:$L,MATCH(\"DCVOnly\" & $A53,Equipment!$C:$C,0)),\"\")","v":""},null,null,"",null,{"$f":"IFERROR(IF(B53<>\"eligible\",0,0.223*INDEX(OpHours,MATCH(Equipment!$D$7,BuildingType,0))*INDEX(Equipment!$M$13:$M$212,MATCH(\"DCVOnly\"&A53,Equipment!$C$12:$C$211,0))),0)","v":0}]
[39,{"$f":"IFERROR(IF(\nAND(\n    E54>=0,\n    15>INDEX(Equipment!K:K,MATCH(\"DCVOnly\"&A54,Equipment!C:C,0))\n),\n\"eligible\",\n\"ineligible\"),\"\")","v":""},{"$f":"IFERROR(INDEX(Equipment!$D:$D,MATCH(\"DCVOnly\" & A54,Equipment!$C:$C,0)),\"\")","v":""},null,{"$f":"IFERROR(INDEX(Equipment!$L:$L,MATCH(\"DCVOnly\" & $A54,Equipment!$C:$C,0)),\"\")","v":""},null,null,"",null,{"$f":"IFERROR(IF(B54<>\"eligible\",0,0.223*INDEX(OpHours,MATCH(Equipment!$D$7,BuildingType,0))*INDEX(Equipment!$M$13:$M$212,MATCH(\"DCVOnly\"&A54,Equipment!$C$12:$C$211,0))),0)","v":0}]
[40,{"$f":"IFERROR(IF(\nAND(\n    E55>=0,\n    15>INDEX(Equipment!K:K,MATCH(\"DCVOnly\"&A55,Equipment!C:C,0))\n),\n\"eligible\",\n\"ineligible\"),\"\")","v":""},{"$f":"IFERROR(INDEX(Equipment!$D:$D,MATCH(\"DCVOnly\" & A55,Equipment!$C:$C,0)),\"\")","v":""},null,{"$f":"IFERROR(INDEX(Equipment!$L:$L,MATCH(\"DCVOnly\" & $A55,Equipment!$C:$C,0)),\"\")","v":""},null,null,"",null,{"$f":"IFERROR(IF(B55<>\"eligible\",0,0.223*INDEX(OpHours,MATCH(Equipment!$D$7,BuildingType,0))*INDEX(Equipment!$M$13:$M$212,MATCH(\"DCVOnly\"&A55,Equipment!$C$12:$C$211,0))),0)","v":0}]
[41,{"$f":"IFERROR(IF(\nAND(\n    E56>=0,\n    15>INDEX(Equipment!K:K,MATCH(\"DCVOnly\"&A56,Equipment!C:C,0))\n),\n\"eligible\",\n\"ineligible\"),\"\")","v":""},{"$f":"IFERROR(INDEX(Equipment!$D:$D,MATCH(\"DCVOnly\" & A56,Equipment!$C:$C,0)),\"\")","v":""},null,{"$f":"IFERROR(INDEX(Equipment!$L:$L,MATCH(\"DCVOnly\" & $A56,Equipment!$C:$C,0)),\"\")","v":""},null,null,"",null,{"$f":"IFERROR(IF(B56<>\"eligible\",0,0.223*INDEX(OpHours,MATCH(Equipment!$D$7,BuildingType,0))*INDEX(Equipment!$M$13:$M$212,MATCH(\"DCVOnly\"&A56,Equipment!$C$12:$C$211,0))),0)","v":0}]
[42,{"$f":"IFERROR(IF(\nAND(\n    E57>=0,\n    15>INDEX(Equipment!K:K,MATCH(\"DCVOnly\"&A57,Equipment!C:C,0))\n),\n\"eligible\",\n\"ineligible\"),\"\")","v":""},{"$f":"IFERROR(INDEX(Equipment!$D:$D,MATCH(\"DCVOnly\" & A57,Equipment!$C:$C,0)),\"\")","v":""},null,{"$f":"IFERROR(INDEX(Equipment!$L:$L,MATCH(\"DCVOnly\" & $A57,Equipment!$C:$C,0)),\"\")","v":""},null,null,"",null,{"$f":"IFERROR(IF(B57<>\"eligible\",0,0.223*INDEX(OpHours,MATCH(Equipment!$D$7,BuildingType,0))*INDEX(Equipment!$M$13:$M$212,MATCH(\"DCVOnly\"&A57,Equipment!$C$12:$C$211,0))),0)","v":0}]
[43,{"$f":"IFERROR(IF(\nAND(\n    E58>=0,\n    15>INDEX(Equipment!K:K,MATCH(\"DCVOnly\"&A58,Equipment!C:C,0))\n),\n\"eligible\",\n\"ineligible\"),\"\")","v":""},{"$f":"IFERROR(INDEX(Equipment!$D:$D,MATCH(\"DCVOnly\" & A58,Equipment!$C:$C,0)),\"\")","v":""},null,{"$f":"IFERROR(INDEX(Equipment!$L:$L,MATCH(\"DCVOnly\" & $A58,Equipment!$C:$C,0)),\"\")","v":""},null,null,"",null,{"$f":"IFERROR(IF(B58<>\"eligible\",0,0.223*INDEX(OpHours,MATCH(Equipment!$D$7,BuildingType,0))*INDEX(Equipment!$M$13:$M$212,MATCH(\"DCVOnly\"&A58,Equipment!$C$12:$C$211,0))),0)","v":0}]
[44,{"$f":"IFERROR(IF(\nAND(\n    E59>=0,\n    15>INDEX(Equipment!K:K,MATCH(\"DCVOnly\"&A59,Equipment!C:C,0))\n),\n\"eligible\",\n\"ineligible\"),\"\")","v":""},{"$f":"IFERROR(INDEX(Equipment!$D:$D,MATCH(\"DCVOnly\" & A59,Equipment!$C:$C,0)),\"\")","v":""},null,{"$f":"IFERROR(INDEX(Equipment!$L:$L,MATCH(\"DCVOnly\" & $A59,Equipment!$C:$C,0)),\"\")","v":""},null,null,"",null,{"$f":"IFERROR(IF(B59<>\"eligible\",0,0.223*INDEX(OpHours,MATCH(Equipment!$D$7,BuildingType,0))*INDEX(Equipment!$M$13:$M$212,MATCH(\"DCVOnly\"&A59,Equipment!$C$12:$C$211,0))),0)","v":0}]
[45,{"$f":"IFERROR(IF(\nAND(\n    E60>=0,\n    15>INDEX(Equipment!K:K,MATCH(\"DCVOnly\"&A60,Equipment!C:C,0))\n),\n\"eligible\",\n\"ineligible\"),\"\")","v":""},{"$f":"IFERROR(INDEX(Equipment!$D:$D,MATCH(\"DCVOnly\" & A60,Equipment!$C:$C,0)),\"\")","v":""},null,{"$f":"IFERROR(INDEX(Equipment!$L:$L,MATCH(\"DCVOnly\" & $A60,Equipment!$C:$C,0)),\"\")","v":""},null,null,"",null,{"$f":"IFERROR(IF(B60<>\"eligible\",0,0.223*INDEX(OpHours,MATCH(Equipment!$D$7,BuildingType,0))*INDEX(Equipment!$M$13:$M$212,MATCH(\"DCVOnly\"&A60,Equipment!$C$12:$C$211,0))),0)","v":0}]
[46,{"$f":"IFERROR(IF(\nAND(\n    E61>=0,\n    15>INDEX(Equipment!K:K,MATCH(\"DCVOnly\"&A61,Equipment!C:C,0))\n),\n\"eligible\",\n\"ineligible\"),\"\")","v":""},{"$f":"IFERROR(INDEX(Equipment!$D:$D,MATCH(\"DCVOnly\" & A61,Equipment!$C:$C,0)),\"\")","v":""},null,{"$f":"IFERROR(INDEX(Equipment!$L:$L,MATCH(\"DCVOnly\" & $A61,Equipment!$C:$C,0)),\"\")","v":""},null,null,"",null,{"$f":"IFERROR(IF(B61<>\"eligible\",0,0.223*INDEX(OpHours,MATCH(Equipment!$D$7,BuildingType,0))*INDEX(Equipment!$M$13:$M$212,MATCH(\"DCVOnly\"&A61,Equipment!$C$12:$C$211,0))),0)","v":0}]
[47,{"$f":"IFERROR(IF(\nAND(\n    E62>=0,\n    15>INDEX(Equipment!K:K,MATCH(\"DCVOnly\"&A62,Equipment!C:C,0))\n),\n\"eligible\",\n\"ineligible\"),\"\")","v":""},{"$f":"IFERROR(INDEX(Equipment!$D:$D,MATCH(\"DCVOnly\" & A62,Equipment!$C:$C,0)),\"\")","v":""},null,{"$f":"IFERROR(INDEX(Equipment!$L:$L,MATCH(\"DCVOnly\" & $A62,Equipment!$C:$C,0)),\"\")","v":""},null,null,"",null,{"$f":"IFERROR(IF(B62<>\"eligible\",0,0.223*INDEX(OpHours,MATCH(Equipment!$D$7,BuildingType,0))*INDEX(Equipment!$M$13:$M$212,MATCH(\"DCVOnly\"&A62,Equipment!$C$12:$C$211,0))),0)","v":0}]
[48,{"$f":"IFERROR(IF(\nAND(\n    E63>=0,\n    15>INDEX(Equipment!K:K,MATCH(\"DCVOnly\"&A63,Equipment!C:C,0))\n),\n\"eligible\",\n\"ineligible\"),\"\")","v":""},{"$f":"IFERROR(INDEX(Equipment!$D:$D,MATCH(\"DCVOnly\" & A63,Equipment!$C:$C,0)),\"\")","v":""},null,{"$f":"IFERROR(INDEX(Equipment!$L:$L,MATCH(\"DCVOnly\" & $A63,Equipment!$C:$C,0)),\"\")","v":""},null,null,"",null,{"$f":"IFERROR(IF(B63<>\"eligible\",0,0.223*INDEX(OpHours,MATCH(Equipment!$D$7,BuildingType,0))*INDEX(Equipment!$M$13:$M$212,MATCH(\"DCVOnly\"&A63,Equipment!$C$12:$C$211,0))),0)","v":0}]
[49,{"$f":"IFERROR(IF(\nAND(\n    E64>=0,\n    15>INDEX(Equipment!K:K,MATCH(\"DCVOnly\"&A64,Equipment!C:C,0))\n),\n\"eligible\",\n\"ineligible\"),\"\")","v":""},{"$f":"IFERROR(INDEX(Equipment!$D:$D,MATCH(\"DCVOnly\" & A64,Equipment!$C:$C,0)),\"\")","v":""},null,{"$f":"IFERROR(INDEX(Equipment!$L:$L,MATCH(\"DCVOnly\" & $A64,Equipment!$C:$C,0)),\"\")","v":""},null,null,"",null,{"$f":"IFERROR(IF(B64<>\"eligible\",0,0.223*INDEX(OpHours,MATCH(Equipment!$D$7,BuildingType,0))*INDEX(Equipment!$M$13:$M$212,MATCH(\"DCVOnly\"&A64,Equipment!$C$12:$C$211,0))),0)","v":0}]
[50,{"$f":"IFERROR(IF(\nAND(\n    E65>=0,\n    15>INDEX(Equipment!K:K,MATCH(\"DCVOnly\"&A65,Equipment!C:C,0))\n),\n\"eligible\",\n\"ineligible\"),\"\")","v":""},{"$f":"IFERROR(INDEX(Equipment!$D:$D,MATCH(\"DCVOnly\" & A65,Equipment!$C:$C,0)),\"\")","v":""},null,{"$f":"IFERROR(INDEX(Equipment!$L:$L,MATCH(\"DCVOnly\" & $A65,Equipment!$C:$C,0)),\"\")","v":""},null,null,"",null,{"$f":"IFERROR(IF(B65<>\"eligible\",0,0.223*INDEX(OpHours,MATCH(Equipment!$D$7,BuildingType,0))*INDEX(Equipment!$M$13:$M$212,MATCH(\"DCVOnly\"&A65,Equipment!$C$12:$C$211,0))),0)","v":0}]
[51,{"$f":"IFERROR(IF(\nAND(\n    E66>=0,\n    15>INDEX(Equipment!K:K,MATCH(\"DCVOnly\"&A66,Equipment!C:C,0))\n),\n\"eligible\",\n\"ineligible\"),\"\")","v":""},{"$f":"IFERROR(INDEX(Equipment!$D:$D,MATCH(\"DCVOnly\" & A66,Equipment!$C:$C,0)),\"\")","v":""},null,{"$f":"IFERROR(INDEX(Equipment!$L:$L,MATCH(\"DCVOnly\" & $A66,Equipment!$C:$C,0)),\"\")","v":""},null,null,"",null,{"$f":"IFERROR(IF(B66<>\"eligible\",0,0.223*INDEX(OpHours,MATCH(Equipment!$D$7,BuildingType,0))*INDEX(Equipment!$M$13:$M$212,MATCH(\"DCVOnly\"&A66,Equipment!$C$12:$C$211,0))),0)","v":0}]
[52,{"$f":"IFERROR(IF(\nAND(\n    E67>=0,\n    15>INDEX(Equipment!K:K,MATCH(\"DCVOnly\"&A67,Equipment!C:C,0))\n),\n\"eligible\",\n\"ineligible\"),\"\")","v":""},{"$f":"IFERROR(INDEX(Equipment!$D:$D,MATCH(\"DCVOnly\" & A67,Equipment!$C:$C,0)),\"\")","v":""},null,{"$f":"IFERROR(INDEX(Equipment!$L:$L,MATCH(\"DCVOnly\" & $A67,Equipment!$C:$C,0)),\"\")","v":""},null,null,"",null,{"$f":"IFERROR(IF(B67<>\"eligible\",0,0.223*INDEX(OpHours,MATCH(Equipment!$D$7,BuildingType,0))*INDEX(Equipment!$M$13:$M$212,MATCH(\"DCVOnly\"&A67,Equipment!$C$12:$C$211,0))),0)","v":0}]
[53,{"$f":"IFERROR(IF(\nAND(\n    E68>=0,\n    15>INDEX(Equipment!K:K,MATCH(\"DCVOnly\"&A68,Equipment!C:C,0))\n),\n\"eligible\",\n\"ineligible\"),\"\")","v":""},{"$f":"IFERROR(INDEX(Equipment!$D:$D,MATCH(\"DCVOnly\" & A68,Equipment!$C:$C,0)),\"\")","v":""},null,{"$f":"IFERROR(INDEX(Equipment!$L:$L,MATCH(\"DCVOnly\" & $A68,Equipment!$C:$C,0)),\"\")","v":""},null,null,"",null,{"$f":"IFERROR(IF(B68<>\"eligible\",0,0.223*INDEX(OpHours,MATCH(Equipment!$D$7,BuildingType,0))*INDEX(Equipment!$M$13:$M$212,MATCH(\"DCVOnly\"&A68,Equipment!$C$12:$C$211,0))),0)","v":0}]
[54,{"$f":"IFERROR(IF(\nAND(\n    E69>=0,\n    15>INDEX(Equipment!K:K,MATCH(\"DCVOnly\"&A69,Equipment!C:C,0))\n),\n\"eligible\",\n\"ineligible\"),\"\")","v":""},{"$f":"IFERROR(INDEX(Equipment!$D:$D,MATCH(\"DCVOnly\" & A69,Equipment!$C:$C,0)),\"\")","v":""},null,{"$f":"IFERROR(INDEX(Equipment!$L:$L,MATCH(\"DCVOnly\" & $A69,Equipment!$C:$C,0)),\"\")","v":""},null,null,"",null,{"$f":"IFERROR(IF(B69<>\"eligible\",0,0.223*INDEX(OpHours,MATCH(Equipment!$D$7,BuildingType,0))*INDEX(Equipment!$M$13:$M$212,MATCH(\"DCVOnly\"&A69,Equipment!$C$12:$C$211,0))),0)","v":0}]
[55,{"$f":"IFERROR(IF(\nAND(\n    E70>=0,\n    15>INDEX(Equipment!K:K,MATCH(\"DCVOnly\"&A70,Equipment!C:C,0))\n),\n\"eligible\",\n\"ineligible\"),\"\")","v":""},{"$f":"IFERROR(INDEX(Equipment!$D:$D,MATCH(\"DCVOnly\" & A70,Equipment!$C:$C,0)),\"\")","v":""},null,{"$f":"IFERROR(INDEX(Equipment!$L:$L,MATCH(\"DCVOnly\" & $A70,Equipment!$C:$C,0)),\"\")","v":""},null,null,"",null,{"$f":"IFERROR(IF(B70<>\"eligible\",0,0.223*INDEX(OpHours,MATCH(Equipment!$D$7,BuildingType,0))*INDEX(Equipment!$M$13:$M$212,MATCH(\"DCVOnly\"&A70,Equipment!$C$12:$C$211,0))),0)","v":0}]
[56,{"$f":"IFERROR(IF(\nAND(\n    E71>=0,\n    15>INDEX(Equipment!K:K,MATCH(\"DCVOnly\"&A71,Equipment!C:C,0))\n),\n\"eligible\",\n\"ineligible\"),\"\")","v":""},{"$f":"IFERROR(INDEX(Equipment!$D:$D,MATCH(\"DCVOnly\" & A71,Equipment!$C:$C,0)),\"\")","v":""},null,{"$f":"IFERROR(INDEX(Equipment!$L:$L,MATCH(\"DCVOnly\" & $A71,Equipment!$C:$C,0)),\"\")","v":""},null,null,"",null,{"$f":"IFERROR(IF(B71<>\"eligible\",0,0.223*INDEX(OpHours,MATCH(Equipment!$D$7,BuildingType,0))*INDEX(Equipment!$M$13:$M$212,MATCH(\"DCVOnly\"&A71,Equipment!$C$12:$C$211,0))),0)","v":0}]
[57,{"$f":"IFERROR(IF(\nAND(\n    E72>=0,\n    15>INDEX(Equipment!K:K,MATCH(\"DCVOnly\"&A72,Equipment!C:C,0))\n),\n\"eligible\",\n\"ineligible\"),\"\")","v":""},{"$f":"IFERROR(INDEX(Equipment!$D:$D,MATCH(\"DCVOnly\" & A72,Equipment!$C:$C,0)),\"\")","v":""},null,{"$f":"IFERROR(INDEX(Equipment!$L:$L,MATCH(\"DCVOnly\" & $A72,Equipment!$C:$C,0)),\"\")","v":""},null,null,"",null,{"$f":"IFERROR(IF(B72<>\"eligible\",0,0.223*INDEX(OpHours,MATCH(Equipment!$D$7,BuildingType,0))*INDEX(Equipment!$M$13:$M$212,MATCH(\"DCVOnly\"&A72,Equipment!$C$12:$C$211,0))),0)","v":0}]
[58,{"$f":"IFERROR(IF(\nAND(\n    E73>=0,\n    15>INDEX(Equipment!K:K,MATCH(\"DCVOnly\"&A73,Equipment!C:C,0))\n),\n\"eligible\",\n\"ineligible\"),\"\")","v":""},{"$f":"IFERROR(INDEX(Equipment!$D:$D,MATCH(\"DCVOnly\" & A73,Equipment!$C:$C,0)),\"\")","v":""},null,{"$f":"IFERROR(INDEX(Equipment!$L:$L,MATCH(\"DCVOnly\" & $A73,Equipment!$C:$C,0)),\"\")","v":""},null,null,"",null,{"$f":"IFERROR(IF(B73<>\"eligible\",0,0.223*INDEX(OpHours,MATCH(Equipment!$D$7,BuildingType,0))*INDEX(Equipment!$M$13:$M$212,MATCH(\"DCVOnly\"&A73,Equipment!$C$12:$C$211,0))),0)","v":0}]
[59,{"$f":"IFERROR(IF(\nAND(\n    E74>=0,\n    15>INDEX(Equipment!K:K,MATCH(\"DCVOnly\"&A74,Equipment!C:C,0))\n),\n\"eligible\",\n\"ineligible\"),\"\")","v":""},{"$f":"IFERROR(INDEX(Equipment!$D:$D,MATCH(\"DCVOnly\" & A74,Equipment!$C:$C,0)),\"\")","v":""},null,{"$f":"IFERROR(INDEX(Equipment!$L:$L,MATCH(\"DCVOnly\" & $A74,Equipment!$C:$C,0)),\"\")","v":""},null,null,"",null,{"$f":"IFERROR(IF(B74<>\"eligible\",0,0.223*INDEX(OpHours,MATCH(Equipment!$D$7,BuildingType,0))*INDEX(Equipment!$M$13:$M$212,MATCH(\"DCVOnly\"&A74,Equipment!$C$12:$C$211,0))),0)","v":0}]
[60,{"$f":"IFERROR(IF(\nAND(\n    E75>=0,\n    15>INDEX(Equipment!K:K,MATCH(\"DCVOnly\"&A75,Equipment!C:C,0))\n),\n\"eligible\",\n\"ineligible\"),\"\")","v":""},{"$f":"IFERROR(INDEX(Equipment!$D:$D,MATCH(\"DCVOnly\" & A75,Equipment!$C:$C,0)),\"\")","v":""},null,{"$f":"IFERROR(INDEX(Equipment!$L:$L,MATCH(\"DCVOnly\" & $A75,Equipment!$C:$C,0)),\"\")","v":""},null,null,"",null,{"$f":"IFERROR(IF(B75<>\"eligible\",0,0.223*INDEX(OpHours,MATCH(Equipment!$D$7,BuildingType,0))*INDEX(Equipment!$M$13:$M$212,MATCH(\"DCVOnly\"&A75,Equipment!$C$12:$C$211,0))),0)","v":0}]
[61,{"$f":"IFERROR(IF(\nAND(\n    E76>=0,\n    15>INDEX(Equipment!K:K,MATCH(\"DCVOnly\"&A76,Equipment!C:C,0))\n),\n\"eligible\",\n\"ineligible\"),\"\")","v":""},{"$f":"IFERROR(INDEX(Equipment!$D:$D,MATCH(\"DCVOnly\" & A76,Equipment!$C:$C,0)),\"\")","v":""},null,{"$f":"IFERROR(INDEX(Equipment!$L:$L,MATCH(\"DCVOnly\" & $A76,Equipment!$C:$C,0)),\"\")","v":""},null,null,"",null,{"$f":"IFERROR(IF(B76<>\"eligible\",0,0.223*INDEX(OpHours,MATCH(Equipment!$D$7,BuildingType,0))*INDEX(Equipment!$M$13:$M$212,MATCH(\"DCVOnly\"&A76,Equipment!$C$12:$C$211,0))),0)","v":0}]
[62,{"$f":"IFERROR(IF(\nAND(\n    E77>=0,\n    15>INDEX(Equipment!K:K,MATCH(\"DCVOnly\"&A77,Equipment!C:C,0))\n),\n\"eligible\",\n\"ineligible\"),\"\")","v":""},{"$f":"IFERROR(INDEX(Equipment!$D:$D,MATCH(\"DCVOnly\" & A77,Equipment!$C:$C,0)),\"\")","v":""},null,{"$f":"IFERROR(INDEX(Equipment!$L:$L,MATCH(\"DCVOnly\" & $A77,Equipment!$C:$C,0)),\"\")","v":""},null,null,"",null,{"$f":"IFERROR(IF(B77<>\"eligible\",0,0.223*INDEX(OpHours,MATCH(Equipment!$D$7,BuildingType,0))*INDEX(Equipment!$M$13:$M$212,MATCH(\"DCVOnly\"&A77,Equipment!$C$12:$C$211,0))),0)","v":0}]
[63,{"$f":"IFERROR(IF(\nAND(\n    E78>=0,\n    15>INDEX(Equipment!K:K,MATCH(\"DCVOnly\"&A78,Equipment!C:C,0))\n),\n\"eligible\",\n\"ineligible\"),\"\")","v":""},{"$f":"IFERROR(INDEX(Equipment!$D:$D,MATCH(\"DCVOnly\" & A78,Equipment!$C:$C,0)),\"\")","v":""},null,{"$f":"IFERROR(INDEX(Equipment!$L:$L,MATCH(\"DCVOnly\" & $A78,Equipment!$C:$C,0)),\"\")","v":""},null,null,"",null,{"$f":"IFERROR(IF(B78<>\"eligible\",0,0.223*INDEX(OpHours,MATCH(Equipment!$D$7,BuildingType,0))*INDEX(Equipment!$M$13:$M$212,MATCH(\"DCVOnly\"&A78,Equipment!$C$12:$C$211,0))),0)","v":0}]
[64,{"$f":"IFERROR(IF(\nAND(\n    E79>=0,\n    15>INDEX(Equipment!K:K,MATCH(\"DCVOnly\"&A79,Equipment!C:C,0))\n),\n\"eligible\",\n\"ineligible\"),\"\")","v":""},{"$f":"IFERROR(INDEX(Equipment!$D:$D,MATCH(\"DCVOnly\" & A79,Equipment!$C:$C,0)),\"\")","v":""},null,{"$f":"IFERROR(INDEX(Equipment!$L:$L,MATCH(\"DCVOnly\" & $A79,Equipment!$C:$C,0)),\"\")","v":""},null,null,"",null,{"$f":"IFERROR(IF(B79<>\"eligible\",0,0.223*INDEX(OpHours,MATCH(Equipment!$D$7,BuildingType,0))*INDEX(Equipment!$M$13:$M$212,MATCH(\"DCVOnly\"&A79,Equipment!$C$12:$C$211,0))),0)","v":0}]
[65,{"$f":"IFERROR(IF(\nAND(\n    E80>=0,\n    15>INDEX(Equipment!K:K,MATCH(\"DCVOnly\"&A80,Equipment!C:C,0))\n),\n\"eligible\",\n\"ineligible\"),\"\")","v":""},{"$f":"IFERROR(INDEX(Equipment!$D:$D,MATCH(\"DCVOnly\" & A80,Equipment!$C:$C,0)),\"\")","v":""},null,{"$f":"IFERROR(INDEX(Equipment!$L:$L,MATCH(\"DCVOnly\" & $A80,Equipment!$C:$C,0)),\"\")","v":""},null,null,"",null,{"$f":"IFERROR(IF(B80<>\"eligible\",0,0.223*INDEX(OpHours,MATCH(Equipment!$D$7,BuildingType,0))*INDEX(Equipment!$M$13:$M$212,MATCH(\"DCVOnly\"&A80,Equipment!$C$12:$C$211,0))),0)","v":0}]
[66,{"$f":"IFERROR(IF(\nAND(\n    E81>=0,\n    15>INDEX(Equipment!K:K,MATCH(\"DCVOnly\"&A81,Equipment!C:C,0))\n),\n\"eligible\",\n\"ineligible\"),\"\")","v":""},{"$f":"IFERROR(INDEX(Equipment!$D:$D,MATCH(\"DCVOnly\" & A81,Equipment!$C:$C,0)),\"\")","v":""},null,{"$f":"IFERROR(INDEX(Equipment!$L:$L,MATCH(\"DCVOnly\" & $A81,Equipment!$C:$C,0)),\"\")","v":""},null,null,{"$f":"IF(E81=\"\",\"\",IF(B81<>\"eligible\",0,IF(AND(E81>=5,E81<=10),500,IF(AND(E81>10,E81<=15),600,IF(AND(E81>15,E81<=20),700,IF(AND(E81>20),800,IF(AND(E81>0,E81<5),300,0)))))))","v":""},null,{"$f":"IFERROR(IF(B81<>\"eligible\",0,0.223*INDEX(OpHours,MATCH(Equipment!$D$7,BuildingType,0))*INDEX(Equipment!$M$13:$M$212,MATCH(\"DCVOnly\"&A81,Equipment!$C$12:$C$211,0))),0)","v":0}]
[67,{"$f":"IFERROR(IF(\nAND(\n    E82>=0,\n    15>INDEX(Equipment!K:K,MATCH(\"DCVOnly\"&A82,Equipment!C:C,0))\n),\n\"eligible\",\n\"ineligible\"),\"\")","v":""},{"$f":"IFERROR(INDEX(Equipment!$D:$D,MATCH(\"DCVOnly\" & A82,Equipment!$C:$C,0)),\"\")","v":""},null,{"$f":"IFERROR(INDEX(Equipment!$L:$L,MATCH(\"DCVOnly\" & $A82,Equipment!$C:$C,0)),\"\")","v":""},null,null,"",null,{"$f":"IFERROR(IF(B82<>\"eligible\",0,0.223*INDEX(OpHours,MATCH(Equipment!$D$7,BuildingType,0))*INDEX(Equipment!$M$13:$M$212,MATCH(\"DCVOnly\"&A82,Equipment!$C$12:$C$211,0))),0)","v":0}]
[68,{"$f":"IFERROR(IF(\nAND(\n    E83>=0,\n    15>INDEX(Equipment!K:K,MATCH(\"DCVOnly\"&A83,Equipment!C:C,0))\n),\n\"eligible\",\n\"ineligible\"),\"\")","v":""},{"$f":"IFERROR(INDEX(Equipment!$D:$D,MATCH(\"DCVOnly\" & A83,Equipment!$C:$C,0)),\"\")","v":""},null,{"$f":"IFERROR(INDEX(Equipment!$L:$L,MATCH(\"DCVOnly\" & $A83,Equipment!$C:$C,0)),\"\")","v":""},null,null,"",null,{"$f":"IFERROR(IF(B83<>\"eligible\",0,0.223*INDEX(OpHours,MATCH(Equipment!$D$7,BuildingType,0))*INDEX(Equipment!$M$13:$M$212,MATCH(\"DCVOnly\"&A83,Equipment!$C$12:$C$211,0))),0)","v":0}]
[69,{"$f":"IFERROR(IF(\nAND(\n    E84>=0,\n    15>INDEX(Equipment!K:K,MATCH(\"DCVOnly\"&A84,Equipment!C:C,0))\n),\n\"eligible\",\n\"ineligible\"),\"\")","v":""},{"$f":"IFERROR(INDEX(Equipment!$D:$D,MATCH(\"DCVOnly\" & A84,Equipment!$C:$C,0)),\"\")","v":""},null,{"$f":"IFERROR(INDEX(Equipment!$L:$L,MATCH(\"DCVOnly\" & $A84,Equipment!$C:$C,0)),\"\")","v":""},null,null,"",null,{"$f":"IFERROR(IF(B84<>\"eligible\",0,0.223*INDEX(OpHours,MATCH(Equipment!$D$7,BuildingType,0))*INDEX(Equipment!$M$13:$M$212,MATCH(\"DCVOnly\"&A84,Equipment!$C$12:$C$211,0))),0)","v":0}]
[70,{"$f":"IFERROR(IF(\nAND(\n    E85>=0,\n    15>INDEX(Equipment!K:K,MATCH(\"DCVOnly\"&A85,Equipment!C:C,0))\n),\n\"eligible\",\n\"ineligible\"),\"\")","v":""},{"$f":"IFERROR(INDEX(Equipment!$D:$D,MATCH(\"DCVOnly\" & A85,Equipment!$C:$C,0)),\"\")","v":""},null,{"$f":"IFERROR(INDEX(Equipment!$L:$L,MATCH(\"DCVOnly\" & $A85,Equipment!$C:$C,0)),\"\")","v":""},null,null,"",null,{"$f":"IFERROR(IF(B85<>\"eligible\",0,0.223*INDEX(OpHours,MATCH(Equipment!$D$7,BuildingType,0))*INDEX(Equipment!$M$13:$M$212,MATCH(\"DCVOnly\"&A85,Equipment!$C$12:$C$211,0))),0)","v":0}]
[71,{"$f":"IFERROR(IF(\nAND(\n    E86>=0,\n    15>INDEX(Equipment!K:K,MATCH(\"DCVOnly\"&A86,Equipment!C:C,0))\n),\n\"eligible\",\n\"ineligible\"),\"\")","v":""},{"$f":"IFERROR(INDEX(Equipment!$D:$D,MATCH(\"DCVOnly\" & A86,Equipment!$C:$C,0)),\"\")","v":""},null,{"$f":"IFERROR(INDEX(Equipment!$L:$L,MATCH(\"DCVOnly\" & $A86,Equipment!$C:$C,0)),\"\")","v":""},null,null,"",null,{"$f":"IFERROR(IF(B86<>\"eligible\",0,0.223*INDEX(OpHours,MATCH(Equipment!$D$7,BuildingType,0))*INDEX(Equipment!$M$13:$M$212,MATCH(\"DCVOnly\"&A86,Equipment!$C$12:$C$211,0))),0)","v":0}]
[72,{"$f":"IFERROR(IF(\nAND(\n    E87>=0,\n    15>INDEX(Equipment!K:K,MATCH(\"DCVOnly\"&A87,Equipment!C:C,0))\n),\n\"eligible\",\n\"ineligible\"),\"\")","v":""},{"$f":"IFERROR(INDEX(Equipment!$D:$D,MATCH(\"DCVOnly\" & A87,Equipment!$C:$C,0)),\"\")","v":""},null,{"$f":"IFERROR(INDEX(Equipment!$L:$L,MATCH(\"DCVOnly\" & $A87,Equipment!$C:$C,0)),\"\")","v":""},null,null,"",null,{"$f":"IFERROR(IF(B87<>\"eligible\",0,0.223*INDEX(OpHours,MATCH(Equipment!$D$7,BuildingType,0))*INDEX(Equipment!$M$13:$M$212,MATCH(\"DCVOnly\"&A87,Equipment!$C$12:$C$211,0))),0)","v":0}]
[73,{"$f":"IFERROR(IF(\nAND(\n    E88>=0,\n    15>INDEX(Equipment!K:K,MATCH(\"DCVOnly\"&A88,Equipment!C:C,0))\n),\n\"eligible\",\n\"ineligible\"),\"\")","v":""},{"$f":"IFERROR(INDEX(Equipment!$D:$D,MATCH(\"DCVOnly\" & A88,Equipment!$C:$C,0)),\"\")","v":""},null,{"$f":"IFERROR(INDEX(Equipment!$L:$L,MATCH(\"DCVOnly\" & $A88,Equipment!$C:$C,0)),\"\")","v":""},null,null,"",null,{"$f":"IFERROR(IF(B88<>\"eligible\",0,0.223*INDEX(OpHours,MATCH(Equipment!$D$7,BuildingType,0))*INDEX(Equipment!$M$13:$M$212,MATCH(\"DCVOnly\"&A88,Equipment!$C$12:$C$211,0))),0)","v":0}]
[74,{"$f":"IFERROR(IF(\nAND(\n    E89>=0,\n    15>INDEX(Equipment!K:K,MATCH(\"DCVOnly\"&A89,Equipment!C:C,0))\n),\n\"eligible\",\n\"ineligible\"),\"\")","v":""},{"$f":"IFERROR(INDEX(Equipment!$D:$D,MATCH(\"DCVOnly\" & A89,Equipment!$C:$C,0)),\"\")","v":""},null,{"$f":"IFERROR(INDEX(Equipment!$L:$L,MATCH(\"DCVOnly\" & $A89,Equipment!$C:$C,0)),\"\")","v":""},null,null,"",null,{"$f":"IFERROR(IF(B89<>\"eligible\",0,0.223*INDEX(OpHours,MATCH(Equipment!$D$7,BuildingType,0))*INDEX(Equipment!$M$13:$M$212,MATCH(\"DCVOnly\"&A89,Equipment!$C$12:$C$211,0))),0)","v":0}]
[75,{"$f":"IFERROR(IF(\nAND(\n    E90>=0,\n    15>INDEX(Equipment!K:K,MATCH(\"DCVOnly\"&A90,Equipment!C:C,0))\n),\n\"eligible\",\n\"ineligible\"),\"\")","v":""},{"$f":"IFERROR(INDEX(Equipment!$D:$D,MATCH(\"DCVOnly\" & A90,Equipment!$C:$C,0)),\"\")","v":""},null,{"$f":"IFERROR(INDEX(Equipment!$L:$L,MATCH(\"DCVOnly\" & $A90,Equipment!$C:$C,0)),\"\")","v":""},null,null,"",null,{"$f":"IFERROR(IF(B90<>\"eligible\",0,0.223*INDEX(OpHours,MATCH(Equipment!$D$7,BuildingType,0))*INDEX(Equipment!$M$13:$M$212,MATCH(\"DCVOnly\"&A90,Equipment!$C$12:$C$211,0))),0)","v":0}]
[76,{"$f":"IFERROR(IF(\nAND(\n    E91>=0,\n    15>INDEX(Equipment!K:K,MATCH(\"DCVOnly\"&A91,Equipment!C:C,0))\n),\n\"eligible\",\n\"ineligible\"),\"\")","v":""},{"$f":"IFERROR(INDEX(Equipment!$D:$D,MATCH(\"DCVOnly\" & A91,Equipment!$C:$C,0)),\"\")","v":""},null,{"$f":"IFERROR(INDEX(Equipment!$L:$L,MATCH(\"DCVOnly\" & $A91,Equipment!$C:$C,0)),\"\")","v":""},null,null,"",null,{"$f":"IFERROR(IF(B91<>\"eligible\",0,0.223*INDEX(OpHours,MATCH(Equipment!$D$7,BuildingType,0))*INDEX(Equipment!$M$13:$M$212,MATCH(\"DCVOnly\"&A91,Equipment!$C$12:$C$211,0))),0)","v":0}]
[77,{"$f":"IFERROR(IF(\nAND(\n    E92>=0,\n    15>INDEX(Equipment!K:K,MATCH(\"DCVOnly\"&A92,Equipment!C:C,0))\n),\n\"eligible\",\n\"ineligible\"),\"\")","v":""},{"$f":"IFERROR(INDEX(Equipment!$D:$D,MATCH(\"DCVOnly\" & A92,Equipment!$C:$C,0)),\"\")","v":""},null,{"$f":"IFERROR(INDEX(Equipment!$L:$L,MATCH(\"DCVOnly\" & $A92,Equipment!$C:$C,0)),\"\")","v":""},null,null,"",null,{"$f":"IFERROR(IF(B92<>\"eligible\",0,0.223*INDEX(OpHours,MATCH(Equipment!$D$7,BuildingType,0))*INDEX(Equipment!$M$13:$M$212,MATCH(\"DCVOnly\"&A92,Equipment!$C$12:$C$211,0))),0)","v":0}]
[78,{"$f":"IFERROR(IF(\nAND(\n    E93>=0,\n    15>INDEX(Equipment!K:K,MATCH(\"DCVOnly\"&A93,Equipment!C:C,0))\n),\n\"eligible\",\n\"ineligible\"),\"\")","v":""},{"$f":"IFERROR(INDEX(Equipment!$D:$D,MATCH(\"DCVOnly\" & A93,Equipment!$C:$C,0)),\"\")","v":""},null,{"$f":"IFERROR(INDEX(Equipment!$L:$L,MATCH(\"DCVOnly\" & $A93,Equipment!$C:$C,0)),\"\")","v":""},null,null,"",null,{"$f":"IFERROR(IF(B93<>\"eligible\",0,0.223*INDEX(OpHours,MATCH(Equipment!$D$7,BuildingType,0))*INDEX(Equipment!$M$13:$M$212,MATCH(\"DCVOnly\"&A93,Equipment!$C$12:$C$211,0))),0)","v":0}]
[79,{"$f":"IFERROR(IF(\nAND(\n    E94>=0,\n    15>INDEX(Equipment!K:K,MATCH(\"DCVOnly\"&A94,Equipment!C:C,0))\n),\n\"eligible\",\n\"ineligible\"),\"\")","v":""},{"$f":"IFERROR(INDEX(Equipment!$D:$D,MATCH(\"DCVOnly\" & A94,Equipment!$C:$C,0)),\"\")","v":""},null,{"$f":"IFERROR(INDEX(Equipment!$L:$L,MATCH(\"DCVOnly\" & $A94,Equipment!$C:$C,0)),\"\")","v":""},null,null,"",null,{"$f":"IFERROR(IF(B94<>\"eligible\",0,0.223*INDEX(OpHours,MATCH(Equipment!$D$7,BuildingType,0))*INDEX(Equipment!$M$13:$M$212,MATCH(\"DCVOnly\"&A94,Equipment!$C$12:$C$211,0))),0)","v":0}]
[80,{"$f":"IFERROR(IF(\nAND(\n    E95>=0,\n    15>INDEX(Equipment!K:K,MATCH(\"DCVOnly\"&A95,Equipment!C:C,0))\n),\n\"eligible\",\n\"ineligible\"),\"\")","v":""},{"$f":"IFERROR(INDEX(Equipment!$D:$D,MATCH(\"DCVOnly\" & A95,Equipment!$C:$C,0)),\"\")","v":""},null,{"$f":"IFERROR(INDEX(Equipment!$L:$L,MATCH(\"DCVOnly\" & $A95,Equipment!$C:$C,0)),\"\")","v":""},null,null,"",null,{"$f":"IFERROR(IF(B95<>\"eligible\",0,0.223*INDEX(OpHours,MATCH(Equipment!$D$7,BuildingType,0))*INDEX(Equipment!$M$13:$M$212,MATCH(\"DCVOnly\"&A95,Equipment!$C$12:$C$211,0))),0)","v":0}]
[81,{"$f":"IFERROR(IF(\nAND(\n    E96>=0,\n    15>INDEX(Equipment!K:K,MATCH(\"DCVOnly\"&A96,Equipment!C:C,0))\n),\n\"eligible\",\n\"ineligible\"),\"\")","v":""},{"$f":"IFERROR(INDEX(Equipment!$D:$D,MATCH(\"DCVOnly\" & A96,Equipment!$C:$C,0)),\"\")","v":""},null,{"$f":"IFERROR(INDEX(Equipment!$L:$L,MATCH(\"DCVOnly\" & $A96,Equipment!$C:$C,0)),\"\")","v":""},null,null,"",null,{"$f":"IFERROR(IF(B96<>\"eligible\",0,0.223*INDEX(OpHours,MATCH(Equipment!$D$7,BuildingType,0))*INDEX(Equipment!$M$13:$M$212,MATCH(\"DCVOnly\"&A96,Equipment!$C$12:$C$211,0))),0)","v":0}]
[82,{"$f":"IFERROR(IF(\nAND(\n    E97>=0,\n    15>INDEX(Equipment!K:K,MATCH(\"DCVOnly\"&A97,Equipment!C:C,0))\n),\n\"eligible\",\n\"ineligible\"),\"\")","v":""},{"$f":"IFERROR(INDEX(Equipment!$D:$D,MATCH(\"DCVOnly\" & A97,Equipment!$C:$C,0)),\"\")","v":""},null,{"$f":"IFERROR(INDEX(Equipment!$L:$L,MATCH(\"DCVOnly\" & $A97,Equipment!$C:$C,0)),\"\")","v":""},null,null,"",null,{"$f":"IFERROR(IF(B97<>\"eligible\",0,0.223*INDEX(OpHours,MATCH(Equipment!$D$7,BuildingType,0))*INDEX(Equipment!$M$13:$M$212,MATCH(\"DCVOnly\"&A97,Equipment!$C$12:$C$211,0))),0)","v":0}]
[83,{"$f":"IFERROR(IF(\nAND(\n    E98>=0,\n    15>INDEX(Equipment!K:K,MATCH(\"DCVOnly\"&A98,Equipment!C:C,0))\n),\n\"eligible\",\n\"ineligible\"),\"\")","v":""},{"$f":"IFERROR(INDEX(Equipment!$D:$D,MATCH(\"DCVOnly\" & A98,Equipment!$C:$C,0)),\"\")","v":""},null,{"$f":"IFERROR(INDEX(Equipment!$L:$L,MATCH(\"DCVOnly\" & $A98,Equipment!$C:$C,0)),\"\")","v":""},null,null,"",null,{"$f":"IFERROR(IF(B98<>\"eligible\",0,0.223*INDEX(OpHours,MATCH(Equipment!$D$7,BuildingType,0))*INDEX(Equipment!$M$13:$M$212,MATCH(\"DCVOnly\"&A98,Equipment!$C$12:$C$211,0))),0)","v":0}]
[84,{"$f":"IFERROR(IF(\nAND(\n    E99>=0,\n    15>INDEX(Equipment!K:K,MATCH(\"DCVOnly\"&A99,Equipment!C:C,0))\n),\n\"eligible\",\n\"ineligible\"),\"\")","v":""},{"$f":"IFERROR(INDEX(Equipment!$D:$D,MATCH(\"DCVOnly\" & A99,Equipment!$C:$C,0)),\"\")","v":""},null,{"$f":"IFERROR(INDEX(Equipment!$L:$L,MATCH(\"DCVOnly\" & $A99,Equipment!$C:$C,0)),\"\")","v":""},null,null,"",null,{"$f":"IFERROR(IF(B99<>\"eligible\",0,0.223*INDEX(OpHours,MATCH(Equipment!$D$7,BuildingType,0))*INDEX(Equipment!$M$13:$M$212,MATCH(\"DCVOnly\"&A99,Equipment!$C$12:$C$211,0))),0)","v":0}]
[85,{"$f":"IFERROR(IF(\nAND(\n    E100>=0,\n    15>INDEX(Equipment!K:K,MATCH(\"DCVOnly\"&A100,Equipment!C:C,0))\n),\n\"eligible\",\n\"ineligible\"),\"\")","v":""},{"$f":"IFERROR(INDEX(Equipment!$D:$D,MATCH(\"DCVOnly\" & A100,Equipment!$C:$C,0)),\"\")","v":""},null,{"$f":"IFERROR(INDEX(Equipment!$L:$L,MATCH(\"DCVOnly\" & $A100,Equipment!$C:$C,0)),\"\")","v":""},null,null,"",null,{"$f":"IFERROR(IF(B100<>\"eligible\",0,0.223*INDEX(OpHours,MATCH(Equipment!$D$7,BuildingType,0))*INDEX(Equipment!$M$13:$M$212,MATCH(\"DCVOnly\"&A100,Equipment!$C$12:$C$211,0))),0)","v":0}]
[86,{"$f":"IFERROR(IF(\nAND(\n    E101>=0,\n    15>INDEX(Equipment!K:K,MATCH(\"DCVOnly\"&A101,Equipment!C:C,0))\n),\n\"eligible\",\n\"ineligible\"),\"\")","v":""},{"$f":"IFERROR(INDEX(Equipment!$D:$D,MATCH(\"DCVOnly\" & A101,Equipment!$C:$C,0)),\"\")","v":""},null,{"$f":"IFERROR(INDEX(Equipment!$L:$L,MATCH(\"DCVOnly\" & $A101,Equipment!$C:$C,0)),\"\")","v":""},null,null,"",null,{"$f":"IFERROR(IF(B101<>\"eligible\",0,0.223*INDEX(OpHours,MATCH(Equipment!$D$7,BuildingType,0))*INDEX(Equipment!$M$13:$M$212,MATCH(\"DCVOnly\"&A101,Equipment!$C$12:$C$211,0))),0)","v":0}]
[87,{"$f":"IFERROR(IF(\nAND(\n    E102>=0,\n    15>INDEX(Equipment!K:K,MATCH(\"DCVOnly\"&A102,Equipment!C:C,0))\n),\n\"eligible\",\n\"ineligible\"),\"\")","v":""},{"$f":"IFERROR(INDEX(Equipment!$D:$D,MATCH(\"DCVOnly\" & A102,Equipment!$C:$C,0)),\"\")","v":""},null,{"$f":"IFERROR(INDEX(Equipment!$L:$L,MATCH(\"DCVOnly\" & $A102,Equipment!$C:$C,0)),\"\")","v":""},null,null,"",null,{"$f":"IFERROR(IF(B102<>\"eligible\",0,0.223*INDEX(OpHours,MATCH(Equipment!$D$7,BuildingType,0))*INDEX(Equipment!$M$13:$M$212,MATCH(\"DCVOnly\"&A102,Equipment!$C$12:$C$211,0))),0)","v":0}]
[88,{"$f":"IFERROR(IF(\nAND(\n    E103>=0,\n    15>INDEX(Equipment!K:K,MATCH(\"DCVOnly\"&A103,Equipment!C:C,0))\n),\n\"eligible\",\n\"ineligible\"),\"\")","v":""},{"$f":"IFERROR(INDEX(Equipment!$D:$D,MATCH(\"DCVOnly\" & A103,Equipment!$C:$C,0)),\"\")","v":""},null,{"$f":"IFERROR(INDEX(Equipment!$L:$L,MATCH(\"DCVOnly\" & $A103,Equipment!$C:$C,0)),\"\")","v":""},null,null,"",null,{"$f":"IFERROR(IF(B103<>\"eligible\",0,0.223*INDEX(OpHours,MATCH(Equipment!$D$7,BuildingType,0))*INDEX(Equipment!$M$13:$M$212,MATCH(\"DCVOnly\"&A103,Equipment!$C$12:$C$211,0))),0)","v":0}]
[89,{"$f":"IFERROR(IF(\nAND(\n    E104>=0,\n    15>INDEX(Equipment!K:K,MATCH(\"DCVOnly\"&A104,Equipment!C:C,0))\n),\n\"eligible\",\n\"ineligible\"),\"\")","v":""},{"$f":"IFERROR(INDEX(Equipment!$D:$D,MATCH(\"DCVOnly\" & A104,Equipment!$C:$C,0)),\"\")","v":""},null,{"$f":"IFERROR(INDEX(Equipment!$L:$L,MATCH(\"DCVOnly\" & $A104,Equipment!$C:$C,0)),\"\")","v":""},null,null,"",null,{"$f":"IFERROR(IF(B104<>\"eligible\",0,0.223*INDEX(OpHours,MATCH(Equipment!$D$7,BuildingType,0))*INDEX(Equipment!$M$13:$M$212,MATCH(\"DCVOnly\"&A104,Equipment!$C$12:$C$211,0))),0)","v":0}]
[90,{"$f":"IFERROR(IF(\nAND(\n    E105>=0,\n    15>INDEX(Equipment!K:K,MATCH(\"DCVOnly\"&A105,Equipment!C:C,0))\n),\n\"eligible\",\n\"ineligible\"),\"\")","v":""},{"$f":"IFERROR(INDEX(Equipment!$D:$D,MATCH(\"DCVOnly\" & A105,Equipment!$C:$C,0)),\"\")","v":""},null,{"$f":"IFERROR(INDEX(Equipment!$L:$L,MATCH(\"DCVOnly\" & $A105,Equipment!$C:$C,0)),\"\")","v":""},null,null,"",null,{"$f":"IFERROR(IF(B105<>\"eligible\",0,0.223*INDEX(OpHours,MATCH(Equipment!$D$7,BuildingType,0))*INDEX(Equipment!$M$13:$M$212,MATCH(\"DCVOnly\"&A105,Equipment!$C$12:$C$211,0))),0)","v":0}]
[91,{"$f":"IFERROR(IF(\nAND(\n    E106>=0,\n    15>INDEX(Equipment!K:K,MATCH(\"DCVOnly\"&A106,Equipment!C:C,0))\n),\n\"eligible\",\n\"ineligible\"),\"\")","v":""},{"$f":"IFERROR(INDEX(Equipment!$D:$D,MATCH(\"DCVOnly\" & A106,Equipment!$C:$C,0)),\"\")","v":""},null,{"$f":"IFERROR(INDEX(Equipment!$L:$L,MATCH(\"DCVOnly\" & $A106,Equipment!$C:$C,0)),\"\")","v":""},null,null,"",null,{"$f":"IFERROR(IF(B106<>\"eligible\",0,0.223*INDEX(OpHours,MATCH(Equipment!$D$7,BuildingType,0))*INDEX(Equipment!$M$13:$M$212,MATCH(\"DCVOnly\"&A106,Equipment!$C$12:$C$211,0))),0)","v":0}]
[92,{"$f":"IFERROR(IF(\nAND(\n    E107>=0,\n    15>INDEX(Equipment!K:K,MATCH(\"DCVOnly\"&A107,Equipment!C:C,0))\n),\n\"eligible\",\n\"ineligible\"),\"\")","v":""},{"$f":"IFERROR(INDEX(Equipment!$D:$D,MATCH(\"DCVOnly\" & A107,Equipment!$C:$C,0)),\"\")","v":""},null,{"$f":"IFERROR(INDEX(Equipment!$L:$L,MATCH(\"DCVOnly\" & $A107,Equipment!$C:$C,0)),\"\")","v":""},null,null,"",null,{"$f":"IFERROR(IF(B107<>\"eligible\",0,0.223*INDEX(OpHours,MATCH(Equipment!$D$7,BuildingType,0))*INDEX(Equipment!$M$13:$M$212,MATCH(\"DCVOnly\"&A107,Equipment!$C$12:$C$211,0))),0)","v":0}]
[93,{"$f":"IFERROR(IF(\nAND(\n    E108>=0,\n    15>INDEX(Equipment!K:K,MATCH(\"DCVOnly\"&A108,Equipment!C:C,0))\n),\n\"eligible\",\n\"ineligible\"),\"\")","v":""},{"$f":"IFERROR(INDEX(Equipment!$D:$D,MATCH(\"DCVOnly\" & A108,Equipment!$C:$C,0)),\"\")","v":""},null,{"$f":"IFERROR(INDEX(Equipment!$L:$L,MATCH(\"DCVOnly\" & $A108,Equipment!$C:$C,0)),\"\")","v":""},null,null,"",null,{"$f":"IFERROR(IF(B108<>\"eligible\",0,0.223*INDEX(OpHours,MATCH(Equipment!$D$7,BuildingType,0))*INDEX(Equipment!$M$13:$M$212,MATCH(\"DCVOnly\"&A108,Equipment!$C$12:$C$211,0))),0)","v":0}]
[94,{"$f":"IFERROR(IF(\nAND(\n    E109>=0,\n    15>INDEX(Equipment!K:K,MATCH(\"DCVOnly\"&A109,Equipment!C:C,0))\n),\n\"eligible\",\n\"ineligible\"),\"\")","v":""},{"$f":"IFERROR(INDEX(Equipment!$D:$D,MATCH(\"DCVOnly\" & A109,Equipment!$C:$C,0)),\"\")","v":""},null,{"$f":"IFERROR(INDEX(Equipment!$L:$L,MATCH(\"DCVOnly\" & $A109,Equipment!$C:$C,0)),\"\")","v":""},null,null,"",null,{"$f":"IFERROR(IF(B109<>\"eligible\",0,0.223*INDEX(OpHours,MATCH(Equipment!$D$7,BuildingType,0))*INDEX(Equipment!$M$13:$M$212,MATCH(\"DCVOnly\"&A109,Equipment!$C$12:$C$211,0))),0)","v":0}]
[95,{"$f":"IFERROR(IF(\nAND(\n    E110>=0,\n    15>INDEX(Equipment!K:K,MATCH(\"DCVOnly\"&A110,Equipment!C:C,0))\n),\n\"eligible\",\n\"ineligible\"),\"\")","v":""},{"$f":"IFERROR(INDEX(Equipment!$D:$D,MATCH(\"DCVOnly\" & A110,Equipment!$C:$C,0)),\"\")","v":""},null,{"$f":"IFERROR(INDEX(Equipment!$L:$L,MATCH(\"DCVOnly\" & $A110,Equipment!$C:$C,0)),\"\")","v":""},null,null,"",null,{"$f":"IFERROR(IF(B110<>\"eligible\",0,0.223*INDEX(OpHours,MATCH(Equipment!$D$7,BuildingType,0))*INDEX(Equipment!$M$13:$M$212,MATCH(\"DCVOnly\"&A110,Equipment!$C$12:$C$211,0))),0)","v":0}]

{"sheet":"Lookups","index":6,"n_rows":26,"n_cols":12,"rows_kept":26,"cut":false,"hidden":true,"merged":[]}
["BuildingType","OpHours","YesNo","Economizer Type","Economizer Status","Economizer Control","Ventilation Control","No Existing VFD","New VFD","Refrigerant Type","Occ Control Type","InterfaceType"]
["Hospital",8760,"Yes","Dual Enthalpy","Non-Functional","Integrated","Occupancy","Yes","Yes","R-22","Bluetooth","Mobile\n App"]
["Hotel (Small)",4801,"No","Dry Bulb","Partially-Functional","Digital","CO2","No","No","R-410a","Occ Sensor","Online\nDashboard"]
["Hotel (Large)",8760,null,"Other","Fully-Functional","N/A","N/A",null,null,null,null,"Wi-Fi\nEnabled"]
["Office (Small)",5242]
["Office (Medium)",5940]
["Office (Large)",5444,null,null,"Current Versions","Notes","Measures",null,"Notes:"]
["Outpatient Healthcare",6168,null,null,"v 071217.1",null,"Maintenance Agreement",null,"Make export tab work and pull in project name"]
["Restaurant\n (Full Service)",7300,null,null,"v 080217.1",null,"Programmable Thermostat",null,"Make print GA at PDF button"]
["Restaurant\n (Quick Service)",7300,null,null,"v 101817.1",null,"Smart Thermostat",null,"Add instructions on how to digitally/physically complete application. Includes that they can not type a signature"]
["Retail (Stand Alone)",5860,null,null,"v 030518.1",null,"Economizer Repair",null,"Make unlock Tool button work"]
["School (Primary)",5220,null,null,"v 031518.1",null,"Refrigerant Charge"]
["School (Secondary)",4801,null,null,"v 032318.1",null,null,null,"kW X 12 X kW rate + kWh X kWh rate"]
["Strip Mall",5647,null,null,"v 050218.1"]
["Supermarket",5647,null,null,"v 07102018 Draft"]
["Warehouse",6594,null,null,"v 08282018 "]
[null,null,null,null,"v 10162018"]
[null,null,null,null,"v 03112019 Draft"]
["RateSchedules","kWhRates","kWRates",null,"v 08282018 Draft"]
["6",4.802E-2,16.388000000000002,null,"v 120919.4"]
["8",7.3859999999999995E-2,24.742999999999999,null,"v 120919.5"]
["9",6.8959999999999994E-2,21.475000000000001,null,"v 120919.6"]
["10",5.7630000000000001E-2,7.7949999999999999,null,"v 120919.7"]
["23",7.7890000000000001E-2,10.563000000000001,null,"v 09302020.1"]
["Rates Updated 3/31/2025 per 2/6/2025 Rates",null,null,null,"v 09302020.2","fixed issue with cell reference on tab \"ARC - New RTU\""]
[null,null,null,null,"v 04012025","Changes Rate Schedules "]